{"text_format":"1","workbook":"xlsx","n_sheets":3,"sheets":["SIMULADOR","Dados","BASE DE CÁLCULO IRRF E PREV."],"not_rendered":{"charts":0,"images":1,"macros":1,"external_links":1,"defined_names":4,"comments":0,"pivot_tables":0},"unopened":[],"bounds":{"document_bytes":16777216,"sheet_cells":100000,"rows_first":2000,"rows_last":500,"rows_between":2000,"halvings":0,"cell_chars":16384,"cell_head_chars":4096},"cells_cut":0,"cells_raw":0,"read":"whole","date_system":"1900"}

{"sheet":"SIMULADOR","index":0,"n_rows":32,"n_cols":12,"rows_kept":32,"cut":false,"hidden":false,"merged":[[5,11,5,12],[0,0,1,12],[3,5,3,6],[3,8,3,9],[3,11,3,12],[4,11,4,12],[30,1,30,2],[15,5,15,6],[6,11,6,12],[7,11,9,12],[10,11,10,12],[11,11,29,12],[15,0,15,2],[20,1,20,2],[23,8,24,9],[25,1,25,2],[26,5,27,6]]}
[]
[]
[]
["CÓDIGO","DESCRIÇÃO","OBSERVAÇÃO","VALOR",null,"DESCONTOS OBRIGATÓRIOS",null,null,"DESCONTOS FACULTATIVOS",null,null,"AVALIAÇÃO DE VERBAS "]
[142,{"$f":"IFERROR(VLOOKUP(A5,Dados!$A:$F,2,0),\"\")","v":"Piso Salarial"},{"$f":"IFERROR(VLOOKUP(A5,Dados!$A:$F,4,0),\"\")","v":"Acatar"},8000,null,"IMPOSTO DE RENDA",null,null,"EMPRÉSTIMO CONSIGNADO",null,null,"CONSULTA CÓDIGO"]
[3029,{"$f":"IFERROR(VLOOKUP(A6,Dados!$A:$F,2,0),\"\")","v":"Artigo 133 Ce – Pró-Labore LC 1193/2013"},{"$f":"IFERROR(VLOOKUP(A6,Dados!$A:$F,4,0),\"\")","v":"Não Acatar"},null,null,"CONTR. PREV.",null,null,"EMPRÉSTIMO CONSIGNADO"]
[null,{"$f":"IFERROR(VLOOKUP(A7,Dados!$A:$F,2,0),\"\")","v":""},{"$f":"IFERROR(VLOOKUP(A7,Dados!$A:$F,4,0),\"\")","v":""},null,null,"PENSÃO ALIMENT.",null,null,"EMPRÉSTIMO CONSIGNADO",null,null,"DESCRIÇÃO DA VERBA "]
[null,{"$f":"IFERROR(VLOOKUP(A8,Dados!$A:$F,2,0),\"\")","v":""},{"$f":"IFERROR(VLOOKUP(A8,Dados!$A:$F,4,0),\"\")","v":""},null,null,"IAMSPE",null,null,"FARMÁCIA",null,null,{"$f":"IFERROR(VLOOKUP(L6,Dados!$A:$B,2,0),\"\")","v":""}]
[null,{"$f":"IFERROR(VLOOKUP(A9,Dados!$A:$F,2,0),\"\")","v":""},{"$f":"IFERROR(VLOOKUP(A9,Dados!$A:$F,4,0),\"\")","v":""},null,null,"ACSPM",null,null,"SUPERMERCADO"]
[null,{"$f":"IFERROR(VLOOKUP(A10,Dados!$A:$F,2,0),\"\")","v":""},{"$f":"IFERROR(VLOOKUP(A10,Dados!$A:$F,4,0),\"\")","v":""},null,null,"ADEPOM",null,null,"SEG. VIDA"]
[null,{"$f":"IFERROR(VLOOKUP(A11,Dados!$A:$F,2,0),\"\")","v":""},{"$f":"IFERROR(VLOOKUP(A11,Dados!$A:$F,4,0),\"\")","v":""},null,null,"FEPOM",null,null,"AGEPOL",null,null,"OBSERVAÇÃO"]
[null,{"$f":"IFERROR(VLOOKUP(A12,Dados!$A:$F,2,0),\"\")","v":""},{"$f":"IFERROR(VLOOKUP(A12,Dados!$A:$F,4,0),\"\")","v":""},null,null,"CBPM",null,null,"SIFUSPESP",null,null,{"$f":"IFERROR(VLOOKUP(L6,Dados!$A:$F,6,0),\"\")","v":""}]
[null,{"$f":"IFERROR(VLOOKUP(A13,Dados!$A:$F,2,0),\"\")","v":""},{"$f":"IFERROR(VLOOKUP(A13,Dados!$A:$F,4,0),\"\")","v":""},null,null,"OUTROS",null,null,"ASS. FUNERAL"]
[null,{"$f":"IFERROR(VLOOKUP(A14,Dados!$A:$F,2,0),\"\")","v":""},{"$f":"IFERROR(VLOOKUP(A14,Dados!$A:$F,4,0),\"\")","v":""},null,null,"TOTAL [",{"$f":"SUM(G5:G13)","v":0},null,"APAS"]
[null,{"$f":"IFERROR(VLOOKUP(A15,Dados!$A:$F,2,0),\"\")","v":""},{"$f":"IFERROR(VLOOKUP(A15,Dados!$A:$F,4,0),\"\")","v":""},null,null,null,null,null,"APEOESP"]
["TOTAL [",null,null,{"$f":"SUM(D5:D15)","v":8000},null,"DADOS DA MARGEM CONSIGNAVEL",null,null,"ASSOSSIAÇÕES DIVERSAS"]
[null,null,null,null,null,"SALDO (Verbas Fixas - Desc. Obrig.)",{"$f":"D16-G14","v":8000},null,"OUTROS"]
[null,"% DO CALCULO PREVIDENCIÁRIO A SER UTILIZADO",{"$f":"IF($D$16<=1212,\"11%\",IF($D$16<=3473.74,\"12%\",IF($D$16<=7087.22,\"14%\",IF($D$16>7087.22,\"16%\"))))","v":"16%"},null,null,"MARGEM CONSIGNÁVEL TOTAL BRUTA 30%",{"$f":"G17*30%","v":2400},null,"TOTAL [",{"$f":"SUM(J5:J17)","v":0}]
[null,"CÁLCULO FINAL DA PREVIDENCIA ",{"$f":"D16*C18","v":1280},null,null,"MARGEM CONSIGNÁVEL TOTAL BRUTA 35%",{"$f":"G17*35%","v":2800}]
[null,"CÁLCULO FINAL DA PREVIDENCIA MILITARES 10,5%",{"$f":"IFERROR(D16*10.5%,\"\")","v":840},null,null,"Comprometimento Compulsórios",{"$f":"IFERROR((G14)/D16,\"\")","v":0},null,"INSERIR A PARCELA DE CARTÃO ]"]
[null,"REGRA - BASE PREVIDÊNCIA**",null,null,null,"Comprometimento Facultativos",{"$f":"IFERROR((J18)/D16,\"\")","v":0},null,null,{"$f":"SUM(J8:J16)","v":0}]
[null,"ATÉ 1 SALÁRIO MINIMO - R$ 1.518,00",0.11,null,null,"Comprometimento TOTAL",{"$f":"SUM(G20:G21)","v":0},null,"PREENCHER A QUANTIDADE DE DEPENDENTES  ["]
[null,"R$ 1.518,01 ATÉ R$ 4.022,46",0.12,null,null,"MARGEM DISPONÍVEL TOTAL 5% (100% da Margem)",{"$f":"G17*5%-J20","v":400},null,"VALOR DE DEDUÇÃO PELA QTDE. DE DEPENDENTES [",{"$f":"(J22*189.59)","v":0}]
[null,"R$ 4.022,47 ATÉ R$ 8.157,41",0.14000000000000001,null,null,"MARGEM DISPONÍVEL TOTAL 15% (100% da Margem)",{"$f":"G17*15%-J21","v":1200},null,"CÁLCULO DO I.R.R.F. (proporcional a verbas fixas)"]
[null,"ACIMA R$ 8.157,41",0.16,null,null,"MARGEM DISPONÍVEL TOTAL 30% (100% da Margem)",{"$f":"G18-J18","v":2400}]
[null,"CALCULO DA PREVIDÊNCIA - SPPREV",null,null,null,"MARGEM DISPONÍVEL TOTAL 35% (100% da Margem)",{"$f":"G19-J18","v":2800},null,"Base de Cálculo do I.R.R.F.",{"$f":"IF(J30=\"NÃO\",D16-J23,IF(J30=\"SIM\",(D16-(J31+J23)),\"0\"))","v":7435.2}]
[null,"ATÉ 1 SALÁRIO MINIMO - R$ 1.518,00 -  11%",{"$f":"IFERROR(IF(AND($D$16<'BASE DE CÁLCULO IRRF E PREV.'!A23),$D$16*'BASE DE CÁLCULO IRRF E PREV.'!C22,0),0)","v":0},null,null,{"$f":"IF(G26>=0,\"AVERBAR, MARGEM POSITIVA\",\"NÃO AVERBAR, MARGEM NEGATIVA\")","v":"AVERBAR, MARGEM POSITIVA"},null,null,"I.R.R.F. BASE",{"$f":"IF($J$26<='BASE DE CÁLCULO IRRF E PREV.'!$B$3,$J$26*'BASE DE CÁLCULO IRRF E PREV.'!C3,IF($J$26<='BASE DE CÁLCULO IRRF E PREV.'!$B$4,$J$26*'BASE DE CÁLCULO IRRF E PREV.'!$C$4,IF($J$26<='BASE DE CÁLCULO IRRF E PREV.'!$B$5,$J$26*'BASE DE CÁLCULO IRRF E PREV.'!C5,IF($J$26<='BASE DE CÁLCULO IRRF E PREV.'!$B$6,$J$26*'BASE DE CÁLCULO IRRF E PREV.'!C6,IF($J$26>'BASE DE CÁLCULO IRRF E PREV.'!$B$6,$J$26*'BASE DE CÁLCULO IRRF E PREV.'!C7,\"\")))))","v":2044.68}]
[null,"R$ 1.518,01 ATÉ R$ 4.022,46 - Previdência 12%",{"$f":"IF(AND($D$16>'BASE DE CÁLCULO IRRF E PREV.'!B22,$D$16<'BASE DE CÁLCULO IRRF E PREV.'!A24),($D$16-J32)*'BASE DE CÁLCULO IRRF E PREV.'!C23,0)","v":0},null,null,null,null,null,"VALOR DA DEDUÇÃO",{"$f":"IF($J$26<='BASE DE CÁLCULO IRRF E PREV.'!B3,'BASE DE CÁLCULO IRRF E PREV.'!$D$3,IF($J$26<='BASE DE CÁLCULO IRRF E PREV.'!$B$4,'BASE DE CÁLCULO IRRF E PREV.'!$D$4,IF($J$26<='BASE DE CÁLCULO IRRF E PREV.'!$B$5,'BASE DE CÁLCULO IRRF E PREV.'!$D$5,IF($J$26<='BASE DE CÁLCULO IRRF E PREV.'!$B$6,'BASE DE CÁLCULO IRRF E PREV.'!$D$6,IF($J$26>'BASE DE CÁLCULO IRRF E PREV.'!$B$6,'BASE DE CÁLCULO IRRF E PREV.'!D7)))))","v":896}]
[null,"R$ 4.022,47 ATÉ R$ 8.157,41 - Previdência 14%",{"$f":"IF(AND($D$16>'BASE DE CÁLCULO IRRF E PREV.'!B23,$D$16<'BASE DE CÁLCULO IRRF E PREV.'!A25),($D$16-J32)*'BASE DE CÁLCULO IRRF E PREV.'!C24,0)","v":907.48000000000013},null,null,null,null,null,"VALOR FINAL DO I.R.R.F. [",{"$f":"J27-J28","v":1148.68}]
[null,"ACIMA R$ 8.157,41  -  Previdência 16%",{"$f":"IF(AND($D$16>'BASE DE CÁLCULO IRRF E PREV.'!B24),($D$16-J32)*'BASE DE CÁLCULO IRRF E PREV.'!C25,0)","v":0},null,null,null,null,null,"APLICA O DESCONTO SIMPLIFICADO DE R$ 564,80 ]","sim"]
[null,"*** UTILIZAR SOMENTE PARA APOSENTADOS COM DESCONTO DE PREVIDÊNCIA",null,null,null,null,null,null,null,564.79999999999995]
[null,null,null,null,null,null,null,null,null,1518]

{"sheet":"Dados","index":1,"n_rows":2230,"n_cols":6,"rows_kept":2230,"cut":false,"hidden":false,"merged":[]}
["Código","Denominação","Publicação no Diário Oficial","observação","LEI","informação Complementar"]
[142,"Piso Salarial",null,"Acatar"]
[1001,"Salário Base","Comunicado DDP/G-05, de 31/01/1994 => DOE: 01/02/1994","Acatar"]
[1002,"Salário Base Proporcional","Comunicado DDP/G-05, de 31/01/1994 => DOE: 01/02/1994","Não Acatar"]
[1003,"Salário Base Estagiário","Comunicado DDP/G-05, de 31/01/1994 => DOE: 01/02/1994","Não Acatar"]
[1004,"Salário Base Implantado","Comunicado DDP/G-05, de 31/01/1994 => DOE: 01/02/1994","Acatar"]
[1005,"Salário Complemento  LC 729/93 E 801/95","Comunicado DDP/G-05, de 31/01/1994 => DOE: 01/02/1994","Avaliar","LC 729/93 E 801/95","Somente para Engenheiros,  O servidor regido pela Consolidação das Leis do Trabalho, ocupante de função-atividade pertencente as séries de classes de Engenheiro, Arquiteto, Engenheiro Agrônomo e Assistente Agropecuário "]
[1006,"Subsídios Governardor / Vice Governardor","Comunicado DDP/G-05, de 31/01/1994 => DOE: 01/02/1994","Não Acatar"]
[1007,"Piso Salarial – Reajuste Complementar","Comunicado DDP/G-05, de 31/01/1994 => DOE: 01/02/1994","Acatar"]
[1008,"Salário Maternidade","Comunicado DDP/G-15, de 30/09/2016 => DOE: 01/10/2016","Não Acatar"]
[1009,"Piso Salarial - Contratado","Comunicado DDP/G-05, de 31/01/1994 => DOE: 01/02/1994","Não Acatar"]
[1010,"Piso Salarial - Perda De Gratificação De Representação","Comunicado DDP/G-05, de 31/01/1994 => DOE: 01/02/1994","Não Acatar"]
[1011,"Salário Complemento - Técnico De Laboratório","Comunicado DDP/G-15, de 30/09/2016 => DOE: 01/10/2016","Acatar"]
[1012,"Salário Complemento - Técnico De Radiologia","Comunicado DDP/G-15, de 30/09/2016 => DOE: 01/10/2016","Acatar"]
[1013,"Salário Complemento - Cirurgião Dentista","Comunicado DDP/G-15, de 30/09/2016 => DOE: 01/10/2016","Acatar"]
[1014,"Salário Complemento - Méd.Veterinário/Químico","Comunicado DDP/G-15, de 30/09/2016 => DOE: 01/10/2016","Acatar"]
[1015,"Salário Complemento - Engenheiro - Salário Mínimo","Comunicado DDP/G-15, de 30/09/2016 => DOE: 01/10/2016","Acatar"]
[1016,"Diferença De Jornada - Técnico de Laboratório","Comunicado DDP/G-15, de 30/09/2016 => DOE: 01/10/2016","Acatar"]
[1017,"Complementação De Piso - Docente","Comunicado DDP/G-05, de 02/02/1995 => DOE: 03/02/1995","Acatar"]
[1018,"Complementação Piso - Substituição Docente/ Res. -212/95 - Recuperação","Comunicado DDP/G-05, de 02/02/1995 => DOE: 03/02/1995","Acatar"]
[1019,"Complementação De Piso – Especialista Da Educação","Comunicado DDP/G-13, de 30/05/1995 => DOE: 01/06/1995","Não Acatar"]
[1020,"Piso Salarial - Perda Do Prêmio De Incentivo À Produtividade E Qualidade","Comunicado DDP/G-43, de 04/11/1998 => DOE: 06/11/1998","Avaliar",null,"Para os atuais servidores que vierem a se aposentar a partir da data de vigência desta lei complementar, com direito a proventos calculados com base na remuneração do cargo efetivo ou função-atividade em que se der a aposentadoria, o PIPQ será computado no respectivo cálculo à razão de 1/30 (um trinta avos), por ano de recebimento."]
[1021,"Abono Complementar Proporcional / Guarda Rodoviário","Comunicado DDP/G-08, de 11/04/2000 => DOE: 13/04/2000","Não Acatar"]
[1022,"Piso  - Perda De Gratificações","Comunicado DDP/G-33, de 31/08/2000 => DOE: 02/09/2000","Não Acatar"]
[1023,"Padrão Do Estado / CBPM ","Comunicado DDP/G-07, de 31/01/2002 => DOE: 02/02/2002","Acatar"]
[1024,"Abono Complementar Agente De Escolta E Vigilância Penitenciária","Comunicado DDP/G-22, de 15/08/2002 => DOE: 17/08/2002","Avaliar",null,"todos os efeitos legais.\n§ 2º - O valor desta gratificação será computado no\ncálculo do décimo terceiro salário, nos termos do\nartigo 1º da Lei Complementar nº 644, de 26 de\ndezembro de 1989, e no cálculo do acréscimo de 1/3 (um\nterço) das férias, não podendo ser considerado para\ncálculo de quaisquer outras vantagens pecuniárias.\n§ 3º - Sobre o valor da Gratificação por Atividade de\nEscolta e Vigilância – GAEV, incidirão os descontos\nprevidenciários e de assistência médica devidos.\nArtigo 13 – O servidor que passar à inatividade, terá\na Gratificação por Atividade de Escolta e Vigilância –\nGAEV, computada no cálculo de seus proventos, na base\nde 1/60 (um sessenta avos) para cada mês em que, no\nperíodo dos 60 (sessenta) meses imediatamente\nanteriores"]
[1025,"Auxílio Mensal – SD PM Temporário","Comunicado DDP/G-22, de 15/08/2002 => DOE: 17/08/2002","Não Acatar"]
[1026,"Benefício Previdenciário","Comunicado DDPE/G-13, de 07/04/2005 => DOE: 09/04/2005","Avaliar",null,"Verificar se verba compõe a base prividenciária"]
[1027,"Salário Complemento - 1 Salário Mínimo","Comunicado DDPE/G-17, de 28/07/2006 => DOE: 29/07/2006","Acatar"]
[1028,"Complemento Auxílio Previdenciário - Quadro Especial","Comunicado DDPE/G-17, de 28/07/2006 => DOE: 29/07/2006","Avaliar",null,"Verificar se verba compõe a base prividenciária"]
[1029,"Subsídio Secretário De Estado","Comunicado DDPE/G-13, de 14/05/2007 => DOE: 15/05/2007","Acatar"]
[1030,"Valor Base LC 1059/08 – Agente Fiscal De Rendas","Comunicado DDPE/G-04, de 22/06/2012 => DOE: 27/06/2012","Avaliar","Artigo 15 - A remuneração do Agente Fiscal de Rendas compreende:I - como parte fixa, o valor-base, expresso em quantidade de quotas, conforme o nível em que estiver enquadrado, constante do Anexo desta lei complementar;\nII - como parte variável:\na) o prêmio de produtividade;\nb) outras que vierem a ser previstas em lei;\nIII - como vantagens pecuniárias:\na) o adicional por tempo de serviço, de que trata o artigo 129, calculado à razão de 5% (cinco por cento) por qüinqüênio de serviço, sobre o valor da parte fixa, acrescido do prêmio de produtividade e do “pro labore”, observado o disposto no inciso XVI do artigo 115, ambos da Constituição Estadual;\nb) a sexta-parte, de que trata o artigo 129 da Constituição Estadual, calculada sobre o valor da parte fixa, acrescido do prêmio de produtividade, do “pro labore” e do adicional por tempo de serviço;\nc) décimo terceiro salário;\nd) acréscimo de 1/3 (um terço) das férias;\ne) “pro labore”;\nf) adicional de transporte como ajuda de custo para indenizar despesas de locomoção;\ng) verba indenizatória pelo exercício em unidades localizadas nas divisas do Estado;\nh) diárias;\ni) gratificação de representação, de que trata o inciso III do artigo 135 da Lei nº 10.261, de 28 de outubro de 1968. ","Verificar se verba compõe a base prividenciária"]
[1031,"Benefício Previdenciário – SPPREV","Comunicado DDPE/G-04, de 22/06/2012 => DOE: 27/06/2012","Acatar"]
[1032,"Salário Complemento - Médicos LC 1193/2013","Comunicado DDP/G-003, de 27/10/2014 => DOE: 29/10/2014","Acatar"]
[1033,"Saldo De Benefício","Comunicado DDP/G-14, de 28/09/2016 => DOE: 29/09/2016","Não Acatar"]
[1034,"Benefício Previdenciário Pensão - São Paulo Previdência","Comunicado DDP/G-14, de 28/09/2016 => DOE: 29/09/2016","Avaliar",null,"Verificar se verba compõe a base prividenciária"]
[1035,"Piso Salarial Docente - Decreto 62500/2017","Comunicado DDP/G-03, de 14/06/2018 => DOE: 15/06/2018","Acatar"]
[1036,"Piso Salarial Docente-Substituição Docente/ Aulas De Recuperacao / Reposicao / Vice Diretor ","Comunicado DDP/G-03, de 14/06/2018 => DOE: 15/06/2018","Não Acatar"]
[1037,"Benefício Previdenciário – Teto RGPS","Comunicado DDP/G-05, de 03/07/2020 => DOE: 04/07/2020","Acatar"]
[1040,"Salário Base - LC1374/22-Subsidio",null,"Acatar","LC1374/22-Subsidio","SEM OBSERVAÇÕES "]
[1041,"Piso Sal Nac Enfermagem Ent Descent",null,"Acatar"]
[1046,"Subsidio Policial Penal LC 1416/24",null,"Acatar","LEI COMPLEMENTAR N° 1.416, DE 26 DE SETEMBRO DE 2024","Artigo 3° - Para efeitos desta lei complementar são adotadas as seguintes definições:  \nI - cargo de policial penal: conjunto de atribuições e responsabilidades conferidas ao policial penal;  \nII - carreira de policial penal: estrutura composta por cargos de provimento efetivo de policial penal e respectivos níveis;  \nIII - evolução: forma de avanço nos níveis da carreira mediante aferição de desempenho e de desenvolvimento;  \nIV - categoria: elemento alfabético indicativo da posição do policial penal no respectivo nível;  \nV - nível: elemento numérico indicativo da posição do policial penal na escala de evolução funcional;  \nVI - subsídio: contraprestação pecuniária fixada em lei, paga mensalmente pelo efetivo exercício do cargo de policial penal.  "]
[2001,"Carga Suplementar / Horária - Professor I","Comunicado DDP/G-05, de 31/01/1994 => DOE: 01/02/1994","Não Acatar"]
[2002,"Carga Suplementar / Horária - Professor II","Comunicado DDP/G-05, de 31/01/1994 => DOE: 01/02/1994","Não Acatar"]
[2003,"Carga Suplementar / Horária - Professor III","Comunicado DDP/G-05, de 31/01/1994 => DOE: 01/02/1994","Não Acatar"]
[2004,"Carga Suplementar – Média / Inativo Disponibilidade","Comunicado DDP/G-05, de 31/01/1994 => DOE: 01/02/1994","Não Acatar"]
[2005,"Carga Suplementar - Média Readaptado","Comunicado DDP/G-05, de 31/01/1994 => DOE: 01/02/1994","Não Acatar"]
[2006,"Aulas Excedentes – Conservatório Musical Tatuí","Comunicado DDP/G-05, de 31/01/1994 => DOE: 01/02/1994","Não Acatar"]
[2007,"Aulas – Inativo – Conservatório Musical Tatuí","Comunicado DDP/G-05, de 31/01/1994 => DOE: 01/02/1994","Avaliar",null,"Verificar se verba compõe a base prividenciária"]
[2008,"Gratificação Trabalho Curso Noturno – Escola Padrão - Professor I - 30%","Comunicado DDP/G-05, de 31/01/1994 => DOE: 01/02/1994","Não Acatar"]
[2009,"Gratificação Trabalho Curso Noturno – Escola Padrão - Professor II - 30%","Comunicado DDP/G-05, de 31/01/1994 => DOE: 01/02/1994","Não Acatar"]
[2010,"Gratificação  Trabalho Curso Noturno –Escola Padrão -  Professor III - 30%","Comunicado DDP/G-05, de 31/01/1994 => DOE: 01/02/1994","Não Acatar"]
[2011,"Gratificação Trabalho Curso Noturno – Professor I - 20%","Comunicado DDP/G-05, de 31/01/1994 => DOE: 01/02/1994","Não Acatar"]
[2012,"Gratificação Trabalho Curso Noturno - Professor II - 20%","Comunicado DDP/G-05, de 31/01/1994 => DOE: 01/02/1994","Não Acatar"]
[2013,"Gratificação Trabalho Curso Noturno – Professor III - 20%","Comunicado DDP/G-05, de 31/01/1994 => DOE: 01/02/1994","Não Acatar"]
[2014,"Serviço Extraordinário – Professor I","Comunicado DDP/G-05, de 31/01/1994 => DOE: 01/02/1994","Não Acatar"]
[2015,"Serviço Extraordinário – Professor II","Comunicado DDP/G-05, de 31/01/1994 => DOE: 01/02/1994","Não Acatar"]
[2016,"Serviço Extraordinário – Professor III","Comunicado DDP/G-05, de 31/01/1994 => DOE: 01/02/1994","Não Acatar"]
[2017,"Substituição Docente – Professor I","Comunicado DDP/G-05, de 31/01/1994 => DOE: 01/02/1994","Não Acatar"]
[2018,"Substituição Docente – Professor II","Comunicado DDP/G-05, de 31/01/1994 => DOE: 01/02/1994","Não Acatar"]
[2019,"Substituição Docente – Professor III","Comunicado DDP/G-05, de 31/01/1994 => DOE: 01/02/1994","Não Acatar"]
[2020,"Substituição Docente - Estagiário","Comunicado DDP/G-05, de 31/01/1994 => DOE: 01/02/1994","Não Acatar"]
[2021,"Substituição Docente – Gratificação Trabalho Curso Noturno – Professor I - 20%","Comunicado DDP/G-05, de 31/01/1994 => DOE: 01/02/1994","Não Acatar"]
[2022,"Substituição Docente – Gratificação Trabalho Curso  Noturno – Professor II - 20%","Comunicado DDP/G-05, de 31/01/1994 => DOE: 01/02/1994","Não Acatar"]
[2023,"Substituição Docente – Gratificação Trabalho Curso Noturno – Professor III - 20%","Comunicado DDP/G-05, de 31/01/1994 => DOE: 01/02/1994","Não Acatar"]
[2024,"Substituição Docente – Gratificação Curso Noturno – Professor I - 30%","Comunicado DDP/G-05, de 31/01/1994 => DOE: 01/02/1994","Não Acatar"]
[2025,"Substituição Docente – Gratificação Curso Noturno – Professor II - 30%","Comunicado DDP/G-05, de 31/01/1994 => DOE: 01/02/1994","Não Acatar"]
[2026,"Substituição Docente – Gratificação Curso Noturno – Professor III - 30%","Comunicado DDP/G-25, de 13/09/1995 => DOE: 14/09/1995","Não Acatar"]
[2027,"Aulas – Alteração Cargo / Padrão","Comunicado DDP/G-25, de 13/09/1995 => DOE: 14/09/1995","Não Acatar"]
[2028,"Carga Horária - Docente - Resolução 212/95","Comunicado DDP/G-25, de 13/09/1995 => DOE: 14/09/1995","Não Acatar"]
[2029,"Gratificação Trabalho Curso Noturno - 30% - Resolução 212/95","Comunicado DDP/G-25, de 13/09/1995 => DOE: 14/09/1995","Não Acatar"]
[2030,"Gratificação Trabalho Curso Noturno - 20% - Resolução 212/95","Comunicado DDP/G-24, de 06/05/1996 => DOE: 09/05/1996","Não Acatar"]
[2031,"Adicional Local De Exercício - Docente - Resolução 212/95","Comunicado DDP/G-24, de 06/05/1996 => DOE: 09/05/1996","Não Acatar"]
[2032,"Prêmio De Valorização – Quadro Do Magistério","Comunicado DDP/G-24, de 06/05/1996 => DOE: 09/05/1996","Avaliar","Programa de Valorização pelo Mérito garante evolução na carreira: Uma política inédita implantada pela Secretaria da Educação permite que os educadores paulistas evoluam na carreira a partir de oito níveis de progressão salarial com intervalos de três anos e aumentos de 10,5% sobre o salário, o que também amplia os valores das vantagens financeiras adquiridas durante a vida funcional.\n\nPara isso, os profissionais participam de uma prova, realizada anualmente, na qual todos os que atingirem determinadas metas de avaliação, a serem estabelecidas, conquistam a evolução na carreira. As avaliações são destinadas a professores, diretores de escola, assistentes de diretor, supervisores de ensino e coordenadores pedagógicos efetivos ou estáveis.\n\nAlém da avaliação aplicada em todas as 91 Diretorias de Ensino, são exigidos outros critérios para participar do processo, como tempo de atuação contínuo de pelo menos quatro anos no mesmo cargo e assiduidade.\n\nDesde 2010, o Programa de Valorização pelo Mérito já promoveu 127 mil docentes de todo o Estado. Os docentes promovidos devem esperar um intervalo mínimo de três anos para concorrer em novo processo. https://www.educacao.sp.gov.br/valorizacao","Verificar se verba compõe a base prividenciária"]
[2033,"Prêmio De Valorização – Quadro De Apoio Escolar / Quadro Secretaria Educação","Comunicado DDP/G-34, de 01/07/1996 => DOE: 03/07/1996","Avaliar","Programa de Valorização pelo Mérito garante evolução na carreira: Uma política inédita implantada pela Secretaria da Educação permite que os educadores paulistas evoluam na carreira a partir de oito níveis de progressão salarial com intervalos de três anos e aumentos de 10,5% sobre o salário, o que também amplia os valores das vantagens financeiras adquiridas durante a vida funcional.\n\nPara isso, os profissionais participam de uma prova, realizada anualmente, na qual todos os que atingirem determinadas metas de avaliação, a serem estabelecidas, conquistam a evolução na carreira. As avaliações são destinadas a professores, diretores de escola, assistentes de diretor, supervisores de ensino e coordenadores pedagógicos efetivos ou estáveis.\n\nAlém da avaliação aplicada em todas as 91 Diretorias de Ensino, são exigidos outros critérios para participar do processo, como tempo de atuação contínuo de pelo menos quatro anos no mesmo cargo e assiduidade.\n\nDesde 2010, o Programa de Valorização pelo Mérito já promoveu 127 mil docentes de todo o Estado. Os docentes promovidos devem esperar um intervalo mínimo de três anos para concorrer em novo processo. https://www.educacao.sp.gov.br/valorizacao","Verificar se verba compõe a base prividenciária"]
[2034,"Prêmio De Valorização – Substituição Docente/ Reposição/ Recuperação","Comunicado DDP/G-34, de 01/07/1996 => DOE: 03/07/1996","Avaliar",null,"Verificar se verba compõe a base prividenciária"]
[2035,"Aulas Reforço / Recuperação – 1 A 4 Série","Comunicado DDP/G-34, de 01/07/1996 => DOE: 03/07/1996","Não Acatar"]
[2036,"Aulas Reforço / Recuperação – 5 A 8 Série","Comunicado DDP/G-34, de 01/07/1996 => DOE: 03/07/1996","Não Acatar"]
[2037,"Aulas Reforço / Recuperação – Ensino Médio","Comunicado DDP/G-34, de 01/07/1996 => DOE: 03/07/1996","Não Acatar"]
[2038,"Gratificação Trabalho Curso Noturno - Aulas Reforço / Recuperação – 1 A 4 ","Comunicado DDP/G-34, de 01/07/1996 => DOE: 03/07/1996","Não Acatar"]
[2039,"Gratificação Trabalho Curso Noturno - Aulas Reforço / Recuperação – 5 A 8","Comunicado DDP/G-34, de 01/07/1996 => DOE: 03/07/1996","Não Acatar"]
[2040,"Gratificação Trabalho Curso Noturno – Aulas Reforço / Recuperação –  Ensino Médio ","Comunicado DDP/G-07, de 11/02/1998 => DOE: 12/02/1998","Não Acatar"]
[2041,"Adicional Local De Exercício - Recuperação / Avaliação","Comunicado DDP/G-07, de 11/02/1998 => DOE: 12/02/1998","Não Acatar"]
[2042,"Aulas De Recuperação/Avaliação – Quadro Do Magistério","Comunicado DDP/G-07, de 11/02/1998 => DOE: 12/02/1998","Não Acatar"]
[2043,"Carga Horária/Suplementar – 1ª A 4ª Série","Comunicado DDP/G-07, de 11/02/1998 => DOE: 12/02/1998","Não Acatar"]
[2044,"Carga Horária/Suplementar – 5ª A 8ª Série","Comunicado DDP/G-07, de 11/02/1998 => DOE: 12/02/1998","Não Acatar"]
[2045,"Carga Horária/Suplementar - Ensino Médio","Comunicado DDP/G-07, de 11/02/1998 => DOE: 12/02/1998","Não Acatar"]
[2046,"Carga Horária/Suplementar -  Coordenador/Vice Diretor","Comunicado DDP/G-07, de 11/02/1998 => DOE: 12/02/1998","Não Acatar"]
[2047,"Substituição Docente – 1ª A 4ª Série","Comunicado DDP/G-07, de 11/02/1998 => DOE: 12/02/1998","Não Acatar"]
[2048,"Substituição Docente – 5ª A 8ª Série","Comunicado DDP/G-07, de 11/02/1998 => DOE: 12/02/1998","Não Acatar"]
[2049,"Substituição Docente - Ensino Médio","Comunicado DDP/G-07, de 11/02/1998 => DOE: 12/02/1998","Não Acatar"]
[2050,"Substituição Docente - Estagiário","Comunicado DDP/G-07, de 11/02/1998 => DOE: 12/02/1998","Não Acatar"]
[2051,"Carga Horária/Suplementar","Comunicado DDP/G-07, de 11/02/1998 => DOE: 12/02/1998","Não Acatar"]
[2052,"Gratificação Trabalho Curso Noturno – 1ª A 4ª Série","Comunicado DDP/G-07, de 11/02/1998 => DOE: 12/02/1998","Não Acatar"]
[2053,"Gratificação Trabalho Curso Noturno – 5ª A 8ª Série","Comunicado DDP/G-07, de 11/02/1998 => DOE: 12/02/1998","Não Acatar"]
[2054,"Gratificação Trabalho Curso Noturno - Ensino Médio","Comunicado DDP/G-07, de 11/02/1998 => DOE: 12/02/1998","Não Acatar"]
[2055,"Gratificação Trabalho Curso Noturno - Coordenador/Vice Diretor","Comunicado DDP/G-07, de 11/02/1998 => DOE: 12/02/1998","Não Acatar"]
[2056,"Substituição Docente  - Gratificação Trabalho Curso Noturno – 1ª A 4ª Série","Comunicado DDP/G-07, de 11/02/1998 => DOE: 12/02/1998","Não Acatar"]
[2057,"Substituição Docente  - Gratificação Trabalho Curso Noturno – 5ª A 8ª Série","Comunicado DDP/G-07, de 11/02/1998 => DOE: 12/02/1998","Não Acatar"]
[2058,"Substituição Docente - Gratificação Trabalho Curso Noturno - Ensino Médio","Comunicado DDP/G-43, de 04/11/1998 => DOE: 06/11/1998","Não Acatar"]
[2059,"Gratificação Trabalho Curso Noturno","Comunicado DDP/G-43, de 04/11/1998 => DOE: 06/11/1998","Não Acatar"]
[2060,"Aulas De Reposição 1ª A 4ª Série","Comunicado DDP/G-43, de 04/11/1998 => DOE: 06/11/1998","Não Acatar"]
[2061,"Aulas De Reposição 5ª A 8ª Série","Comunicado DDP/G-43, de 04/11/1998 => DOE: 06/11/1998","Não Acatar"]
[2062,"Aulas De Reposição - Ensino Médio","Comunicado DDP/G-43, de 04/11/1998 => DOE: 06/11/1998","Não Acatar"]
[2063,"Gratificação Trabalho Curso Noturno - Aulas Reposição 1ª A 4ª Série","Comunicado DDP/G-43, de 04/11/1998 => DOE: 06/11/1998","Não Acatar"]
[2064,"Gratificação Trabalho Curso Noturno - Aulas Reposição 5ª A 8ª Série","Comunicado DDP/G-43, de 04/11/1998 => DOE: 06/11/1998","Não Acatar"]
[2065,"Gratificação Trabalho Curso Noturno - Aulas Reposição Ensino Médio","Comunicado DDP/G-43, de 04/11/1998 => DOE: 06/11/1998","Não Acatar"]
[2066,"Substituição Vice Diretor De Escola","Comunicado DDPE/G-13, de 14/05/2007 => DOE: 15/05/2007","Não Acatar"]
[2067,"Gratificação Trabalho Curso Noturno - Substituição Vice Diretor De Escola","Comunicado DDPE/G-13, de 14/05/2007 => DOE: 15/05/2007","Não Acatar"]
[2068,"Aulas Substituição 1ª A 4ª Série","Comunicado DDPE/G-13, de 14/05/2007 => DOE: 15/05/2007","Não Acatar"]
[2069,"Aulas Substituição 5ª A 8ª Série","Comunicado DDPE/G-13, de 14/05/2007 => DOE: 15/05/2007","Não Acatar"]
[2070,"Aulas Substituição Ensino Médio","Comunicado DDPE/G-13, de 14/05/2007 => DOE: 15/05/2007","Não Acatar"]
[2071,"Gratificação Trabalho Noturno-Aulas Substituição 1ª A 4ª Série","Comunicado DDPE/G-13, de 14/05/2007 => DOE: 15/05/2007","Não Acatar"]
[2072,"Gratificação Trabalho Noturno-Aulas Substituição 5ª A 8ª Série","Comunicado DDPE/G-13, de 14/05/2007 => DOE: 15/05/2007","Não Acatar"]
[2073,"Gratificação Trabalho Noturno-Aulas Substituição Ensino Médio","Comunicado DDP/G-05, de 31/01/1994 => DOE: 01/02/1994","Não Acatar"]
[2074,"Prêmio Valorização - Aulas Substituição","Comunicado DDP/G-05, de 31/01/1994 => DOE: 01/02/1994","Não Acatar"]
[2075,"Carga Suplementar – Professor Educação Básica I","Comunicado DDP/G-003, de 27/10/2014 => DOE: 29/10/2014","Não Acatar"]
[2076,"Carga Suplementar - Professor II","Comunicado DDP/G-003, de 27/10/2014 => DOE: 29/10/2014","Não Acatar"]
[2077,"Carga Suplementar - Professor Educação Básica II","Comunicado DDP/G-003, de 27/10/2014 => DOE: 29/10/2014","Não Acatar"]
[2078,"Carga Suplementar- Professor Coordenador","Comunicado DDP/G-003, de 27/10/2014 => DOE: 29/10/2014","Não Acatar"]
[2079,"Carga Suplementar.-Vice Diretor Escola","Comunicado DDP/G-003, de 27/10/2014 => DOE: 29/10/2014","Não Acatar"]
[2080,"Carga Suplementar-Municipalização","Comunicado DDP/G-003, de 27/10/2014 => DOE: 29/10/2014","Não Acatar"]
[2081,"Gratificação Trabalho Curso Noturno - Professor Educação Básica I","Comunicado DDP/G-003, de 27/10/2014 => DOE: 29/10/2014","Não Acatar"]
[2082,"Gratificação Trabalho Curso Noturno - Professor II","Comunicado DDP/G-003, de 27/10/2014 => DOE: 29/10/2014","Não Acatar"]
[2083,"Gratificação Trabalho Curso Noturno - Professor Educação Básica II","Comunicado DDP/G-003, de 27/10/2014 => DOE: 29/10/2014","Não Acatar"]
[2084,"Gratificação Trabalho Curso Noturno - Professor Coordenador","Comunicado DDP/G-003, de 27/10/2014 => DOE: 29/10/2014","Não Acatar"]
[2085,"Gratificação Trabalho Curso Noturno – Vice-Diretor De Escola","Comunicado DDP/G-003, de 27/10/2014 => DOE: 29/10/2014","Não Acatar"]
[2086,"Gratificação Trabalho Curso Noturno – Municipalização","Comunicado DDP/G-003, de 27/10/2014 => DOE: 29/10/2014","Não Acatar"]
[2087,"Substituição Docente - Professor Educação Básica I","Comunicado DDP/G-003, de 27/10/2014 => DOE: 29/10/2014","Não Acatar"]
[2088,"Substituição Docente - Professor II","Comunicado DDP/G-003, de 27/10/2014 => DOE: 29/10/2014","Não Acatar"]
[2089,"Substituição Docente - Professor Educação Básica II","Comunicado DDP/G-003, de 27/10/2014 => DOE: 29/10/2014","Não Acatar"]
[2090,"Gratificação Trabalho Curso Noturno -Substituição Docente - Professor Educação Básica I","Comunicado DDP/G-003, de 27/10/2014 => DOE: 29/10/2014","Não Acatar"]
[2091,"Gratificação Trabalho Curso Noturno - Substituição Docente-Professor.II","Comunicado DDP/G-003, de 27/10/2014 => DOE: 29/10/2014","Não Acatar"]
[2092,"Gratificação Trabalho Curso Noturno - Substituição Docente- Professor Educação Básica II","Comunicado DDP/G-003, de 27/10/2014 => DOE: 29/10/2014","Não Acatar"]
[2093,"Adicional Local De Exercício - Docente - Resolução 212/95 - Inativo ","Comunicado DDP/G-003, de 27/10/2014 => DOE: 29/10/2014","Avaliar",null,"Verificar se verba compõe a base prividenciária"]
[2110,"Gtn- Anos E Finais ",null,"Não Acatar"]
[2111,"Gtn-Ensino Medio",null,"Não Acatar"]
[2124,"Grat Trabalho Noturno - Gtn",null,"Não Acatar"]
[2700,"Hora Aula Etec Resposicao",null,"Não Acatar"]
[2712,"Hora Atividade Etec",null,"Acatar"]
[2723,"Hora Aula Semanal Etec",null,"Acatar"]
[2724,"Hae Coordenação Semanal Etec",null,"Não Acatar"]
[2725,"Hae Outros Semanal",null,"Não Acatar"]
[2754,"Haeo Semanal",null,"Acatar",null,"Autorizado por Rafael Previatti"]
[2770,"HAEO - Formação Inicial Continuada","HAEO – Formação Inicial Continuada ","Avaliar",null,"A verba é variável e possui um prazo/período aquisitivo de até 12 meses"]
[3001,"Vantagem De Lei De Guerra","Comunicado DDP/G-05, de 31/01/1994 => DOE: 01/02/1994","Acatar"]
[3002,"Artigo 25 - Disposições Constitucionais Transitórias – Constituição Estadual / Artigo 26/Decreto Lei Complementar 11/70","Comunicado DDP/G-05, de 31/01/1994 => DOE: 01/02/1994","Avaliar","Lei  Complementar 11/70","Artigo 25 - As gratificações e adicionais serão calculados sôbre o padrão do cargo do funcionário.Artigo 26 - O funcionário ocupante de cargo em comissão direito a aposentadoria que contar mais de dez anos interruptos ou quinze aposentado com provento correspondentes aos vencimentos do cargos que estiver exercendo."]
[3003,"Artigo 26 – Disposições Constitucionais Transitórias – Constituição Estadual – Diferença De Vencimentos","Comunicado DDP/G-05, de 31/01/1994 => DOE: 01/02/1994","Avaliar",null,"Artigo 26 - O funcionário ocupante de cargo em comissão direito a aposentadoria que contar mais de dez anos interruptos ou quinze aposentado com provento correspondentes aos vencimentos do cargos que estiver exercendo."]
[3004,"Artigo 25 -  Disposições Constitucionais Transitórias – Constituição Estadual – Pro Labore Carreira Específica","Comunicado DDP/G-05, de 31/01/1994 => DOE: 01/02/1994","Não Acatar"]
[3005,"Artigo 133 - Constituição Estadual – Diferença De Vencimentos","Comunicado DDP/G-05, de 31/01/1994 => DOE: 01/02/1994","Avaliar","“Artigo 2º - Fica revogado o artigo 133 da Constituição do Estado de São Paulo, assegurada a concessão das incorporações que, na data da promulgação da Emenda Constitucional nº 103, de 12 de novembro de 2019, tenham cumprido os requisitos temporais e normativos previstos na legislação então vigente.”","Entretanto, caso o servidor tenha direito a verba em questão nos moldes acima citados e por algum momento efetue o “Rompimento de Vínculo”, ou seja , venha assumir novo cargo na administração não recuperará os décimos anteriormente incorporados. "]
[3006,"Artigo 133 – Constituição Estadual – Ministério Público / Tribunais","Comunicado DDP/G-05, de 31/01/1994 => DOE: 01/02/1994","Avaliar","Artigo 133 - O servidor, com mais de cinco anos de efetivo exercício, que tenha exercido ou venha a exercer cargo ou função que lhe proporcione remuneração superior à do cargo de que seja titular, ou função para a qual foi admitido, incorporará um décimo dessa diferença, por ano, até o limite de dez décimos.","O Artigo trata-se da incorporção de decimos"]
[3007,"Artigo 133 – Constituição Estadual – Pró-Labore Carreira Específica","Comunicado DDP/G-05, de 31/01/1994 => DOE: 01/02/1994","Não Acatar"]
[3008,"Artigo 133 – Constituição Estadual – Pró-Labore – LC 674/92","Comunicado DDP/G-07, de 11/02/1998 => DOE: 12/02/1998","Não Acatar"]
[3009,"Auxílio Acidente - EFP","Comunicado DDP/G-33, de 31/08/2000 => DOE: 02/09/2000","Avaliar",null,"Verificar se verba compõe a base prividenciária"]
[3010,"Serviço Extraordinário - Incorporado","Comunicado DDP/G-15, de 30/09/2016 => DOE: 01/10/2016","Acatar"]
[3011,"Quebra de Caixa - Incorporado","Comunicado DDP/G-15, de 30/09/2016 => DOE: 01/10/2016","Acatar"]
[3012,"Artigo 133 Constituição Estadual - Lei 7510/62","Comunicado DDP/G-15, de 30/09/2016 => DOE: 01/10/2016","Avaliar",null,"O servidor, com mais de cinco anos de efetivo exercício, que tenha exercido ou venha a exercer cargo ou função que lhe proporcione remuneração superior à do cargo de que seja titular, ou função para a qual foi admitido, incorporará um décimo dessa diferença, por ano, até o limite de dez décimos."]
[3013,"Artigo 133 Constituição Estadual - Pro-Labore Caixa Dec.S/N/70 - Polícia Militar","Comunicado DDP/G-15, de 30/09/2016 => DOE: 01/10/2016","Não Acatar"]
[3014,"Artigo 133 - Lei 8253/64","Comunicado DDP/G-15, de 30/09/2016 => DOE: 01/10/2016","Avaliar",null,"O servidor, com mais de cinco anos de efetivo exercício, que tenha exercido ou venha a exercer cargo ou função que lhe proporcione remuneração superior à do cargo de que seja titular, ou função para a qual foi admitido, incorporará um décimo dessa diferença, por ano, até o limite de dez décimos."]
[3015,"Artigo 10 - Lei 6895/62","Comunicado DDP/G-15, de 30/09/2016 => DOE: 01/10/2016","Avaliar","Lei  6895/62","Verificar se verba compõe a base prividenciária"]
[3016,"Artigo 3 - Lei 920/50","Comunicado DDP/G-15, de 30/09/2016 => DOE: 01/10/2016","Avaliar","Lei  920/50","Artigo 1º - Passa a ter a seguinte redação o artigo 3º da Lei nº 501, de 7 de novembro de 1949: Ver tópico Artigo 1º - Os inspetores e guardas do serviço de policiamento da Guarda Civil de São Paulo, que contarem mais de vinte e cinco (25) anos de serviços prestados àquela corporação, serão aposentados no cargo ou classe imediatamente superior, com os proventos correspondentes aos vencimentos integrais dos mesmos cargos ou classe, sempre que a aposentadoria seja motivada por qualquer dos casos expressos no artigo 1º.\" Artigo 2º - Aplica-se aos Inspetores chefes de agrupamento o artigo 3º da Lei nº 501, de 7 de novembro de 1949, com a redação dada por esta lei entrará em vigor na data de sua publicação. Ver tópico \nArtigo 3º - Os inspetores chefes de agrupamento que se aposentarem nas condições do dispositivo referido no artigo anterior, e os já aposentados durante a sua vigência, terão seus proventos acrescidos da diferença de vencimentos existente entre os cargos de inspetor chefe de agrupamento e os de inspetor chefe de divisão. Ver tópico (5 documentos)\n Parágrafo único - Igual vantagem terão os inspetores chefes de divisão aposentados na vigência da Lei nº 501, de 7 de novembro de 1949, que, incluídos na lista para promoção organizada em 1947, não se incompatibilizaram para o acesso pela prática de falta prevista no Regulamento de Promoções da Guarda Civil.\nArtigo 4º - A despesa com a execução da presente lei correrá por conta de verba própria do orçamento. Ver tópico (1 documento)\nArtigo 5º - Esta lei entrará em vigor na data de sua publicação, revogadas as disposições em contrário. Ver tópico\n  Palácio do Governo do Estado de São Paulo, aos 21 de dezembro de 1950."]
[3017,"Artigo 4 - Lei 3568/56 - Polícia Militar","Comunicado DDP/G-15, de 30/09/2016 => DOE: 01/10/2016","Avaliar","Artigo 4º - Aos Coronéis da Força Pública e aos Inspetores Chefes de Agrupamentos da Guarda Civil, que se enquadrem nas disposições desta Lei, fica assegurada a percepção da diferença de vencimentos que existe entre esses postos e classes, e os imediatamente inferiores","Verificar se verba compõe a base prividenciária"]
[3018,"Artigo 3 - Lei 2054/52 - Polícia Militar","Comunicado DDP/G-15, de 30/09/2016 => DOE: 01/10/2016","Acatar"]
[3019,"Prov. Comp. Lei Complementar 5451/86 - Polícia Molitar","Comunicado DDP/G-15, de 30/09/2016 => DOE: 01/10/2016","Acatar"]
[3020,"Artigo 108 - Lei Complementar 478/86","Comunicado DDP/G-15, de 30/09/2016 => DOE: 01/10/2016","Avaliar","Lei  Complementar 478/86","Artigo 108 - O procurador do Estado ocupante de cargo em comissão vinculado à carreira que preencha as condições para aposentadoria e conte mais de 5 (cinco) anos ininterruptos ou 10 (dez) intercalados de exercício em cargo de provimento dessa natureza poderá ser aposentado com proventos correspondentes aos vencimentos do cargo em comissão que estiver exercendo, desde que se encontre em efetivo exercício há mais de um ano nesse cargo."]
[3021,"Art.26 – Disposição Constitucional Transitória/ Constituição Estadual - Média Aulas","Comunicado DDPE/G-13, de 07/04/2005 => DOE: 09/04/2005","Não Acatar"]
[3022,"Artigo133 - Constituição Estadual – Gratificação De Função - LC 724/93","Comunicado DDPE/G-15, de 04/07/2006 => DOE: 29/07/2006 ","Não Acatar"]
[3023,"Artigo 133 – Prêmio De Produtividade – Agente Fiscal De Rendas","Comunicado DDPE/G-15, de 04/07/2006 => DOE: 29/07/2006 ","Não Acatar"]
[3024,"Artigo 133 - Diferença De Vencimentos - Ministério Público","Comunicado DDP/G-05, de 31/01/1994 => DOE: 01/02/1994","Avaliar",null,"O servidor, com mais de cinco anos de efetivo exercício, que tenha exercido ou venha a exercer cargo ou função que lhe proporcione remuneração superior à do cargo de que seja titular, ou função para a qual foi admitido, incorporará um décimo dessa diferença, por ano, até o limite de dez décimos."]
[3025,"Incorporação Horas Aula Artigo 1 DDTT Lei Complementar 1249/14 - Polícia Militar","Comunicado DDP/G-15, de 30/09/2016 => DOE: 01/10/2016","Acatar"]
[3026,"Artigo 133  -  Constituição Estadual  Substituição Remunerada Polícia Militar","Comunicado DDP/G-05, de 31/01/1994 => DOE: 01/02/1994","Não Acatar"]
[3027,"Diferença De Vencimentos - Artigo 133 Constituição Estadual/Valor","Comunicado DDP/G-15, de 30/09/2016 => DOE: 01/10/2016","Avaliar","Artigo 133 - O servidor, com mais de cinco anos de efetivo exercício, que tenha exercido ou venha a exercer, a qualquer título,  cargo ou função que lhe proporcione remuneração superior à do cargo de que seja titular, ou função para a qual foi admitido, incorporará um décimo dessa diferença, por ano, até o limite de dez décimos.","Avaliar se a verba compõe a base previdenciária"]
[3028,"Artigo 133 – Constituição Estadual – Diferença De Vencimentos Com Prêmio De Incentivo À Qualidade","Comunicado DDPE/G-04, de 22/06/2012 => DOE: 27/06/2012","Avaliar","Artigo 133 - O servidor, com mais de cinco anos de efetivo exercício, que tenha exercido ou venha a exercer, a qualquer título,  cargo ou função que lhe proporcione remuneração superior à do cargo de que seja titular, ou função para a qual foi admitido, incorporará um décimo dessa diferença, por ano, até o limite de dez décimos.","Avaliar se a verba compõe a base previdenciária"]
[3029,"Artigo 133 Ce – Pró-Labore LC 1193/2013","Comunicado DDP/G-003, de 27/10/2014 => DOE: 29/10/2014","Não Acatar"]
[3030,"Artigo 133 Ce - Gratificação Função-LC 1018/2007","Comunicado DDP/G-003, de 27/10/2014 => DOE: 29/10/2014","Não Acatar"]
[3031,"Artigo 133 – Pesquisador Cientifico-Sucen","Comunicado DDP/G-003, de 27/10/2014 => DOE: 29/10/2014","Avaliar",null,"O servidor, com mais de cinco anos de efetivo exercício, que tenha exercido ou venha a exercer cargo ou função que lhe proporcione remuneração superior à do cargo de que seja titular, ou função para a qual foi admitido, incorporará um décimo dessa diferença, por ano, até o limite de dez décimos."]
[3032,"Artigo 133 - Engenheiros - Sucen","Comunicado DDP/G-003, de 27/10/2014 => DOE: 29/10/2014","Avaliar",null,"O servidor, com mais de cinco anos de efetivo exercício, que tenha exercido ou venha a exercer cargo ou função que lhe proporcione remuneração superior à do cargo de que seja titular, ou função para a qual foi admitido, incorporará um décimo dessa diferença, por ano, até o limite de dez décimos."]
[3033,"Honorário Advocatício - Artigo 133 Da Constituição Estadual","Comunicado DDP/G-003, de 27/10/2014 => DOE: 29/10/2014","Não Acatar"]
[3034,"Incorporação Horas-Aula - Artigo 1º DDTT LC 1249/14","Comunicado DDP/G-003, de 27/10/2014 => DOE: 29/10/2014","Acatar"]
[3035,"Incorporação Horas-Aula – Paragrafo 2º Artigo 9º - LC731 CC/ LC 1249/14","Comunicado DDP/G-003, de 27/10/2014 => DOE: 29/10/2014","Acatar"]
[3036,"Diferença Prêmio Incentivo x Prêmio De Produtividade Médica - Lei Complementar 1239/2014","Comunicado DDP/G-14, de 28/09/2016 => DOE: 29/09/2016","Não Acatar"]
[3037,"Artigo 133 Constituição Estadual - Centro De Estudos E Pesquisas De Administração Municipal","Comunicado DDP/G-14, de 28/09/2016 => DOE: 29/09/2016","Avaliar","Artigo 133 - O servidor, com mais de cinco anos de efetivo exercício, que tenha exercido ou venha a exercer, a qualquer título,  cargo ou função que lhe proporcione remuneração superior à do cargo de que seja titular, ou função para a qual foi admitido, incorporará um décimo dessa diferença, por ano, até o limite de dez décimos.","Avaliar se a verba compõe a base previdenciária"]
[3038,"Diferença Salarial Cargo Comissão Incorporado - Fundação do Desenvolvimento Administrativo","Comunicado DDP/G-14, de 28/09/2016 => DOE: 29/09/2016","Acatar"]
[3039,"Incorporação Horas-Aula - Artigo 9º - LC 731/93","Comunicado DDP/G-03, de 14/06/2018 => DOE: 15/06/2018","Acatar"]
[3040,"Prêmio de Incentivo à Qualidade Incorporado LC 1.332/2018","Comunicado DDP/G-05, de 03/07/2020 => DOE: 04/07/2020","Acatar"]
[3041,"Prêmio de Incentivo à Qualidade Incorporado LC 1.332/2018 - Inativo","Comunicado DDP/G-05, de 03/07/2020 => DOE: 04/07/2020","Acatar"]
[4001,"Regime Especial De Trabalho Policial","Comunicado DDP/G-05, de 31/01/1994 => DOE: 01/02/1994","Acatar"]
[4002,"Gratificação Ferry Boats","Comunicado DDP/G-15, de 30/09/2016 => DOE: 01/10/2016","Não Acatar"]
[4003,"Gratificação Especial","Comunicado DDP/G-05, de 31/01/1994 => DOE: 01/02/1994","Avaliar",null,"Verificar se verba compõe a base prividenciária"]
[4004,"Regime De Advocacia Pública","Comunicado DDP/G-05, de 31/01/1994 => DOE: 01/02/1994","Avaliar",null,"Verificar se verba compõe a base prividenciária"]
[4005,"Gratificação Especial Fazendária","Comunicado DDP/G-05, de 31/01/1994 => DOE: 01/02/1994","Avaliar",null,"Verificar se verba compõe a base prividenciária"]
[4006,"Gratificação Atividade Contábil","Comunicado DDP/G-05, de 31/01/1994 => DOE: 01/02/1994","Avaliar",null,"Verificar se verba compõe a base prividenciária"]
[4007,"Regime De Dedicação Plena Exclusiva","Comunicado DDP/G-05, de 31/01/1994 => DOE: 01/02/1994","Avaliar",null,"Verificar se verba compõe a base prividenciária"]
[4008,"Gratificação Trabalho Curso Noturno – Escola Padrão - Especialista Da Educação - 30%","Comunicado DDP/G-05, de 31/01/1994 => DOE: 01/02/1994","Não Acatar"]
[4009,"Gratificação De Função - Vice Diretor De Escola","Comunicado DDP/G-05, de 31/01/1994 => DOE: 01/02/1994","Não Acatar"]
[4010,"Gratificação De Função - Diretor Escola Técnica","Comunicado DDP/G-05, de 31/01/1994 => DOE: 01/02/1994","Não Acatar"]
[4011,"Gratificação Trabalho Noturno - 10% - Quadro Secretaria Da Educação / Quadro De Apoio Escolar","Comunicado DDP/G-05, de 31/01/1994 => DOE: 01/02/1994","Não Acatar"]
[4012,"Gratificação Trabalho Curso Noturno – Especialista Da Educação -20%","Comunicado DDP/G-05, de 31/01/1994 => DOE: 01/02/1994","Não Acatar"]
[4013,"Gratificação Trabalho Noturno - 10%","Comunicado DDP/G-05, de 31/01/1994 => DOE: 01/02/1994","Não Acatar"]
[4014,"Gratificação Regime Tempo Integral – Pesquisador Científico","Comunicado DDP/G-05, de 31/01/1994 => DOE: 01/02/1994","Avaliar",null,"Verificar se verba compõe a base prividenciária"]
[4015,"Gratificação Gestão E Controle Do Erário Estadual","Comunicado DDP/G-05, de 31/01/1994 => DOE: 01/02/1994","Avaliar",null,"Verificar se verba compõe a base prividenciária"]
[4016,"Gratificação Por Atividade De Julgamento","Comunicado DDP/G-05, de 31/01/1994 => DOE: 01/02/1994","Acatar"]
[4017,"Verba Indenizatória – Técnico De Apoio a Arrecadação Tributária","Comunicado DDP/G-05, de 31/01/1994 => DOE: 01/02/1994","Avaliar",null,"Verificar se verba compõe a base prividenciária"]
[4018,"Gratificação Tribunal Impostos E Taxas","Comunicado DDP/G-05, de 31/01/1994 => DOE: 01/02/1994","Não Acatar"]
[4019,"Gratificação De Informática","Comunicado DDP/G-05, de 31/01/1994 => DOE: 01/02/1994","Avaliar",null,"Verificar se verba compõe a base prividenciária"]
[4020,"Gratificação Especial De Atividade","Comunicado DDP/G-05, de 31/01/1994 => DOE: 01/02/1994","Não Acatar"]
[4021,"Gratificação Especial Por Atividade Prioritária E Estratégica","Comunicado DDP/G-05, de 31/01/1994 => DOE: 01/02/1994","Avaliar",null,"Verificar se verba compõe a base prividenciária"]
[4022,"Gratificação Especial Por Atividade Hospitalar","Comunicado DDP/G-05, de 31/01/1994 => DOE: 01/02/1994","Avaliar",null,"Verificar se verba compõe a base prividenciária"]
[4023,"Gratificação Especial Por Atividade No Instituto De Infectologia Emílio Ribas E Centro De Referência E Treinamento - Aids ","Comunicado DDP/G-05, de 31/01/1994 => DOE: 01/02/1994","Avaliar",null,"Verificar se verba compõe a base prividenciária"]
[4024,"Gratificação Especial De Saúde Coletivo","Comunicado DDP/G-05, de 31/01/1994 => DOE: 01/02/1994","Avaliar",null,"Verificar se verba compõe a base prividenciária"]
[4025,"Gratificação 40% Lei 4.569/85 – EFCJ","Comunicado DDP/G-05, de 31/01/1994 => DOE: 01/02/1994","Avaliar","Dispõe sobre instituição do sistema retribuitório dos servidores ferroviários da Estrada de Ferro Campos do Jordão e dá providências correlatas","Verificar se verba compõe a base prividenciária"]
[4026,"Gratificação In Natura - EGCJ","Comunicado DDP/G-05, de 31/01/1994 => DOE: 01/02/1994","Avaliar",null,"Verificar se verba compõe a base prividenciária"]
[4027,"Gratificação Por Travessia","Comunicado DDP/G-05, de 31/01/1994 => DOE: 01/02/1994","Avaliar",null,"Verificar se verba compõe a base prividenciária"]
[4028,"Gratificação Por Travessia - Inativo","Comunicado DDP/G-05, de 31/01/1994 => DOE: 01/02/1994","Não Acatar"]
[4029,"Gratificação De Apoio Pesquisa Científica E Agropecuária","Comunicado DDP/G-05, de 31/01/1994 => DOE: 01/02/1994","Avaliar",null,"Verificar se verba compõe a base prividenciária"]
[4030,"Gratificação - Jeton - Membro","Comunicado DDP/G-05, de 31/01/1994 => DOE: 01/02/1994","Não Acatar"]
[4031,"Gratificação - Lei 8.322/93","Comunicado DDP/G-05, de 31/01/1994 => DOE: 01/02/1994","Avaliar","Lei  8.322/93 (LEI COMPLEMENTAR Nº 959, DE 13 DE SETEMBRO DE 2004)","Artigo 7º - A retribuição pecuniária do servidor integrante da carreira de Agente de Segurança Penitenciária compreende vencimentos, cujos valores são os fixados no Anexo que faz parte integrante desta lei complementar, bem como as vantagens pecuniárias a seguir enumeradas:\nI - gratificação pela sujeição ao Regime Especial de Trabalho Policial, previsto no artigo 3º desta lei complementar, calculada à razão de 100% (cem por cento) do respectivo valor do vencimento- SE O FUNCIONÁRIO ESTIVER CEDIDO, DEPENDENDO A FUNÇÃO ELE DEIXA DE RECEBER "]
[4032,"Honorário Advocatício - Quadro Especial","Comunicado DDP/G-05, de 31/01/1994 => DOE: 01/02/1994","Não Acatar"]
[4033,"Gratificação Prêmio Fesima","Comunicado DDP/G-05, de 31/01/1994 => DOE: 01/02/1994","Avaliar",null,"Verificar se verba compõe a base prividenciária"]
[4034,"Gratificação Extra","Comunicado DDP/G-05, de 31/01/1994 => DOE: 01/02/1994","Não Acatar"]
[4035,"Gratificação Valor Fixo","Comunicado DDP/G-05, de 31/01/1994 => DOE: 01/02/1994","Não Acatar"]
[4036,"Gratificação Por Atividade Administrativa Educacional – Quadro Secretaria Da Educação","Comunicado DDP/G-05, de 31/01/1994 => DOE: 01/02/1994","Não Acatar"]
[4037,"Gratificação De Apoio Escolar – Quadro De Apoio Escolar","Comunicado DDP/G-05, de 31/01/1994 => DOE: 01/02/1994","Avaliar",null,"O valor da Gratificação de Função será computado no cálculo dos proventos dos inativos que, por ocasião da aposentadoria, sejam titulares de cargos ou ocupantes de funções-atividades de Secretário de Escola e se encontrem em exercício em unidades escolares da Secretaria da Educação por, no mínimo, 5 anos."]
[4038,"Gratificação De Função Secretário De Escola","Comunicado DDP/G-05, de 31/01/1994 => DOE: 01/02/1994","Acatar"]
[4039,"Gratificação Por Atividade Técnico Administrativa","Comunicado DDP/G-05, de 31/01/1994 => DOE: 01/02/1994","Acatar"]
[4040,"Gratificação Por Atividade Administrativa Saúde","Comunicado DDP/G-05, de 31/01/1994 => DOE: 01/02/1994","Acatar"]
[4041,"Gratificação Por Atividade Administrativa Fazendária","Comunicado DDP/G-05, de 31/01/1994 => DOE: 01/02/1994","Acatar"]
[4042,"Gratificação Trabalho Noturno - 20%","Comunicado DDP/G-05, de 31/01/1994 => DOE: 01/02/1994","Não Acatar"]
[4043,"Honorário Advocatício - Proporcional","Comunicado DDP/G-15, de 30/09/2016 => DOE: 01/10/2016","Não Acatar"]
[4044,"Gratificação Área Administrativa","Comunicado DDP/G-05, de 31/01/1994 => DOE: 01/02/1994","Avaliar","Gratificação de Atividade Administrativa de Saúde —  GAAS/ LEI COMPLEMENTAR Nº 739, DE 21 DE DEZEMBRO DE 1993.","Verificar se verba compõe a base prividenciária"]
[4045,"Gratificação Área Fazenda","Comunicado DDP/G-05, de 31/01/1994 => DOE: 01/02/1994","Não Acatar"]
[4046,"Gratificação Área Saúde","Comunicado DDP/G-05, de 31/01/1994 => DOE: 01/02/1994","Não Acatar"]
[4047,"Gratificação De Função – LC 724/93","Comunicado DDP/G-05, de 31/01/1994 => DOE: 01/02/1994","Não Acatar"]
[4048,"Gratificação Difícil Atendimento – LC 724/93","Comunicado DDP/G-05, de 31/01/1994 => DOE: 01/02/1994","Avaliar","LC 724/93 - revogou o Artigo  - LEI COMPLEMENTAR Nº 1.113, DE 26 DE MAIO DE 2010","Verificar se verba compõe a base prividenciária"]
[4049,"Gratificação Por Atividade Penitenciária","Comunicado DDP/G-05, de 31/01/1994 => DOE: 01/02/1994","Avaliar",null,"Verificar se verba compõe a base prividenciária"]
[4050,"Adicional Noturno - Fumest","Comunicado DDP/G-05, de 31/01/1994 => DOE: 01/02/1994","Não Acatar"]
[4051,"Adicional Noturno – CLT","Comunicado DDP/G-05, de 31/01/1994 => DOE: 01/02/1994","Não Acatar"]
[4052,"Honorário Advocatício ","Comunicado DDP/G-15, de 30/09/2016 => DOE: 01/10/2016","Não Acatar"]
[4053,"Gratificação Fixa","Comunicado DDP/G-05, de 31/01/1994 => DOE: 01/02/1994","Não Acatar"]
[4054,"Gratificação de Pedágio - Lei Complementar 677/92","Comunicado DDP/G-15, de 30/09/2016 => DOE: 01/10/2016","Não Acatar"]
[4055,"Média Férias/Licença Maternidade Adicional Noturno","Comunicado DDP/G-15, de 30/09/2016 => DOE: 01/10/2016","Não Acatar"]
[4056,"Adicional Noturno - Média - Afastamento","Comunicado DDP/G-15, de 30/09/2016 => DOE: 01/10/2016","Não Acatar"]
[4057,"Adicional Noturno - Média - Licença Maternidade","Comunicado DDP/G-15, de 30/09/2016 => DOE: 01/10/2016","Não Acatar"]
[4058,"Gratificação De Função - Lei 8482/93","Comunicado DDP/G-05, de 31/01/1994 => DOE: 01/02/1994","Não Acatar"]
[4059,"Gratificação De Compensação Orgânica","Comunicado DDP/G-05, de 31/01/1994 => DOE: 01/02/1994","Avaliar",null,"Verificar se verba compõe a base prividenciária"]
[4060,"Gratificação De Função - Delegado De Ensino","Comunicado DDP/G-05, de 02/02/1995 => DOE: 03/02/1995","Avaliar",null,"Verificar se verba compõe a base prividenciária"]
[4061,"Gratificação De Função - Supervisor De Ensino","Comunicado DDP/G-05, de 02/02/1995 => DOE: 03/02/1995","Avaliar",null,"Verificar se verba compõe a base prividenciária"]
[4062,"Gratificação Especial - Supervisor De Ensino","Comunicado DDP/G-05, de 02/02/1995 => DOE: 03/02/1995","Avaliar",null,"Verificar se verba compõe a base prividenciária"]
[4063,"Gratificação Por Atividade De Apoio Ao Desenvolvimento Da Saúde","Comunicado DDP/G-05, de 02/02/1995 => DOE: 03/02/1995","Avaliar",null,"Verificar se verba compõe a base prividenciária"]
[4064,"Gratificação Por Atividade De Apoio À Agricultura","Comunicado DDP/G-05, de 02/02/1995 => DOE: 03/02/1995","Não Acatar"]
[4065,"Gratificação Extra","Comunicado DDP/G-05, de 02/02/1995 => DOE: 03/02/1995","Não Acatar"]
[4066,"Gratificação Extra - Substituição Docente/ Resolução 212/95- Recuperação","Comunicado DDP/G-05, de 02/02/1995 => DOE: 03/02/1995","Não Acatar"]
[4067,"Gratificação Especial De Mediação Trabalhista","Comunicado DDP/G-13, de 30/05/1995 => DOE: 01/06/1995","Não Acatar"]
[4068,"Gratificação Lei 7510/62","Comunicado DDP/G-15, de 30/09/2016 => DOE: 01/10/2016","Avaliar","Lei  7510/62","Verificar se verba compõe a base prividenciária"]
[4069,"Gratificação Por Atividade Rodoviária","Comunicado DDP/G-42, de 27/12/1995 => DOE: 29/12/1995","Não Acatar"]
[4070,"Gratificação Comp.Org.Prop. - Polícia Militar","Comunicado DDP/G-15, de 30/09/2016 => DOE: 01/10/2016","Não Acatar"]
[4071,"Gratificaçação Incorporada lei 7510/62 - Polícia Militar","Comunicado DDP/G-15, de 30/09/2016 => DOE: 01/10/2016","Acatar"]
[4072,"Gratificação Incorporada Policia Militar -Decreto Lei 16058/46","Comunicado DDP/G-15, de 30/09/2016 => DOE: 01/10/2016","Acatar"]
[4073,"Gratificação Artigo 135 Inciso II - Lei 10261/68","Comunicado DDP/G-01, de 05/01/1996 => DOE: 09/01/1996","Avaliar","Lei  10261/68","Verificar se verba compõe a base prividenciária"]
[4074,"Gratificação Executiva","Comunicado DDP/G-01, de 05/01/1996 => DOE: 09/01/1996","Não Acatar"]
[4075,"Prêmio De Incentivo À Qualidade","Comunicado DDP/G-01, de 05/01/1996 => DOE: 09/01/1996","Avaliar","“Artigo 5º-A - Até que seja submetido ao primeiro processo avaliatório específico a que se refere o artigo 4º desta lei complementar, ao servidor que ingressar ou passar a ter exercício na Secretaria da Fazenda e Planejamento, fica assegurada a percepção do Prêmio de Incentivo à Qualidade - PIQ com base na média da Secretaria da Fazenda e Planejamento.“Artigo 9º - Para os atuais servidores que vierem a se aposentar com fundamento nos artigos 3º e 6º da Emenda Constitucional nº 41, de 19 de dezembro de 2003, e no artigo 3º da Emenda Constitucional nº 47, de 5 de julho de 2005, o Prêmio de Incentivo à Qualidade - PIQ, será computado no cálculo dos proventos à razão de 1/30 (um trinta avos), por ano de recebimento.\n§ 1º - Considera-se ano de recebimento, para os fins do disposto neste artigo, o período de 365 (trezentos e sessenta e cinco) dias, contínuos ou não.\n§ 2º - A apuração do valor do PIQ no cálculo dos proventos, na conformidade do “caput” deste artigo, considerará a média dos percentuais obtidos ou atribuídos ao servidor nas avaliações de desempenho relativas aos períodos avaliatórios imediatamente anteriores à aposentadoria, até o limite de 30 (trinta) anos.“Artigo 11 - Para os atuais servidores que vierem a se aposentar a partir da data de vigência desta lei complementar, com direito a proventos calculados com base na remuneração do cargo efetivo ou função-atividade em que se der a aposentadoria, o PIPQ será computado no respectivo cálculo à razão de 1/30 (um trinta avos), por ano de recebimento.","Verificar se verba compõe a base prividenciária"]
[4076,"Gratificação De Gestão E Controle Do Erário Estadual - Inativo - LC 803/95","Comunicado DDP/G-01, de 05/01/1996 => DOE: 09/01/1996","Acatar"]
[4077,"Gratificação Por Atividade De Julgamento - Inativo - LC 803/95","Comunicado DDP/G-01, de 05/01/1996 => DOE: 09/01/1996","Acatar"]
[4078,"Gratificação De Apoio Escolar - Inativo - LC 803/95","Comunicado DDP/G-01, de 05/01/1996 => DOE: 09/01/1996","Não Acatar"]
[4079,"Gratificação Por Atividade Administrativa Educacional - Inativo - LC 803/95","Comunicado DDP/G-01, de 05/01/1996 => DOE: 09/01/1996","Acatar"]
[4080,"Gratificação Especial De Atividade - Inativo - LC 803/95","Comunicado DDP/G-01, de 05/01/1996 => DOE: 09/01/1996","Acatar"]
[4081,"Gratificação Especial Por Atividade Prioritária E Estratégica - Inativo - LC 803/95","Comunicado DDP/G-01, de 05/01/1996 => DOE: 09/01/1996","Acatar"]
[4082,"Gratificação Especial Por Atividade Hospitalar - Inativo - LC 803/95","Comunicado DDP/G-01, de 05/01/1996 => DOE: 09/01/1996","Acatar"]
[4083,"Gratificação Especial Por Atividade No Instituto De Infectologia “Emílio Ribas” E Centro De Referência E Treinamento - Aids","Comunicado DDP/G-01, de 05/01/1996 => DOE: 09/01/1996","Avaliar",null,"Verificar se verba compõe a base prividenciária"]
[4084,"Gratificação Especial De Saúde Coletiva - Inativo - LC 803/95","Comunicado DDP/G-01, de 05/01/1996 => DOE: 09/01/1996","Acatar"]
[4085,"Gratificação Por Atividade De Apoio Ao Desenvolvimento Da Saúde - Inativo - LC 803/95","Comunicado DDP/G-01, de 05/01/1996 => DOE: 09/01/1996","Acatar"]
[4086,"Gratificação Por Atividade De Apoio À Agricultura - Inativo - LC 803/95","Comunicado DDP/G-01, de 05/01/1996 => DOE: 09/01/1996","Acatar"]
[4087,"Gratificação Especial De Mediação Trabalhista - Inativo - LC 803/95","Comunicado DDP/G-04, de 23/01/1997 => DOE: 24/01/1997","Acatar"]
[4088,"Gratificação Função - Inativo - LC 803/95","Comunicado DDP/G-04, de 23/01/1997 => DOE: 24/01/1997","Acatar"]
[4089,"Gratificação De Atividade Rodoviária - Inativo - LC 803/95","Comunicado DDP/G-07, de 11/02/1998 => DOE: 12/02/1998","Acatar"]
[4090,"Gratificação De Incentivo","Comunicado DDP/G-15, de 30/09/2016 => DOE: 01/10/2016","Avaliar",null,"Verificar se verba compõe a base prividenciária"]
[4091,"Gratificação De Magistério","Comunicado DDP/G-07, de 11/02/1998 => DOE: 12/02/1998","Avaliar",null,"Verificar se verba compõe a base prividenciária"]
[4092,"Gratificação De Magistério – Substituição Docente","Comunicado DDP/G-07, de 11/02/1998 => DOE: 12/02/1998","Não Acatar"]
[4093,"Gratificação Compensação Orgânica - Incorporada","Comunicado DDP/G-07, de 11/02/1998 => DOE: 12/02/1998","Acatar"]
[4094,"Gratificação Desempenho Atividade Da Saúde","Comunicado DDP/G-07, de 11/02/1998 => DOE: 12/02/1998","Avaliar",null,"Verificar se verba compõe a base prividenciária"]
[4095,"Gratificação Atividade De Ouvidoria","Comunicado DDP/G-43, de 04/11/1998 => DOE: 06/11/1998","Acatar"]
[4096,"Gratificação Desempenho Atividade Da  Saúde - Inativo","Comunicado DDP/G-43, de 04/11/1998 => DOE: 06/11/1998","Avaliar",null,"Verificar se verba compõe a base prividenciária"]
[4097,"Gratificação Área Escolar – Quadro De Apoio Escolar/Quadro Secretaria Da Educação","Comunicado DDP/G-43, de 04/11/1998 => DOE: 06/11/1998","Avaliar",null,"Verificar se verba compõe a base prividenciária"]
[4098,"Prêmio De Incentivo À Produtividade E Qualidade ","Comunicado DDP/G-48, de 03/12/1998 => DOE: 04/12/1998","Acatar"]
[4099,"Gratificação De Desenvolvimento De Atividade No Poupatempo","Comunicado DDP/G-08, de 11/04/2000 => DOE: 13/04/2000","Não Acatar"]
[4100,"Gratificação De Comando Em Unidade Prisional","Comunicado DDP/G-08, de 11/04/2000 => DOE: 13/04/2000","Avaliar",null,"Verificar se verba compõe a base prividenciária"]
[4101,"Gratificação Por Atividade De Apoio À Pesquisa","Comunicado DDP/G-08, de 11/04/2000 => DOE: 13/04/2000","Avaliar",null,"Verificar se verba compõe a base prividenciária"]
[4102,"Gratificação De Desenvolvimento De Atividade No Poupatempo - Supervisão/ Orientação Técnica - Incorporado","Comunicado DDP/G-33, de 31/08/2000 => DOE: 02/09/2000","Acatar"]
[4103,"Gratificação De Desenvolvimento De Atividade No Poupatempo – Apoio - Incorporado","Comunicado DDP/G-33, de 31/08/2000 => DOE: 02/09/2000","Acatar"]
[4104,"Gratificação De Desenvolvimento De Atividade No Poupatempo – Atendente Ao Público - Incorporado","Comunicado DDP/G-33, de 31/08/2000 => DOE: 02/09/2000","Acatar"]
[4105,"Gratificação De Assistência E Suporte À Saúde","Comunicado DDP/G-33, de 31/08/2000 => DOE: 02/09/2000","Avaliar",null,"Verificar se verba compõe a base prividenciária"]
[4106,"Gratificação De Suporte As Atividades Escolares","Comunicado DDP/G-33, de 31/08/2000 => DOE: 02/09/2000","Não Acatar"]
[4107,"Gratificação Por Trabalho Educacional","Comunicado DDP/G-33, de 31/08/2000 => DOE: 02/09/2000","Avaliar",null,"Verificar se verba compõe a base prividenciária"]
[4108,"Gratificação Por Atividades De Polícia","Comunicado DDP/G-12, de 24/05/2001 => DOE: 26/05/2001","Acatar"]
[4109,"Gratificação Por Trabalho Educacional – Substituição Docente/Reposição/Recuperação","Comunicado DDP/G-12, de 24/05/2001 => DOE: 26/05/2001","Não Acatar"]
[4110,"Gratificação Por Atividade De Suporte Administrativo","Comunicado DDP/G-12, de 24/05/2001 => DOE: 26/05/2001","Não Acatar"]
[4111,"Gratificação Complementar – Quadro De Apoio Escolar","Comunicado DDP/G-07, de 31/01/2002 => DOE: 02/02/2002","Avaliar",null,"O valor da Gratificação de Função será computado no cálculo dos proventos dos inativos que, por ocasião da aposentadoria, sejam titulares de cargos ou ocupantes de funções-atividades de Secretário de Escola e se encontrem em exercício em unidades escolares da Secretaria da Educação por, no mínimo, 5 anos."]
[4112,"Bônus Docente","Comunicado DDP/G-07, de 31/01/2002 => DOE: 02/02/2002","Não Acatar"]
[4113,"Bônus Gestor","Comunicado DDP/G-07, de 31/01/2002 => DOE: 02/02/2002","Não Acatar"]
[4114,"Gratificação De Suporte À Atividade Penitenciária","Comunicado DDP/G-07, de 31/01/2002 => DOE: 02/02/2002","Avaliar",null,"Verificar se verba compõe a base prividenciária"]
[4115,"Gratificação Por Atividade De Escolta E Vigilância","Comunicado DDP/G-07, de 31/01/2002 => DOE: 02/02/2002","Avaliar",null,"O servidor que passar à inatividade terá a Gratificação por Atividade de Escolta e Vigilância – GAEV, computada no cálculo de seus proventos, na base de 1/60 para cada mês em que, no período dos 60 meses imediatamente anteriores à aposentadoria, tenha percebido a referida vantagem. O valor da GAEV será mantido no cálculo dos proventos de aposentadoria por invalidez, decorrente de lesão ou enfermidade adquirida em razão do exercício das atividades nas unidades prisionais. O valor da GAEV aplica-se no cálculo da pensão dos beneficiários do Agente de Escolta e Vigilância Penitenciária morto em decorrência de lesão ou enfermidade."]
[4116,"Gratificação Por Atividade De Escolta E Vigilância - Inativo - LC 898/2001","Comunicado DDP/G-07, de 31/01/2002 => DOE: 02/02/2002","Avaliar","LC 898/2001","Artigo 13 – O servidor que passar à inatividade, terá\na Gratificação por Atividade de Escolta e Vigilância –\nGAEV, computada no cálculo de seus proventos, na base\nde 1/60 (um sessenta avos) para cada mês em que, no\nperíodo dos 60 (sessenta) meses imediatamente\nanteriores à aposentadoria, tenha percebido a referida\nvantagem.\n"]
[4117,"Gratificação Geral - LC 901/2001","Comunicado DDP/G-07, de 31/01/2002 => DOE: 02/02/2002","Não Acatar"]
[4118,"Gratificação Geral - Quadro Magistério - LC 901/2001","Comunicado DDP/G-07, de 31/01/2002 => DOE: 02/02/2002","Avaliar","LC 901/2001","Verificar se verba compõe a base prividenciária"]
[4119,"Gratificação Geral - Substituição Docente / Reposição / Recuperação - LC901/01","Comunicado DDP/G-22, de 15/08/2002 => DOE: 17/08/2002","Não Acatar"]
[4120,"RETP Do Estado / CBPM","Comunicado DDP/G-22, de 15/08/2002 => DOE: 17/08/2002","Acatar"]
[4121,"Bônus Docente – Convênio Prefeitura Municipalização","Comunicado DDP/G-30, de 27/08/2003 => DOE: 02/09/2003","Não Acatar"]
[4122,"Gratificação Por Comando De Unidade Prisional - Inativo ","Comunicado DDP/G-05, de 09/02/2004 => DOE: 11/02/2004 ","Avaliar",null,"Verificar se verba compõe a base prividenciária"]
[4123,"Prêmio Incentivo À Produtividade E Qualidade - Inativo","Comunicado DDP/G-12, de 06/05/2004 => DOE: 11/05/2004","Avaliar",null,"Verificar se verba compõe a base prividenciária"]
[4124,"Bônus Merecimento - Qae/Qse","Comunicado DDPE/G-13, de 07/04/2005 => DOE: 09/04/2005","Não Acatar"]
[4125,"Bônus - Quadro Do Magistério","Comunicado DDPE/G-15, de 04/07/2006 => DOE: 29/07/2006 ","Não Acatar"]
[4126,"Prêmio De Incentivo À Qualidade - Artigo 9 - LC 952/03","Comunicado DDPE/G-15, de 04/07/2006 => DOE: 29/07/2006 ","Avaliar",null,"Para os atuais servidores que vierem a se aposentar com fundamento nos artigos 3º e 6º da Emenda Constitucional nº 41, de 19 de dezembro de 2003, e no artigo 3º da Emenda Constitucional nº 47, de 5 de julho de 2005, o Prêmio de Incentivo à Qualidade – PIQ, será computado no cálculo dos proventos à razão de 1/30 (um trinta avos), por ano de recebimento."]
[4127,"Gratificação Suplementar – Lei Complementar 957/04","Comunicado DDPE/G-15, de 04/07/2006 => DOE: 29/07/2006 ","Não Acatar"]
[4128,"Gratificação Pelo Desempenho De Atividades No Poupatempo - Supervisão/Orientação - Técnico-Incorporada","Comunicado DDP/G-15, de 30/09/2016 => DOE: 01/10/2016","Acatar"]
[4129,"Gratificação Pelo Desempenho De Atividades No Poupatempo - Apoio - Incorporada","Comunicado DDP/G-15, de 30/09/2016 => DOE: 01/10/2016","Acatar"]
[4130,"Gratificação Por Atividade De Magistério","Comunicado DDPE/G-15, de 04/07/2006 => DOE: 29/07/2006 ","Não Acatar"]
[4131,"Gratificação Por Atividade De Magistério - Substituição Docente/Reposição/Recuperação - Lei Complementar 977/2005","Comunicado DDPE/G-17, de 28/07/2006 => DOE: 29/07/2006","Não Acatar"]
[4132,"Gratificação Especial De Atividade Técnico- Desportiva","Comunicado DDPE/G-17, de 28/07/2006 => DOE: 29/07/2006","Avaliar",null,"Verificar se verba compõe a base prividenciária"]
[4133,"Gratificação Especial De Atividade Técnico-Desportiva-Inativo - Lei Complementar 993/2006","Comunicado DDPE/G-13, de 14/05/2007 => DOE: 15/05/2007","Não Acatar"]
[4134,"Gratificação De Função Lei Complementar 988/2006","Comunicado DDPE/G-13, de 14/05/2007 => DOE: 15/05/2007","Não Acatar"]
[4135,"Gratificação Por Exercício De Atividade Em Condições De Especial Dificuldade - Artigo 1º - Deliberação Nº 18/2006","Comunicado DDPE/G-13, de 14/05/2007 => DOE: 15/05/2007","Avaliar","Deliberação Nº 18/2006","Verificar se verba compõe a base prividenciária"]
[4136,"Prêmio De Incentivo À Qualidade Artigo 1º - Lei Complementar Nº 1003/2006","Comunicado DDPE/G-13, de 14/05/2007 => DOE: 15/05/2007","Avaliar","Lei  Complementar Nº 1003/2006","Verificar se verba compõe a base prividenciária"]
[4137,"Prêmio De Incentivo À Qualidade Artigo 2º - Lei Complementar Nº 1003/2006","Comunicado DDPE/G-13, de 14/05/2007 => DOE: 15/05/2007","Avaliar","Lei  Complementar Nº 1003/2006","Verificar se verba compõe a base prividenciária"]
[4138,"Gratificação Pelo Exercício De Atividades Em Condições De Especial Dificuldade - Artigo 3º - Deliberação Nº 18/2006","Comunicado DDPE/G-13, de 14/05/2007 => DOE: 15/05/2007","Avaliar","Deliberação Nº 18/2006","Verificar se verba compõe a base prividenciária"]
[4139,"Gratificação Executiva - S.E.","Comunicado DDP/G-15, de 30/09/2016 => DOE: 01/10/2016","Não Acatar"]
[4140,"Gratificação Suplementar - S.E.","Comunicado DDP/G-15, de 30/09/2016 => DOE: 01/10/2016","Não Acatar"]
[4141,"Gratificação Jeton - Secretário / Informante","Comunicado DDPE/G-13, de 14/05/2007 => DOE: 15/05/2007","Não Acatar"]
[4142,"Gratificação De Suporte À Atividade Penitenciária - Agente De Escolta E Vigilância Penitenciária","Comunicado DDPE/G-13, de 14/05/2007 => DOE: 15/05/2007","Avaliar",null,"Verificar se verba compõe a base prividenciária"]
[4143,"Gratificação Por Trabalho Educacional - Aulas De Substituição","Comunicado DDPE/G-05, de 03/04/2008 => DOE: 04/04/2008","Não Acatar"]
[4144,"Gratificação Geral - Aulas De Substituição","Comunicado DDPE/G-05, de 03/04/2008 => DOE: 04/04/2008","Não Acatar"]
[4145,"Prêmio De Incentivo Á Qualidade Inativo - Decreto Nº 40.787/1996","Comunicado DDPE/G-05, de 03/04/2008 => DOE: 04/04/2008","Acatar"]
[4146,"Antecipação Bônus Quadro Do Magistério","Comunicado DDPE/G-05, de 03/04/2008 => DOE: 04/04/2008","Não Acatar"]
[4147,"Antecipação Bônus Merecimento - Quadro De Apoio Escolar/Quadro Da Secretaria Da Educação","Comunicado DDPE/G-05, de 03/04/2008 => DOE: 04/04/2008","Não Acatar"]
[4148,"Gratificação De Função Secretário De Escola Lei Complementar Nº 1019/2007","Comunicado DDP/G-05, de 31/01/1994 => DOE: 01/02/1994","Não Acatar"]
[4149,"Gratificação De Função Coordenador/Vice Diretor Lei Complementar Nº 1018/2007","Comunicado DDP/G-05, de 31/01/1994 => DOE: 01/02/1994","Avaliar","Lei  Complementar Nº 1018/2007","Artigo 1º - Fica instituída Gratificação de Função para os integrantes das classes de docentes do Quadro do Magistério, em exercício nas unidades escolares da Secretaria da Educação, designados para as funções de Professor Coordenador e Vice-Diretor de Escola Artigo 2º - A Gratificação de Função corresponde à importância resultante da aplicação do percentual de 15% (quinze por cento) sobre a Faixa 1, Nível I, da Escala de Vencimentos - Classes de Suporte Pedagógico - EV-CSP, de que trata o artigo 32 da Lei Complementar nº 836, de 30 de dezembro de 1997, alterada pelo inciso IX do artigo 1º da Lei Complementar nº 975, de 6 de outubro de 2005, para jornada de 40 (quarenta) horas semanais de trabalho e proporcional nos demais casos. Parágrafo único - O servidor não perderá o direito à Gratificação de Função quando se afastar em virtude de licença adoção, licença paternidade, licença para tratamento de saúde até o limite de 45\n(quarenta e cinco dias), e nas hipóteses previstas nos artigos 69 e 78 da Lei nº 10.261, de 28 de outubro de 1968. Artigo 3º - A Gratificação de Função será incorporada ao patrimônio do servidor na base de 1/10 (um décimo) por ano de percepção, observado o limite de 10/10 (dez décimos)."]
[4150,"Gratificação De Função Secretário De Escola - Inativo -Lei Complementar Nº 1019/2007","Comunicado DDP/G-05, de 31/01/1994 => DOE: 01/02/1994","Não Acatar"]
[4151,"Prêmio De Incentivo A Produtividade E Qualidade – Artigo 2 – LC 1028/2007","Comunicado DDPE/G-04, de 22/06/2012 => DOE: 27/06/2012","Avaliar","LC 1028/2007","Verificar se verba compõe a base prividenciária"]
[4152,"Gratificação De Função De Vice/Substituição – LC 1018/2007","Comunicado DDPE/G-04, de 22/06/2012 => DOE: 27/06/2012","Não Acatar"]
[4153,"Gratificação Por Acumulo De Titularidade","Comunicado DDPE/G-04, de 22/06/2012 => DOE: 27/06/2012","Avaliar",null,"Verificar se verba compõe a base prividenciária"]
[4154,"Prêmio De Incentivo A Produtividade E Qualidade","Comunicado DDP/G-15, de 30/09/2016 => DOE: 01/10/2016","Avaliar",null,"Verificar se verba compõe a base prividenciária"]
[4155,"Gratificação De Deliberação – 109/08 – Artigo 2-Inciso II / Artigo 3-Inciso I","Comunicado DDPE/G-04, de 22/06/2012 => DOE: 27/06/2012","Avaliar",null,"Deliberação CSDP nº 109/08, a gratificação equivalente a 10% sobre o valor de referência do cargo de Defensor Público Nível I, para o exercício de atividade em condições de especial dificuldade referente à atuação como integrante do Conselho Estadual de Políticas sobre Drogas – Coned, a partir de 08/02/2011. Legislação 109/08 revogada"]
[4156,"Gratificação De Deliberação – 109/08 – Artigo 2-Inciso I / Artigo 3-Inciso II","Comunicado DDPE/G-04, de 22/06/2012 => DOE: 27/06/2012","Avaliar",null,"Deliberação CSDP nº 109/08, a gratificação equivalente a 10% sobre o valor de referência do cargo de Defensor Público Nível I, para o exercício de atividade em condições de especial dificuldade referente à atuação como integrante do Conselho Estadual de Políticas sobre Drogas – Coned, a partir de 08/02/2011. Legislação 109/08 revogada"]
[4157,"Gratificação De Deliberação – 109/08 – Artigo 2-Inciso III / Artigo 3-Inciso II","Comunicado DDPE/G-04, de 22/06/2012 => DOE: 27/06/2012","Avaliar",null,"Deliberação CSDP nº 109/08, a gratificação equivalente a 10% sobre o valor de referência do cargo de Defensor Público Nível I, para o exercício de atividade em condições de especial dificuldade referente à atuação como integrante do Conselho Estadual de Políticas sobre Drogas – Coned, a partir de 08/02/2011. Legislação 109/08 revogada"]
[4158,"Gratificação De Deliberação – 109/08 – Artigo 2-Inciso IV / Artigo 3-Inciso II","Comunicado DDPE/G-04, de 22/06/2012 => DOE: 27/06/2012","Avaliar",null,"Deliberação CSDP nº 109/08, a gratificação equivalente a 10% sobre o valor de referência do cargo de Defensor Público Nível I, para o exercício de atividade em condições de especial dificuldade referente à atuação como integrante do Conselho Estadual de Políticas sobre Drogas – Coned, a partir de 08/02/2011. Legislação 109/08 revogada"]
[4159,"Gratificação De Deliberação – 109/08 – Artigo 4-Inciso I","Comunicado DDPE/G-04, de 22/06/2012 => DOE: 27/06/2012","Avaliar",null,"Deliberação CSDP nº 109/08, a gratificação equivalente a 10% sobre o valor de referência do cargo de Defensor Público Nível I, para o exercício de atividade em condições de especial dificuldade referente à atuação como integrante do Conselho Estadual de Políticas sobre Drogas – Coned, a partir de 08/02/2011. Legislação 109/08 revogada"]
[4160,"Gratificação De Deliberação – 109/08 – Artigo 4-Inciso II ","Comunicado DDPE/G-04, de 22/06/2012 => DOE: 27/06/2012","Avaliar",null,"Deliberação CSDP nº 109/08, a gratificação equivalente a 10% sobre o valor de referência do cargo de Defensor Público Nível I, para o exercício de atividade em condições de especial dificuldade referente à atuação como integrante do Conselho Estadual de Políticas sobre Drogas – Coned, a partir de 08/02/2011. Legislação 109/08 revogada"]
[4161,"Gratificação De Deliberação – 109/08 – Artigo 4-Inciso III","Comunicado DDPE/G-04, de 22/06/2012 => DOE: 27/06/2012","Avaliar",null,"Deliberação CSDP nº 109/08, a gratificação equivalente a 10% sobre o valor de referência do cargo de Defensor Público Nível I, para o exercício de atividade em condições de especial dificuldade referente à atuação como integrante do Conselho Estadual de Políticas sobre Drogas – Coned, a partir de 08/02/2011. Legislação 109/08 revogada"]
[4162,"Gratificação De Deliberação – 109/08 – Artigo 4-Inciso IV","Comunicado DDPE/G-04, de 22/06/2012 => DOE: 27/06/2012","Avaliar",null,"Deliberação CSDP nº 109/08, a gratificação equivalente a 10% sobre o valor de referência do cargo de Defensor Público Nível I, para o exercício de atividade em condições de especial dificuldade referente à atuação como integrante do Conselho Estadual de Políticas sobre Drogas – Coned, a partir de 08/02/2011. Legislação 109/08 revogada"]
[4163,"Gratificação De Deliberação – 109/08 – Artigo 4-Inciso V","Comunicado DDPE/G-04, de 22/06/2012 => DOE: 27/06/2012","Avaliar",null,"Deliberação CSDP nº 109/08, a gratificação equivalente a 10% sobre o valor de referência do cargo de Defensor Público Nível I, para o exercício de atividade em condições de especial dificuldade referente à atuação como integrante do Conselho Estadual de Políticas sobre Drogas – Coned, a partir de 08/02/2011. Legislação 109/08 revogada"]
[4164,"Gratificação De Deliberação – 109/08 – Artigo 4-Inciso VI","Comunicado DDPE/G-04, de 22/06/2012 => DOE: 27/06/2012","Avaliar",null,"Deliberação CSDP nº 109/08, a gratificação equivalente a 10% sobre o valor de referência do cargo de Defensor Público Nível I, para o exercício de atividade em condições de especial dificuldade referente à atuação como integrante do Conselho Estadual de Políticas sobre Drogas – Coned, a partir de 08/02/2011. Legislação 109/08 revogada"]
[4165,"Gratificação De Deliberação – 109/08 – Artigo 4-Inciso VII","Comunicado DDPE/G-04, de 22/06/2012 => DOE: 27/06/2012","Avaliar",null,"Deliberação CSDP nº 109/08, a gratificação equivalente a 10% sobre o valor de referência do cargo de Defensor Público Nível I, para o exercício de atividade em condições de especial dificuldade referente à atuação como integrante do Conselho Estadual de Políticas sobre Drogas – Coned, a partir de 08/02/2011. Legislação 109/08 revogada"]
[4166,"Gratificação De Deliberação – 109/08 – Artigo 4-Inciso VIII","Comunicado DDPE/G-04, de 22/06/2012 => DOE: 27/06/2012","Avaliar",null,"Deliberação CSDP nº 109/08, a gratificação equivalente a 10% sobre o valor de referência do cargo de Defensor Público Nível I, para o exercício de atividade em condições de especial dificuldade referente à atuação como integrante do Conselho Estadual de Políticas sobre Drogas – Coned, a partir de 08/02/2011. Legislação 109/08 revogada"]
[4167,"Gratificação De Deliberação – 109/08 – Artigo 4-Inciso IX","Comunicado DDPE/G-04, de 22/06/2012 => DOE: 27/06/2012","Avaliar",null,"Deliberação CSDP nº 109/08, a gratificação equivalente a 10% sobre o valor de referência do cargo de Defensor Público Nível I, para o exercício de atividade em condições de especial dificuldade referente à atuação como integrante do Conselho Estadual de Políticas sobre Drogas – Coned, a partir de 08/02/2011. Legislação 109/08 revogada"]
[4168,"Gratificação De Deliberação – 109/08 – Artigo 4-Inciso X","Comunicado DDPE/G-04, de 22/06/2012 => DOE: 27/06/2012","Avaliar",null,"Deliberação CSDP nº 109/08, a gratificação equivalente a 10% sobre o valor de referência do cargo de Defensor Público Nível I, para o exercício de atividade em condições de especial dificuldade referente à atuação como integrante do Conselho Estadual de Políticas sobre Drogas – Coned, a partir de 08/02/2011. Legislação 109/08 revogada"]
[4169,"Gratificação De Deliberação – 109/08 – Artigo 4-Inciso XI","Comunicado DDPE/G-04, de 22/06/2012 => DOE: 27/06/2012","Avaliar",null,"Deliberação CSDP nº 109/08, a gratificação equivalente a 10% sobre o valor de referência do cargo de Defensor Público Nível I, para o exercício de atividade em condições de especial dificuldade referente à atuação como integrante do Conselho Estadual de Políticas sobre Drogas – Coned, a partir de 08/02/2011. Legislação 109/08 revogada"]
[4170,"Gratificação De Deliberação – 109/08 – Artigo 4-Inciso XII","Comunicado DDPE/G-04, de 22/06/2012 => DOE: 27/06/2012","Avaliar",null,"Deliberação CSDP nº 109/08, a gratificação equivalente a 10% sobre o valor de referência do cargo de Defensor Público Nível I, para o exercício de atividade em condições de especial dificuldade referente à atuação como integrante do Conselho Estadual de Políticas sobre Drogas – Coned, a partir de 08/02/2011. Legislação 109/08 revogada"]
[4171,"Gratificação De Deliberação – 109/08 – Artigo 4-Inciso XIII","Comunicado DDPE/G-04, de 22/06/2012 => DOE: 27/06/2012","Avaliar",null,"Deliberação CSDP nº 109/08, a gratificação equivalente a 10% sobre o valor de referência do cargo de Defensor Público Nível I, para o exercício de atividade em condições de especial dificuldade referente à atuação como integrante do Conselho Estadual de Políticas sobre Drogas – Coned, a partir de 08/02/2011. Legislação 109/08 revogada"]
[4172,"Gratificação De Deliberação – 109/08 – Artigo 4-Inciso XIV","Comunicado DDPE/G-04, de 22/06/2012 => DOE: 27/06/2012","Avaliar",null,"Deliberação CSDP nº 109/08, a gratificação equivalente a 10% sobre o valor de referência do cargo de Defensor Público Nível I, para o exercício de atividade em condições de especial dificuldade referente à atuação como integrante do Conselho Estadual de Políticas sobre Drogas – Coned, a partir de 08/02/2011. Legislação 109/08 revogada"]
[4173,"Gratificação De Deliberação – 109/08 – Artigo 4-Inciso XV","Comunicado DDPE/G-04, de 22/06/2012 => DOE: 27/06/2012","Avaliar",null,"Deliberação CSDP nº 109/08, a gratificação equivalente a 10% sobre o valor de referência do cargo de Defensor Público Nível I, para o exercício de atividade em condições de especial dificuldade referente à atuação como integrante do Conselho Estadual de Políticas sobre Drogas – Coned, a partir de 08/02/2011. Legislação 109/08 revogada"]
[4174,"Gratificação De Deliberação – 109/08 – Artigo 4-Inciso XVI","Comunicado DDPE/G-04, de 22/06/2012 => DOE: 27/06/2012","Avaliar",null,"Deliberação CSDP nº 109/08, a gratificação equivalente a 10% sobre o valor de referência do cargo de Defensor Público Nível I, para o exercício de atividade em condições de especial dificuldade referente à atuação como integrante do Conselho Estadual de Políticas sobre Drogas – Coned, a partir de 08/02/2011. Legislação 109/08 revogada"]
[4175,"Gratificação De Deliberação – 109/08 – Artigo 4-Inciso XVII","Comunicado DDPE/G-04, de 22/06/2012 => DOE: 27/06/2012","Avaliar",null,"Deliberação CSDP nº 109/08, a gratificação equivalente a 10% sobre o valor de referência do cargo de Defensor Público Nível I, para o exercício de atividade em condições de especial dificuldade referente à atuação como integrante do Conselho Estadual de Políticas sobre Drogas – Coned, a partir de 08/02/2011. Legislação 109/08 revogada"]
[4176,"Gratificação De Deliberação – 109/08 – Artigo 4-Inciso XVIII","Comunicado DDPE/G-04, de 22/06/2012 => DOE: 27/06/2012","Avaliar",null,"Deliberação CSDP nº 109/08, a gratificação equivalente a 10% sobre o valor de referência do cargo de Defensor Público Nível I, para o exercício de atividade em condições de especial dificuldade referente à atuação como integrante do Conselho Estadual de Políticas sobre Drogas – Coned, a partir de 08/02/2011. Legislação 109/08 revogada"]
[4177,"Gratificação De Deliberação – 109/08 – Artigo 4-Inciso XIX","Comunicado DDPE/G-04, de 22/06/2012 => DOE: 27/06/2012","Avaliar",null,"Deliberação CSDP nº 109/08, a gratificação equivalente a 10% sobre o valor de referência do cargo de Defensor Público Nível I, para o exercício de atividade em condições de especial dificuldade referente à atuação como integrante do Conselho Estadual de Políticas sobre Drogas – Coned, a partir de 08/02/2011. Legislação 109/08 revogada"]
[4178,"Gratificação De Deliberação – 109/08 – Artigo 4-Inciso XX","Comunicado DDPE/G-04, de 22/06/2012 => DOE: 27/06/2012","Avaliar",null,"Deliberação CSDP nº 109/08, a gratificação equivalente a 10% sobre o valor de referência do cargo de Defensor Público Nível I, para o exercício de atividade em condições de especial dificuldade referente à atuação como integrante do Conselho Estadual de Políticas sobre Drogas – Coned, a partir de 08/02/2011. Legislação 109/08 revogada"]
[4179,"Bonificação Por Resultado – LC 1079/2008","Comunicado DDPE/G-04, de 22/06/2012 => DOE: 27/06/2012","Não Acatar"]
[4180,"Bonificação Por Resultado – LC 1078/2008","Comunicado DDPE/G-04, de 22/06/2012 => DOE: 27/06/2012","Não Acatar"]
[4181,"Gratificação Do Tribunal De Impostos E Taxas – Artigo 70 § 2º -1 Lei 13457/2009","Comunicado DDPE/G-04, de 22/06/2012 => DOE: 27/06/2012","Não Acatar"]
[4182,"Gratificação Do Tribunal De Impostos E Taxas – Artigo 70 § 2º -2 Lei 13457/2009","Comunicado DDPE/G-04, de 22/06/2012 => DOE: 27/06/2012","Não Acatar"]
[4183,"Gratificação De Deliberação – 109/08 – Artigo 4-Inciso XXI","Comunicado DDPE/G-04, de 22/06/2012 => DOE: 27/06/2012","Avaliar",null,"Deliberação CSDP nº 109/08, a gratificação equivalente a 10% sobre o valor de referência do cargo de Defensor Público Nível I, para o exercício de atividade em condições de especial dificuldade referente à atuação como integrante do Conselho Estadual de Políticas sobre Drogas – Coned, a partir de 08/02/2011. Legislação 109/08 revogada"]
[4184,"Gratificação De Deliberação – 109/08 – Artigo 4-Inciso XXII","Comunicado DDPE/G-04, de 22/06/2012 => DOE: 27/06/2012","Avaliar",null,"Deliberação CSDP nº 109/08, a gratificação equivalente a 10% sobre o valor de referência do cargo de Defensor Público Nível I, para o exercício de atividade em condições de especial dificuldade referente à atuação como integrante do Conselho Estadual de Políticas sobre Drogas – Coned, a partir de 08/02/2011. Legislação 109/08 revogada"]
[4185,"Bonificação Por Resultado – Resolução Conjunta Secretaria Da Fazenda/Secretaria Do Planejamento – Nº 6/09","Comunicado DDPE/G-04, de 22/06/2012 => DOE: 27/06/2012","Não Acatar"]
[4186,"Gratificação De Deliberação – 109/08 – Artigo 2-Inciso I-§ Único/Artigo 3","Comunicado DDPE/G-04, de 22/06/2012 => DOE: 27/06/2012","Avaliar",null,"Deliberação CSDP nº 109/08, a gratificação equivalente a 10% sobre o valor de referência do cargo de Defensor Público Nível I, para o exercício de atividade em condições de especial dificuldade referente à atuação como integrante do Conselho Estadual de Políticas sobre Drogas – Coned, a partir de 08/02/2011. Legislação 109/08 revogada"]
[4187,"Gratificação De Deliberação – 109/08 – Artigo 4-Inciso XXII","Comunicado DDPE/G-04, de 22/06/2012 => DOE: 27/06/2012","Avaliar",null,"Deliberação CSDP nº 109/08, a gratificação equivalente a 10% sobre o valor de referência do cargo de Defensor Público Nível I, para o exercício de atividade em condições de especial dificuldade referente à atuação como integrante do Conselho Estadual de Políticas sobre Drogas – Coned, a partir de 08/02/2011. Legislação 109/08 revogada"]
[4188,"Gratificação De Deliberação – 109/08 – Artigo 4-Inciso XXIV","Comunicado DDPE/G-04, de 22/06/2012 => DOE: 27/06/2012","Avaliar",null,"Deliberação CSDP nº 109/08, a gratificação equivalente a 10% sobre o valor de referência do cargo de Defensor Público Nível I, para o exercício de atividade em condições de especial dificuldade referente à atuação como integrante do Conselho Estadual de Políticas sobre Drogas – Coned, a partir de 08/02/2011. Legislação 109/08 revogada"]
[4189,"Gratificação De Deliberação – 109/08 – Artigo 4-Inciso XXV","Comunicado DDPE/G-04, de 22/06/2012 => DOE: 27/06/2012","Avaliar",null,"Deliberação CSDP nº 109/08, a gratificação equivalente a 10% sobre o valor de referência do cargo de Defensor Público Nível I, para o exercício de atividade em condições de especial dificuldade referente à atuação como integrante do Conselho Estadual de Políticas sobre Drogas – Coned, a partir de 08/02/2011. Legislação 109/08 revogada"]
[4190,"Gratificação De Deliberação – 109/08 – Artigo 4-Inciso XXVI","Comunicado DDPE/G-04, de 22/06/2012 => DOE: 27/06/2012","Avaliar",null,"Deliberação CSDP nº 109/08, a gratificação equivalente a 10% sobre o valor de referência do cargo de Defensor Público Nível I, para o exercício de atividade em condições de especial dificuldade referente à atuação como integrante do Conselho Estadual de Políticas sobre Drogas – Coned, a partir de 08/02/2011. Legislação 109/08 revogada"]
[4191,"Gratificação De Deliberação – 109/08 – Artigo 4-Inciso XXVII","Comunicado DDPE/G-04, de 22/06/2012 => DOE: 27/06/2012","Avaliar",null,"Deliberação CSDP nº 109/08, a gratificação equivalente a 10% sobre o valor de referência do cargo de Defensor Público Nível I, para o exercício de atividade em condições de especial dificuldade referente à atuação como integrante do Conselho Estadual de Políticas sobre Drogas – Coned, a partir de 08/02/2011. Legislação 109/08 revogada"]
[4192,"Gratificação De Deliberação – 109/08 – Artigo 4-Inciso XXVIII","Comunicado DDPE/G-04, de 22/06/2012 => DOE: 27/06/2012","Avaliar",null,"Deliberação CSDP nº 109/08, a gratificação equivalente a 10% sobre o valor de referência do cargo de Defensor Público Nível I, para o exercício de atividade em condições de especial dificuldade referente à atuação como integrante do Conselho Estadual de Políticas sobre Drogas – Coned, a partir de 08/02/2011. Legislação 109/08 revogada"]
[4193,"Gratificação Por Desempenho De Atividade Delegada – Polícia Militar","Comunicado DDPE/G-04, de 22/06/2012 => DOE: 27/06/2012","Não Acatar"]
[4194,"Gratificação De Deliberação – 109/08 – Artigo 4-Inciso XXIX","Comunicado DDPE/G-04, de 22/06/2012 => DOE: 27/06/2012","Avaliar",null,"Deliberação CSDP nº 109/08, a gratificação equivalente a 10% sobre o valor de referência do cargo de Defensor Público Nível I, para o exercício de atividade em condições de especial dificuldade referente à atuação como integrante do Conselho Estadual de Políticas sobre Drogas – Coned, a partir de 08/02/2011. Legislação 109/08 revogada"]
[4195,"Bonificação Por Resultado Adicional – Artigo 9 § 4 – LC 1079/2008","Comunicado DDPE/G-04, de 22/06/2012 => DOE: 27/06/2012","Não Acatar"]
[4196,"Gratificação Pelo Desempenho E Apoio À Atividade Médico Pericial","Comunicado DDPE/G-04, de 22/06/2012 => DOE: 27/06/2012","Avaliar","LEI No 10.876, DE 2 DE JUNHO DE 2004.","Verificar se verba compõe a base prividenciária"]
[4197,"Bonificação Por Resultado – LC 1079/2008 – Quadro Especial","Comunicado DDPE/G-04, de 22/06/2012 => DOE: 27/06/2012","Não Acatar"]
[4198,"Gratificação Pelo Desempenho E Apoio À Assistência Médica Ao Servidor Público – Lei 14169/2010","Comunicado DDPE/G-04, de 22/06/2012 => DOE: 27/06/2012","Acatar"]
[4199,"Gratificação De Deliberação – 109/08 – Artigo 4-Inciso XXX","Comunicado DDPE/G-04, de 22/06/2012 => DOE: 27/06/2012","Avaliar",null,"Deliberação CSDP nº 109/08, a gratificação equivalente a 10% sobre o valor de referência do cargo de Defensor Público Nível I, para o exercício de atividade em condições de especial dificuldade referente à atuação como integrante do Conselho Estadual de Políticas sobre Drogas – Coned, a partir de 08/02/2011. Legislação 109/08 revogada"]
[4200,"Gratificação De Deliberação – 109/08 – Artigo 4-Inciso XXXI","Comunicado DDPE/G-04, de 22/06/2012 => DOE: 27/06/2012","Avaliar",null,"Deliberação CSDP nº 109/08, a gratificação equivalente a 10% sobre o valor de referência do cargo de Defensor Público Nível I, para o exercício de atividade em condições de especial dificuldade referente à atuação como integrante do Conselho Estadual de Políticas sobre Drogas – Coned, a partir de 08/02/2011. Legislação 109/08 revogada"]
[4201,"Gratificação De Deliberação – 109/08 – Artigo 4-Inciso XXXII","Comunicado DDPE/G-04, de 22/06/2012 => DOE: 27/06/2012","Avaliar",null,"Deliberação CSDP nº 109/08, a gratificação equivalente a 10% sobre o valor de referência do cargo de Defensor Público Nível I, para o exercício de atividade em condições de especial dificuldade referente à atuação como integrante do Conselho Estadual de Políticas sobre Drogas – Coned, a partir de 08/02/2011. Legislação 109/08 revogada"]
[4202,"Gratificação De Deliberação – 109/08 – Artigo 4-Inciso XXXIII","Comunicado DDPE/G-04, de 22/06/2012 => DOE: 27/06/2012","Avaliar",null,"Deliberação CSDP nº 109/08, a gratificação equivalente a 10% sobre o valor de referência do cargo de Defensor Público Nível I, para o exercício de atividade em condições de especial dificuldade referente à atuação como integrante do Conselho Estadual de Políticas sobre Drogas – Coned, a partir de 08/02/2011. Legislação 109/08 revogada"]
[4203,"Gratificação De Deliberação – 109/08 – Artigo 4-Inciso XXXIV","Comunicado DDPE/G-04, de 22/06/2012 => DOE: 27/06/2012","Avaliar",null,"Deliberação CSDP nº 109/08, a gratificação equivalente a 10% sobre o valor de referência do cargo de Defensor Público Nível I, para o exercício de atividade em condições de especial dificuldade referente à atuação como integrante do Conselho Estadual de Políticas sobre Drogas – Coned, a partir de 08/02/2011. Legislação 109/08 revogada"]
[4204,"Gratificação Trabalho Curso Noturno – Professor Coordenador Da Oficina Pedagógica - 20%","Comunicado DDPE/G-04, de 22/06/2012 => DOE: 27/06/2012","Não Acatar"]
[4205,"Gratificação Por Atividade De Pagamentos Especiais ","Comunicado DDPE/G-04, de 22/06/2012 => DOE: 27/06/2012","Não Acatar"]
[4206,"Bonificação Por Resultado – LC 1104/2010 ","Comunicado DDPE/G-04, de 22/06/2012 => DOE: 27/06/2012","Não Acatar"]
[4207,"Prêmio De Incentivo À Qualidade – Jucesp – LC 1134/2011","Comunicado DDPE/G-04, de 22/06/2012 => DOE: 27/06/2012","Avaliar","LC 1134/2011","Verificar se verba compõe a base prividenciária"]
[4208,"Gratificação De Atividade Especial Por Localização – Inciso V Artigo 1 – LC 1113/2010","Comunicado DDPE/G-04, de 22/06/2012 => DOE: 27/06/2012","Não Acatar"]
[4209,"Gratificação De Atividade Especial Por Natureza Do Serviço – Inciso V Artigo 1 – LC 1113/2010","Comunicado DDPE/G-04, de 22/06/2012 => DOE: 27/06/2012","Não Acatar"]
[4210,"Bonificação Por Resultado – LC 1121/2010 ","Comunicado DDPE/G-04, de 22/06/2012 => DOE: 27/06/2012","Não Acatar"]
[4211,"Prêmio De Desempenho Individual","Comunicado DDPE/G-04, de 22/06/2012 => DOE: 27/06/2012","Avaliar",null,"Verificar se verba compõe a base prividenciária"]
[4212,"Gratificação Pelo Desempenho E Apoio Às Atividades Periciais E De Assistência À Saúde","Comunicado DDPE/G-04, de 22/06/2012 => DOE: 27/06/2012","Avaliar",null,"Verificar se verba compõe a base prividenciária"]
[4213,"Gratificação Especial De Suporte À Saúde","Comunicado DDPE/G-04, de 22/06/2012 => DOE: 27/06/2012","Avaliar",null,"Verificar se verba compõe a base prividenciária"]
[4214,"Gratificação De Preceptoria","Comunicado DDPE/G-04, de 22/06/2012 => DOE: 27/06/2012","Não Acatar"]
[4215,"Prêmio De Incentivo À Qualidade Previdenciária ","Comunicado DDPE/G-04, de 22/06/2012 => DOE: 27/06/2012","Avaliar",null,"Verificar se verba compõe a base prividenciária"]
[4216,"Gratificação De Dedicação Plena E Integral","Comunicado DDPE/G-04, de 22/06/2012 => DOE: 27/06/2012","Avaliar",null,"Verificar se verba compõe a base prividenciária"]
[4217,"Prêmio De Desempenho Individual Incorporado – PDI Inativo ","Comunicado DDP/G-003, de 27/10/2014 => DOE: 29/10/2014","Acatar"]
[4218,"Bonificação  Por Resultado- LC1104/2010","Comunicado DDP/G-003, de 27/10/2014 => DOE: 29/10/2014","Não Acatar"]
[4219,"Bonificação De Resultado Conjunta CC-SEP SP - LC 1104/2010","Comunicado DDP/G-003, de 27/10/2014 => DOE: 29/10/2014","Não Acatar"]
[4220,"Bonificação Por Resultado Adicional Artigo 12 § 4º - LC 1104/10","Comunicado DDP/G-003, de 27/10/2014 => DOE: 29/10/2014","Não Acatar"]
[4221,"Gratificação Do Registo Mercantil - GRM - LC 1187/2012","Comunicado DDP/G-003, de 27/10/2014 => DOE: 29/10/2014","Avaliar","LC 1187/2012","Verificar se verba compõe a base prividenciária"]
[4222,"Premio De Produtividade Médica-LC 1193/13 Combinado Artigo 5 L.8975/94","Comunicado DDP/G-003, de 27/10/2014 => DOE: 29/10/2014","Não Acatar"]
[4223,"Premio Produtividade Medica Ppm-LC 1193/2013","Comunicado DDP/G-003, de 27/10/2014 => DOE: 29/10/2014","Não Acatar"]
[4224,"Gratificação Por Regime De Dedicação Integral-GRDI","Comunicado DDP/G-003, de 27/10/2014 => DOE: 29/10/2014","Avaliar",null,"Verificar se verba compõe a base prividenciária"]
[4225,"Gratificação De Atividade Pedagógica - Gap","Comunicado DDP/G-003, de 27/10/2014 => DOE: 29/10/2014","Avaliar",null,"Verificar se verba compõe a base prividenciária"]
[4226,"Gratificação Pelo Desempenho De Atividades No Detran-SP","Comunicado DDP/G-003, de 27/10/2014 => DOE: 29/10/2014","Avaliar",null,"Verificar se verba compõe a base prividenciária"]
[4227,"Bonificação Por Resultados LC 1079/08 Seplan","Comunicado DDP/G-003, de 27/10/2014 => DOE: 29/10/2014","Não Acatar"]
[4228,"Bonificação Por Resultado Resolução Conjunta Sf-Sep-6/09-Seplan","Comunicado DDP/G-003, de 27/10/2014 => DOE: 29/10/2014","Não Acatar"]
[4229,"Gratificação De Função Coordenador / Vice-Diretor - LC 1018/2007 - Inativo","Comunicado DDP/G-003, de 27/10/2014 => DOE: 29/10/2014","Não Acatar"]
[4230,"Gratificação De Desempenho E Apoio Às Atividades Periciais E De Assistência a Saúde—Gdapas -LC 1018/2007 - Inativo ","Comunicado DDP/G-003, de 27/10/2014 => DOE: 29/10/2014","Não Acatar"]
[4231,"Bonificação De Resultado - Adicional Artigo 9 Paragrafo 4 - LC 1079/2008-Seplan","Comunicado DDP/G-003, de 27/10/2014 => DOE: 29/10/2014","Não Acatar"]
[4232,"Gratificação Especial De Suporte À Saúde - Gess - Inativo ","Comunicado DDP/G-003, de 27/10/2014 => DOE: 29/10/2014","Avaliar",null,"Verificar se verba compõe a base prividenciária"]
[4233,"Gratificação Pró-Labore Gerente De Organização Escolar - Inativo ","Comunicado DDP/G-003, de 27/10/2014 => DOE: 29/10/2014","Não Acatar"]
[4234,"Premio De Produtividade Médica - PPM LC 1193/2013  - Inativo","Comunicado DDP/G-003, de 27/10/2014 => DOE: 29/10/2014","Não Acatar"]
[4235,"Bonificação De Resultados LC 1079/08-Quadro Detran ","Comunicado DDP/G-003, de 27/10/2014 => DOE: 29/10/2014","Não Acatar"]
[4236,"Gratificação Especial Estrada De Ferro Campos Do Jordão-LC 1211/13","Comunicado DDP/G-003, de 27/10/2014 => DOE: 29/10/2014","Acatar"]
[4237,"Adicional Por Direção Da Atividade De Policia Judiciaria - ADPI","Comunicado DDP/G-003, de 27/10/2014 => DOE: 29/10/2014","Acatar"]
[4238,"Prêmio Incentivo À Produtividade - Prêmio De Incentivo A Produtividade - LC 1211/2013","Comunicado DDP/G-003, de 27/10/2014 => DOE: 29/10/2014","Não Acatar"]
[4239,"Bonificação Por Resultado - LC 1245/2014","Comunicado DDP/G-003, de 27/10/2014 => DOE: 29/10/2014","Não Acatar"]
[4240,"Bonificação Por Resultado Adicional Artigo 8º Parágrafo 2 - LC 1245/14 ","Comunicado DDP/G-003, de 27/10/2014 => DOE: 29/10/2014","Não Acatar"]
[4241,"Regime Especial De Trabalho Policial Sobre Incorporação Hora-Aula – Artigo 2º DDTT LC 1249/14","Comunicado DDP/G-003, de 27/10/2014 => DOE: 29/10/2014","Acatar"]
[4242,"Gratificação Atividade Pedagógica-Gap Inativo","Comunicado DDP/G-003, de 27/10/2014 => DOE: 29/10/2014","Avaliar",null,"Verificar se verba compõe a base prividenciária"]
[4243,"Gratificação Desempenho Apoio Atividade Medicopericional-Gdamp-Inativo","Comunicado DDP/G-003, de 27/10/2014 => DOE: 29/10/2014","Avaliar",null,"Verificar se verba compõe a base prividenciária"]
[4244,"Gratificação Pelo Exercício De Atividades Em Condições De Especial Dificuldade - Artigo 3º - Deliberação Nº 18/2006","Comunicado DDP/G-14, de 28/09/2016 => DOE: 29/09/2016","Avaliar","Deliberação Nº 18/2006","Verificar se verba compõe a base prividenciária"]
[4245,"Gratificação Gestão Educacional ","Comunicado DDP/G-14, de 28/09/2016 => DOE: 29/09/2016","Avaliar",null,"Verificar se verba compõe a base prividenciária"]
[4246,"Gratificação Atividade Delegada ","Comunicado DDP/G-14, de 28/09/2016 => DOE: 29/09/2016","Avaliar",null,"Verificar se verba compõe a base prividenciária"]
[4247,"Gratificação Atividade Delegada - Serviço De Atendimento Móvel De Urgência","Comunicado DDP/G-14, de 28/09/2016 => DOE: 29/09/2016","Avaliar",null,"Verificar se verba compõe a base prividenciária"]
[4248,"Gratificação Dedicação Plena Integral- Inativo","Comunicado DDP/G-14, de 28/09/2016 => DOE: 29/09/2016","Acatar"]
[4249,"Gratificação Regime Dedicação Integral- Inativo","Comunicado DDP/G-14, de 28/09/2016 => DOE: 29/09/2016","Acatar"]
[4250,"Gratificação Gestão Educacional- Inativo","Comunicado DDP/G-14, de 28/09/2016 => DOE: 29/09/2016","Acatar"]
[4251,"Premio de Incentivo Especial- Inativo","Comunicado DDP/G-14, de 28/09/2016 => DOE: 29/09/2016","Acatar"]
[4252,"Gratificação Pelo Desempenho De Atividades No Departamento Estadual De Transito De São Paulo-Inativo ","Comunicado DDP/G-14, de 28/09/2016 => DOE: 29/09/2016","Avaliar",null,"Verificar se verba compõe a base prividenciária"]
[4253,"Gratificação Do Registro Mercantil - Grm - INATIVO - LC 1187/2012","Comunicado DDP/G-03, de 14/06/2018 => DOE: 15/06/2018","Avaliar","LC 1187/2012","Para os atuais servidores que vierem a se aposentar com fundamento nos artigos 3º e 6º da Emenda à Constituição Federal nº 41, de 19 de dezembro de 2003, e no artigo 3º da Emenda à Constituição Federal nº 47, de 5 de julho de 2005, a GRM será computada no cálculo dos proventos, por ocasião da aposentadoria, à razão de 1/30 (um trinta avos) por ano de percebimento."]
[4254,"Ajuda De Custo - Juiz ","Comunicado DDP/G-03, de 14/06/2018 => DOE: 15/06/2018","Não Acatar"]
[4255,"Ajuda De Custo - Representante Fiscal     ","Comunicado DDP/G-03, de 14/06/2018 => DOE: 15/06/2018","Não Acatar"]
[4256,"Antecipação Média Férias - Adicional Noturno","Comunicado DDP/G-03, de 14/06/2018 => DOE: 15/06/2018","Não Acatar"]
[4257,"Prêmio de Incentivo à Qualidade - LC 1.352/2019 - Inativo","Comunicado DDP/G-05, de 03/07/2020 => DOE: 04/07/2020","Avaliar","“Artigo 5º-A - Até que seja submetido ao primeiro processo avaliatório específico a que se refere o artigo 4º desta lei complementar, ao servidor que ingressar ou passar a ter exercício na Secretaria da Fazenda e Planejamento, fica assegurada a percepção do Prêmio de Incentivo à Qualidade - PIQ com base na média da Secretaria da Fazenda e Planejamento.“Artigo 9º - Para os atuais servidores que vierem a se aposentar com fundamento nos artigos 3º e 6º da Emenda Constitucional nº 41, de 19 de dezembro de 2003, e no artigo 3º da Emenda Constitucional nº 47, de 5 de julho de 2005, o Prêmio de Incentivo à Qualidade - PIQ, será computado no cálculo dos proventos à razão de 1/30 (um trinta avos), por ano de recebimento.\n§ 1º - Considera-se ano de recebimento, para os fins do disposto neste artigo, o período de 365 (trezentos e sessenta e cinco) dias, contínuos ou não.\n§ 2º - A apuração do valor do PIQ no cálculo dos proventos, na conformidade do “caput” deste artigo, considerará a média dos percentuais obtidos ou atribuídos ao servidor nas avaliações de desempenho relativas aos períodos avaliatórios imediatamente anteriores à aposentadoria, até o limite de 30 (trinta) anos.“Artigo 11 - Para os atuais servidores que vierem a se aposentar a partir da data de vigência desta lei complementar, com direito a proventos calculados com base na remuneração do cargo efetivo ou função-atividade em que se der a aposentadoria, o PIPQ será computado no respectivo cálculo à razão de 1/30 (um trinta avos), por ano de recebimento.","LC 1.352/2019"]
[4258,"Prêmio de Incentivo à Produtividade e Qualidade - LC 1352/2019 - Inativo","Comunicado DDP/G-05, de 03/07/2020 => DOE: 04/07/2020","Acatar"]
[4259,"Grat. Dedicação Exclusiva - GDE",null,"Não Acatar",null,"SEM OBSERVAÇÕES "]
[4729,"Gratificação De Função Carreira",null,"Não Acatar"]
[4730,"Gratificação Carreira Incorp",null,"Acatar"]
[4732,"Gratif Direção Gradi Incorp",null,"Acatar"]
[5001,"Gratificação De Representação Incorporada","Comunicado DDP/G-05, de 31/01/1994 => DOE: 01/02/1994","Acatar"]
[5002,"Gratificação De Representação Incorporada - Outros Poderes","Comunicado DDP/G-05, de 31/01/1994 => DOE: 01/02/1994","Acatar"]
[5003,"Gratificação De Representação Incorporada – Exercício Outros Estados","Comunicado DDP/G-05, de 02/02/1995 => DOE: 03/02/1995","Acatar"]
[5004,"Gratificação De Representação Incorporada – Função Confiança Do Governador","Comunicado DDP/G-42, de 20/08/1996 => DOE: 23/08/1996","Acatar"]
[5005,"Gratificação De Representação","Comunicado DDP/G-42, de 20/08/1996 => DOE: 23/08/1996","Não Acatar"]
[5006,"Gratificação De Representação - Diferença Outros Órgãos","Comunicado DDP/G-42, de 20/08/1996 => DOE: 23/08/1996","Não Acatar"]
[5007,"Gratificação De Representação – Exercício Outros Estados","Comunicado DDP/G-46, de 19/09/1996 => DOE: 20/09/1996","Não Acatar"]
[5008,"Gratificação De Representação - Função Confiança Do Governador","Comunicado DDPE/G-13, de 14/05/2007 => DOE: 15/05/2007","Não Acatar"]
[5009,"Gratificação Casa Militar Gabinete Do Governador","Comunicado DDPE/G-13, de 14/05/2007 => DOE: 15/05/2007","Não Acatar"]
[5010,"Representação Governador","Comunicado DDPE/G-13, de 14/05/2007 => DOE: 15/05/2007","Não Acatar"]
[5011,"Representação Vice Governador","Comunicado DDPE/G-13, de 14/05/2007 => DOE: 15/05/2007","Não Acatar"]
[5012,"Gratificação De Representação – Incorporada – Resolução CC 97/82","Comunicado DDPE/G-13, de 14/05/2007 => DOE: 15/05/2007","Acatar"]
[5013,"Gratificação De Representação Casa Militar Gabinete Do Governador Incorporada","Comunicado DDP/G-05, de 31/01/1994 => DOE: 01/02/1994","Acatar"]
[5014,"Gratificação Representação Incorporada - LC 813/96","Comunicado DDP/G-05, de 31/01/1994 => DOE: 01/02/1994","Acatar"]
[5015,"Gratificação Representação Exercício Outros Estados Incorporada - LC 813/96","Comunicado DDP/G-05, de 31/01/1994 => DOE: 01/02/1994","Acatar"]
[5016,"Gratificação Representação Função Confiança Governador Incorporada - LC 813/96","Comunicado DDP/G-05, de 31/01/1994 => DOE: 01/02/1994","Acatar"]
[5017,"Gratificação Representação Outros Poderes Incorporada - LC 813/96","Comunicado DDP/G-05, de 31/01/1994 => DOE: 01/02/1994","Acatar"]
[5018,"Gratificação De Representação Incorporada Quadro Especial","Comunicado DDP/G-05, de 31/01/1994 => DOE: 01/02/1994","Acatar"]
[5019,"Gratificação De Representação Decreto Nº 51.119/2006- Procurador","Comunicado DDP/G-05, de 31/01/1994 => DOE: 01/02/1994","Não Acatar"]
[5020,"Gratificação De Representação Decreto Nº 51.119/2006 - Nível Superior","Comunicado DDP/G-05, de 31/01/1994 => DOE: 01/02/1994","Não Acatar"]
[5021,"Gratificação De Representação Decreto Nº 51.119/2006 - Nível Médio","Comunicado DDP/G-05, de 31/01/1994 => DOE: 01/02/1994","Não Acatar"]
[5022,"Gratificação De Representação Do Presidente Do Conselho Estadual De Educação","Comunicado DDP/G-05, de 31/01/1994 => DOE: 01/02/1994","Avaliar",null,"Verificar se verba compõe a base prividenciária"]
[5023,"Gratificação De Representação Decreto 51119/06 - Procurador Incorporada","Comunicado DDPE/G-04, de 22/06/2012 => DOE: 27/06/2012","Acatar"]
[5024,"Gratificação De Representação Decreto 51119/06 – Nível Superior Incorporada","Comunicado DDPE/G-04, de 22/06/2012 => DOE: 27/06/2012","Acatar"]
[5025,"Gratificação De Representação Decreto 51119/06 – Nível Médio Incorporada","Comunicado DDPE/G-04, de 22/06/2012 => DOE: 27/06/2012","Acatar"]
[5026,"Gratificação De Representação Incorporada – Assembleia Legislativa ","Comunicado DDPE/G-04, de 22/06/2012 => DOE: 27/06/2012","Acatar"]
[6001,"Quotas Fixas - Artigo 5º  § 1º Lei Complementar 567/88","Comunicado DDP/G-05, de 31/01/1994 => DOE: 01/02/1994","Avaliar","Artigo 5º - A remuneração do Agente Fiscal de Rendas compreende:                         § 1º - A quantidade de quotas fixas de cada nível, a que se refere o inciso I, é constituída das quotas já incorporadas ou integradas à remuneração do Agente Fiscal de Rendas, a qualquer título.\n§ 2º - Sempre que a quantidade de quotas já incorporada ou integrada à remuneração do Agente Fiscal de Rendas, a qualquer título, for inferior à correspondente ao nível em que estiver enquadrado, ser-lhe-ão atribuídas quotas fixas em quantidade igual à diferença existente.\n§ 3º - Se a quantidade de quotas já incorporada ou integrada à remuneração do Agente Fiscal de Rendas for superior à correspondente ao nível, a quantidade excedente será atribuída e percebida a título de prêmio de produtividade.\n§ 4º - Não possuindo o Agente Fiscal de Rendas quotas incorporadas ou integradas à sua remuneração serão atribuídas quotas fixas em quantidade igual à correspondente ao nível em que estiver enquadrado.","Verificar se verba compõe a base prividenciária"]
[6002,"Quotas Fixas Nível – Agente Fiscal De Rendas - Ativo","Comunicado DDP/G-05, de 31/01/1994 => DOE: 01/02/1994","Avaliar","I - como parte fixa, o valor-base, conforme o nível em que estiver enquadrado, constante da Tabela do Anexo I, acrescido do valor da quantidade de quotas fixas correspondente, observado o disposto nos §§ 1º a 4º, a saber:","Verificar se verba compõe a base prividenciária"]
[6003,"Prêmio De Produtividade Artigo 5 / 3 – LC 567/88","Comunicado DDP/G-05, de 31/01/1994 => DOE: 01/02/1994","Acatar"]
[6004,"Quotas Fixas Nível – Agente Fiscal De Rendas - Inativo","Comunicado DDP/G-05, de 31/01/1994 => DOE: 01/02/1994","Acatar"]
[6005,"Quotas Fixas Complementar - Inativo","Comunicado DDP/G-05, de 31/01/1994 => DOE: 01/02/1994","Acatar"]
[6006,"Quotas Vantagem Pessoal - Inativo","Comunicado DDP/G-05, de 31/01/1994 => DOE: 01/02/1994","Acatar"]
[6007,"Prêmio De Produtividade Artigo 5 / 3 – LC 567/88 - Inativo","Comunicado DDP/G-05, de 31/01/1994 => DOE: 01/02/1994","Acatar"]
[6008,"Prêmio De Produtividade Função Externa","Comunicado DDP/G-05, de 31/01/1994 => DOE: 01/02/1994","Não Acatar"]
[6009,"Prêmio De Produtividade Função Interna","Comunicado DDP/G-05, de 31/01/1994 => DOE: 01/02/1994","Não Acatar"]
[6010,"Quotas Afastamento - Agente Fiscal De Rendas","Comunicado DDP/G-05, de 31/01/1994 => DOE: 01/02/1994","Não Acatar"]
[6011,"Prêmio De Produtividade Incorporada - Inativo","Comunicado DDP/G-12, de 24/05/2001 => DOE: 26/05/2001","Acatar"]
[6012,"Prêmio De Produtividade Incorporada – Função Interna - Inativo","Comunicado DDP/G-12, de 06/05/2004 => DOE: 11/05/2004","Acatar"]
[6013,"Prêmio De Produtividade Função Interna – Designação – Agente Fiscal De Rendas","Comunicado DDP/G-05, de 31/01/1994 => DOE: 01/02/1994","Não Acatar"]
[6014,"Gratificação Especial De Incremento À Arrecadação – Prêmio De Produtividade Função Externa","Comunicado DDP/G-05, de 31/01/1994 => DOE: 01/02/1994","Avaliar",null,"Verificar se verba compõe a base prividenciária"]
[6015,"Gratificação Especial De Incremento À Arrecadação – Prêmio De Produtividade Função Interna/Afastamento","Comunicado DDP/G-05, de 31/01/1994 => DOE: 01/02/1994","Avaliar",null,"Verificar se verba compõe a base prividenciária"]
[6016,"Gratificação Especial De Incremento À Arrecadação - Inativo","Comunicado DDP/G-05, de 31/01/1994 => DOE: 01/02/1994","Acatar"]
[6017,"Quotas – Excesso – Artigo 7 – LC 567/88","Comunicado DDP/G-05, de 31/01/1994 => DOE: 01/02/1994","Não Acatar"]
[6018,"Quotas – Reserva Anual – Artigo 7 – LC 567/88","Comunicado DDP/G-05, de 31/01/1994 => DOE: 01/02/1994","Avaliar","LC 567/88","§ 5º - O rateio da reserva anual de quotas prevista no item 2 do § 3º não alcança os Agentes Fiscais de Rendas aposentados                                                                                  § 3º - O excesso de quantidade de quotas apurado em cada semestre terá a seguinte destinação:\n2 - o restante, constituído da reserva anual de quotas, destina-se a rateio simples pelos Agentes Fiscais de Rendas em atividade no último dia do exercício de referência, inclusive os abrangidos por afastamento que a legislação considere como de efetivo exercício, e será pago no mês de março do ano seguinte ao de sua formação."]
[6019,"Verba Indenizatória – Agente Fiscal De Rendas – LC 567/88","Comunicado DDP/G-05, de 31/01/1994 => DOE: 01/02/1994","Não Acatar"]
[6020,"Quotas Fixas – Diferença Lei De Guerra","Comunicado DDP/G-05, de 31/01/1994 => DOE: 01/02/1994","Avaliar","Lei  De Guerra","Verificar se verba compõe a base prividenciária"]
[6021,"Quotas - Reserva Anual - LC 887/2000","Comunicado DDP/G-05, de 31/01/1994 => DOE: 01/02/1994","Não Acatar"]
[6022,"Aplicação E.C 41/2003 – Combinado Liminar Tribunal De Justiça","Comunicado DDP/G-05, de 02/02/1995 => DOE: 03/02/1995","Avaliar",null,"Verificar se verba compõe a base prividenciária"]
[6023,"Vantagem Pessoal – LC 1059/2008 – Agente Fiscal De Rendas","Comunicado DDPE/G-04, de 22/06/2012 => DOE: 27/06/2012","Avaliar","LC 1059/2008 – Agente Fiscal De Rendas","Verificar se verba compõe a base prividenciária"]
[6024,"Participação Nos Resultados – LC 1059/2008 – Agente Fiscal De Rendas","Comunicado DDPE/G-04, de 22/06/2012 => DOE: 27/06/2012","Não Acatar"]
[6025,"Participação Nos Resultados – LC 1059/2008 – Agente Fiscal De Rendas – Inativo","Comunicado DDPE/G-04, de 22/06/2012 => DOE: 27/06/2012","Não Acatar"]
[6026,"Participação Nos Resultados - Diferença Artigo 4 / SF 56/2008 ","Comunicado DDPE/G-04, de 22/06/2012 => DOE: 27/06/2012","Não Acatar"]
[6027,"Participação Nos Resultados – Diferença Artigo 4 / SF 56/2008 – Inativo","Comunicado DDPE/G-04, de 22/06/2012 => DOE: 27/06/2012","Não Acatar"]
[6028,"Participação Nos Resultados - Adicional – Artigo 33 § 3 - LC 1059/2008","Comunicado DDPE/G-04, de 22/06/2012 => DOE: 27/06/2012","Não Acatar"]
[6029,"Participação Nos Resultados -  Adicional – Artigo 33 § 3 – LC 1059/2008 – Inativo","Comunicado DDPE/G-04, de 22/06/2012 => DOE: 27/06/2012","Não Acatar"]
[7001,"Diferença De Vencimento Artigo 8 – Disposições Transitórias – LC 540/88","Comunicado DDP/G-05, de 02/02/1995 => DOE: 03/02/1995","Não Acatar"]
[7002,"Diferença De Vencimento Artigo 4 – Disposições Transitórias – LC 548/88","Comunicado DDP/G-05, de 02/02/1995 => DOE: 03/02/1995","Não Acatar"]
[7003,"Vantagem Pessoal – Quadro Magistério – LC 645/89","Comunicado DDP/G-05, de 02/02/1995 => DOE: 03/02/1995","Não Acatar"]
[7004,"Parcela Suplementar Nominal – Artigo 14 – Disposições Transitórias – LC 674/92","Comunicado DDP/G-07, de 11/02/1998 => DOE: 12/02/1998","Não Acatar"]
[7005,"Vantagem Pessoal – Carreira Policial – LC 675/92","Comunicado DDP/G-43, de 04/11/1998 => DOE: 06/11/1998","Não Acatar"]
[7006,"Vantagem Pessoal – Agente De Segurança Penitenciária – LC 681/92","Comunicado DDP/G-08, de 11/04/2000 => DOE: 13/04/2000","Não Acatar"]
[7007,"Vantagem Pessoal – Artigo 4 – Disposições Transitórias – LC 700/92","Comunicado DDP/G-12, de 24/05/2001 => DOE: 26/05/2001","Não Acatar"]
[7008,"Vantagem Pessoal – LC 712/93","Comunicado DDP/G-07, de 31/01/2002 => DOE: 02/02/2002","Não Acatar"]
[7009,"Vantagem Pessoal - LC 731/93","Comunicado DDP/G-07, de 31/01/2002 => DOE: 02/02/2002","Não Acatar"]
[7010,"Vantagem Pessoal-Enquadramentos ","Comunicado DDP/G-15, de 30/09/2016 => DOE: 01/10/2016","Avaliar",null,"Verificar se verba compõe a base prividenciária"]
[7011,"Vantagem Pessoal – LC 1059/2008 – Agente Fiscal De Rendas","Comunicado DDP/G-07, de 31/01/2002 => DOE: 02/02/2002","Avaliar","LC 547/88","Verificar se verba compõe a base prividenciária"]
[7012,"Lei Complementar 418/85 - Acréscimo 20% - Polícia Militar     ","Comunicado DDP/G-15, de 30/09/2016 => DOE: 01/10/2016","Avaliar","Lei  Complementar 418/85 - Acréscimo 20% - Polícia Militar     ","Dispõe sobre promoção, ao posto ou graduação imediatamente superior, de policiais militares com pelo menos 30 anos de serviço Artigo 1.º - O componente do serviço ativo da Polícia Militar do Estado de São Paulo fará jus, a pedido, à promoção ao posto ou graduação imediatamente superior, deste que conte, pelo menos, 30 (trinta) anos de serviço. § 1.º - A promoção prevista neste artigo far-se-á independente de vaga, interstício ou habilitação em cursos, ainda que inexista, no Quadro ou Qualificação à qual pertença o policial militar, posto ou graduação imediatamente superior.\n§ 2.º - Para os fins deste artigo, por posto imediatamente superior ao posto de Subtenente entende-se o de 2.º Tenente. § 3.º - O disposto neste artigo não se aplica ao Coronel PM. Artigo 2.º - O Coronel PM fará jus, a pedido, a acréscimo de valor correspondente a 20% (vinte por cento) do padrão de vencimentos, deste que conte, pelo menos, 30 (trinta) anos de serviço e 18 (dezoito) meses no posto.\n§ 1.º - Incidirão sobre o acréscimo de que trata este artigo as vantagens pecuniárias previstas na legislação aplicável aos componentes da Polícia Militar do Estado de São Paulo.\n§ 2.º - O benefício previsto neste artigo aplicar-se-á também ao Coronel PM que, tendo completado 5 (cinco) anos nesse posto, vier a ser, ao atingir 30 (trinta) anos de serviço, alcançado pela disposição do inciso IX do artigo 18 do Decreto-lei nº 260, de 29 de maio de 1970, acrescentado pela Lei nº 3.404, de 16 de junho de 1982."]
[7013,"Diferença De Vencimentos Artigo 15 - Lei 546/88","Comunicado DDP/G-07, de 31/01/2002 => DOE: 02/02/2002","Avaliar","Lei  546/88","Artigo 15 - Os policiais militares que, por força da opção aludida no artigo 9.º, não obtiverem reajustes equivalente ao de que tratam os incisos I e II deste artigo, terão a ele acrescida a diferença necessária para atingir o respectivo valor, a saber:\nI - para os que percebem, retribuição global mensal igual ou inferior a Cz$ 50.000,00 (cinqüenta mil cruzados), o reajuste será de 70% (setenta por cento) sobre a respectiva retribuição global mensal;\nII - para os que percebem retribuição global mensal superior a Cz$ 50.000,00 (cinqüenta mil cruzados), o reajuste será de 70% (setenta por cento) sobre essa importância de Cz$ 50.000,00 (cinqüenta mil cruzados).\nParágrafo único - A diferença será paga em código separado (vetado).  (COMPÕEM A PREVIDÊNICA?!)"]
[7014,"Diferença De Vencimentos Artigo 3 - Lei 2054/52     ","Comunicado DDP/G-15, de 30/09/2016 => DOE: 01/10/2016","Avaliar","Lei  2054/52     ","Artigo 3º - Os coronéis que forem transferidos para a reserva ou reformados, nas condições previstas nesta lei, terão os vencimentos acrescidos da diferença de proventos existente entre o seu posto e o de tenente-coronel."]
[7015,"Diferença De Vencimentos Artigo 4 - Lei 3568/56     ","Comunicado DDP/G-15, de 30/09/2016 => DOE: 01/10/2016","Avaliar","Lei  3568/56     ","Artigo 4.º - Aos Coronéis da Fórça Pública e aos Inspetores Chefes de Agrupamentos da Guarda Civil, que se enquadrem nas disposições desta lei, fica assegurada a percepção da diferença de vencimentos que existe entre esses postos e classes, e as imediatamente inferiores."]
[7016,"Diferença De Vencimentos Artigo 3 - Lei 920/50         ","Comunicado DDP/G-15, de 30/09/2016 => DOE: 01/10/2016","Avaliar","Lei  920/50         ","Artigo 3.º - Os inspetores chefes de agrupamento que se aposentarem nas condições do dispositivo referido no artigo anterior, e os já aposentados durante a sua vigência, terao seus proventos acrescidos da diferença de vencimentos existente entre os cargos de inspetor chefe de agrupamento e os de inspetor chefe de divisão."]
[7017,"Aplicação E.C 41/2003 – Combinado Liminar Tribunal De Justiça","Comunicado DDP/G-15, de 30/09/2016 => DOE: 01/10/2016","Avaliar",null,"Verificar se verba compõe a base prividenciária"]
[7018,"Diferença De Vencimentos Artigo 3 -Lei 8253/64        ","Comunicado DDP/G-15, de 30/09/2016 => DOE: 01/10/2016","Avaliar","Lei  8253/64        ","Artigo 1º - Os oficiais e praças da Fôrça Pública e os integrantes da Guarda Civil, que forem julgados incapazes para o serviço da respectiva corporação por motivo de hemiplegia, paraplegia, alienação mental, surdez completa, cegueira total ou iminente, lepra, tuberculose, ozêna, pênfigo foliáceo, neoplasia maligna, cardiopatia grave ou de outra moléstia que invalide o servidor para a vida civil e militar, terão direito à reforma ou aposentadoria no pôsto ou graduação imediatamente superior, qualquer que seja o tempo de serviço.\nArtigo 2º - O coronel que se reformar nas condições do artigo anterior terá acrescida aos proventos da reforma importância equivalente à diferença de vencimentos existente entre os de seu pôsto e os de Tenente Coronel.\nArtigo 3º - O inspetor-chefe superintendente que se aposentar nas condições do artigo 1º terá os proventos da aposentadoria acrescidos da diferenca de vencimentos existente entre os do cargo de que era titular e os de Inspetor Chefe de Agrupamento.\nArtigo 4º - O disposto nesta lei aplica-se aos inativos da Fôrça Pública e da Guarda Civil reformados ou aposentados nas mesmas condições."]
[7019,"Diferença De Vencimentos - Lei 16058/46             ","Comunicado DDP/G-15, de 30/09/2016 => DOE: 01/10/2016","Acatar"]
[7020,"Diferença De Vencimentos Artigo 29 - ADCT – Constituição Estadual/89","Comunicado DDP/G-07, de 31/01/2002 => DOE: 02/02/2002","Acatar"]
[7021,"Diferença De Vencimentos Artigo 30 ADCT- Constituição Estadual/89","Comunicado DDP/G-07, de 31/01/2002 => DOE: 02/02/2002","Avaliar",null,"Verificar se verba compõe a base prividenciária"]
[7022,"Vantagem Pessoal – Quadro Magistério - LC 836/97","Comunicado DDP/G-07, de 31/01/2002 => DOE: 02/02/2002","Avaliar","LC 836/97","Verificar se verba compõe a base prividenciária"]
[7023,"Vantagem Pessoal Quadro Do Magistério LC 836/97","Comunicado DDP/G-07, de 31/01/2002 => DOE: 02/02/2002","Avaliar","LC 836/97","Verificar se verba compõe a base prividenciária"]
[7024,"Diferença De Vencimento - Artigo 50 LC's 207/79 - 765/94","Comunicado DDP/G-07, de 31/01/2002 => DOE: 02/02/2002","Acatar"]
[7025,"Vantagem Pessoal – Quadro De Apoio Escolar","Comunicado DDPE/G-15, de 04/07/2006 => DOE: 29/07/2006 ","Avaliar",null,"Verificar se verba compõe a base prividenciária"]
[7026,"Diferença - Lei 4.937/85 / CBPM","Comunicado DDP/G-05, de 31/01/1994 => DOE: 01/02/1994","Acatar"]
[7027,"Diferença - Lei 5.455/86 / CBPM","Comunicado DDP/G-05, de 31/01/1994 => DOE: 01/02/1994","Avaliar","Lei  5.455/86 / CBPM","Artigo 1.º - Os (vetado) 2.ºs Sargentos, 3.ºs Sargentos, (vetado) reformados a pedido, em virtude de invalidez ou por haverem atingido a idade limite para a permanência no serviço ativo, que em 9 de abril de 1970 se encontrassem no serviço ativo, terão seus títulos apostilados, respectivamente, no posto de 2.º Tenente (vetado).\n§ 1.º - Excluem-se da disposição deste artigo aqueles que já tenham sido beneficiados pelas Leis n. 866, de 12 de dezembro de 1975, 2.607, de 10 de dezembro de 1980, 4.794, de 24 de outubro de 1985, 4.937, de 23 de dezembro de 1985, bem como pela Lei Complementar n. 316, de 28 de fevereiro de 1983.\n§ 2.º - O integrante da Polícia Militar do Estado de São Paulo, a quem houver sido concedida a promoção de que trata o Artigo 1.º da Lei Complementar n. 418, de 24 de outubro de 1985, poderá mediante expressa renúncia a esse benefício, optar pela aplicação do disposto neste artigo.\nArtigo 2.º - Aos pensionistas dos policiais militares que, por ocasião do óbito se encontrassem na situação descrita no artigo anterior, estender-se-á o benefício ali previsto.\nArtigo 3.º - Os direitos estabelecidos nesta lei serão concedidos \"ex-officio\" por ato:\nI - do Comandante Geral da Polícia Militar quanto ao apostilamento;\nII - do Superintendente da Caixa Beneficente da Polícia Militar quanto à revisão das pensões"]
[7028,"Diferença - Lei 6.471/89 / CBPM","Comunicado DDP/G-05, de 31/01/1994 => DOE: 01/02/1994","Acatar"]
[7029,"Diferença - Leis-6.471/89 E 6.990/90/ CBPM","Comunicado DDP/G-05, de 31/01/1994 => DOE: 01/02/1994","Acatar"]
[7030,"Diferença - Lei 452/74 / CBPM","Comunicado DDP/G-05, de 31/01/1994 => DOE: 01/02/1994","Acatar"]
[7031,"Diferença - Lei 1.684/52 / CBPM","Comunicado DDP/G-05, de 31/01/1994 => DOE: 01/02/1994","Acatar"]
[7032,"Diferença - Lei 5.135/59 / CBPM","Comunicado DDP/G-05, de 31/01/1994 => DOE: 01/02/1994","Acatar"]
[7033,"Diferença - Artigo 40 – Constituição Federal / CBPM","Comunicado DDP/G-05, de 31/01/1994 => DOE: 01/02/1994","Acatar"]
[7034,"Diferença - Artigo 4 - LC 316/83 / CBPM","Comunicado DDP/G-05, de 31/01/1994 => DOE: 01/02/1994","Acatar"]
[7035,"Vantagem Pessoal Lei Complementar 988/2006","Comunicado DDP/G-05, de 31/01/1994 => DOE: 01/02/1994","Acatar"]
[7036,"Vantagem Pessoal - LC 1080/2008","Comunicado DDPE/G-04, de 22/06/2012 => DOE: 27/06/2012","Avaliar","LC 1080/2008","Verificar se verba compõe a base prividenciária"]
[7037,"Vantagem Pessoal - LC 1122/2010","Comunicado DDPE/G-04, de 22/06/2012 => DOE: 27/06/2012","Avaliar","LC 1122/2010","Verificar se verba compõe a base prividenciária"]
[7038,"Vantagem Pessoal - LC 1103/2010","Comunicado DDPE/G-04, de 22/06/2012 => DOE: 27/06/2012","Avaliar","LC 1103/2010","Verificar se verba compõe a base prividenciária"]
[7039,"Vantagem Pessoal - Inciso XV Artigo 37 Constituição Federal","Comunicado DDPE/G-04, de 22/06/2012 => DOE: 27/06/2012","Avaliar","CONSTITUIÇÃO DA REPÚBLICA FEDERATIVA DO BRASIL DE 1988","Verificar se verba compõe a base prividenciária"]
[7040,"Vantagem Pessoal - Quadro Do Magistério - LC 1097/2009","Comunicado DDPE/G-04, de 22/06/2012 => DOE: 27/06/2012","Avaliar","LC 1097/2009","Verificar se verba compõe a base prividenciária"]
[7041,"Vantagem Pessoal - Quadro De Apoio Escolar - LC 1144/2011","Comunicado DDPE/G-04, de 22/06/2012 => DOE: 27/06/2012","Avaliar","LC 1144/2011","Verificar se verba compõe a base prividenciária"]
[7042,"Vantagem  20% Do Padrão Do Coronel Da Polícia Militar - LC 1150/2011 ","Comunicado DDPE/G-04, de 22/06/2012 => DOE: 27/06/2012","Avaliar","LC 1150/2011 ","Artigo 3º - O Coronel PM fará jus ao acréscimo de valor correspondente a 20% (vinte por cento) do padrão de vencimento, desde que conte, pelo menos, 30 (trinta) anos de serviço e 2 (dois) anos no posto.  Verificar se verba compõe a base prividenciária"]
[7043,"Vantagem  20% Do Padrão Do Coronel Da Polícia Militar - LC 1150/2011 ","Comunicado DDPE/G-04, de 22/06/2012 => DOE: 27/06/2012","Avaliar","LC 1157/2011","Artigo 3º - O Coronel PM fará jus ao acréscimo de valor correspondente a 20% (vinte por cento) do padrão de vencimento, desde que conte, pelo menos, 30 (trinta) anos de serviço e 2 (dois) anos no posto.  Verificar se verba compõe a base prividenciária"]
[7044,"Vantagem Pessoal - LC 1157/2011 Inciso XV Artigo 37 Da Constituição Federal 1988","Comunicado DDPE/G-04, de 22/06/2012 => DOE: 27/06/2012","Avaliar","LC 1157/2011 Inciso XV Artigo 37 Da Constituição Federal 1988","Verificar se verba compõe a base prividenciária"]
[7045,"Vantagem Pessoal - LC 1193/2013","Comunicado DDP/G-003, de 27/10/2014 => DOE: 29/10/2014","Avaliar","LC 1193/2013","§ 4º - Sobre o valor da vantagem pessoal apurada nos termos do § 2º deste artigo incidirão os índices de reajuste aplicados nos vencimentos ou salários a que se refere o artigo 11 desta lei complementar."]
[7046,"VP LC 1193/13 - XV Artigo 37 CF 98","Comunicado DDP/G-003, de 27/10/2014 => DOE: 29/10/2014","Avaliar","LC 1193/13 - XV Artigo 37 CF 98","Verificar se verba compõe a base prividenciária"]
[7047,"Vantagem Pessoal - PLC 10/2013 - PM","Comunicado DDP/G-003, de 27/10/2014 => DOE: 29/10/2014","Avaliar","LC 10/2013 - PM","Verificar se verba compõe a base prividenciária"]
[7048,"Parcela De Irredutibilidade - Pensão Civil ","Comunicado DDP/G-003, de 27/10/2014 => DOE: 29/10/2014","Acatar"]
[7049,"Vantagem Pessoal - LC 1080/2008 – Inciso XV Artigo 37 CF/88","Comunicado DDP/G-003, de 27/10/2014 => DOE: 29/10/2014","Avaliar","LC 1080/2008 – Inciso XV Artigo 37 CF/88","Verificar se verba compõe a base prividenciária"]
[7050,"Vantagem Pessoal  - LC 1.322/18 – ARSESP","Comunicado DDP/G-05, de 03/07/2020 => DOE: 04/07/2020","Avaliar","LC 1.322/18 – ARSESP","Verificar se verba compõe a base prividenciária"]
[7053,"Vpni-Art.33 Lc1354/2020 Gr.Incorp",null,"Acatar"]
[7054,"Vpni- Art. 33 Lc 1354/20 Prolabore",null,"Não Acatar"]
[7055,"Vpni- Grat Função L.C 1354/2020",null,"Não Acatar"]
[7058,"Vpni-Art.33 Lc1354/2020 Grat.Incorp",null,"Acatar"]
[8001,"1/3 Férias Sobre Honorário Advocatício – Ação Judicial","Comunicado DDP/G-05, de 31/01/1994 => DOE: 01/02/1994","Não Acatar"]
[8002,"Gratificação De Risco Vida / Saúde – Ação Judicial","Comunicado DDP/G-05, de 31/01/1994 => DOE: 01/02/1994","Avaliar",null,"Verificar se verba compõe a base prividenciária"]
[8003,"Piso Tecnólogo – Ação Judicial            ","Comunicado DDP/G-15, de 30/09/2016 => DOE: 01/10/2016","Não Acatar"]
[8004,"Quilometragem - Ação Judicial            ","Comunicado DDP/G-15, de 30/09/2016 => DOE: 01/10/2016","Não Acatar"]
[8005,"Carga Suplementar Inativo – Ação Judicial","Comunicado DDP/G-24, de 06/05/1996 => DOE: 09/05/1996","Acatar"]
[8006,"Salário Complemento Engenheiro – Ação Judicial","Comunicado DDP/G-13, de 30/05/1995 => DOE: 01/06/1995","Acatar"]
[8007,"Adicional De Insalubridade – Ação Judicial","Comunicado DDP/G-13, de 30/05/1995 => DOE: 01/06/1995","Avaliar",null,"Verificar se verba compõe a base prividenciária"]
[8008,"Adicional De Insalubridade – Salário Profissional – Ação Judicial","Comunicado DDP/G-13, de 30/05/1995 => DOE: 01/06/1995","Avaliar",null,"Verificar se verba compõe a base prividenciária"]
[8009,"Vantagem Pessoal – Mandado De Segurança 1.593/90 – Ação Judicial","Comunicado DDP/G-21, de 15/08/1995 => DOE: 17/08/1995","Avaliar",null,"Verificar se verba compõe a base prividenciária"]
[8010,"Correção Monetária – Ação Judicial","Comunicado DDP/G-21, de 15/08/1995 => DOE: 17/08/1995","Não Acatar"]
[8011,"Carga Suplementar (1/63) – Ação Judicial","Comunicado DDP/G-21, de 15/08/1995 => DOE: 17/08/1995","Avaliar",null,"Verificar se verba compõe a base prividenciária"]
[8012,"Equiparação De Cargo – Ação Judicial","Comunicado DDP/G-21, de 15/08/1995 => DOE: 17/08/1995","Avaliar",null,"Verificar se verba compõe a base prividenciária"]
[8013,"Adicional De Insalubridade Sobre Substituição Administrativa- Ação Judicial            ","Comunicado DDP/G-15, de 30/09/2016 => DOE: 01/10/2016","Não Acatar"]
[8014,"Adicional De Insalubridade Sobre Padrão- Ação Judicial            ","Comunicado DDP/G-15, de 30/09/2016 => DOE: 01/10/2016","Avaliar",null,"Verificar se verba compõe a base prividenciária"]
[8015,"Regime Emprego Único- Ação Judicial            ","Comunicado DDP/G-15, de 30/09/2016 => DOE: 01/10/2016","Avaliar",null,"Verificar se verba compõe a base prividenciária"]
[8016,"Adicional Delegado De Polícia- Ação Judicial            ","Comunicado DDP/G-15, de 30/09/2016 => DOE: 01/10/2016","Avaliar",null,"Verificar se verba compõe a base prividenciária"]
[8017,"Diferença De Vencimentos Para Diretor- Ação Judicial            ","Comunicado DDP/G-15, de 30/09/2016 => DOE: 01/10/2016","Avaliar",null,"Verificar se verba compõe a base prividenciária"]
[8018,"Diferença De Vencimentos Para Técnico De Laboratório - Ação Judicial            ","Comunicado DDP/G-15, de 30/09/2016 => DOE: 01/10/2016","Avaliar",null,"Verificar se verba compõe a base prividenciária"]
[8019,"Serviço Extraordinário Incorporado- Ação Judicial            ","Comunicado DDP/G-15, de 30/09/2016 => DOE: 01/10/2016","Acatar"]
[8020,"Adicional Sobre Sexta Parte- Ação Judicial            ","Comunicado DDP/G-15, de 30/09/2016 => DOE: 01/10/2016","Avaliar",null,"Verificar se verba compõe a base prividenciária"]
[8021,"Incidência Recip. Adicional/Sexta Parte/Gratificação De Representação- Ação Judicial            ","Comunicado DDP/G-15, de 30/09/2016 => DOE: 01/10/2016","Avaliar",null,"Verificar se verba compõe a base prividenciária"]
[8022,"Gatilho salarial-1987- Ação Judicial       ","Comunicado DDP/G-15, de 30/09/2016 => DOE: 01/10/2016","Avaliar","LEI COMPLEMENTAR Nº 467, DE 02 DE JULHO DE 1986","Verificar se verba compõe a base prividenciária"]
[8023,"Salário Complemento-Dois Salários Mínimos- Ação Judicial","Comunicado DDP/G-15, de 30/09/2016 => DOE: 01/10/2016","Avaliar",null,"Verificar se verba compõe a base prividenciária"]
[8024,"Gratificação Travessia- Ação Judicial      ","Comunicado DDP/G-15, de 30/09/2016 => DOE: 01/10/2016","Avaliar",null,"Verificar se verba compõe a base prividenciária"]
[8025,"Diferença De Vencimentos - Chefe- Ação Judicial","Comunicado DDP/G-15, de 30/09/2016 => DOE: 01/10/2016","Avaliar",null,"Verificar se verba compõe a base prividenciária"]
[8026,"Licença Premio - Ação Judicial              ","Comunicado DDP/G-15, de 30/09/2016 => DOE: 01/10/2016","Avaliar",null,"Verificar se verba compõe a base prividenciária"]
[8027,"Adicional Sobre Honorário Advocatício – Ação Judicial","Comunicado DDP/G-42, de 27/12/1995 => DOE: 29/12/1995","Não Acatar"]
[8028,"Sexta-Parte Sobre Honorário Advocatício – Ação Judicial","Comunicado DDP/G-42, de 27/12/1995 => DOE: 29/12/1995","Não Acatar"]
[8029,"URP - Ação Judicial                       ","Comunicado DDP/G-15, de 30/09/2016 => DOE: 01/10/2016","Acatar"]
[8030,"Piso engenheiro - Ação Judicial          ","Comunicado DDP/G-15, de 30/09/2016 => DOE: 01/10/2016","Acatar"]
[8031,"Salário Complemento Engenheiro- Seis Salários Mínimos - Ação Judicial","Comunicado DDP/G-15, de 30/09/2016 => DOE: 01/10/2016","Avaliar",null,"Verificar se verba compõe a base prividenciária"]
[8032,"Piso Médico Veterinário- Ação Judicial     ","Comunicado DDP/G-15, de 30/09/2016 => DOE: 01/10/2016","Avaliar",null,"Verificar se verba compõe a base prividenciária"]
[8033,"Sexta-parte Sobre Adicional De Insalubridade - Ação Judicial ","Comunicado DDP/G-15, de 30/09/2016 => DOE: 01/10/2016","Avaliar",null,"Verificar se verba compõe a base prividenciária"]
[8034,"Gratificação AIS Incorporado - Ação Judicial     ","Comunicado DDP/G-15, de 30/09/2016 => DOE: 01/10/2016","Acatar"]
[8035,"Salário Complemento Engenheiro Sobre Reflexo-Ação Judicial ","Comunicado DDP/G-15, de 30/09/2016 => DOE: 01/10/2016","Avaliar",null,"Verificar se verba compõe a base prividenciária"]
[8036,"Gratificação De Representação Incorporada-Ação Judicial ","Comunicado DDP/G-15, de 30/09/2016 => DOE: 01/10/2016","Acatar"]
[8037,"Piso salarial 8h-telefonista-Ação Judicial","Comunicado DDP/G-15, de 30/09/2016 => DOE: 01/10/2016","Avaliar",null,"Verificar se verba compõe a base prividenciária"]
[8038,"Vantagem pessoal-cascata-Ação Judicial ","Comunicado DDP/G-15, de 30/09/2016 => DOE: 01/10/2016","Avaliar",null,"Verificar se verba compõe a base prividenciária"]
[8039,"Serviço Extraordinário Incorporado Com Incidência-Ação Judicial","Comunicado DDP/G-15, de 30/09/2016 => DOE: 01/10/2016","Acatar"]
[8040,"Diferença De Vencimentos - Programador-Ação Judicial","Comunicado DDP/G-15, de 30/09/2016 => DOE: 01/10/2016","Avaliar",null,"Verificar se verba compõe a base prividenciária"]
[8041,"Salário Complemento Atendente Enferm. - Ação Judicial","Comunicado DDP/G-15, de 30/09/2016 => DOE: 01/10/2016","Avaliar",null,"Verificar se verba compõe a base prividenciária"]
[8042,"Plantão Incorporado - Ação Judicial       ","Comunicado DDP/G-15, de 30/09/2016 => DOE: 01/10/2016","Acatar"]
[8043,"Adicional De Insalubridade Sobre Dois Salários Mínimos-Ação Judicial ","Comunicado DDP/G-15, de 30/09/2016 => DOE: 01/10/2016","Avaliar",null,"Verificar se verba compõe a base prividenciária"]
[8044,"Serviço Extraordinário-Ação Judicial      ","Comunicado DDP/G-15, de 30/09/2016 => DOE: 01/10/2016","Não Acatar"]
[8045,"Auxílio Acidente - Ação Judicial          ","Comunicado DDP/G-15, de 30/09/2016 => DOE: 01/10/2016","Não Acatar"]
[8046,"Honorário Advocatício-Ação Judicial         ","Comunicado DDP/G-15, de 30/09/2016 => DOE: 01/10/2016","Não Acatar"]
[8047,"Descanso Semanal Remunerado/Polícia Militar-Ação Judicial","Comunicado DDP/G-15, de 30/09/2016 => DOE: 01/10/2016","Avaliar",null,"Verificar se verba compõe a base prividenciária"]
[8048,"Quotas P.P.F.I.- Ação Judicial (30%)      ","Comunicado DDP/G-15, de 30/09/2016 => DOE: 01/10/2016","Avaliar",null,"Verificar se verba compõe a base prividenciária"]
[8049,"Quotas Fixas Paragrafo 4 -  Ação Judicial        ","Comunicado DDP/G-15, de 30/09/2016 => DOE: 01/10/2016","Avaliar",null,"Verificar se verba compõe a base prividenciária"]
[8050,"Vantagem Pessoal-Adicional Sobre Sexta Parte -Ação Judicial","Comunicado DDP/G-15, de 30/09/2016 => DOE: 01/10/2016","Avaliar",null,"Verificar se verba compõe a base prividenciária"]
[8051,"Sexta-Parte Sobre Vencimentos Integrais –Ação Judicial","Comunicado DDP/G-24, de 06/05/1996 => DOE: 09/05/1996","Avaliar",null,"Verificar se verba compõe a base prividenciária"]
[8052,"Diferença Lei 7717/63 - NU-Ação judicial ","Comunicado DDP/G-15, de 30/09/2016 => DOE: 01/10/2016","Avaliar","Lei  7717/63 - NU-Ação judicial ","Verificar se verba compõe a base prividenciária"]
[8053,"Vantagem Pessoal - Engenheiro – Ação Judicial","Comunicado DDP/G-24, de 06/05/1996 => DOE: 09/05/1996","Avaliar",null,"Verificar se verba compõe a base prividenciária"]
[8054,"Salário Complemento – 1 Salário Mínimo  - Ação Judicial","Comunicado DDP/G-24, de 06/05/1996 => DOE: 09/05/1996","Avaliar",null,"Verificar se verba compõe a base prividenciária"]
[8055,"Gratificação Especial De Mediação Trabalhista – Ação Judicial","Comunicado DDP/G-04, de 23/01/1997 => DOE: 24/01/1997","Avaliar",null,"Verificar se verba compõe a base prividenciária"]
[8056,"Piso Engenheiro - 8,5 Salários Mínimos – Ação Judicial","Comunicado DDP/G-07, de 11/02/1998 => DOE: 12/02/1998","Avaliar",null,"Verificar se verba compõe a base prividenciária"]
[8057,"Gratificação De Representação - Artigo 133 – Constituição Estadual – Ação Judicial","Comunicado DDP/G-07, de 11/02/1998 => DOE: 12/02/1998","Avaliar",null,"O servidor, com mais de cinco anos de efetivo exercício, que tenha exercido ou venha a exercer cargo ou função que lhe proporcione remuneração superior à do cargo de que seja titular, ou função para a qual foi admitido, incorporará um décimo dessa diferença, por ano, até o limite de dez décimos."]
[8058,"Sexta-Parte – Ação Judicial","Comunicado DDP/G-07, de 11/02/1998 => DOE: 12/02/1998","Avaliar",null,"Verificar se verba compõe a base prividenciária"]
[8059,"Complemento - Piso Salarial – 1 Salário Mínimo – Ação Judicial","Comunicado DDP/G-07, de 11/02/1998 => DOE: 12/02/1998","Avaliar",null,"Verificar se verba compõe a base prividenciária"]
[8060,"Vantagem Pessoal - LC 645/89 – Ação Judicial","Comunicado DDP/G-43, de 04/11/1998 => DOE: 06/11/1998","Avaliar","LC 645/89 – Ação Judicial","Verificar se verba compõe a base prividenciária"]
[8061,"Gratificação Especial De Saúde Coletiva - Ação Judicial","Comunicado DDP/G-43, de 04/11/1998 => DOE: 06/11/1998","Avaliar",null,"Verificar se verba compõe a base prividenciária"]
[8062,"Complemento Salário Base - 01 Salário Mínimo - Ação Judicial","Comunicado DDP/G-43, de 04/11/1998 => DOE: 06/11/1998","Avaliar",null,"Verificar se verba compõe a base prividenciária"]
[8063,"Adicional Por Tempo De Serviço (Repique) – Ação Judicial","Comunicado DDP/G-43, de 04/11/1998 => DOE: 06/11/1998","Avaliar",null,"Verificar se verba compõe a base prividenciária"]
[8064,"Adicional Sobre Carga Suplementar (Repique) – Ação Judicial","Comunicado DDP/G-43, de 04/11/1998 => DOE: 06/11/1998","Avaliar",null,"Verificar se verba compõe a base prividenciária"]
[8065,"Salário Base - Ação Judicial","Comunicado DDP/G-43, de 04/11/1998 => DOE: 06/11/1998","Avaliar",null,"Verificar se verba compõe a base prividenciária"]
[8066,"Gratificação De Representação - Ação Judicial","Comunicado DDP/G-43, de 04/11/1998 => DOE: 06/11/1998","Avaliar",null,"Verificar se verba compõe a base prividenciária"]
[8067,"Artigo 133 – Diferença Quotas – Agente Fiscal De Rendas – Ação Judicial","Comunicado DDP/G-43, de 04/11/1998 => DOE: 06/11/1998","Avaliar",null,"O servidor, com mais de cinco anos de efetivo exercício, que tenha exercido ou venha a exercer cargo ou função que lhe proporcione remuneração superior à do cargo de que seja titular, ou função para a qual foi admitido, incorporará um décimo dessa diferença, por ano, até o limite de dez décimos."]
[8068,"Equiparação Cargo – Pesquisador Cientifico X Docente Universidade De São Paulo –Ação Judicial","Comunicado DDP/G-48, de 03/12/1998 => DOE: 04/12/1998","Avaliar",null,"Verificar se verba compõe a base prividenciária"]
[8069,"Artigo 133 – Diferença Quotas – Ação Judicial","Comunicado DDP/G-48, de 03/12/1998 => DOE: 04/12/1998","Avaliar",null,"O servidor, com mais de cinco anos de efetivo exercício, que tenha exercido ou venha a exercer cargo ou função que lhe proporcione remuneração superior à do cargo de que seja titular, ou função para a qual foi admitido, incorporará um décimo dessa diferença, por ano, até o limite de dez décimos."]
[8070,"Equiparação De Cargo Empresa - Ação Judicial","Comunicado DDP/G-08, de 11/04/2000 => DOE: 13/04/2000","Avaliar",null,"Verificar se verba compõe a base prividenciária"]
[8071,"Diferença Hora/Aula - LC 836/97 – Mandado De Segurança","Comunicado DDP/G-08, de 11/04/2000 => DOE: 13/04/2000","Não Acatar"]
[8072,"Adicional LC 836/97 – Mandado De Segurança","Comunicado DDP/G-08, de 11/04/2000 => DOE: 13/04/2000","Avaliar","LC 836/97 – Mandado De Segurança","Na referida lei não faz mensão ao mandado de segurança, verificar se a verba compõe a base previdênciaria"]
[8073,"Sexta-Parte LC 836/97 – Mandado De Segurança","Comunicado DDP/G-08, de 11/04/2000 => DOE: 13/04/2000","Acatar"]
[8074,"Adicional Noturno – CLT - Ação Judicial","Comunicado DDP/G-08, de 11/04/2000 => DOE: 13/04/2000","Não Acatar"]
[8075,"Sexta-Parte S/ Gratificação Representação Incorporada – Ação Judicial","Comunicado DDP/G-08, de 11/04/2000 => DOE: 13/04/2000","Acatar"]
[8076,"Serviço Extraordinário - Ação Judicial - HCRP","Comunicado DDP/G-08, de 11/04/2000 => DOE: 13/04/2000","Não Acatar"]
[8077,"Adicional Noturno – CLT - Ação Judicial - HCRP","Comunicado DDP/G-08, de 11/04/2000 => DOE: 13/04/2000","Não Acatar"]
[8078,"Gratificação De Trabalho Noturno - 10% - Ação Judicial","Comunicado DDP/G-08, de 11/04/2000 => DOE: 13/04/2000","Não Acatar"]
[8079,"Gratificação De Trabalho Noturno - 20% - Ação Judicial","Comunicado DDP/G-08, de 11/04/2000 => DOE: 13/04/2000","Não Acatar"]
[8080,"Gratificação De Informática – Ação Judicial","Comunicado DDP/G-08, de 11/04/2000 => DOE: 13/04/2000","Não Acatar"]
[8081,"Gratificação Atividade Penitenciária - Ação Judicial","Comunicado DDP/G-08, de 11/04/2000 => DOE: 13/04/2000","Avaliar",null,"Verificar se verba compõe a base prividenciária"]
[8082,"Adicional Local De Exercício Agente De Segurança Penitenciária - Ação Judicial","Comunicado DDP/G-08, de 11/04/2000 => DOE: 13/04/2000","Avaliar",null,"Verificar se verba compõe a base prividenciária"]
[8083,"Adicional Professor Civil - Ação Judicial","Comunicado DDP/G-08, de 11/04/2000 => DOE: 13/04/2000","Avaliar",null,"Verificar se verba compõe a base prividenciária"]
[8084,"Sexta-Parte Professor Civil – Ação Judicial","Comunicado DDP/G-08, de 11/04/2000 => DOE: 13/04/2000","Avaliar",null,"Verificar se verba compõe a base prividenciária"]
[8086,"Diárias / Quilometragem - Ação Judicial","Comunicado DDP/G-08, de 11/04/2000 => DOE: 13/04/2000","Avaliar",null,"Verificar se verba compõe a base prividenciária"]
[8087,"Adicional Por Tempo De Serviço Sobre Vencimentos Integrais – Ação Judicial","Comunicado DDP/G-08, de 11/04/2000 => DOE: 13/04/2000","Avaliar",null,"Verificar se verba compõe a base prividenciária"]
[8088,"Diferença De Vencimento Artigo 133 – Constituição Estadual – Jeton – Ação Judicial","Comunicado DDP/G-08, de 11/04/2000 => DOE: 13/04/2000","Avaliar",null,"O servidor, com mais de cinco anos de efetivo exercício, que tenha exercido ou venha a exercer cargo ou função que lhe proporcione remuneração superior à do cargo de que seja titular, ou função para a qual foi admitido, incorporará um décimo dessa diferença, por ano, até o limite de dez décimos."]
[8089,"Adicional De Periculosidade - CLT – Ação Judicial","Comunicado DDP/G-08, de 11/04/2000 => DOE: 13/04/2000","Avaliar",null,"Verificar se verba compõe a base prividenciária"]
[8090,"Retribuição Função De Ensino PM I – Ação Judicial","Comunicado DDP/G-33, de 31/08/2000 => DOE: 02/09/2000","Avaliar",null,"Verificar se verba compõe a base prividenciária"]
[8091,"Retribuição Função De Ensino PM II – Ação Judicial","Comunicado DDP/G-33, de 31/08/2000 => DOE: 02/09/2000","Avaliar",null,"Verificar se verba compõe a base prividenciária"]
[8092,"Retribuição Função De Ensino PM III – Ação Judicial","Comunicado DDP/G-33, de 31/08/2000 => DOE: 02/09/2000","Avaliar",null,"Verificar se verba compõe a base prividenciária"]
[8093,"Retribuição Função De Ensino PM IV – Ação Judicial","Comunicado DDP/G-12, de 24/05/2001 => DOE: 26/05/2001","Avaliar",null,"Verificar se verba compõe a base prividenciária"]
[8094,"Retribuição Função De Ensino PM V – Ação Judicial","Comunicado DDP/G-12, de 24/05/2001 => DOE: 26/05/2001","Avaliar",null,"Verificar se verba compõe a base prividenciária"]
[8095,"Retribuição Banca Examinadora PM I – Ação Judicial","Comunicado DDP/G-12, de 24/05/2001 => DOE: 26/05/2001","Avaliar",null,"Verificar se verba compõe a base prividenciária"]
[8096,"Retribuição Banca Examinadora PM II – Ação Judicial","Comunicado DDP/G-12, de 24/05/2001 => DOE: 26/05/2001","Avaliar",null,"Verificar se verba compõe a base prividenciária"]
[8097,"Retribuição Banca Examinadora PM III – Ação Judicial","Comunicado DDP/G-12, de 24/05/2001 => DOE: 26/05/2001","Avaliar",null,"Verificar se verba compõe a base prividenciária"]
[8098,"Retribuição Banca Examinadora PM IV – Ação Judicial","Comunicado DDP/G-12, de 24/05/2001 => DOE: 26/05/2001","Avaliar",null,"Verificar se verba compõe a base prividenciária"]
[8099,"Retribuição Banca Examinadora PM V – Ação Judicial","Comunicado DDP/G-12, de 24/05/2001 => DOE: 26/05/2001","Avaliar",null,"Verificar se verba compõe a base prividenciária"]
[8100,"Complemento Salário Base - 1 Salário Mínimo Proporcional – Ação Judicial","Comunicado DDP/G-07, de 31/01/2002 => DOE: 02/02/2002","Avaliar",null,"Verificar se verba compõe a base prividenciária"]
[8101,"Gratificação Especial De Incremento À Arrecadação - Ação Judicial","Comunicado DDP/G-07, de 31/01/2002 => DOE: 02/02/2002","Avaliar",null,"Verificar se verba compõe a base prividenciária"]
[8102,"Salário Complemento – Técnico De Laboratório – Ação Judicial","Comunicado DDP/G-07, de 31/01/2002 => DOE: 02/02/2002","Avaliar",null,"Verificar se verba compõe a base prividenciária"]
[8103,"Gratificação De Gestão De Controle Do Erário Estadual - Inativo - Ação Judicial","Comunicado DDP/G-07, de 31/01/2002 => DOE: 02/02/2002","Avaliar",null,"Verificar se verba compõe a base prividenciária"]
[8104,"Gratificação De Assistência E Suporte À Saúde - Lei Complementar 871/2000 - Inativo - Ação Judicial","Comunicado DDP/G-07, de 31/01/2002 => DOE: 02/02/2002","Avaliar","REVOGADO PELA LC 1.157 DE 02/12/2011","Não há historico sobre a incorporação, porém, a verba trata-se para servidores inativos e com ação judical sobre a mesma"]
[8105,"Gratificação Atividade De Polícia -  Inativo - Ação Judicial","Comunicado DDP/G-07, de 31/01/2002 => DOE: 02/02/2002","Avaliar",null,"Verificar se verba compõe a base prividenciária"]
[8106,"Adicional Por Tempo De Serviço Sobre Geia – Ação Judicial","Comunicado DDP/G-22, de 15/08/2002 => DOE: 17/08/2002","Avaliar",null,"Verificar se verba compõe a base prividenciária"]
[8107,"Adicional Por Tempo De Serviço Sobre Gece – Ação Judicial","Comunicado DDP/G-22, de 15/08/2002 => DOE: 17/08/2002","Avaliar",null,"Verificar se verba compõe a base prividenciária"]
[8108,"Pró-Labore - Perito Criminal – Ação Judicial","Comunicado DDP/G-22, de 15/08/2002 => DOE: 17/08/2002","Não Acatar"]
[8109,"Salário Complemento - 4 Salários Mínimos – Ação Judicial","Comunicado DDP/G-30, de 27/08/2003 => DOE: 02/09/2003","Avaliar",null,"Verificar se verba compõe a base prividenciária"]
[8110,"Honorários Academia Policia I – Ação Judicial","Comunicado DDP/G-30, de 27/08/2003 => DOE: 02/09/2003","Não Acatar"]
[8111,"Honorários Academia Policia Ii - Ação Judicial","Comunicado DDP/G-30, de 27/08/2003 => DOE: 02/09/2003","Não Acatar"]
[8112,"Artigo 133 – Diferença De Vencimentos – Ação  Judicial","Comunicado DDP/G-30, de 27/08/2003 => DOE: 02/09/2003","Avaliar",null,"O servidor, com mais de cinco anos de efetivo exercício, que tenha exercido ou venha a exercer cargo ou função que lhe proporcione remuneração superior à do cargo de que seja titular, ou função para a qual foi admitido, incorporará um décimo dessa diferença, por ano, até o limite de dez décimos."]
[8113,"Adicional S/ Vantagem LC's 645/89 E 836/97 – Ação Judicial","Comunicado DDP/G-30, de 27/08/2003 => DOE: 02/09/2003","Avaliar","LC's 645/89 E 836/97 – Ação Judicial","Verificar se verba compõe a base prividenciária"]
[8114,"Sexta-Parte S/ Vantagem LC 645/89 E 836/97 – Ação Judicial","Comunicado DDP/G-30, de 27/08/2003 => DOE: 02/09/2003","Avaliar","LC 645/89 E 836/97 – Ação Judicial","Verificar se verba compõe a base prividenciária"]
[8115,"Vantagem LC's 645/89 E 836/97 – Ação Judicial","Comunicado DDP/G-30, de 27/08/2003 => DOE: 02/09/2003","Avaliar","LC's 645/89 E 836/97 – Ação Judicial","Verificar se verba compõe a base prividenciária"]
[8116,"Adicional Periculosidade – EFP – Ação Judicial","Comunicado DDP/G-30, de 27/08/2003 => DOE: 02/09/2003","Avaliar",null,"Verificar se verba compõe a base prividenciária"]
[8117,"Gratificação Por Atividade Suporte Administrativo - Lei Complementar  876/2000 - Inativo – Ação Judicial","Comunicado DDP/G-30, de 27/08/2003 => DOE: 02/09/2003","Avaliar","Lei  Complementar  876/2000 - Inativo – Ação Judicial","Verificar se verba compõe a base prividenciária"]
[8118,"Gratificação Especial / Abono Suds–PGI – Ação Judicial","Comunicado DDP/G-30, de 27/08/2003 => DOE: 02/09/2003","Avaliar",null,"Verificar se verba compõe a base prividenciária"]
[8119,"Adicional De Insalubridade Sobre 4 Salários Mínimos - Ação Judicial","Comunicado DDP/G-05, de 09/02/2004 => DOE: 11/02/2004 ","Avaliar",null,"Verificar se verba compõe a base prividenciária"]
[8120,"Adicional De Insalubridade Sobre 1 Salário Mínimo - Ação Judicial","Comunicado DDP/G-05, de 09/02/2004 => DOE: 11/02/2004 ","Avaliar",null,"Verificar se verba compõe a base prividenciária"]
[8121,"Equiparação Salarial / Paradigma - Ação Judicial","Comunicado DDP/G-05, de 09/02/2004 => DOE: 11/02/2004 ","Avaliar",null,"Verificar se verba compõe a base prividenciária"]
[8122,"Complemento Salário Profissional Lei 4950-A/66 - Ação Judicial","Comunicado DDP/G-05, de 09/02/2004 => DOE: 11/02/2004 ","Avaliar","Lei  4950-A/66 - Ação Judicial","Verificar se verba compõe a base prividenciária"]
[8123,"Gratificação Por Trabalho Educacional LC 874/2000-Inativo - Ação Judicial","Comunicado DDPE/G-13, de 07/04/2005 => DOE: 09/04/2005","Avaliar","LC 874/2000-Inativo - Ação Judicial","Verificar se verba compõe a base prividenciária"]
[8124,"Gratificação De Suporte As Atividades Escolares LC 872/2000-Inativo –Ação Judicial","Comunicado DDPE/G-13, de 07/04/2005 => DOE: 09/04/2005","Avaliar","LC 872/2000-Inativo –Ação Judicial","Verificar se verba compõe a base prividenciária"]
[8125,"Artigo 133 - Diferença De Vencimento - Procurador Substituto - Ação Judicial","Comunicado DDPE/G-13, de 07/04/2005 => DOE: 09/04/2005","Não Acatar"]
[8126,"Diferença Salarial - Ação Judicial","Comunicado DDPE/G-13, de 07/04/2005 => DOE: 09/04/2005","Avaliar",null,"Verificar se verba compõe a base prividenciária"]
[8127,"Adicional Por Tempo De Serviço - Ação Judicial","Comunicado DDPE/G-13, de 07/04/2005 => DOE: 09/04/2005","Avaliar",null,"Verificar se verba compõe a base prividenciária"]
[8128,"Diferença Salário Base - Ação Judicial","Comunicado DDPE/G-15, de 04/07/2006 => DOE: 29/07/2006 ","Avaliar",null,"Verificar se verba compõe a base prividenciária"]
[8129,"Salário Complemento Médico / Cirurgião Dentista - Ação Judicial","Comunicado DDPE/G-15, de 04/07/2006 => DOE: 29/07/2006 ","Avaliar",null,"Verificar se verba compõe a base prividenciária"]
[8130,"Adicional De Insalubridade Sobre 3 Salários Mínimos - Ação Judicial","Comunicado DDPE/G-15, de 04/07/2006 => DOE: 29/07/2006 ","Avaliar",null,"Verificar se verba compõe a base prividenciária"]
[8131,"Plantão Médico Sisplan - Ação Judicial","Comunicado DDPE/G-15, de 04/07/2006 => DOE: 29/07/2006 ","Não Acatar"]
[8132,"Plantão Aeroporto - Ação Judicial","Comunicado DDPE/G-15, de 04/07/2006 => DOE: 29/07/2006 ","Não Acatar"]
[8133,"Adicional Periculosidade Sem Reflexo – Ação Judicial","Comunicado DDPE/G-15, de 04/07/2006 => DOE: 29/07/2006 ","Avaliar",null,"Verificar se verba compõe a base prividenciária"]
[8134,"Diferença Carga Suplementar – Lei Complementar 836/97 Ação Judicial","Comunicado DDPE/G-15, de 04/07/2006 => DOE: 29/07/2006 ","Avaliar","Lei  Complementar 836/97 Ação Judicial","Verificar se verba compõe a base prividenciária"]
[8135,"Adicional Sobre Vantagem Pessoal – Lei Complementar 836/97 – Ação Judicial","Comunicado DDPE/G-15, de 04/07/2006 => DOE: 29/07/2006 ","Avaliar","Lei  Complementar 836/97 – Ação Judicial","Verificar se verba compõe a base prividenciária"]
[8136,"Sexta Parte Sobre Vantagem Pessoal – Lei Complementar 836/97 – Ação Judicial","Comunicado DDPE/G-15, de 04/07/2006 => DOE: 29/07/2006 ","Avaliar","Lei  Complementar 836/97 – Ação Judicial","Verificar se verba compõe a base prividenciária"]
[8137,"Diferença - Piso 1 Salário Mínimo Valor Liquido – Ação Judicial","Comunicado DDPE/G-15, de 04/07/2006 => DOE: 29/07/2006 ","Avaliar",null,"Verificar se verba compõe a base prividenciária"]
[8138,"Diárias / Clt - Ação Judicial","Comunicado DDPE/G-15, de 04/07/2006 => DOE: 29/07/2006 ","Avaliar",null,"Verificar se verba compõe a base prividenciária"]
[8139,"Adicional De Insalubridade - Mandado De Segurança","Comunicado DDPE/G-15, de 04/07/2006 => DOE: 29/07/2006 ","Avaliar",null,"Verificar se verba compõe a base prividenciária"]
[8140,"Serviço Extraordinário - Hora Fixa Clt - Ação Judicial","Comunicado DDPE/G-15, de 04/07/2006 => DOE: 29/07/2006 ","Não Acatar"]
[8141,"Gratificação De  Suporte À Atividade Penitenciária - Lei Complementar 899/2001 - Inativo - Ação Judicial","Comunicado DDPE/G-15, de 04/07/2006 => DOE: 29/07/2006 ","Avaliar","Lei  Complementar 899/2001 - Inativo - Ação Judicial","Verificar se verba compõe a base prividenciária"]
[8142,"Prêmio De Incentivo Qualidade - Integral - Inativo - Ação Judicial","Comunicado DDPE/G-15, de 04/07/2006 => DOE: 29/07/2006 ","Avaliar",null,"Verificar se verba compõe a base prividenciária"]
[8143,"Adicional De Insalubridade Piso Salarial - Ação Judicial","Comunicado DDPE/G-15, de 04/07/2006 => DOE: 29/07/2006 ","Avaliar",null,"Verificar se verba compõe a base prividenciária"]
[8144,"Adicional Sobre Gratificação Especial De Atividade - Inativo - Lei Complementar 803/95 - Ação Judicial","Comunicado DDPE/G-17, de 28/07/2006 => DOE: 29/07/2006","Acatar"]
[8145,"Sexta Parte Sobre Gratificação Especial De Atividade - Inativo - Lei Complementar 803/95 - Ação Judicial","Comunicado DDPE/G-13, de 14/05/2007 => DOE: 15/05/2007","Acatar"]
[8146,"Artigo 133 Com Qüinqüênio E Sexta Parte - Ação Judicial","Comunicado DDPE/G-13, de 14/05/2007 => DOE: 15/05/2007","Avaliar",null,"O servidor, com mais de cinco anos de efetivo exercício, que tenha exercido ou venha a exercer cargo ou função que lhe proporcione remuneração superior à do cargo de que seja titular, ou função para a qual foi admitido, incorporará um décimo dessa diferença, por ano, até o limite de dez décimos."]
[8147,"Diferença PEB I Para PEB II - Ação Judicial","Comunicado DDPE/G-13, de 14/05/2007 => DOE: 15/05/2007","Avaliar",null,"Verificar se verba compõe a base prividenciária"]
[8148,"Diferença De Vencimentos Artigo 4 - Lei Complementar 547/1988 - Ação Judicial","Comunicado DDPE/G-13, de 14/05/2007 => DOE: 15/05/2007","Avaliar","Lei  Complementar 547/1988 - Ação Judicial","Verificar se verba compõe a base prividenciária"]
[8149,"Gratificação Por Atividade De Magistério - Inativos - Ação Judicial","Comunicado DDPE/G-13, de 14/05/2007 => DOE: 15/05/2007","Acatar"]
[8150,"Adicional Local De Exercício Polícia Militar - Nível I - Ação Judicial","Comunicado DDPE/G-13, de 14/05/2007 => DOE: 15/05/2007","Avaliar",null,"Verificar se verba compõe a base prividenciária"]
[8151,"Adicional Local De Exercício Polícia Militar - Nível II - Ação Judicial","Comunicado DDPE/G-13, de 14/05/2007 => DOE: 15/05/2007","Avaliar",null,"Verificar se verba compõe a base prividenciária"]
[8152,"Adicional Local De Exercício Polícia Militar - Nível III - Ação Judicial","Comunicado DDPE/G-13, de 14/05/2007 => DOE: 15/05/2007","Avaliar",null,"Verificar se verba compõe a base prividenciária"]
[8153,"Adicional Local De Exercício Polícia Militar - Nível IV - Ação Judicial","Comunicado DDPE/G-13, de 14/05/2007 => DOE: 15/05/2007","Avaliar",null,"Verificar se verba compõe a base prividenciária"]
[8154,"Gratificação Por Atividade De Polícia - Lei Complementar 873/2000 - Ação Judicial ","Comunicado DDPE/G-13, de 14/05/2007 => DOE: 15/05/2007","Avaliar","Lei  Complementar 873/2000 - Ação Judicial ","Verificar se verba compõe a base prividenciária"]
[8155,"Adicional De Insalubridade Sobre Vencimentos Integrais - Ação Judicial","Comunicado DDPE/G-13, de 14/05/2007 => DOE: 15/05/2007","Avaliar",null,"Verificar se verba compõe a base prividenciária"]
[8156,"Vantagem Lei De Guerra - Ação Judicial","Comunicado DDPE/G-13, de 14/05/2007 => DOE: 15/05/2007","Avaliar","Lei  De Guerra - Ação Judicial","Verificar se verba compõe a base prividenciária"]
[8157,"Prêmio De Incentivo À Qualidade Integral - Afastamento Junto Ao Tribunal Regional Eleitoral - Ação Judicial","Comunicado DDPE/G-13, de 14/05/2007 => DOE: 15/05/2007","Avaliar",null,"Verificar se verba compõe a base prividenciária"]
[8158,"Adicional Sobre Vantagem Pessoal Engenheiro - Ação Judicial","Comunicado DDPE/G-13, de 14/05/2007 => DOE: 15/05/2007","Avaliar",null,"Verificar se verba compõe a base prividenciária"]
[8159,"Sexta Parte Sobre Vantagem Pessoal Engenheiro - Ação Judicial","Comunicado DDPE/G-13, de 14/05/2007 => DOE: 15/05/2007","Avaliar",null,"Verificar se verba compõe a base prividenciária"]
[8160,"Vantagem Pessoal Engenheiro - Diferença Salarial - Ação Judicial","Comunicado DDPE/G-13, de 14/05/2007 => DOE: 15/05/2007","Avaliar",null,"Verificar se verba compõe a base prividenciária"]
[8161,"Adicional Local De Exercício Agente De Segurança Penitenciária - Ação Judicial","Comunicado DDPE/G-13, de 14/05/2007 => DOE: 15/05/2007","Avaliar",null,"Verificar se verba compõe a base prividenciária"]
[8162,"Sexta Parte Sobre Vencimentos Gratificação Por Atividade De Polícia - Polícia Militar - Ação Judicial","Comunicado DDPE/G-05, de 03/04/2008 => DOE: 04/04/2008","Avaliar",null,"Verificar se verba compõe a base prividenciária"]
[8163,"Sexta Parte Sobre Vencimentos Gratificação Por Atividade De Polícia E Adicional Local De Exercício - Polícia Militar - Ação Judicial","Comunicado DDPE/G-05, de 03/04/2008 => DOE: 04/04/2008","Avaliar",null,"Verificar se verba compõe a base prividenciária"]
[8164,"Diferença De Vencimentos Procuradores Autárquicos/Procuradores Do Estado - Ação Judicial","Comunicado DDPE/G-05, de 03/04/2008 => DOE: 04/04/2008","Avaliar",null,"Verificar se verba compõe a base prividenciária"]
[8165,"Sexta Parte Sobre Gratificação Executiva - Ação Judicial","Comunicado DDPE/G-05, de 03/04/2008 => DOE: 04/04/2008","Avaliar",null,"Verificar se verba compõe a base prividenciária"]
[8166,"Adicional De Insalubridade - Afastamento Junto Ao Tribunal  Regional Eleitoral - Ação Judicial","Comunicado DDPE/G-05, de 03/04/2008 => DOE: 04/04/2008","Avaliar",null,"Verificar se verba compõe a base prividenciária"]
[8167,"Adicional De Periculosidade - Afastamento Junto Ao Tribunal Regional Eleitoral - Ação Judicial","Comunicado DDPE/G-05, de 03/04/2008 => DOE: 04/04/2008","Avaliar",null,"Verificar se verba compõe a base prividenciária"]
[8168,"Adicional Sobre A Gratificação De Atividade E Suporte Administrativo Lei Complementar Nº 876/2000- Inativo - Ação Judicial","Comunicado DDPE/G-05, de 03/04/2008 => DOE: 04/04/2008","Avaliar","Lei  Complementar Nº 876/2000- Inativo - Ação Judicial","Verificar se verba compõe a base prividenciária"]
[8169,"Sexta Parte Sobre A  Gratificação De Atividade E Suporte Administrativo Lei Complementar Nº 876/2000- Inativo - Ação Judicial","Comunicado DDPE/G-05, de 03/04/2008 => DOE: 04/04/2008","Avaliar","Lei  Complementar Nº 876/2000- Inativo - Ação Judicial","Verificar se verba compõe a base prividenciária"]
[8170,"Prêmio De Incentivo Á Qualidade - Afastamento Junto Ao Tribunal Regional Eleitoral - Ação Judicial","Comunicado DDPE/G-05, de 03/04/2008 => DOE: 04/04/2008","Avaliar",null,"Verificar se verba compõe a base prividenciária"]
[8171,"Gratificação De Gestão E Controle Do Erário Estadual - Afastametno Junto Ao Tribunal Regional Eleitoral - Ação Judicial","Comunicado DDPE/G-05, de 03/04/2008 => DOE: 04/04/2008","Avaliar",null,"Verificar se verba compõe a base prividenciária"]
[8172,"Gratificação De Desempenho Atividade Saúde - GDS - Ação Judicial","Comunicado DDPE/G-05, de 03/04/2008 => DOE: 04/04/2008","Avaliar",null,"Verificar se verba compõe a base prividenciária"]
[8173,"Adicional Operacional Local/Polícia Militar - I - Inativo - Ação Judicial","Comunicado DDPE/G-05, de 03/04/2008 => DOE: 04/04/2008","Avaliar",null,"Verificar se verba compõe a base prividenciária"]
[8174,"Adicional Operacional Local/Polícia Militar - II - Inativo - Ação Judicial","Comunicado DDPE/G-05, de 03/04/2008 => DOE: 04/04/2008","Avaliar",null,"Verificar se verba compõe a base prividenciária"]
[8175,"Adicional Operacional Local/Polícia Militar - III - Inativo - Ação Judicial","Comunicado DDPE/G-05, de 03/04/2008 => DOE: 04/04/2008","Avaliar",null,"Verificar se verba compõe a base prividenciária"]
[8176,"Adicional Operacional Local/Polícia Militar - IV - Inativo - Ação Judicial","Comunicado DDPE/G-05, de 03/04/2008 => DOE: 04/04/2008","Avaliar",null,"Verificar se verba compõe a base prividenciária"]
[8177,"Vantagem  Pessoal De Engenheiro Sem A Incidência Do Quinquênio E Sexta Parte - Ação Judicial","Comunicado DDPE/G-05, de 03/04/2008 => DOE: 04/04/2008","Avaliar",null,"Verificar se verba compõe a base prividenciária"]
[8178,"Premio De Incentivo - Pin - Inativo - Ação Judicial","Comunicado DDPE/G-05, de 03/04/2008 => DOE: 04/04/2008","Acatar"]
[8179,"Adicional Por Tempo De Serviço Sobre Premio De Incentivo - Inativo - Ação Judicial","Comunicado DDPE/G-05, de 03/04/2008 => DOE: 04/04/2008","Acatar"]
[8180,"Adicional Por Tempo De Serviço Sobre Gratificação Assistência Suporte À Saúde - Inativo - Ação Judicial","Comunicado DDPE/G-05, de 03/04/2008 => DOE: 04/04/2008","Acatar"]
[8181,"Sexta Parte Sobre Premio De Incentivo - Pin - Inativo - Ação Judicial","Comunicado DDPE/G-05, de 03/04/2008 => DOE: 04/04/2008","Acatar"]
[8182,"Adicional Anterior A Emenda Constitucional Nº 19/1998 Sobre Vencimentos Integrais - Ação Judicial","Comunicado DDPE/G-05, de 03/04/2008 => DOE: 04/04/2008","Avaliar",null,"Verificar se verba compõe a base prividenciária"]
[8183,"Prêmio De Incentivo À Qualidade - Inativo - Ação Judicial","Comunicado DDP/G-05, de 31/01/1994 => DOE: 01/02/1994","Avaliar",null,"Verificar se verba compõe a base prividenciária"]
[8184,"Premio De Incentivo À Produtividade E Qualidade - Ação Judicial","Comunicado DDP/G-05, de 31/01/1994 => DOE: 01/02/1994","Avaliar",null,"Verificar se verba compõe a base prividenciária"]
[8185,"Adicional De Insalubridade Sobre  1 Salário Base - Ação Judicial","Comunicado DDP/G-05, de 31/01/1994 => DOE: 01/02/1994","Avaliar",null,"Verificar se verba compõe a base prividenciária"]
[8186,"Gratificação De Representação Faculdade De Tecnologia Jaú - Mandado De Segurança","Comunicado DDP/G-05, de 31/01/1994 => DOE: 01/02/1994","Não Acatar"]
[8187,"Adicional Sobre Artigo 133 - Diferença De Vencimentos - Ação Judicial","Comunicado DDP/G-05, de 31/01/1994 => DOE: 01/02/1994","Avaliar",null,"O servidor, com mais de cinco anos de efetivo exercício, que tenha exercido ou venha a exercer cargo ou função que lhe proporcione remuneração superior à do cargo de que seja titular, ou função para a qual foi admitido, incorporará um décimo dessa diferença, por ano, até o limite de dez décimos."]
[8188,"Adicional Local De Exercício Afastamento Junto À Prefeitura - Ação Judicial","Comunicado DDP/G-05, de 31/01/1994 => DOE: 01/02/1994","Avaliar",null,"Verificar se verba compõe a base prividenciária"]
[8189,"Adicional 1/3 Dos Vencimentos - Regime De Dedicação Plena - Ação Judicial","Comunicado DDP/G-05, de 31/01/1994 => DOE: 01/02/1994","Avaliar",null,"Verificar se verba compõe a base prividenciária"]
[8190,"Reajuste Salarial Cruesp - Quadro Especial - Ação Judicial","Comunicado DDP/G-05, de 31/01/1994 => DOE: 01/02/1994","Avaliar",null,"Verificar se verba compõe a base prividenciária"]
[8191,"Sexta Parte Sobre Artigo 133 E Piso Salarial - Ação Judicial","Comunicado DDP/G-07, de 11/02/1998 => DOE: 12/02/1998","Avaliar",null,"O servidor, com mais de cinco anos de efetivo exercício, que tenha exercido ou venha a exercer cargo ou função que lhe proporcione remuneração superior à do cargo de que seja titular, ou função para a qual foi admitido, incorporará um décimo dessa diferença, por ano, até o limite de dez décimos."]
[8192,"Sexta Parte Sobre Gratificações - Ação Judicial","Comunicado DDP/G-08, de 11/04/2000 => DOE: 13/04/2000","Avaliar",null,"Verificar se verba compõe a base prividenciária"]
[8193,"Gratificação Especial De Atividade – Artigo 133 – Constituição Estadual/89 – Ação Judicial","Comunicado DDPE/G-04, de 22/06/2012 => DOE: 27/06/2012","Avaliar",null,"Verificar se verba compõe a base prividenciária"]
[8194,"Gratificação Especial Por Atividade Hospitalar – Ação Judicial ","Comunicado DDPE/G-04, de 22/06/2012 => DOE: 27/06/2012","Avaliar",null,"Verificar se verba compõe a base prividenciária"]
[8195,"Adicional Insalubridade Convênio Sistema Único De Saúde – Ação Judicial","Comunicado DDPE/G-04, de 22/06/2012 => DOE: 27/06/2012","Avaliar",null,"Verificar se verba compõe a base prividenciária"]
[8196,"Adicional De Insalubridade Sobre Duas Vezes Salário Base – Ação Judicial","Comunicado DDPE/G-04, de 22/06/2012 => DOE: 27/06/2012","Avaliar",null,"Verificar se verba compõe a base prividenciária"]
[8197,"Adicional Exceto Gratificação Extra, Executiva E Fixa – Ação Judicial ","Comunicado DDPE/G-04, de 22/06/2012 => DOE: 27/06/2012","Avaliar",null,"Verificar se verba compõe a base prividenciária"]
[8198,"Salário Profissional Seis Vezes O Valor Do Salário Mínimo – Ação Judicial","Comunicado DDPE/G-04, de 22/06/2012 => DOE: 27/06/2012","Avaliar",null,"Verificar se verba compõe a base prividenciária"]
[8199,"Gratificação De Atividade Rodoviária – Ação Judicial ","Comunicado DDPE/G-04, de 22/06/2012 => DOE: 27/06/2012","Avaliar",null,"Verificar se verba compõe a base prividenciária"]
[8200,"Gratificação De Representação Incorporada Outros Poderes – Ação Judicial","Comunicado DDPE/G-04, de 22/06/2012 => DOE: 27/06/2012","Acatar"]
[8201,"Adicional Local De Exercício Carreira Policial – Ação Judicial","Comunicado DDPE/G-04, de 22/06/2012 => DOE: 27/06/2012","Avaliar",null,"Verificar se verba compõe a base prividenciária"]
[8202,"Gratificação De Função De Secretario De Escola Afastado No Tribunal Regional Eleitoral – Ação Judicial","Comunicado DDPE/G-04, de 22/06/2012 => DOE: 27/06/2012","Avaliar",null,"Verificar se verba compõe a base prividenciária"]
[8203,"Direito Ao Gozo De Férias Mais 1/3 – Ação Judicial","Comunicado DDPE/G-04, de 22/06/2012 => DOE: 27/06/2012","Não Acatar"]
[8204,"Décimos Incorporados Quotas De Verba Honorária – Procurador Autárquico – Ação Judicial ","Comunicado DDPE/G-04, de 22/06/2012 => DOE: 27/06/2012","Acatar"]
[8205,"Artigo 133 Constituição Estadual/89 - Pro-labore - Ação Judicial  ","Comunicado DDP/G-15, de 30/09/2016 => DOE: 01/10/2016","Não Acatar"]
[8206,"Verba Representação – Centro De Estudos E Pesquisas E Administração Municipal - Ação Judicial ","Comunicado DDP/G-15, de 30/09/2016 => DOE: 01/10/2016","Avaliar",null,"Verificar se verba compõe a base prividenciária"]
[8207,"Gratificação De Função Educação (Reflexo Lei Complementar 836/97)-Ação Judicial","Comunicado DDP/G-15, de 30/09/2016 => DOE: 01/10/2016","Avaliar","Lei  Complementar 836/97)-Ação Judicial","Verificar se verba compõe a base prividenciária"]
[8208,"Gratificação Representação Incorporada- Exercida em Outros Estados- Ação Judicial ","Comunicado DDP/G-15, de 30/09/2016 => DOE: 01/10/2016","Acatar"]
[8209,"Gratificação Representação Incorporada Outros Estados –Verba Honorária-Ação Judicial","Comunicado DDP/G-15, de 30/09/2016 => DOE: 01/10/2016","Acatar"]
[8210,"Gratificação Representação Incorporada - Ação Judicial","Comunicado DDP/G-15, de 30/09/2016 => DOE: 01/10/2016","Acatar"]
[8211,"Gratificação De Representação Incorporada Função Confiança Do Governador – Ação Judicial","Comunicado DDPE/G-04, de 22/06/2012 => DOE: 27/06/2012","Acatar"]
[8212,"Gratificação  Representação Incorporada –Lei Complementar 813/96 - Ação Judicial","Comunicado DDP/G-15, de 30/09/2016 => DOE: 01/10/2016","Acatar"]
[8213,"Gratificação Representação Incorporada Outros Poderes-Ação Judicial- Lei Complementar813/96 ","Comunicado DDP/G-15, de 30/09/2016 => DOE: 01/10/2016","Acatar"]
[8214,"Gratificação Representação Incorporada -Quadro Especial-Ação Judicial ","Comunicado DDP/G-15, de 30/09/2016 => DOE: 01/10/2016","Acatar"]
[8215,"Sexta Parte Sobre Vencimentos Integrais Exceto Prêmio De Incentivo À Qualidade – Ação Judicial","Comunicado DDPE/G-04, de 22/06/2012 => DOE: 27/06/2012","Avaliar",null,"Verificar se verba compõe a base prividenciária"]
[8216,"Adicional Sobre Vencimentos Integrais Exceto Prêmio De Incentivo À Qualidade – Ação Judicial","Comunicado DDPE/G-04, de 22/06/2012 => DOE: 27/06/2012","Avaliar",null,"Verificar se verba compõe a base prividenciária"]
[8217,"Vantagem Pessoal Engenheiro IPESP – Quadro Especial – Ação Judicial","Comunicado DDPE/G-04, de 22/06/2012 => DOE: 27/06/2012","Avaliar",null,"Verificar se verba compõe a base prividenciária"]
[8218,"Diferença Salarial IPESP Quadro Especial – Ação Judicial","Comunicado DDPE/G-04, de 22/06/2012 => DOE: 27/06/2012","Avaliar",null,"Verificar se verba compõe a base prividenciária"]
[8219,"Diferença De Vencimentos Artigo 133 – Chefe Posto Fiscal – Ação Judicial","Comunicado DDPE/G-04, de 22/06/2012 => DOE: 27/06/2012","Avaliar",null,"O servidor, com mais de cinco anos de efetivo exercício, que tenha exercido ou venha a exercer cargo ou função que lhe proporcione remuneração superior à do cargo de que seja titular, ou função para a qual foi admitido, incorporará um décimo dessa diferença, por ano, até o limite de dez décimos."]
[8220,"Adicional Sobre Gratificação Executiva – Ação Judicial","Comunicado DDPE/G-04, de 22/06/2012 => DOE: 27/06/2012","Não Acatar"]
[8221,"Adicional Sobre Vencimentos Integrais Exceto Adicional Local De Exercício/Artigo 133 – Ação Judicial","Comunicado DDPE/G-04, de 22/06/2012 => DOE: 27/06/2012","Avaliar",null,"O servidor, com mais de cinco anos de efetivo exercício, que tenha exercido ou venha a exercer cargo ou função que lhe proporcione remuneração superior à do cargo de que seja titular, ou função para a qual foi admitido, incorporará um décimo dessa diferença, por ano, até o limite de dez décimos."]
[8222,"Adicional Por Tempo De Serviço Sobre Adicional De Insalubridade – Ação Judicial","Comunicado DDPE/G-04, de 22/06/2012 => DOE: 27/06/2012","Avaliar",null,"Verificar se verba compõe a base prividenciária"]
[8223,"Artigo 133 Constituição Estadual/89 – Verba De Representação – Ação Judicial","Comunicado DDPE/G-04, de 22/06/2012 => DOE: 27/06/2012","Avaliar","Artigo 133 - O servidor, com mais de cinco anos de efetivo exercício, que tenha exercido ou venha a exercer, a qualquer título,  cargo ou função que lhe proporcione remuneração superior à do cargo de que seja titular, ou função para a qual foi admitido, incorporará um décimo dessa diferença, por ano, até o limite de dez décimos.","Avaliar se a verba compõe a base previdenciária, nas descrição consta a mesma com ação judicial"]
[8224,"Diferença De Vencimentos Fundação Casa – Ação Judicial","Comunicado DDPE/G-04, de 22/06/2012 => DOE: 27/06/2012","Avaliar",null,"Verificar se verba compõe a base prividenciária"]
[8225,"Artigo 133 – Diferença De Vencimentos – Ação Judicial","Comunicado DDPE/G-04, de 22/06/2012 => DOE: 27/06/2012","Avaliar",null,"O servidor, com mais de cinco anos de efetivo exercício, que tenha exercido ou venha a exercer cargo ou função que lhe proporcione remuneração superior à do cargo de que seja titular, ou função para a qual foi admitido, incorporará um décimo dessa diferença, por ano, até o limite de dez décimos."]
[8226,"Adicional Sobre Vantagem Pessoal Engenheiro – Diferença Salarial – Ação Judicial ","Comunicado DDPE/G-04, de 22/06/2012 => DOE: 27/06/2012","Avaliar",null,"Verificar se verba compõe a base prividenciária"]
[8227,"Sexta Parte Sobre Gratificação Especial De Atividade E Gratificação Executiva – Ação Judicial","Comunicado DDPE/G-04, de 22/06/2012 => DOE: 27/06/2012","Avaliar",null,"Verificar se verba compõe a base prividenciária"]
[8228,"Sexta Parte Menos 20 Anos De Serviço – Polícia Militar – Ação Judicial","Comunicado DDPE/G-04, de 22/06/2012 => DOE: 27/06/2012","Avaliar",null,"Verificar se verba compõe a base prividenciária"]
[8229,"Adicional Sobre Gratificação Geral – Ação Judicial","Comunicado DDPE/G-04, de 22/06/2012 => DOE: 27/06/2012","Avaliar",null,"Verificar se verba compõe a base prividenciária"]
[8230,"Sexta Parte Sobre Gratificação Geral – Ação Judicial","Comunicado DDPE/G-04, de 22/06/2012 => DOE: 27/06/2012","Avaliar",null,"Verificar se verba compõe a base prividenciária"]
[8231,"Gratificação Extra – Ativo – Ação Judicial ","Comunicado DDPE/G-04, de 22/06/2012 => DOE: 27/06/2012","Avaliar",null,"Verificar se verba compõe a base prividenciária"]
[8232,"Gratificação De Assistência E Suporte À Saúde – Ativo – Ação Judicial ","Comunicado DDPE/G-04, de 22/06/2012 => DOE: 27/06/2012","Avaliar",null,"Verificar se verba compõe a base prividenciária"]
[8233,"Complemento Salário Base – 02 Salários Mínimos – Ação Judicial","Comunicado DDPE/G-04, de 22/06/2012 => DOE: 27/06/2012","Avaliar",null,"Verificar se verba compõe a base prividenciária"]
[8234,"Adicional Local De Exercício Docente – Ação Judicial","Comunicado DDPE/G-04, de 22/06/2012 => DOE: 27/06/2012","Avaliar",null,"Verificar se verba compõe a base prividenciária"]
[8235,"Pró-Labore – Chefe Posto Fiscal “C” – Artigo 133 – Ação Judicial","Comunicado DDPE/G-04, de 22/06/2012 => DOE: 27/06/2012","Não Acatar"]
[8236,"Pró-Labore – Chefe Posto Fiscal – Irredutibilidade – LC 1059/2009 – Ação Judicial","Comunicado DDPE/G-04, de 22/06/2012 => DOE: 27/06/2012","Não Acatar"]
[8237,"Conversão Em Reais Pela URV – Ação Judicial ","Comunicado DDPE/G-04, de 22/06/2012 => DOE: 27/06/2012","Não Acatar"]
[8238,"Salário Complemento Nível/Quinquênios/Sexta Parte – 8,5 Salários Mínimos – Ação Judicial ","Comunicado DDPE/G-04, de 22/06/2012 => DOE: 27/06/2012","Avaliar",null,"Verificar se verba compõe a base prividenciária"]
[8239,"Adicional De Periculosidade – Vencimentos Integrais – Ação Judicial ","Comunicado DDPE/G-04, de 22/06/2012 => DOE: 27/06/2012","Avaliar",null,"Verificar se verba compõe a base prividenciária"]
[8240,"Adicional Sobre Gratificação Atividade Penitenciária – Ação Judicial","Comunicado DDPE/G-04, de 22/06/2012 => DOE: 27/06/2012","Avaliar",null,"Verificar se verba compõe a base prividenciária"]
[8241,"Adicional Noturno Após 5 Horas - Ação Judicial ","Comunicado DDPE/G-04, de 22/06/2012 => DOE: 27/06/2012","Não Acatar"]
[8242,"Adicional Por Tempo De Serviço Sobre 2 Salários Mínimos – Ação Judicial ","Comunicado DDPE/G-04, de 22/06/2012 => DOE: 27/06/2012","Avaliar",null,"Verificar se verba compõe a base prividenciária"]
[8243,"Adicional Sobre Vencimentos Integrais Exceto Adicional Local De Exercício – Ação Judicial","Comunicado DDPE/G-04, de 22/06/2012 => DOE: 27/06/2012","Avaliar",null,"Verificar se verba compõe a base prividenciária"]
[8244,"Gratificação Suporte Atividade Escolar – Ação Judicial","Comunicado DDPE/G-04, de 22/06/2012 => DOE: 27/06/2012","Avaliar",null,"Verificar se verba compõe a base prividenciária"]
[8245,"Sexta Parte Sobre A Gratificação Por Atividade De Magistério – Ação Judicial","Comunicado DDPE/G-04, de 22/06/2012 => DOE: 27/06/2012","Avaliar",null,"Verificar se verba compõe a base prividenciária"]
[8246,"Sexta Parte Sobre Adicional Local De Exercício – Ação Judicial","Comunicado DDPE/G-04, de 22/06/2012 => DOE: 27/06/2012","Avaliar",null,"Verificar se verba compõe a base prividenciária"]
[8247,"Adicional Sobre Vencimentos Integrais Exceto Insalubridade - Ação Judicial","Comunicado DDPE/G-04, de 22/06/2012 => DOE: 27/06/2012","Avaliar",null,"Verificar se verba compõe a base prividenciária"]
[8248,"Adicional Sobre Parcelas Variantes - Ação Judicial","Comunicado DDPE/G-04, de 22/06/2012 => DOE: 27/06/2012","Não Acatar"]
[8249,"Sexta Parte Sobre Parcelas Variantes - Ação Judicial","Comunicado DDPE/G-04, de 22/06/2012 => DOE: 27/06/2012","Não Acatar"]
[8250,"Reajuste 100% - LC 840/1997 - Ação Judicial","Comunicado DDPE/G-04, de 22/06/2012 => DOE: 27/06/2012","Avaliar","LC 840/1997 - Ação Judicial","Verificar se verba compõe a base prividenciária"]
[8251,"Adicionais Conferidos Até 18/12/08 Sobre Vencimentos Integrais - Ação Judicial","Comunicado DDPE/G-04, de 22/06/2012 => DOE: 27/06/2012","Avaliar",null,"Verificar se verba compõe a base prividenciária"]
[8252,"Gratificação De Função – LC 1019/07 – Inativos - Ação Judicial","Comunicado DDPE/G-04, de 22/06/2012 => DOE: 27/06/2012","Não Acatar"]
[8253,"Adicional De Insalubridade – LC 432/85 - Ação Judicial ","Comunicado DDPE/G-04, de 22/06/2012 => DOE: 27/06/2012","Avaliar","I - a Gratificação Geral, de que trata o § 5º do artigo 1º da Lei Complementar nº 901, de 12 de setembro de 2001;","Verificar se verba compõe a base prividenciária"]
[8254,"Gratificação De Informática Nível Elementar - Ação Judicial","Comunicado DDPE/G-04, de 22/06/2012 => DOE: 27/06/2012","Avaliar","II - a Gratificação de Função instituída pela Lei Complementar nº 1.019, de 15 de outubro de 2007.","Verificar se verba compõe a base prividenciária"]
[8255,"Adicional De Insalubridade 40% Sobre Salário Base E Executiva - Ação Judicial ","Comunicado DDPE/G-04, de 22/06/2012 => DOE: 27/06/2012","Avaliar",null,"Verificar se verba compõe a base prividenciária"]
[8256,"Gratificação Gestão E Controle Do Erário Estadual – Inativos – Com Décimos Incorporados - Ação Judicial","Comunicado DDPE/G-04, de 22/06/2012 => DOE: 27/06/2012","Acatar"]
[8257,"Diferença De Grau – LC 1080/08 - Ação Judicial","Comunicado DDPE/G-04, de 22/06/2012 => DOE: 27/06/2012","Avaliar","LC 1080/08 - Ação Judicial","Verificar se verba compõe a base prividenciária"]
[8258,"Diferença Salarial – LC 1085/08 - Ação Judicial ","Comunicado DDPE/G-04, de 22/06/2012 => DOE: 27/06/2012","Avaliar","LC 1085/08 - Ação Judicial ","Verificar se verba compõe a base prividenciária"]
[8259,"URV – Lei 8880/94 – Administração Centralizada - Ação Judicial","Comunicado DDPE/G-04, de 22/06/2012 => DOE: 27/06/2012","Avaliar","Lei  8880/94 – Administração Centralizada - Ação Judicial","Verificar se verba compõe a base prividenciária"]
[8260,"Adicional Local De Exercício – Inativo - Ação Judicial","Comunicado DDPE/G-04, de 22/06/2012 => DOE: 27/06/2012","Avaliar",null,"Verificar se verba compõe a base prividenciária"]
[8261,"Abono De Permanência – 11% - Ação Judicial ","Comunicado DDPE/G-04, de 22/06/2012 => DOE: 27/06/2012","Não Acatar"]
[8262,"Irredutibilidade De Vencimentos – LC 1122/2010 - Ação Judicial","Comunicado DDPE/G-04, de 22/06/2012 => DOE: 27/06/2012","Avaliar","LC 1122/2010 - Ação Judicial","Verificar se verba compõe a base prividenciária"]
[8263,"Reajuste Cruesp Sobre Adicional Doutorado/Mestrado - Ação Judicial","Comunicado DDPE/G-04, de 22/06/2012 => DOE: 27/06/2012","Avaliar",null,"Verificar se verba compõe a base prividenciária"]
[8264,"Abono De Permanência Sobre 13º Salário 11% - Ação Judicial ","Comunicado DDPE/G-04, de 22/06/2012 => DOE: 27/06/2012","Não Acatar"]
[8265,"Abono De Permanência Antecipação 13º Salário 11% - Ação Judicial ","Comunicado DDPE/G-04, de 22/06/2012 => DOE: 27/06/2012","Não Acatar"]
[8266,"Pró-Labore Artigo 13 – LC 439/85 - Ação Judicial","Comunicado DDPE/G-04, de 22/06/2012 => DOE: 27/06/2012","Não Acatar"]
[8267,"Adicional Sobre Vale Alimentação - Ação Judicial ","Comunicado DDPE/G-04, de 22/06/2012 => DOE: 27/06/2012","Não Acatar"]
[8268,"Sexta Parte Sobre Vencimentos Integrais Exceto Adicional Local De Exercício E Gratificação De Trabalho Curso Noturno - Ação Judicial","Comunicado DDPE/G-04, de 22/06/2012 => DOE: 27/06/2012","Não Acatar"]
[8269,"Adicional De Insalubridade Sobre Salário Mínimo Profissional Do Sindicato Dos Empregados Em Estabelecimentos De Serviços De Saúde - Ação Judicial ","Comunicado DDPE/G-04, de 22/06/2012 => DOE: 27/06/2012","Avaliar",null,"Verificar se verba compõe a base prividenciária"]
[8270,"Gratificação Executiva LC 1080/08 Com Vantagem Pessoal - Ação Judicial","Comunicado DDPE/G-04, de 22/06/2012 => DOE: 27/06/2012","Avaliar","LC 1080/08 Com Vantagem Pessoal - Ação Judicial","Verificar se verba compõe a base prividenciária"]
[8271,"Adicional De Insalubridade Convênio Sistema Único De Saúde – CLT - Ação Judicial","Comunicado DDPE/G-04, de 22/06/2012 => DOE: 27/06/2012","Acatar"]
[8272,"Incorporação De Décimos Da Gratificação De Comando Em Unidade Prisional - Ação Judicial","Comunicado DDPE/G-04, de 22/06/2012 => DOE: 27/06/2012","Acatar"]
[8273,"Sexta-Parte Sobre Plantões - Ação Judicial","Comunicado DDPE/G-04, de 22/06/2012 => DOE: 27/06/2012","Não Acatar"]
[8274,"Designação Em Cargo Vago - Ação Judicial ","Comunicado DDPE/G-04, de 22/06/2012 => DOE: 27/06/2012","Avaliar",null,"Verificar se verba compõe a base prividenciária"]
[8275,"Artigo 133 Diferença De Vencimento Para Executivo Público I - Ação Judicial ","Comunicado DDPE/G-04, de 22/06/2012 => DOE: 27/06/2012","Avaliar",null,"O servidor, com mais de cinco anos de efetivo exercício, que tenha exercido ou venha a exercer cargo ou função que lhe proporcione remuneração superior à do cargo de que seja titular, ou função para a qual foi admitido, incorporará um décimo dessa diferença, por ano, até o limite de dez décimos."]
[8276,"Danos Materiais - Ação Judicial ","Comunicado DDPE/G-04, de 22/06/2012 => DOE: 27/06/2012","Não Acatar"]
[8277,"Sexta Parte Sobre Vencimentos - Adicional Noturno - Ação Judicial ","Comunicado DDPE/G-04, de 22/06/2012 => DOE: 27/06/2012","Não Acatar"]
[8278,"Adicional Sobre Honorários De Academia De Polícia - Ação Judicial","Comunicado DDPE/G-04, de 22/06/2012 => DOE: 27/06/2012","Não Acatar"]
[8279,"Gratificação De Função – Hemocentro - Ação Judicial","Comunicado DDPE/G-04, de 22/06/2012 => DOE: 27/06/2012","Avaliar",null,"Verificar se verba compõe a base prividenciária"]
[8280,"Adicional Sobre A Gratificação Atividade Magistério - Ação Judicial","Comunicado DDPE/G-04, de 22/06/2012 => DOE: 27/06/2012","Não Acatar"]
[8281,"Gratificação Gestão E Controle Do Erário Estadual – Afastamento Tribunal Regional Eleitoral - Ação Judicial","Comunicado DDPE/G-04, de 22/06/2012 => DOE: 27/06/2012","Não Acatar"]
[8282,"Regime Especial De Trabalho Policial - Ação Judicial","Comunicado DDPE/G-04, de 22/06/2012 => DOE: 27/06/2012","Acatar"]
[8283,"Reflexo Salário Mínimo - Ação Judicial ","Comunicado DDPE/G-04, de 22/06/2012 => DOE: 27/06/2012","Não Acatar"]
[8284,"Adicional De Insalubridade - Afastamento Tribunal Regional Eleitoral - Ação Judicial","Comunicado DDPE/G-04, de 22/06/2012 => DOE: 27/06/2012","Não Acatar"]
[8285,"Vantagem Pessoal / Gratificações - Ação Judicial","Comunicado DDPE/G-04, de 22/06/2012 => DOE: 27/06/2012","Avaliar",null,"Verificar se verba compõe a base prividenciária"]
[8286,"Adicional Operacional Local - Ação Judicial","Comunicado DDP/G-15, de 30/09/2016 => DOE: 01/10/2016","Avaliar",null,"Verificar se verba compõe a base prividenciária"]
[8287,"Vale Transporte - Ação Judicial ","Comunicado DDPE/G-04, de 22/06/2012 => DOE: 27/06/2012","Não Acatar"]
[8288,"Salário Complemento Profissional - Ação Judicial","Comunicado DDPE/G-04, de 22/06/2012 => DOE: 27/06/2012","Avaliar",null,"Verificar se verba compõe a base prividenciária"]
[8289,"Adicional Sobre O Salário Complemento Profissional - Ação Judicial","Comunicado DDPE/G-04, de 22/06/2012 => DOE: 27/06/2012","Avaliar",null,"Verificar se verba compõe a base prividenciária"]
[8290,"Sexta Parte Sobre O Salário Complemento Profissional - Ação Judicial","Comunicado DDPE/G-04, de 22/06/2012 => DOE: 27/06/2012","Avaliar",null,"Verificar se verba compõe a base prividenciária"]
[8291,"Sexta Parte Sobre Salário Base - Ação Judicial ","Comunicado DDPE/G-04, de 22/06/2012 => DOE: 27/06/2012","Avaliar",null,"Verificar se verba compõe a base prividenciária"]
[8292,"Sexta Parte Sobre Salário Base E Adicional De Insalubridade - Ação Judicial ","Comunicado DDPE/G-04, de 22/06/2012 => DOE: 27/06/2012","Avaliar",null,"Verificar se verba compõe a base prividenciária"]
[8293,"Sexta Parte Sobre Vencimentos Integrais Exceto Adicional Por Tempo De Serviço - Ação Judicial","Comunicado DDPE/G-04, de 22/06/2012 => DOE: 27/06/2012","Avaliar",null,"Verificar se verba compõe a base prividenciária"]
[8294,"Sexta Parte Sobre Total Dos Vencimentos Mais Vale Alimentação Do Estado - Ação Judicial ","Comunicado DDPE/G-04, de 22/06/2012 => DOE: 27/06/2012","Não Acatar"]
[8295,"Adicional De Periculosidade Sobre Vencimentos Integrais – CLT - Ação Judicial","Comunicado DDPE/G-04, de 22/06/2012 => DOE: 27/06/2012","Acatar"]
[8296,"Sexta Parte Sobre Vencimentos Integrais Exceto Adicional Por Tempo De Serviço E Insalubridade - Ação Judicial ","Comunicado DDPE/G-04, de 22/06/2012 => DOE: 27/06/2012","Avaliar",null,"Verificar se verba compõe a base prividenciária"]
[8297,"Sexta Parte Sobre Vencimentos Integrais Com Plantões - Ação Judicial ","Comunicado DDPE/G-04, de 22/06/2012 => DOE: 27/06/2012","Não Acatar"]
[8298,"Sexta Parte Sobre Vencimentos Integrais Com Plantões Exceto Adicional Por Tempo De Serviço - Ação Judicial ","Comunicado DDPE/G-04, de 22/06/2012 => DOE: 27/06/2012","Não Acatar"]
[8299,"Sexta Parte Sobre Vencimentos Integrais Com Plantões Exceto Insalubridade - Ação Judicial ","Comunicado DDPE/G-04, de 22/06/2012 => DOE: 27/06/2012","Não Acatar"]
[8300,"Adicional De Insalubridade Sobre Piso De Operador De Raio X - Ação Judicial ","Comunicado DDPE/G-04, de 22/06/2012 => DOE: 27/06/2012","Avaliar",null,"Verificar se verba compõe a base prividenciária"]
[8301,"Vale Alimentação Fundação De Apoio Ao Ensino, Pesquisa E Assistência - Ação Judicial ","Comunicado DDPE/G-04, de 22/06/2012 => DOE: 27/06/2012","Não Acatar"]
[8302,"Prêmio De Desempenho Individual – Afastamento Tribunal Regional Eleitoral – Ação Judicial","Comunicado DDPE/G-04, de 22/06/2012 => DOE: 27/06/2012","Avaliar",null,"Verificar se verba compõe a base prividenciária"]
[8303,"Sexta Parte Sobre Vantagem Pessoal Engenheiro – Ação Judicial","Comunicado DDP/G-003, de 27/10/2014 => DOE: 29/10/2014","Avaliar",null,"Verificar se verba compõe a base prividenciária"]
[8304,"Complementação Celetista - Ação Judicial","Comunicado DDP/G-003, de 27/10/2014 => DOE: 29/10/2014","Avaliar",null,"Verificar se verba compõe a base prividenciária"]
[8305,"Adicional Por Tempo De Serviço Sobre Vencimentos Integrais Da Lei 5451/86 – Ação Judicial - PM","Comunicado DDP/G-003, de 27/10/2014 => DOE: 29/10/2014","Acatar"]
[8306,"Sexta Parte Sobre Os Vencimentos Integrais Da Lei 5451/86 - Ação Judicial - PM","Comunicado DDP/G-003, de 27/10/2014 => DOE: 29/10/2014","Avaliar","Lei  5451/86 - Ação Judicial - PM","Verificar se verba compõe a base prividenciária"]
[8307,"Reajuste Sobre Integrais Vencimentos – Cruesp (Conselho De Reitores Das Universidades Estaduais Paulistas) - Ação Judicial ","Comunicado DDP/G-003, de 27/10/2014 => DOE: 29/10/2014","Avaliar",null,"Verificar se verba compõe a base prividenciária"]
[8308,"Adicional Local De Exercício Sobre Padrão - Ação Judicial - PM","Comunicado DDP/G-003, de 27/10/2014 => DOE: 29/10/2014","Avaliar",null,"Verificar se verba compõe a base prividenciária"]
[8309,"Adicional Por Tempo De Serviço Sobre Adicional Local De Serviço – Ação Judicial - PM","Comunicado DDP/G-003, de 27/10/2014 => DOE: 29/10/2014","Avaliar",null,"Verificar se verba compõe a base prividenciária"]
[8310,"Sexta Parte Sobre O Adicional Local De Serviço - Ação Judicial - PM","Comunicado DDP/G-003, de 27/10/2014 => DOE: 29/10/2014","Avaliar",null,"Verificar se verba compõe a base prividenciária"]
[8311,"Adicional Por Tempo De Serviço Sobre Salário Base E Gratificação Executiva","Comunicado DDP/G-003, de 27/10/2014 => DOE: 29/10/2014","Avaliar",null,"Verificar se verba compõe a base prividenciária"]
[8312,"Sexta Parte Sobre Os Vencimentos Integrais Exceto O Adicional De Insalubridade - Ação Judicial","Comunicado DDP/G-003, de 27/10/2014 => DOE: 29/10/2014","Avaliar",null,"Verificar se verba compõe a base prividenciária"]
[8313,"Sexta Parte Sobre Os Vencimentos Integrais Exceto 13º Salário E Férias - Ação Judicial","Comunicado DDP/G-003, de 27/10/2014 => DOE: 29/10/2014","Avaliar",null,"Verificar se verba compõe a base prividenciária"]
[8314,"Sexta Parte Sobre Salário Base, Salário Complemento Médico/Cirurgião Dentista E Gratificação Executiva.","Comunicado DDP/G-003, de 27/10/2014 => DOE: 29/10/2014","Avaliar",null,"Verificar se verba compõe a base prividenciária"]
[8315,"Adicional Noturno Sobre Os Vencimentos Incluindo Vale Alimentação - Ação Judicial                                                    ","Comunicado DDP/G-003, de 27/10/2014 => DOE: 29/10/2014","Não Acatar"]
[8316,"Abono Por Satisfação Do Usuário - Afastamento Unidades De Atendimento Ao Público - Ação Judicial","Comunicado DDP/G-003, de 27/10/2014 => DOE: 29/10/2014","Não Acatar"]
[8317,"Vantagem Pessoal - LC 1080/2008 - Ação Judicial ","Comunicado DDP/G-003, de 27/10/2014 => DOE: 29/10/2014","Avaliar","LC 1080/2008 - Ação Judicial ","Verificar se verba compõe a base prividenciária"]
[8318,"Sexta Parte Sobre Os Vencimentos Integrais Incluindo Os Vales Alimentação Faepa E Do Estado","Comunicado DDP/G-003, de 27/10/2014 => DOE: 29/10/2014","Não Acatar"]
[8319,"Adicional Por Tempo De Serviço Sobre Gratificação De Representação - Ação Judicial","Comunicado DDP/G-003, de 27/10/2014 => DOE: 29/10/2014","Avaliar",null,"Verificar se verba compõe a base prividenciária"]
[8320,"Prêmio De Incentivo Ativo - Ação Judicial","Comunicado DDP/G-003, de 27/10/2014 => DOE: 29/10/2014","Avaliar",null,"Verificar se verba compõe a base prividenciária"]
[8321,"Sexta Parte Sobre Os Vencimentos Integrais Exceto A Gratificação Executiva","Comunicado DDP/G-003, de 27/10/2014 => DOE: 29/10/2014","Avaliar",null,"Verificar se verba compõe a base prividenciária"]
[8322,"Adicional De Tempo De Serviço Sobre Plantões De Enfermeiro","Comunicado DDP/G-003, de 27/10/2014 => DOE: 29/10/2014","Não Acatar"]
[8323,"Gratificação Geral – Ação Judicial","Comunicado DDP/G-003, de 27/10/2014 => DOE: 29/10/2014","Avaliar",null,"Verificar se verba compõe a base prividenciária"]
[8324,"Adicional Por Tempo De Serviço Sobre Premio De Produtividade Médica LC 1193/2013 - Ação Judicial","Comunicado DDP/G-003, de 27/10/2014 => DOE: 29/10/2014","Avaliar","LC 1193/2013 - Ação Judicial","Verificar se verba compõe a base prividenciária"]
[8325,"Sexta Parte Sobre Premio De Produtividade Medica LC 1193/13 - Ação Judicial","Comunicado DDP/G-003, de 27/10/2014 => DOE: 29/10/2014","Avaliar","LC 1193/13 - Ação Judicial","Verificar se verba compõe a base prividenciária"]
[8326,"Recálculo Do Adicional Por Tempo De Serviço Sobre A Gratificação Executiva, Reajuste Complementar E Premio De Desempenho Individual.","Comunicado DDP/G-003, de 27/10/2014 => DOE: 29/10/2014","Avaliar",null,"Verificar se verba compõe a base prividenciária"]
[8327,"Sexta Parte Sobre Vencimentos Integrais Exceto Adicional Local De Exercício- Agente Segurança Penitenciária - Ação Judicial","Comunicado DDP/G-003, de 27/10/2014 => DOE: 29/10/2014","Avaliar",null,"Verificar se verba compõe a base prividenciária"]
[8328,"Adicional Por Tempo De Serviço Sobre Gratificação Atividade De Escolta/Vigilância - Ação Judicial","Comunicado DDP/G-003, de 27/10/2014 => DOE: 29/10/2014","Avaliar",null,"Verificar se verba compõe a base prividenciária"]
[8329,"Recálculo Da Sexta Parte Sobre A Gratificação Por Atividade Da Polícia E Gratificação Pelo Desempenho Em Poupatempo - Ação Judicial ","Comunicado DDP/G-003, de 27/10/2014 => DOE: 29/10/2014","Avaliar",null,"Verificar se verba compõe a base prividenciária"]
[8330,"Premio Incentivo a Qualidade-Analista Planejamento Orçamento E Finanças Públicas-Ação Judicial","Comunicado DDP/G-003, de 27/10/2014 => DOE: 29/10/2014","Avaliar",null,"Verificar se verba compõe a base prividenciária"]
[8331,"Diferença Do Salário Profissional De 2 Salários Mínimo E O Salário Base Mais Gratificações – Ação Judicial","Comunicado DDP/G-003, de 27/10/2014 => DOE: 29/10/2014","Avaliar",null,"Verificar se verba compõe a base prividenciária"]
[8332,"Gratificação Extra Excetuando Férias E Décimo Terceiro - Ação Judicial","Comunicado DDP/G-003, de 27/10/2014 => DOE: 29/10/2014","Não Acatar"]
[8333,"Gratificação Assistência E Suporte A Saúde Excetuando Férias E Décimo Terceiro - Ação Judicial","Comunicado DDP/G-003, de 27/10/2014 => DOE: 29/10/2014","Não Acatar"]
[8334,"Gratificação Por Atividade De Polícia  Sobre Padrão - Ação Judicial - PM","Comunicado DDP/G-003, de 27/10/2014 => DOE: 29/10/2014","Avaliar",null,"Verificar se verba compõe a base prividenciária"]
[8335,"Adicional Por Tempo De Serviço Sobre Gratificação Por Atividade De Polícia - Ação Judicial - PM","Comunicado DDP/G-003, de 27/10/2014 => DOE: 29/10/2014","Avaliar",null,"Verificar se verba compõe a base prividenciária"]
[8336,"Sexta Parte Sobre Gratificação Por Atividade De Polícia - Ação Judicial -PM","Comunicado DDP/G-003, de 27/10/2014 => DOE: 29/10/2014","Avaliar",null,"Verificar se verba compõe a base prividenciária"]
[8337,"Adicional Por Tempo De Serviço Sobre 1 Salário Mínimo - Ação Judicial","Comunicado DDP/G-003, de 27/10/2014 => DOE: 29/10/2014","Avaliar",null,"Verificar se verba compõe a base prividenciária"]
[8338,"Adicional De Periculosidade Sobre O Salário Base Mais Gratificação Executiva","Comunicado DDP/G-003, de 27/10/2014 => DOE: 29/10/2014","Avaliar",null,"Verificar se verba compõe a base prividenciária"]
[8339,"Piso Engenheiro - 9 (Nove) Salários Mínimos – Ação Judicial","Comunicado DDP/G-003, de 27/10/2014 => DOE: 29/10/2014","Avaliar",null,"Verificar se verba compõe a base prividenciária"]
[8340,"Premio De Desempenho Individual - Ação Judicial","Comunicado DDP/G-003, de 27/10/2014 => DOE: 29/10/2014","Avaliar",null,"Verificar se verba compõe a base prividenciária"]
[8341,"Gratificação Fixa - Ação Judicial","Comunicado DDP/G-003, de 27/10/2014 => DOE: 29/10/2014","Avaliar",null,"Verificar se verba compõe a base prividenciária"]
[8342,"Salário Complemento - 3 Salários Mínimos - Ação Judicial","Comunicado DDP/G-003, de 27/10/2014 => DOE: 29/10/2014","Avaliar",null,"Verificar se verba compõe a base prividenciária"]
[8343,"Gratificação De Informática Sobre O Salário Mínimo - Ação Judicial","Comunicado DDP/G-003, de 27/10/2014 => DOE: 29/10/2014","Avaliar",null,"Verificar se verba compõe a base prividenciária"]
[8344,"Adicional Insalubridade - CLT Sobre Um Salário Mínimo Sem Congelar - Ação Judicial","Comunicado DDP/G-003, de 27/10/2014 => DOE: 29/10/2014","Avaliar",null,"Verificar se verba compõe a base prividenciária"]
[8345,"Sexta Parte Sobre O Prêmio De Incentivo A Qualidade - PIQ - Ação Judicial","Comunicado DDP/G-003, de 27/10/2014 => DOE: 29/10/2014","Avaliar",null,"Verificar se verba compõe a base prividenciária"]
[8346,"Sexta Parte Sobre Vencimentos Integrais Exceto Gratificação Executiva E Adicional De Insalubridade - Ação Judicial","Comunicado DDP/G-003, de 27/10/2014 => DOE: 29/10/2014","Avaliar",null,"Verificar se verba compõe a base prividenciária"]
[8347,"Restituição Gratificação Extra E Gratificação De Assistência E Suporte A Saúde - Diferença - Ação Judicial","Comunicado DDP/G-003, de 27/10/2014 => DOE: 29/10/2014","Avaliar",null,"Verificar se verba compõe a base prividenciária"]
[8348,"Adicional De Insalubridade Sobre Vale Alimentação - Ação Judicial","Comunicado DDP/G-003, de 27/10/2014 => DOE: 29/10/2014","Não Acatar"]
[8349,"Sexta Parte Sobre Salário Base E Gratificação Executiva - Ação Judicial ","Comunicado DDP/G-003, de 27/10/2014 => DOE: 29/10/2014","Avaliar",null,"Verificar se verba compõe a base prividenciária"]
[8350,"Auxilio Transporte - Ação Judicial - PM","Comunicado DDP/G-003, de 27/10/2014 => DOE: 29/10/2014","Não Acatar"]
[8351,"Adicional De Insalubridade Sobre Dois Salários Mínimos Do Estado - Ação Judicial","Comunicado DDP/G-003, de 27/10/2014 => DOE: 29/10/2014","Avaliar",null,"Verificar se verba compõe a base prividenciária"]
[8352,"Gratificação Por Atividade De Polícia - Gap","Comunicado DDP/G-003, de 27/10/2014 => DOE: 29/10/2014","Avaliar",null,"Verificar se verba compõe a base prividenciária"]
[8353,"Salário Complemento De Médico/Dentista Sobre 3 Salários Mínimos Sem Congelar - Ação Judicial","Comunicado DDP/G-003, de 27/10/2014 => DOE: 29/10/2014","Avaliar",null,"Verificar se verba compõe a base prividenciária"]
[8354,"Adicional De Insalubridade Sobre Três Salários Mínimos Sem Congelar - Ação Judicial","Comunicado DDP/G-003, de 27/10/2014 => DOE: 29/10/2014","Avaliar",null,"Verificar se verba compõe a base prividenciária"]
[8355,"Reajuste Cruesp Sobre Gratificação De Representação Incorporada - Ação Judicial","Comunicado DDP/G-003, de 27/10/2014 => DOE: 29/10/2014","Acatar"]
[8356,"Gratificação De Campo - Ação Judicial","Comunicado DDP/G-003, de 27/10/2014 => DOE: 29/10/2014","Avaliar",null,"Verificar se verba compõe a base prividenciária"]
[8357,"Vantagem Pessoal - Fumest - Ação Judicial","Comunicado DDP/G-003, de 27/10/2014 => DOE: 29/10/2014","Avaliar",null,"Verificar se verba compõe a base prividenciária"]
[8358,"Gratificação De Acumulo De Titularidade - Gat- Ação Judicial","Comunicado DDP/G-003, de 27/10/2014 => DOE: 29/10/2014","Avaliar",null,"Verificar se verba compõe a base prividenciária"]
[8359,"Sexta Parte Sobre Plantão De Enfermeiro - Ação Judicial ","Comunicado DDP/G-003, de 27/10/2014 => DOE: 29/10/2014","Não Acatar"]
[8360,"Gratificação De Compensação Orgânica - Ação Judicial","Comunicado DDP/G-003, de 27/10/2014 => DOE: 29/10/2014","Avaliar",null,"Verificar se verba compõe a base prividenciária"]
[8361,"Adicional Quinquenal Sobre A Gratificação Por Atividade De Polícia - Gap - Ação Judicial","Comunicado DDP/G-003, de 27/10/2014 => DOE: 29/10/2014","Avaliar",null,"Verificar se verba compõe a base prividenciária"]
[8362,"Sexta Parte Sobre Gap - Ação Judicial","Comunicado DDP/G-003, de 27/10/2014 => DOE: 29/10/2014","Avaliar",null,"Verificar se verba compõe a base prividenciária"]
[8363,"Gratificação Especial De Suporte À Saúde - Gess - Ação Judicial","Comunicado DDP/G-003, de 27/10/2014 => DOE: 29/10/2014","Avaliar",null,"Verificar se verba compõe a base prividenciária"]
[8364,"Gratificação Especial De Atividade - Gea - Ação Judicial","Comunicado DDP/G-003, de 27/10/2014 => DOE: 29/10/2014","Não Acatar"]
[8365,"Vale Alimentação - Vale Refeição - Ação Judicial ","Comunicado DDP/G-003, de 27/10/2014 => DOE: 29/10/2014","Não Acatar"]
[8366,"Recálculo Da Sexta Parte Sobre Comp/Gratificação Representação E Artigo 133 - Ação Judicial","Comunicado DDP/G-003, de 27/10/2014 => DOE: 29/10/2014","Avaliar",null,"O servidor, com mais de cinco anos de efetivo exercício, que tenha exercido ou venha a exercer cargo ou função que lhe proporcione remuneração superior à do cargo de que seja titular, ou função para a qual foi admitido, incorporará um décimo dessa diferença, por ano, até o limite de dez décimos."]
[8367,"Sexta Parte Sobre Artigo 133 E Gratificação Executiva - Ação Judicial","Comunicado DDP/G-003, de 27/10/2014 => DOE: 29/10/2014","Avaliar",null,"O servidor, com mais de cinco anos de efetivo exercício, que tenha exercido ou venha a exercer cargo ou função que lhe proporcione remuneração superior à do cargo de que seja titular, ou função para a qual foi admitido, incorporará um décimo dessa diferença, por ano, até o limite de dez décimos."]
[8368,"Adicional Sobre O Prêmio De Incentivo A Qualidade - Ação Judicial","Comunicado DDP/G-003, de 27/10/2014 => DOE: 29/10/2014","Avaliar",null,"Verificar se verba compõe a base prividenciária"]
[8369,"Recálculo Da Sexta Parte Sobre Artigo 133 Da Constituição Estadual de 1989 - Ação Judicial","Comunicado DDP/G-003, de 27/10/2014 => DOE: 29/10/2014","Avaliar",null,"O servidor, com mais de cinco anos de efetivo exercício, que tenha exercido ou venha a exercer cargo ou função que lhe proporcione remuneração superior à do cargo de que seja titular, ou função para a qual foi admitido, incorporará um décimo dessa diferença, por ano, até o limite de dez décimos."]
[8370,"Adicional De Periculosidade Sobre Os Vencimentos Integrais -CLT - Ação Judicial","Comunicado DDP/G-003, de 27/10/2014 => DOE: 29/10/2014","Avaliar",null,"Verificar se verba compõe a base prividenciária"]
[8371,"Sexta Parte Sobre O Prêmio De Incentivo À Produtividade - PIP - Ação Judicial","Comunicado DDP/G-003, de 27/10/2014 => DOE: 29/10/2014","Avaliar",null,"Verificar se verba compõe a base prividenciária"]
[8372,"Adicional Local De Serviço - Ale - Ação Judicial","Comunicado DDP/G-003, de 27/10/2014 => DOE: 29/10/2014","Avaliar",null,"Verificar se verba compõe a base prividenciária"]
[8373,"Adicional Quinquenal Sobre O Adicional Local De Serviço - Ação Judicial","Comunicado DDP/G-003, de 27/10/2014 => DOE: 29/10/2014","Avaliar",null,"Verificar se verba compõe a base prividenciária"]
[8374,"Sexta Parte Sobre O Adicional Local De Serviço - Ação Judicial","Comunicado DDP/G-003, de 27/10/2014 => DOE: 29/10/2014","Avaliar",null,"Verificar se verba compõe a base prividenciária"]
[8375,"Recálculo Da Sexta Parte Sobre Diferença Do Artigo 133 Da Constituição Estadual De 1989 E Adicional Local De Exercício - Ação Judicial","Comunicado DDP/G-003, de 27/10/2014 => DOE: 29/10/2014","Avaliar",null,"O servidor, com mais de cinco anos de efetivo exercício, que tenha exercido ou venha a exercer cargo ou função que lhe proporcione remuneração superior à do cargo de que seja titular, ou função para a qual foi admitido, incorporará um décimo dessa diferença, por ano, até o limite de dez décimos."]
[8376,"Descanso Semanal Remunerado Sobre Adicional Noturno - Ação Judicial","Comunicado DDP/G-003, de 27/10/2014 => DOE: 29/10/2014","Não Acatar"]
[8377,"Integração De Horas Extras - Ação Judicial","Comunicado DDP/G-003, de 27/10/2014 => DOE: 29/10/2014","Não Acatar"]
[8378,"Gratificação De Função - Lei 8482/93 - Ação Judicial","Comunicado DDP/G-003, de 27/10/2014 => DOE: 29/10/2014","Avaliar","Lei  8482/93 - Ação Judicial","Verificar se verba compõe a base prividenciária"]
[8379,"Diferença Salarial 8,5% - Engenheiro - Ação Judicial","Comunicado DDP/G-003, de 27/10/2014 => DOE: 29/10/2014","Avaliar",null,"Verificar se verba compõe a base prividenciária"]
[8380,"Sexta Parte Sobre Gratificação De Representação Não Incorporada - Ação Judicial","Comunicado DDP/G-003, de 27/10/2014 => DOE: 29/10/2014","Acatar"]
[8381,"Adicional Sobre Insalubridade E Periculosidade- Ação Judicial","Comunicado DDP/G-003, de 27/10/2014 => DOE: 29/10/2014","Avaliar",null,"Verificar se verba compõe a base prividenciária"]
[8382,"Adicional Local De Exercício LC 687/92 Qae/Qse - Afastamento Tribunal Regional Eleitoral ","Comunicado DDP/G-003, de 27/10/2014 => DOE: 29/10/2014","Não Acatar"]
[8383,"Adicional De Tempo De Serviço Sobre Vencimentos Integrais Com Plantões- Ação Judicial","Comunicado DDP/G-003, de 27/10/2014 => DOE: 29/10/2014","Não Acatar"]
[8384,"Retribuição Função De Ensino Professor Civil- Ação Judicial","Comunicado DDP/G-003, de 27/10/2014 => DOE: 29/10/2014","Avaliar",null,"Verificar se verba compõe a base prividenciária"]
[8385,"Adicional Insalubridade Sobre Salário Mínimo Regional Paulista- Ação Judicial","Comunicado DDP/G-003, de 27/10/2014 => DOE: 29/10/2014","Avaliar",null,"Verificar se verba compõe a base prividenciária"]
[8386,"Gratificação Atividade De Policia-Gap-50%- Ação Judicial","Comunicado DDP/G-003, de 27/10/2014 => DOE: 29/10/2014","Avaliar",null,"Verificar se verba compõe a base prividenciária"]
[8387,"Adicional De Tempo De Serviço Sobre Vencimentos Integrais Exceto Gratificação Especial Por Atividade Hospitalar - Geah - Ação Judicial","Comunicado DDP/G-003, de 27/10/2014 => DOE: 29/10/2014","Avaliar",null,"Verificar se verba compõe a base prividenciária"]
[8388,"Descanso Semanal Remunerado Sobre Plantões - Ação Judicial","Comunicado DDP/G-003, de 27/10/2014 => DOE: 29/10/2014","Não Acatar"]
[8389,"Adicional De Tempo De Serviço Sobre Gratificação Especial De Suporte A Saúde E Adicional Insalubridade-Ação Judicial","Comunicado DDP/G-003, de 27/10/2014 => DOE: 29/10/2014","Avaliar",null,"Verificar se verba compõe a base prividenciária"]
[8390,"Adicional De Tempo De Serviço Sobre Salário Base, Gratificação Executiva E Designação - Ação Judicial","Comunicado DDP/G-003, de 27/10/2014 => DOE: 29/10/2014","Avaliar",null,"Verificar se verba compõe a base prividenciária"]
[8391,"Quinquênios Sobre Vencimentos Integrais Exceto Adicional De Insalubridade/Periculosidade - Ação Judicial","Comunicado DDP/G-003, de 27/10/2014 => DOE: 29/10/2014","Avaliar",null,"Verificar se verba compõe a base prividenciária"]
[8392,"Adicional De Tempo De Serviço Sobre Gratificação Especial Atividade Prioritária E Estratégica -Geape-Ação Judicial","Comunicado DDP/G-003, de 27/10/2014 => DOE: 29/10/2014","Avaliar",null,"Verificar se verba compõe a base prividenciária"]
[8393,"Sexta Parte Sobre Piso Salário Reajuste Complementar - Ação Judicial","Comunicado DDP/G-14, de 28/09/2016 => DOE: 29/09/2016","Avaliar",null,"Verificar se verba compõe a base prividenciária"]
[8394,"Sexta Parte Sobre Vencimentos Integrais Exceto Gratificações E Adicional Tempo De Serviço - Ação Judicial","Comunicado DDP/G-14, de 28/09/2016 => DOE: 29/09/2016","Avaliar",null,"Verificar se verba compõe a base prividenciária"]
[8395,"Pensão Mensal (Indenização) - Ação Judicial","Comunicado DDP/G-14, de 28/09/2016 => DOE: 29/09/2016","Avaliar",null,"Verificar se verba compõe a base prividenciária"]
[8396,"Adicional Tempo De Serviço Sobre Vencimentos Integrais Exceto Gratificação Executiva- Ação Judicial","Comunicado DDP/G-14, de 28/09/2016 => DOE: 29/09/2016","Avaliar",null,"Verificar se verba compõe a base prividenciária"]
[8397,"Adicional De Direção Da Atividade De Polícia Judiciária - Inativo - Lei Complementar 1249/2014 - Ação Judicial ","Comunicado DDP/G-14, de 28/09/2016 => DOE: 29/09/2016","Acatar"]
[8398,"Sexta Parte Sobre Gratificação Prêmio Desempenho Individual -Ação Judicial","Comunicado DDP/G-14, de 28/09/2016 => DOE: 29/09/2016","Avaliar",null,"Verificar se verba compõe a base prividenciária"]
[8399,"Adicional Tempo De Serviço Sobre Vencimentos Sobre Piso Salário Reajuste Complementar- Ação Judicial","Comunicado DDP/G-14, de 28/09/2016 => DOE: 29/09/2016","Avaliar",null,"Verificar se verba compõe a base prividenciária"]
[8400,"Adicional Tempo De Serviço Sobre Vencimentos Sobre Gratificação Executiva/ Gratificação Especial Atividade Hospital – Ação Judicial","Comunicado DDP/G-14, de 28/09/2016 => DOE: 29/09/2016","Avaliar",null,"Verificar se verba compõe a base prividenciária"]
[8401,"Gratificação Comando Unidade Prisional - Ação Judicial","Comunicado DDP/G-14, de 28/09/2016 => DOE: 29/09/2016","Avaliar",null,"Verificar se verba compõe a base prividenciária"]
[8402,"Pró Labore Lei Complementar 1080/08 - Artigo 15- Ação Judicial","Comunicado DDP/G-14, de 28/09/2016 => DOE: 29/09/2016","Não Acatar"]
[8403,"Diferença Dois Salários Mínimos Sobre Base, Gratificação Especial para Atividade Hospitalar, Gratificação Executiva Exceto Adicional De Insalubridade- Ação Judicial","Comunicado DDP/G-14, de 28/09/2016 => DOE: 29/09/2016","Avaliar",null,"Verificar se verba compõe a base prividenciária"]
[8404,"Diferença Dois Salários Mínimos Sobre Base, Gratificações, Adicional Tempo De Serviço, E Adicional De Insalubridade - Ação Judicial","Comunicado DDP/G-14, de 28/09/2016 => DOE: 29/09/2016","Avaliar",null,"Verificar se verba compõe a base prividenciária"]
[8405,"Prêmio de Aniversário- Ação Judicial","Comunicado DDP/G-14, de 28/09/2016 => DOE: 29/09/2016","Não Acatar"]
[8406,"Adicional Tempo De Serviço Sobre Gratificação Executiva, Artigo 133 Da Constituição Estadual/89- Ação Judicial","Comunicado DDP/G-14, de 28/09/2016 => DOE: 29/09/2016","Avaliar",null,"O servidor, com mais de cinco anos de efetivo exercício, que tenha exercido ou venha a exercer cargo ou função que lhe proporcione remuneração superior à do cargo de que seja titular, ou função para a qual foi admitido, incorporará um décimo dessa diferença, por ano, até o limite de dez décimos."]
[8407,"Sexta Parte Sobre Salario Base E Adicional Tempo De Serviço - Ação Judicial","Comunicado DDP/G-14, de 28/09/2016 => DOE: 29/09/2016","Avaliar",null,"Verificar se verba compõe a base prividenciária"]
[8408,"Adicional Tempo De Serviço Sobre Gratificação Pelo Desempenho E Apoio A Atividade Periciais E De Assistência A Saúde – Ação Judicial ","Comunicado DDP/G-14, de 28/09/2016 => DOE: 29/09/2016","Avaliar",null,"Verificar se verba compõe a base prividenciária"]
[8409,"Gratificação Gestão Controle Erário Estadual- Ação Judicial","Comunicado DDP/G-14, de 28/09/2016 => DOE: 29/09/2016","Avaliar",null,"Verificar se verba compõe a base prividenciária"]
[8410,"Diferença de Vencimentos - Companhia de Saneamento Básico do Estado de São Paulo - Ação Judicial","Comunicado DDP/G-14, de 28/09/2016 => DOE: 29/09/2016","Avaliar",null,"Verificar se verba compõe a base prividenciária"]
[8411,"Adicional Tempo De Serviço Sobre 50% Prêmio De Desempenho Individual- Ação Judicial","Comunicado DDP/G-14, de 28/09/2016 => DOE: 29/09/2016","Avaliar",null,"Verificar se verba compõe a base prividenciária"]
[8412,"Sexta Parte Sobre 50% Prêmio De Desempenho Individual - Ação Judicial","Comunicado DDP/G-14, de 28/09/2016 => DOE: 29/09/2016","Avaliar",null,"Verificar se verba compõe a base prividenciária"]
[8413,"Adicional Tempo De Serviço Sobre Gratificação Especial De Suporte A Saúde- Ação Judicial ","Comunicado DDP/G-14, de 28/09/2016 => DOE: 29/09/2016","Avaliar",null,"Verificar se verba compõe a base prividenciária"]
[8414,"Adicional Tempo De Serviço Sobre Salário Mínimo Regional Paulista - Ação Judicial","Comunicado DDP/G-14, de 28/09/2016 => DOE: 29/09/2016","Avaliar",null,"Verificar se verba compõe a base prividenciária"]
[8415,"Sexta Parte Sobre Plantão Médico - Ação Judicial","Comunicado DDP/G-14, de 28/09/2016 => DOE: 29/09/2016","Não Acatar"]
[8416,"Sexta Parte Sobre Gratificação Pelo Desempenho E Apoio A Atividade Periciais E De Assistência A Saúde - Ação Judicial ","Comunicado DDP/G-14, de 28/09/2016 => DOE: 29/09/2016","Avaliar",null,"Verificar se verba compõe a base prividenciária"]
[8417,"Gratificação Executiva - Ação Judicial","Comunicado DDP/G-14, de 28/09/2016 => DOE: 29/09/2016","Avaliar",null,"Verificar se verba compõe a base prividenciária"]
[8418,"Sexta Parte Sobre  Vencimentos Integrais Exceto Vantagem Pessoal - Ação Judicial","Comunicado DDP/G-14, de 28/09/2016 => DOE: 29/09/2016","Avaliar",null,"Verificar se verba compõe a base prividenciária"]
[8419,"Artigo 133 – Diferença de Vencimentos Salário Base - Ação Judicial","Comunicado DDP/G-14, de 28/09/2016 => DOE: 29/09/2016","Avaliar",null,"O servidor, com mais de cinco anos de efetivo exercício, que tenha exercido ou venha a exercer cargo ou função que lhe proporcione remuneração superior à do cargo de que seja titular, ou função para a qual foi admitido, incorporará um décimo dessa diferença, por ano, até o limite de dez décimos."]
[8420,"Adicional Tempo De Serviço Sobre Artigo 133, Gratificação Executiva, Gratificação De Representação, Pró-Labore, e Adicional De Periculosidade - Ação Judicial","Comunicado DDP/G-14, de 28/09/2016 => DOE: 29/09/2016","Avaliar",null,"O servidor, com mais de cinco anos de efetivo exercício, que tenha exercido ou venha a exercer cargo ou função que lhe proporcione remuneração superior à do cargo de que seja titular, ou função para a qual foi admitido, incorporará um décimo dessa diferença, por ano, até o limite de dez décimos."]
[8421,"Diferença Salarial Sobre Dois Salários Mínimos Regional Paulista- Ação Judicial","Comunicado DDP/G-14, de 28/09/2016 => DOE: 29/09/2016","Avaliar",null,"Verificar se verba compõe a base prividenciária"]
[8422,"Adicional Tempo De Serviço Sobre Gratificação Atendimento Ao Publico- Ação Judicial","Comunicado DDP/G-14, de 28/09/2016 => DOE: 29/09/2016","Avaliar",null,"Verificar se verba compõe a base prividenciária"]
[8423,"Adicional Tempo De Serviço Sobre Vantagem Pessoal - Ação Judicial","Comunicado DDP/G-14, de 28/09/2016 => DOE: 29/09/2016","Avaliar",null,"Verificar se verba compõe a base prividenciária"]
[8424,"Adicional Tempo De Serviço Sobre Adicional De Periculosidade- Ação Judicial","Comunicado DDP/G-14, de 28/09/2016 => DOE: 29/09/2016","Avaliar",null,"Verificar se verba compõe a base prividenciária"]
[8425,"Adicional Anterior Emenda Constitucional 20/98 Sobre Vencimentos Integrais - Ação Judicial","Comunicado DDP/G-14, de 28/09/2016 => DOE: 29/09/2016","Avaliar",null,"Verificar se verba compõe a base prividenciária"]
[8426,"Sexta Parte Sobre Gratificação Especial De Suporte A Saúde - Ação Judicial","Comunicado DDP/G-14, de 28/09/2016 => DOE: 29/09/2016","Avaliar",null,"Verificar se verba compõe a base prividenciária"]
[8427,"Quinquênio Sobre Vantagem Pessoal Nominalmente Identificada - Lei Complementar 1059/08 - Ação Judicial","Comunicado DDP/G-14, de 28/09/2016 => DOE: 29/09/2016","Avaliar","Lei  Complementar 1059/08 - Ação Judicial","Verificar se verba compõe a base prividenciária"]
[8428,"Sexta Parte Sobre Vantagem Pessoal Nominalmente Identificada - Lei Complementar 1059/08 - Ação Judicial","Comunicado DDP/G-14, de 28/09/2016 => DOE: 29/09/2016","Avaliar","Lei  Complementar 1059/08 - Ação Judicial","Verificar se verba compõe a base prividenciária"]
[8429,"Adicional Tempo De Serviço Sobre Integrais Vencimentos Exceto Prêmio De Desempenho Individual - Ação Judicial","Comunicado DDP/G-14, de 28/09/2016 => DOE: 29/09/2016","Avaliar",null,"Verificar se verba compõe a base prividenciária"]
[8430,"Parcela De Irredutibilidade - Ação Judicial","Comunicado DDP/G-14, de 28/09/2016 => DOE: 29/09/2016","Avaliar",null,"Verificar se verba compõe a base prividenciária"]
[8431,"Adicional De Insalubridade- CLT - Ação Judicial","Comunicado DDP/G-14, de 28/09/2016 => DOE: 29/09/2016","Avaliar",null,"Verificar se verba compõe a base prividenciária"]
[8432,"Prêmio de Incentivo - Ativo - Ação Judicial","Comunicado DDP/G-14, de 28/09/2016 => DOE: 29/09/2016","Avaliar",null,"Verificar se verba compõe a base prividenciária"]
[8433,"Sexta Parte Sobre Gratificação Especial Por Atividade Hospitalar - Ação Judicial","Comunicado DDP/G-14, de 28/09/2016 => DOE: 29/09/2016","Avaliar",null,"Verificar se verba compõe a base prividenciária"]
[8434,"Sexta Parte Sobre Gratificação Comando Unidade Prisional - Ação Judicial ","Comunicado DDP/G-14, de 28/09/2016 => DOE: 29/09/2016","Avaliar",null,"Verificar se verba compõe a base prividenciária"]
[8435,"Sexta Parte Sobre Pro Labore - Lei Complementar 10168/68 - Ação Judicial","Comunicado DDP/G-14, de 28/09/2016 => DOE: 29/09/2016","Não Acatar"]
[8436,"Salário Profissional - Dois Salários Mínimos - Ação Judicial","Comunicado DDP/G-14, de 28/09/2016 => DOE: 29/09/2016","Avaliar",null,"Verificar se verba compõe a base prividenciária"]
[8437,"Horas Extras - Ação Judicial","Comunicado DDP/G-14, de 28/09/2016 => DOE: 29/09/2016","Não Acatar"]
[8438,"Gratificação Executiva - Redução De 50% - Ação Judicial","Comunicado DDP/G-14, de 28/09/2016 => DOE: 29/09/2016","Avaliar",null,"Verificar se verba compõe a base prividenciária"]
[8439,"Adicional De Insalubridade Sobre Vantagem Pessoal - Ação Judicial","Comunicado DDP/G-14, de 28/09/2016 => DOE: 29/09/2016","Avaliar",null,"Verificar se verba compõe a base prividenciária"]
[8440,"Sexta Parte Sobre 50% Do Prêmio De Incentivo A Qualidade - Ação Judicial","Comunicado DDP/G-14, de 28/09/2016 => DOE: 29/09/2016","Avaliar",null,"Verificar se verba compõe a base prividenciária"]
[8441,"Sexta Parte Sobre Adicional De Insalubridade - Ação Judicial","Comunicado DDP/G-14, de 28/09/2016 => DOE: 29/09/2016","Avaliar",null,"Verificar se verba compõe a base prividenciária"]
[8442,"Salário Reajustado Plano Inflacionário Federal/ Lei 8177/91 - Ação Judicial","Comunicado DDP/G-14, de 28/09/2016 => DOE: 29/09/2016","Avaliar","Lei  8177/91 - Ação Judicial","Verificar se verba compõe a base prividenciária"]
[8443,"Recálculo Sexta Parte Sobre Artigo 25 Disposições Constitucionais Transitórias/ Artigo 26 - Ação Judicial ","Comunicado DDP/G-14, de 28/09/2016 => DOE: 29/09/2016","Avaliar",null,"Verificar se verba compõe a base prividenciária"]
[8444,"Recálculo Sexta Parte Sobre Artigo 26 Decreto 11/70 Diferença de Vencimentos- Ação Judicial","Comunicado DDP/G-14, de 28/09/2016 => DOE: 29/09/2016","Avaliar","decreto  11/70 Diferença de Vencimentos- Ação Judicial","Verificar se verba compõe a base prividenciária"]
[8445,"Quinquênio Sobre Vencimentos Integrais Adquiridos Antes da Vigência Da Lei Complementar 1080 - Ação Judicial","Comunicado DDP/G-14, de 28/09/2016 => DOE: 29/09/2016","Avaliar","Lei  Complementar 1080 - Ação Judicial","Verificar se verba compõe a base prividenciária"]
[8446,"Adicional Tempo De Serviço Sobre Gratificação Executiva/ Plantão - Ação Judicial ","Comunicado DDP/G-14, de 28/09/2016 => DOE: 29/09/2016","Não Acatar"]
[8447,"Adicional Tempo De Serviço Sobre Vencimentos Integrais Exceto Adicional Local De Exercício/ Gratificação Apoio Escolar / Adicional De Insalubridade - Ação Judicial","Comunicado DDP/G-14, de 28/09/2016 => DOE: 29/09/2016","Avaliar",null,"Verificar se verba compõe a base prividenciária"]
[8448,"Parcela Suplementar Nominal - Ação Judicial","Comunicado DDP/G-14, de 28/09/2016 => DOE: 29/09/2016","Avaliar",null,"Verificar se verba compõe a base prividenciária"]
[8449,"Adicional Tempo De Serviço Sobre Prêmio De Incentivo A Produtividade E Qualidade- Ação Judicial","Comunicado DDP/G-14, de 28/09/2016 => DOE: 29/09/2016","Avaliar",null,"Verificar se verba compõe a base prividenciária"]
[8450,"Sexta Parte Sobre Prêmio Incentivo A Produtividade E Qualidade- Ação Judicial","Comunicado DDP/G-14, de 28/09/2016 => DOE: 29/09/2016","Avaliar",null,"Verificar se verba compõe a base prividenciária"]
[8451,"Adic. Tempo De Serviço Sobre Venc.  Integrais Exceto Adicional Local Exercício/ Gratif.  Desemp. de Atividade No Poupatempo e Adicional de Insalubridade - Ação Judicial","Comunicado DDP/G-14, de 28/09/2016 => DOE: 29/09/2016","Avaliar",null,"Verificar se verba compõe a base prividenciária"]
[8452,"Sexta Parte Sobre Salário Base, Salario Complemento, Salario Mínimo, Adicional Tempo De Serviço E Adicional De Insalubridade- Ação Judicial","Comunicado DDP/G-14, de 28/09/2016 => DOE: 29/09/2016","Avaliar",null,"Verificar se verba compõe a base prividenciária"]
[8453,"Sexta Parte Sobre Unidade Real De Valor Lei Complementar 8880/94 - Ação Judicial","Comunicado DDP/G-14, de 28/09/2016 => DOE: 29/09/2016","Avaliar","Lei  Complementar 8880/94 - Ação Judicial","Verificar se verba compõe a base prividenciária"]
[8454,"Adicional Tempo De Serviço Sobre Gratificação Trabalho Curso Noturno - Ação Judicial","Comunicado DDP/G-14, de 28/09/2016 => DOE: 29/09/2016","Não Acatar"]
[8455,"Adicional Tempo De Serviço Sobre Artigo 26 - Disposições Constitucionais Transitórias - CE-Diferença De Vencimentos- Ação Judicial","Comunicado DDP/G-14, de 28/09/2016 => DOE: 29/09/2016","Avaliar",null,"Verificar se verba compõe a base prividenciária"]
[8456,"Sexta Parte Sobre Artigo 25 CE/ Artigo 26 - Decreto Lei Complementar 11/70- Ação Judicial","Comunicado DDP/G-14, de 28/09/2016 => DOE: 29/09/2016","Avaliar","Lei  Complementar 11/70- Ação Judicial","Verificar se verba compõe a base prividenciária"]
[8457,"Ad. Tempo De Serviço Sobre Venc. Integrais Exceto Adic. Local De Exercício/ Adic. De Insalubridade/ Prêmio Incentivo A Qualidade E Grat.  Especial Por Atividade Hospitalar- Ação Judicial","Comunicado DDP/G-14, de 28/09/2016 => DOE: 29/09/2016","Avaliar",null,"Verificar se verba compõe a base prividenciária"]
[8458,"Adicional Tempo De Serviço Sobre Vencimentos Integrais Exceto Adicional Local De Exercício, Gratificação De Representação E Premio Incentivo A Qualidade - Ação Judicial.","Comunicado DDP/G-14, de 28/09/2016 => DOE: 29/09/2016","Avaliar",null,"Verificar se verba compõe a base prividenciária"]
[8459,"Adicional Tempo De Serviço Sobre Gratificação Executiva E Adicional De Insalubridade - Ação Judicial","Comunicado DDP/G-14, de 28/09/2016 => DOE: 29/09/2016","Avaliar",null,"Verificar se verba compõe a base prividenciária"]
[8460,"Adicional Tempo De Serviço Sobre Adicional de Transporte - Ação Judicial","Comunicado DDP/G-14, de 28/09/2016 => DOE: 29/09/2016","Não Acatar"]
[8461,"Adicional Sobre Pró-labore - Lei 10.168/68 - Ação Judicial","Comunicado DDP/G-14, de 28/09/2016 => DOE: 29/09/2016","Não Acatar"]
[8462,"Adicional Sobre Sexta-Parte - Cumulativo - Ação Judicial","Comunicado DDP/G-14, de 28/09/2016 => DOE: 29/09/2016","Avaliar",null,"Verificar se verba compõe a base prividenciária"]
[8463,"Artigo 133 Sobre Prêmio De Incentivo – Ação Judicial","Comunicado DDP/G-14, de 28/09/2016 => DOE: 29/09/2016","Avaliar",null,"O servidor, com mais de cinco anos de efetivo exercício, que tenha exercido ou venha a exercer cargo ou função que lhe proporcione remuneração superior à do cargo de que seja titular, ou função para a qual foi admitido, incorporará um décimo dessa diferença, por ano, até o limite de dez décimos."]
[8464,"Sexta Parte Sobre Vencimentos Integrais Exceto Gratificação De Desempenho E Apoio A Assistência Medica Ao Servidor Publico Estadual– Ação Judicial","Comunicado DDP/G-14, de 28/09/2016 => DOE: 29/09/2016","Avaliar",null,"Verificar se verba compõe a base prividenciária"]
[8465,"Adicional Tempo De Serviço Sobre Prêmio Desempenho Individual - Ação Judicial","Comunicado DDP/G-14, de 28/09/2016 => DOE: 29/09/2016","Avaliar",null,"Verificar se verba compõe a base prividenciária"]
[8466,"Gratificação Executiva - Diferença Entre Funções - Ação Judicial","Comunicado DDP/G-14, de 28/09/2016 => DOE: 29/09/2016","Avaliar",null,"Verificar se verba compõe a base prividenciária"]
[8467,"Descanso Semanal Remunerado Sobre Horas Extras - Ação Judicial","Comunicado DDP/G-14, de 28/09/2016 => DOE: 29/09/2016","Não Acatar"]
[8468,"Uma Hora Extra Noturna - Ação Judicial ","Comunicado DDP/G-14, de 28/09/2016 => DOE: 29/09/2016","Não Acatar"]
[8469,"Adicional Tempo De Serviço Sobre Plano Suplementar Nominal- Ação Judicial","Comunicado DDP/G-14, de 28/09/2016 => DOE: 29/09/2016","Avaliar",null,"Verificar se verba compõe a base prividenciária"]
[8470,"Sexta Parte Sobre Plano Suplementar Nominal - Ação Judicial","Comunicado DDP/G-14, de 28/09/2016 => DOE: 29/09/2016","Avaliar",null,"Verificar se verba compõe a base prividenciária"]
[8471,"Vale Alimentação - Ação Judicial","Comunicado DDP/G-14, de 28/09/2016 => DOE: 29/09/2016","Não Acatar"]
[8472,"Sexta Parte Sobre Vencimentos Integrais Exceto Prêmio Desempenho Individual - Ação Judicial","Comunicado DDP/G-14, de 28/09/2016 => DOE: 29/09/2016","Avaliar",null,"Verificar se verba compõe a base prividenciária"]
[8473,"Adicional Sobre Integrais-Resolução CC138/12-Ação Judicial","Comunicado DDP/G-14, de 28/09/2016 => DOE: 29/09/2016","Acatar"]
[8474,"Sexta Parte Sobre Integrais-Resolução CC 138/12- Ação Judicial ","Comunicado DDP/G-14, de 28/09/2016 => DOE: 29/09/2016","Acatar"]
[8475,"Adicional Sobre Vencimentos Integrais Para Categoria \"O\" - Ação Judicial","Comunicado DDP/G-14, de 28/09/2016 => DOE: 29/09/2016","Avaliar",null,"não há referência para avaliação"]
[8476,"Sexta Parte Sobre Vencimentos Integrais Para Categoria \"O\" - Ação Judicial","Comunicado DDP/G-14, de 28/09/2016 => DOE: 29/09/2016","Acatar"]
[8477,"Adicional Tempo Serviço Sobre Designação Artigo 22-Lc 444-Ação Judicial","Comunicado DDP/G-14, de 28/09/2016 => DOE: 29/09/2016","Acatar"]
[8478,"Sexta Parte Sobre Designação Artigo 22 - Lc 444-Ação Judicial ","Comunicado DDP/G-14, de 28/09/2016 => DOE: 29/09/2016","Acatar"]
[8479,"Adicional Tempo De Serviço Sobre Vencimentos Integrais E Vale Alimentação - Ação Judicial","Comunicado DDP/G-14, de 28/09/2016 => DOE: 29/09/2016","Avaliar",null,"Verificar se verba compõe a base prividenciária"]
[8480,"Incorporação De Adicional Local De Exercício Sobre Salário Base/Regime Especial Trabalho Policial - Ação Judicial","Comunicado DDP/G-14, de 28/09/2016 => DOE: 29/09/2016","Acatar"]
[8481,"50% Adicional Tempo De Serviço Sobre Prêmio Incentivo -Inativo-Ação Judicial","Comunicado DDP/G-14, de 28/09/2016 => DOE: 29/09/2016","Avaliar",null,"Verificar se verba compõe a base prividenciária"]
[8482,"50% Sexta Parte Sobre Prêmio Incentivo-Inativo - Ação Judicial","Comunicado DDP/G-14, de 28/09/2016 => DOE: 29/09/2016","Acatar"]
[8483,"Premio De Incentivo - Pin - 13 Salário - Ação Judicial","Comunicado DDP/G-14, de 28/09/2016 => DOE: 29/09/2016","Não Acatar"]
[8484,"Sexta Parte Sobre Salário Base/ Adicional De Insalubridade E Gratificação Executiva- Ação Judicial","Comunicado DDP/G-14, de 28/09/2016 => DOE: 29/09/2016","Avaliar",null,"Verificar se verba compõe a base prividenciária"]
[8485,"Adicional Tempo De Serviço Sobre Vencimentos Integrais Exceto Adicional De Insalubridade-Resolução CC 138/12- Ação Judicial","Comunicado DDP/G-14, de 28/09/2016 => DOE: 29/09/2016","Acatar",null,"Somente para área da Saúde"]
[8486,"Adicional Tempo De Serviço Sobre Limite De Quantidade-Resolução Cc138/12- Ação Judicial","Comunicado DDP/G-14, de 28/09/2016 => DOE: 29/09/2016","Acatar"]
[8487,"Adicional De Tempo De Serviço Sobre Vencimentos Integrais Exceto Adicional De Insalubridade/ Artigo 133/Premio De Desempenho Individual - Ação Judicial","Comunicado DDP/G-14, de 28/09/2016 => DOE: 29/09/2016","Avaliar",null,"O servidor, com mais de cinco anos de efetivo exercício, que tenha exercido ou venha a exercer cargo ou função que lhe proporcione remuneração superior à do cargo de que seja titular, ou função para a qual foi admitido, incorporará um décimo dessa diferença, por ano, até o limite de dez décimos."]
[8488,"Sexta Parte Sobre Vencimentos Integrais Exceto Adicional De Insalubridade/ Artigo 133/ Prêmio De Desempenho Individual - Ação Judicial ","Comunicado DDP/G-14, de 28/09/2016 => DOE: 29/09/2016","Avaliar",null,"O servidor, com mais de cinco anos de efetivo exercício, que tenha exercido ou venha a exercer cargo ou função que lhe proporcione remuneração superior à do cargo de que seja titular, ou função para a qual foi admitido, incorporará um décimo dessa diferença, por ano, até o limite de dez décimos."]
[8489,"Premio De Incentivo Especial - Inativo- Ação Judicial","Comunicado DDP/G-14, de 28/09/2016 => DOE: 29/09/2016","Acatar"]
[8490,"Prêmio De Valorização - Inativo - Ação Judicial","Comunicado DDP/G-14, de 28/09/2016 => DOE: 29/09/2016","Acatar"]
[8491,"Sexta Parte Sobre Vencimentos Integrais  Exceto Adicional Tempo De Serviço- Resolução CC 138/12 - Ação Judicial","Comunicado DDP/G-14, de 28/09/2016 => DOE: 29/09/2016","Acatar"]
[8492,"Descanso Semanal Remunerado Sobre Horas Extras - Área Médica -Ação Judicial ","Comunicado DDP/G-14, de 28/09/2016 => DOE: 29/09/2016","Não Acatar"]
[8493,"Adicional De Tempo De Serviço Sobre 50% Prêmio Incentivo A Qualidade - Lei 804/95- Ação Judicial ","Comunicado DDP/G-14, de 28/09/2016 => DOE: 29/09/2016","Avaliar","Lei  804/95- Ação Judicial ","Verificar se verba compõe a base prividenciária"]
[8494,"Incorporação De Décimos Da Gratificação Comando Unidade Prisional De Funções Específicas - Ação Judicial","Comunicado DDP/G-14, de 28/09/2016 => DOE: 29/09/2016","Acatar"]
[8495,"Gratificação Pelo Desempenho E Apoio Às Atividades Periciais E De Assistência À Saúde - Ação Judicial","Comunicado DDP/G-14, de 28/09/2016 => DOE: 29/09/2016","Avaliar",null,"Verificar se verba compõe a base prividenciária"]
[8496,"Sexta Parte Sobre Integrais Exceto Adicional De Insalubridade - Resolução CC 138/12 - Ação Judicial","Comunicado DDP/G-14, de 28/09/2016 => DOE: 29/09/2016","Avaliar",null,"Verificar se verba compõe a base prividenciária"]
[8497,"Adicional Por Tempo De Serviço Sobre Art. 133 -  Pro Labore Específico - Ação Judicial","Comunicado DDP/G-14, de 28/09/2016 => DOE: 29/09/2016","Não Acatar"]
[8498,"Sexta Parte Sobre Vencimentos Integrais Exceto Gratificação Executiva – Resolução CC38/12 - Ação Judicial","Comunicado DDP/G-14, de 28/09/2016 => DOE: 29/09/2016","Avaliar",null,"Verificar se verba compõe a base prividenciária"]
[8499,"Adicional Por Tempo De Serviço Sobre Salário Base, Piso E Gratificação Executiva - Ação Judicial","Comunicado DDP/G-14, de 28/09/2016 => DOE: 29/09/2016","Avaliar",null,"Verificar se verba compõe a base prividenciária"]
[8500,"30% De Adicional De Periculosidade Sobre Salário Base - Ação Judicial","Comunicado DDP/G-14, de 28/09/2016 => DOE: 29/09/2016","Avaliar",null,"Verificar se verba compõe a base prividenciária"]
[8501,"Insalubridade Sobre Salário Base E Gratificação Habituais - Ação Judicial","Comunicado DDP/G-14, de 28/09/2016 => DOE: 29/09/2016","Avaliar",null,"Verificar se verba compõe a base prividenciária"]
[8502,"Sexta Parte Sobre Salário Base, Adicional Tempo De Serviço E Gratificação Executiva - Ação Judicial","Comunicado DDP/G-14, de 28/09/2016 => DOE: 29/09/2016","Avaliar",null,"Verificar se verba compõe a base prividenciária"]
[8503,"Unidade Real De Valor Sobre Vencimentos Integrais - Ação Judicial ","Comunicado DDP/G-14, de 28/09/2016 => DOE: 29/09/2016","Avaliar",null,"Verificar se verba compõe a base prividenciária"]
[8504,"Abono Lei Complementar 8178/91 - Ação Judicial","Comunicado DDP/G-14, de 28/09/2016 => DOE: 29/09/2016","Avaliar","Lei  Complementar 8178/91 - Ação Judicial","Verificar se verba compõe a base prividenciária"]
[8505,"Sexta-Parte Sobre Salário Base, Adicional Tempo De Serviço, Adicional De Insalubridade e Gratificação Executiva - Ação Judicial","Comunicado DDP/G-14, de 28/09/2016 => DOE: 29/09/2016","Avaliar",null,"Verificar se verba compõe a base prividenciária"]
[8506,"Adicional Por Tempo De Serviço Sobre Padrão - Recíproco - Ação Judicial – Polícia Militar","Comunicado DDP/G-14, de 28/09/2016 => DOE: 29/09/2016","Avaliar",null,"Verificar se verba compõe a base prividenciária"]
[8507,"Sexta Parte Sobre Padrão  - Recíproco - Ação Judicial – Polícia Militar","Comunicado DDP/G-14, de 28/09/2016 => DOE: 29/09/2016","Avaliar",null,"Verificar se verba compõe a base prividenciária"]
[8508,"Regime Especial De Trabalho Policial Militar - Recíproco. - Ação Judicial – Polícia Militar ","Comunicado DDP/G-14, de 28/09/2016 => DOE: 29/09/2016","Avaliar",null,"Verificar se verba compõe a base prividenciária"]
[8509,"Adicional De Tempo De Serviço Sobre Gratificação Executiva, Gratificação De Representação, Piso Salarial E Artigo 133 - Ação Judicial","Comunicado DDP/G-14, de 28/09/2016 => DOE: 29/09/2016","Avaliar",null,"O servidor, com mais de cinco anos de efetivo exercício, que tenha exercido ou venha a exercer cargo ou função que lhe proporcione remuneração superior à do cargo de que seja titular, ou função para a qual foi admitido, incorporará um décimo dessa diferença, por ano, até o limite de dez décimos."]
[8510,"Sexta Parte Sobre Vantagem Pessoal - Ação Judicial ","Comunicado DDP/G-14, de 28/09/2016 => DOE: 29/09/2016","Avaliar",null,"Verificar se verba compõe a base prividenciária"]
[8511,"Pro Labore Integral Gerente De Organização Escolar -Lei Complementar 1144/11 - Ação Judicial","Comunicado DDP/G-14, de 28/09/2016 => DOE: 29/09/2016","Não Acatar"]
[8512,"Adicional Tempo Serviço Sobre Artigo 133 CE-Pró Labore Lei Complementar 1193/13- Ação Judicial","Comunicado DDP/G-14, de 28/09/2016 => DOE: 29/09/2016","Não Acatar"]
[8513,"Sexta Sobre Salario Base Sem Incidências- Ação Judicial","Comunicado DDP/G-14, de 28/09/2016 => DOE: 29/09/2016","Avaliar",null,"Verificar se verba compõe a base prividenciária"]
[8514,"Gratificação Gestão Educacional- Ação Judicial ","Comunicado DDP/G-14, de 28/09/2016 => DOE: 29/09/2016","Avaliar",null,"Verificar se verba compõe a base prividenciária"]
[8515,"Adicional De Tempo De Serviço Sobre Artigo 25/26 - Inativo - Ação Judicial","Comunicado DDP/G-14, de 28/09/2016 => DOE: 29/09/2016","Acatar"]
[8516,"Sexta Parte Sobre Integrais Exceto Gratificação De Desempenho De Atividades No Poupatempo E Gratificação Informática - Ação Judicial","Comunicado DDP/G-14, de 28/09/2016 => DOE: 29/09/2016","Avaliar",null,"Verificar se verba compõe a base prividenciária"]
[8517,"Sexta Parte Sobre Salário Base E Adicional De Tempo De Serviço - Fundação Do Desenvolvimento Administrativo - Ação Judicial","Comunicado DDP/G-14, de 28/09/2016 => DOE: 29/09/2016","Avaliar",null,"Verificar se verba compõe a base prividenciária"]
[8518,"Sexta Parte Sobre Salario Base – Fundação Do Desenvolvimento Administrativo - Ação Judicial","Comunicado DDP/G-14, de 28/09/2016 => DOE: 29/09/2016","Avaliar",null,"Verificar se verba compõe a base prividenciária"]
[8519,"Sexta Parte Sobre Salario Base, Adicional Tempo De Serviço, Diferença Salarial Cargo Comissão, Sobre Aviso- Fundação Do Desenvolvimento Administrativo  -Ação Judicial","Comunicado DDP/G-14, de 28/09/2016 => DOE: 29/09/2016","Avaliar",null,"Verificar se verba compõe a base prividenciária"]
[8520,"Sexta Parte Sobre Salario Base, Diferença Salarial Cargo Comissão Incorporada - Sobre Aviso - Fundação Do Desenvolvimento Administrativo – Ação Judicial","Comunicado DDP/G-14, de 28/09/2016 => DOE: 29/09/2016","Acatar"]
[8521,"Gratificação Executiva – Unidade Básica De Valor - Ação Judicial","Comunicado DDP/G-14, de 28/09/2016 => DOE: 29/09/2016","Avaliar",null,"Verificar se verba compõe a base prividenciária"]
[8522,"Unidade Real De Valor Sobre Gratificação Executiva, Piso Salarial E Adicional De Insalubridade - Ação Judicial","Comunicado DDP/G-14, de 28/09/2016 => DOE: 29/09/2016","Avaliar",null,"Verificar se verba compõe a base prividenciária"]
[8523,"Descanso Semanal Remunerado Sobre Serviço Extraordinário- Horas Fixas - CLT – Ação Judicial","Comunicado DDP/G-14, de 28/09/2016 => DOE: 29/09/2016","Não Acatar"]
[8524,"Horas Extras - 50% - Ação Judicial","Comunicado DDP/G-14, de 28/09/2016 => DOE: 29/09/2016","Não Acatar"]
[8525,"Horas Extras - 100% - Ação Judicial","Comunicado DDP/G-14, de 28/09/2016 => DOE: 29/09/2016","Não Acatar"]
[8526,"Adicional De Tempo De Serviço Sobre Salário Base, Gratificação Executiva, E Pro Labore – Ação Judicial","Comunicado DDP/G-14, de 28/09/2016 => DOE: 29/09/2016","Não Acatar"]
[8527,"Salário Complemento - Técnico De Radiologia - Ação Judicial ","Comunicado DDP/G-14, de 28/09/2016 => DOE: 29/09/2016","Avaliar",null,"Verificar se verba compõe a base prividenciária"]
[8528,"Adicional Tempo De Serviço Sobre Gratificação Por Dedicação Plena E Integral - Ação Judicial ","Comunicado DDP/G-14, de 28/09/2016 => DOE: 29/09/2016","Avaliar",null,"Verificar se verba compõe a base prividenciária"]
[8529,"Adicional Tempo De Serviço Sobre Salário Base E Adicional De Insalubridade- Ação Judicial","Comunicado DDP/G-14, de 28/09/2016 => DOE: 29/09/2016","Avaliar",null,"Verificar se verba compõe a base prividenciária"]
[8530,"Sexta Parte Sobre Gratificação Trabalho Curso Noturno - Ação Judicial ","Comunicado DDP/G-03, de 14/06/2018 => DOE: 15/06/2018","Não Acatar"]
[8531,"Sexta Parte Sobre Artigo 133 - Gratificação De Função LC 724/93 - Ação Judicial ","Comunicado DDP/G-03, de 14/06/2018 => DOE: 15/06/2018","Não Acatar"]
[8532,"Sexta Parte Sobre Salário Base, Adicional De Insalubridade E Gratificação Pelo Desempenho  E Apoio A Assistência Médica Ao Servidor Público - Gdamspe - Ação Judicial","Comunicado DDP/G-03, de 14/06/2018 => DOE: 15/06/2018","Avaliar",null,"Verificar se verba compõe a base prividenciária"]
[8533,"Sexta Parte Sobre Vencimentos Integrais Exceto Gratificação Executiva E Prêmio Desempenho Individual - Ação Judicial ","Comunicado DDP/G-03, de 14/06/2018 => DOE: 15/06/2018","Avaliar",null,"Verificar se verba compõe a base prividenciária"]
[8534,"Adicional Por Tempo De Serviço Sobre Base, Piso Salarial, Gratificação Executiva E Artigo 133 - Ação Judicial ","Comunicado DDP/G-03, de 14/06/2018 => DOE: 15/06/2018","Avaliar",null,"O servidor, com mais de cinco anos de efetivo exercício, que tenha exercido ou venha a exercer cargo ou função que lhe proporcione remuneração superior à do cargo de que seja titular, ou função para a qual foi admitido, incorporará um décimo dessa diferença, por ano, até o limite de dez décimos."]
[8535,"Adicional Por Tempo De Serviço Sobre Gratificação Especial De Supervisão De Ensino - Ação Judicial","Comunicado DDP/G-03, de 14/06/2018 => DOE: 15/06/2018","Avaliar",null,"Verificar se verba compõe a base prividenciária"]
[8536,"Sexta Parte Sobre Vencimentos Integrais E 50% Do Prêmio De Incentivo À Produtividade E Qualidade - Pipq - Ação Judicial","Comunicado DDP/G-03, de 14/06/2018 => DOE: 15/06/2018","Avaliar",null,"Verificar se verba compõe a base prividenciária"]
[8544,"Descanso Semanal Remunerado Sobre Serviço Extraordinário, Adicional Noturno e Horas Extras Fixas CLT - Ação Judicial","Comunicado DDP/G-05, de 03/07/2020 => DOE: 04/07/2020","Não Acatar"]
[8545,"Adicional Noturno - Ação Judicial","Comunicado DDP/G-05, de 03/07/2020 => DOE: 04/07/2020","Não Acatar"]
[9001,"Adicional Por Tempo De Serviço","Comunicado DDP/G-05, de 31/01/1994 => DOE: 01/02/1994","Acatar"]
[9002,"Adicional Sobre Gratificação De Representação Incorporada","Comunicado DDP/G-05, de 31/01/1994 => DOE: 01/02/1994","Acatar"]
[9003,"Adicional Sobre Carga Suplementar","Comunicado DDP/G-05, de 31/01/1994 => DOE: 01/02/1994","Avaliar",null,"Verificar se verba compõe a base prividenciária"]
[9004,"Adicional Sobre Honorário Advocatício","Comunicado DDP/G-05, de 31/01/1994 => DOE: 01/02/1994","Não Acatar"]
[9005,"Adicional Por Tempo Serviço – Secretário De Estado","Comunicado DDP/G-05, de 31/01/1994 => DOE: 01/02/1994","Acatar"]
[9006,"Adicional Sobre Prêmio De Produtividade Função Externa","Comunicado DDP/G-05, de 31/01/1994 => DOE: 01/02/1994","Avaliar",null,"Verificar se verba compõe a base prividenciária"]
[9007,"Adicional Sobre Quotas Reserva - Lei Complementar 887/2000","Comunicado DDP/G-05, de 31/01/1994 => DOE: 01/02/1994","Não Acatar"]
[9008,"Adicional Sobre Diferença De Quotas - Honorário Advocatício","Comunicado DDP/G-05, de 31/01/1994 => DOE: 01/02/1994","Não Acatar"]
[9009,"Adicional Sobre Carga Suplementar - Ensino Fundamental","Comunicado DDP/G-05, de 31/01/1994 => DOE: 01/02/1994","Avaliar",null,"Verificar se verba compõe a base prividenciária"]
[9010,"Adicional Por Tempo De Serviço Implantado / Guarda Rodoviário","Comunicado DDP/G-05, de 31/01/1994 => DOE: 01/02/1994","Avaliar",null,"Verificar se verba compõe a base prividenciária"]
[9011,"Adicional Do Estado / CBPM","Comunicado DDP/G-05, de 31/01/1994 => DOE: 01/02/1994","Avaliar",null,"Verificar se verba compõe a base prividenciária"]
[9012,"Adicional S/ Aulas Sdoc/Reforço/Recuperação/Reposição","Comunicado DDP/G-05, de 31/01/1994 => DOE: 01/02/1994","Avaliar",null,"Verificar se verba compõe a base prividenciária"]
[9013,"Adicional Excesso/Reserva Anual – Lei Complementar 567/88 ","Comunicado DDP/G-15, de 30/09/2016 => DOE: 01/10/2016","Não Acatar"]
[9014,"Adicional Por Anuênio - Quadro Especial","Comunicado DDP/G-05, de 31/01/1994 => DOE: 01/02/1994","Acatar"]
[9015,"Adicional Doutorado / Mestrado - Quadro Especial","Comunicado DDP/G-05, de 31/01/1994 => DOE: 01/02/1994","Avaliar",null,"Verificar se verba compõe a base prividenciária"]
[9016,"Adicional Sobre Gratificação De Função","Comunicado DDP/G-05, de 31/01/1994 => DOE: 01/02/1994","Avaliar",null,"Verificar se verba compõe a base prividenciária"]
[9017,"Adicional Por Tempo De Serviço Da Lei 5451/86 - PM","Comunicado DDP/G-003, de 27/10/2014 => DOE: 29/10/2014","Acatar"]
[9018,"Adicional Sobre Pró-Labore -Gerente De Organização Escolar","Comunicado DDP/G-003, de 27/10/2014 => DOE: 29/10/2014","Não Acatar"]
[9019,"Adicional De Tempo De Serviço Sobre Incorporação Hora-Aula - Artigo 2º DDTT LC 1249/14","Comunicado DDP/G-003, de 27/10/2014 => DOE: 29/10/2014","Acatar"]
[9020,"Adicional Sobre Gratificação Gestão Educacional ","Comunicado DDP/G-14, de 28/09/2016 => DOE: 29/09/2016","Avaliar",null,"Verificar se verba compõe a base prividenciária"]
[9021,"Triênio Centro De Estudos E Pesquisas De Administração Municipal","Comunicado DDP/G-14, de 28/09/2016 => DOE: 29/09/2016","Acatar"]
[9022,"Adicional De Tempo De Serviço - Fundação Do Desenvolvimento Administrativo ","Comunicado DDP/G-14, de 28/09/2016 => DOE: 29/09/2016","Avaliar",null,"Verificar se verba compõe a base prividenciária"]
[9023,"Adicional Sobre Adicional Por Direção Da Atividade De Polícia Judiciária - ADPJ ","Comunicado DDP/G-03, de 14/06/2018 => DOE: 15/06/2018","Acatar"]
[9024,"Adicional Por Tempo De Serviço Sobre Pro Labore","Comunicado DDP/G-05, de 03/07/2020 => DOE: 04/07/2020","Não Acatar"]
[9025,"Adicional Tempo De Serviço Sobre Gratificação Atividade Julgamento - GRAJ","Comunicado DDP/G-05, de 03/07/2020 => DOE: 04/07/2020","Avaliar",null,"Verificar se verba compõe a base prividenciária"]
[9027,"Adic- Acg-Adic Complex Gestão (Idade Máxima 55 Anos)",null,"Acatar",null,"55 anos (Idade Máxima para Início da Operação)"]
[9028,"Adic S Dif Nominal Lc 1374- 2022",null,"Não Acatar"]
[10001,"Sexta-Parte","Comunicado DDP/G-05, de 31/01/1994 => DOE: 01/02/1994","Avaliar",null,"Verificar se verba compõe a base prividenciária"]
[10002,"Sexta-Parte Sobre Gratificação De Representação Incorporada","Comunicado DDP/G-05, de 31/01/1994 => DOE: 01/02/1994","Acatar"]
[10003,"Sexta-Parte Sobre Carga Suplementar","Comunicado DDP/G-05, de 31/01/1994 => DOE: 01/02/1994","Avaliar",null,"Verificar se verba compõe a base prividenciária"]
[10004,"Sexta-Parte Sobre Prêmio De Produtividade Função Externa","Comunicado DDP/G-05, de 02/02/1995 => DOE: 03/02/1995","Avaliar",null,"Verificar se verba compõe a base prividenciária"]
[10005,"Sexta-Parte Sobre Quotas Reserva - Lei Complementar 887/2000","Comunicado DDP/G-05, de 02/02/1995 => DOE: 03/02/1995","Não Acatar"]
[10006,"Sexta-Parte Sobre Honorário Advocatício","Comunicado DDP/G-18, de 04/07/1995 => DOE: 06/07/1995","Não Acatar"]
[10007,"Sexta-Parte Sobre Diferença De Quotas – Honorário Advocatício","Comunicado DDP/G-18, de 04/07/1995 => DOE: 06/07/1995","Não Acatar"]
[10008,"Sexta-Parte Sobre Substituição Administrativa","Comunicado DDP/G-18, de 04/07/1995 => DOE: 06/07/1995","Avaliar",null,"Verificar se verba compõe a base prividenciária"]
[10009,"Sexta-Parte Sobre Adicional De Insalubridade","Comunicado DDP/G-24, de 06/05/1996 => DOE: 09/05/1996","Avaliar",null,"Verificar se verba compõe a base prividenciária"]
[10010,"Sexta-Parte Sobre Carga Suplementar – Ensino Fundamental","Comunicado DDP/G-24, de 06/05/1996 => DOE: 09/05/1996","Avaliar",null,"Verificar se verba compõe a base prividenciária"]
[10011,"Sexta-Parte Sobre Adicional De Periculosidade","Comunicado DDP/G-34, de 01/07/1996 => DOE: 03/07/1996","Avaliar",null,"Verificar se verba compõe a base prividenciária"]
[10012,"Sexta-Parte Implantada / Guarda Rodoviário","Comunicado DDP/G-34, de 01/07/1996 => DOE: 03/07/1996","Avaliar",null,"Verificar se verba compõe a base prividenciária"]
[10013,"Sexta Parte Do Estado / CBPM","Comunicado DDP/G-34, de 01/07/1996 => DOE: 03/07/1996","Avaliar",null,"Verificar se verba compõe a base prividenciária"]
[10014,"Sexta-Parte S/ Aulas Sdoc/Reforço/Recuperação/Reposição","Comunicado DDP/G-34, de 01/07/1996 => DOE: 03/07/1996","Avaliar",null,"Verificar se verba compõe a base prividenciária"]
[10015,"Sexta Parte-Excesso/Reserva Anual-Lei Complementar 567/88","Comunicado DDP/G-15, de 30/09/2016 => DOE: 01/10/2016","Acatar"]
[10016,"Sexta Parte - Quadro Especial","Comunicado DDP/G-34, de 01/07/1996 => DOE: 03/07/1996","Avaliar",null,"Verificar se verba compõe a base prividenciária"]
[10017,"Sexta Parte Sobre Gratificação De Função","Comunicado DDP/G-34, de 01/07/1996 => DOE: 03/07/1996","Avaliar",null,"Verificar se verba compõe a base prividenciária"]
[10018,"Sexta Parte Da Lei 5451/86 - PM","Comunicado DDP/G-003, de 27/10/2014 => DOE: 29/10/2014","Acatar"]
[10019,"Sexta Parte Sobre Pró-Labore Gerente De Organização Escolar","Comunicado DDP/G-003, de 27/10/2014 => DOE: 29/10/2014","Não Acatar"]
[10020,"Sexta-Parte Sobre Incorporação Hora-Aula - Art.2º DDTT LC 1249/14","Comunicado DDP/G-003, de 27/10/2014 => DOE: 29/10/2014","Acatar"]
[10021,"Sexta Parte Sobre Gratificação Gestão Educacional ","Comunicado DDP/G-14, de 28/09/2016 => DOE: 29/09/2016","Avaliar",null,"Verificar se verba compõe a base prividenciária"]
[10022,"Sexta Parte Sobre Adicional Por Direção Da Atividade De Polícia Judiciária - ADPJ - Ação Judicial","Comunicado DDP/G-03, de 14/06/2018 => DOE: 15/06/2018","Acatar"]
[10023,"Sexta Parte Sobre Pro Labore","Comunicado DDP/G-05, de 03/07/2020 => DOE: 04/07/2020","Não Acatar"]
[10024,"Sexta Parte Sobre Gratificação Atividade Julgamento – GRAJ","Comunicado DDP/G-05, de 03/07/2020 => DOE: 04/07/2020","Avaliar",null,"Verificar se verba compõe a base prividenciária"]
[10026,"6 Parte-Acg-Adic Comp Gestão",null,"Acatar"]
[10056,"Abono Permanencia ",null,"Não Acatar"]
[11001,"Designação Em Cargo Vago","Comunicado DDP/G-43, de 04/11/1998 => DOE: 06/11/1998","Avaliar",null,"Verificar se verba compõe a base prividenciária"]
[11002,"Designação Em Substituição","Comunicado DDP/G-43, de 04/11/1998 => DOE: 06/11/1998","Não Acatar"]
[11003,"Pró-Labore Lei 10168/68 ","Comunicado DDP/G-43, de 04/11/1998 => DOE: 06/11/1998","Não Acatar"]
[11004,"Pró-Labore LC 674/92 – Artigo 11 - § I","Comunicado DDP/G-43, de 04/11/1998 => DOE: 06/11/1998","Não Acatar"]
[11005,"Designação Em Cargo Vago - EFCJ","Comunicado DDP/G-43, de 04/11/1998 => DOE: 06/11/1998","Avaliar",null,"Verificar se verba compõe a base prividenciária"]
[11006,"Designação Em Cargo Vago – Delegado De Polícia","Comunicado DDP/G-33, de 31/08/2000 => DOE: 02/09/2000","Avaliar",null,"Verificar se verba compõe a base prividenciária"]
[11007,"Designação Em  Substituição - Delegado De Polícia","Comunicado DDP/G-33, de 31/08/2000 => DOE: 02/09/2000","Avaliar",null,"Verificar se verba compõe a base prividenciária"]
[11008,"Pró-Labore - Delegado Polícia","Comunicado DDPE/G-05, de 03/04/2008 => DOE: 04/04/2008","Não Acatar"]
[11009,"Pró-Labore – Lei 10168/68 – Delegado De Polícia","Comunicado DDPE/G-05, de 03/04/2008 => DOE: 04/04/2008","Não Acatar"]
[11010,"Pró-Labore - Carreira Policial","Comunicado DDP/G-05, de 31/01/1994 => DOE: 01/02/1994","Não Acatar"]
[11011,"Pró-Labore -  Agente De Segurança Penitenciária","Comunicado DDP/G-05, de 31/01/1994 => DOE: 01/02/1994","Não Acatar"]
[11012,"Pró-Labore – Técnico De Apoio À Arrecadação Tributária / Julgador Tributário","Comunicado DDP/G-05, de 31/01/1994 => DOE: 01/02/1994","Não Acatar"]
[11013,"Pró-Labore – Agente Fiscal De Rendas","Comunicado DDP/G-05, de 31/01/1994 => DOE: 01/02/1994","Não Acatar"]
[11014,"Pró-Labore – Agente Fiscal De Rendas - Designação","Comunicado DDP/G-05, de 31/01/1994 => DOE: 01/02/1994","Não Acatar"]
[11015,"Pró-Labore – Agente Fiscal De Rendas - Afastamento","Comunicado DDP/G-05, de 31/01/1994 => DOE: 01/02/1994","Não Acatar"]
[11016,"Pró-Labore – Pesquisador Científico","Comunicado DDP/G-05, de 31/01/1994 => DOE: 01/02/1994","Não Acatar"]
[11017,"Pró-Labore – Assistente À Pesquisa Científica E Tecnológica","Comunicado DDP/G-05, de 31/01/1994 => DOE: 01/02/1994","Não Acatar"]
[11018,"Pró-Labore – Apoio À Pesquisa Científica E Tecnológica","Comunicado DDP/G-05, de 31/01/1994 => DOE: 01/02/1994","Não Acatar"]
[11019,"Pró-Labore - Apoio Agropecuário","Comunicado DDP/G-05, de 31/01/1994 => DOE: 01/02/1994","Não Acatar"]
[11020,"Pró-Labore –Assistente Agropecuário","Comunicado DDP/G-05, de 31/01/1994 => DOE: 01/02/1994","Não Acatar"]
[11021,"Pró-Labore – Procurador Do Estado","Comunicado DDP/G-05, de 31/01/1994 => DOE: 01/02/1994","Não Acatar"]
[11022,"Pró-Labore - Engenheiro","Comunicado DDP/G-05, de 31/01/1994 => DOE: 01/02/1994","Não Acatar"]
[11023,"Pró-Labore - Dirigente Assessoria Técnica","Comunicado DDP/G-05, de 31/01/1994 => DOE: 01/02/1994","Não Acatar"]
[11024,"Pró-Labore - Técnico Desportivo","Comunicado DDP/G-05, de 31/01/1994 => DOE: 01/02/1994","Não Acatar"]
[11025,"Pró-Labore – Lei 10168/68 – Valor","Comunicado DDP/G-05, de 31/01/1994 => DOE: 01/02/1994","Não Acatar"]
[11026,"Pró-Labore LC 674/92 – Artigo 11- § 2/3","Comunicado DDP/G-24, de 06/05/1996 => DOE: 09/05/1996","Não Acatar"]
[11027,"Pró-Labore Cirurgião Dentista – LC 457/86","Comunicado DDP/G-34, de 01/07/1996 => DOE: 03/07/1996","Não Acatar"]
[11028,"Pró-Labore – Médico Sanitarista – LC 342/84","Comunicado DDP/G-05, de 31/01/1994 => DOE: 01/02/1994","Não Acatar"]
[11029,"Pró-Labore - Médico – LC 341/84","Comunicado DDP/G-05, de 31/01/1994 => DOE: 01/02/1994","Não Acatar"]
[11030,"Pró-Labore – Gratificação Fumest","Comunicado DDP/G-05, de 31/01/1994 => DOE: 01/02/1994","Não Acatar"]
[11031,"Pró-Labore - Lei 209/79 – Polícia Militar","Comunicado DDP/G-07, de 11/02/1998 => DOE: 12/02/1998","Não Acatar"]
[11032,"Pró-Labore - Decreto Lei 198/70 – Polícia Militar","Comunicado DDP/G-07, de 11/02/1998 => DOE: 12/02/1998","Não Acatar"]
[11033,"Pró-Labore - Pesquisador Científico - LC 821/96","Comunicado DDP/G-07, de 11/02/1998 => DOE: 12/02/1998","Não Acatar"]
[11034,"Pró-Labore De Agente De Escolta E Vigilância Penitenciária","Comunicado DDP/G-07, de 31/01/2002 => DOE: 02/02/2002","Não Acatar"]
[11035,"Designação Artigo 22 – LC 444/85","Comunicado DDP/G-22, de 15/08/2002 => DOE: 17/08/2002","Avaliar","LC 444/85","Verificar se verba compõe a base prividenciária"]
[11036,"Pro Labore Oficiais Polícia Militar","Comunicado DDP/G-07, de 31/01/2002 => DOE: 02/02/2002","Não Acatar"]
[11037,"Pro Labore - Lei Complementar Nº 1025/2007","Comunicado DDP/G-30, de 27/08/2003 => DOE: 02/09/2003","Não Acatar"]
[11038,"Pró-Labore Especialista Ambiental ","Comunicado DDPE/G-04, de 22/06/2012 => DOE: 27/06/2012","Não Acatar"]
[11039,"Pró-Labore Inciso I/II Artigo 1 – LC 1050/08","Comunicado DDPE/G-04, de 22/06/2012 => DOE: 27/06/2012","Não Acatar"]
[11040,"Pró-Labore De Corregedor – LC 1080/08","Comunicado DDPE/G-04, de 22/06/2012 => DOE: 27/06/2012","Não Acatar"]
[11041,"Pró-Labore Artigo 19 LC 1080/08 ","Comunicado DDPE/G-04, de 22/06/2012 => DOE: 27/06/2012","Não Acatar"]
[11042,"Pró-Labore Artigo 15 § 1 LC 1034/08 ","Comunicado DDPE/G-04, de 22/06/2012 => DOE: 27/06/2012","Não Acatar"]
[11043,"Pró-Labore Artigo 17 LC 1122/2010 ","Comunicado DDPE/G-04, de 22/06/2012 => DOE: 27/06/2012","Não Acatar"]
[11044,"Pró-Labore De Gerente De Organização Escolar – LC 1144/2011 ","Comunicado DDPE/G-04, de 22/06/2012 => DOE: 27/06/2012","Não Acatar"]
[11045,"Pró-Labore Artigo 30 – LC 1157/2011 ","Comunicado DDPE/G-04, de 22/06/2012 => DOE: 27/06/2012","Não Acatar"]
[11046,"Pró-Labore Artigo 27 Da LC 1157/2011","Comunicado DDP/G-003, de 27/10/2014 => DOE: 29/10/2014","Não Acatar"]
[11047,"Pró-Labore Artigo 34 Paragrafo 1 - Jucesp","Comunicado DDP/G-003, de 27/10/2014 => DOE: 29/10/2014","Não Acatar"]
[11048,"Pró-Labore Artigo 30 - Jucesp","Comunicado DDP/G-003, de 27/10/2014 => DOE: 29/10/2014","Não Acatar"]
[11049,"Pró-Labore Artigo 31 - Jucesp","Comunicado DDP/G-003, de 27/10/2014 => DOE: 29/10/2014","Não Acatar"]
[11050,"Pró-Labore Art. 33 Da LC 1157/2011","Comunicado DDP/G-003, de 27/10/2014 => DOE: 29/10/2014","Não Acatar"]
[11051,"Pró-Labore Artigo 31 ATRP Jucesp","Comunicado DDP/G-003, de 27/10/2014 => DOE: 29/10/2014","Não Acatar"]
[11052,"Pró-Labore Artigo 31 ATRP TI Jucesp","Comunicado DDP/G-003, de 27/10/2014 => DOE: 29/10/2014","Não Acatar"]
[11053,"Pró-Labore Art. 20-LC 1193/2013","Comunicado DDP/G-003, de 27/10/2014 => DOE: 29/10/2014","Não Acatar"]
[11054,"Pró-Labore Art.30 LC 1195/2013","Comunicado DDP/G-003, de 27/10/2014 => DOE: 29/10/2014","Não Acatar"]
[11055,"Pro-Labore ARTESP - LC 1.267/2015","Comunicado DDP/G-05, de 03/07/2020 => DOE: 04/07/2020","Não Acatar"]
[11056,"Diferenca Nominal Lc 1374,-222 ",null,"Não Acatar"]
[12001,"Adicional De Insalubridade - EFP","Comunicado DDP/G-05, de 31/01/1994 => DOE: 01/02/1994","Acatar"]
[12002,"Adicional De Insalubridade – Docente – CLT","Comunicado DDP/G-05, de 31/01/1994 => DOE: 01/02/1994","Acatar"]
[12003,"Adicional De Insalubridade Inativo (10%) – EFP","Comunicado DDP/G-05, de 31/01/1994 => DOE: 01/02/1994","Avaliar",null,"Verificar se verba compõe a base prividenciária"]
[12004,"Adicional De Insalubridade Inativo (20%) – EFP","Comunicado DDP/G-05, de 31/01/1994 => DOE: 01/02/1994","Avaliar",null,"Verificar se verba compõe a base prividenciária"]
[12005,"Adicional De Insalubridade Inativo (40%) – EFP","Comunicado DDP/G-05, de 31/01/1994 => DOE: 01/02/1994","Avaliar",null,"Verificar se verba compõe a base prividenciária"]
[12006,"Adicional De Insalubridade - Salário Profissional","Comunicado DDP/G-05, de 31/01/1994 => DOE: 01/02/1994","Avaliar",null,"Verificar se verba compõe a base prividenciária"]
[12007,"Adicional De Insalubridade - CLT (1 Salário Mínimo)","Comunicado DDP/G-05, de 31/01/1994 => DOE: 01/02/1994","Acatar",null,"Somente para área da Saúde"]
[12008,"Adicional De Insalubridade-CLT (Dois Salários Mínimos)       ","Comunicado DDP/G-15, de 30/09/2016 => DOE: 01/10/2016","Avaliar",null,"Somente para área da Saúde"]
[12009,"Adicional De Insalubridade-CLT (Três Salários Mínimos)       ","Comunicado DDP/G-15, de 30/09/2016 => DOE: 01/10/2016","Avaliar",null,"Somente para área da Saúde"]
[12010,"Adicional De Periculosidade – EFP","Comunicado DDP/G-05, de 31/01/1994 => DOE: 01/02/1994","Avaliar",null,"Somente para Vigiliantes e Guardas"]
[12011,"Adicional De Periculosidade - Docente ACT","Comunicado DDP/G-05, de 31/01/1994 => DOE: 01/02/1994","Avaliar",null,"Verificar se verba compõe a base prividenciária"]
[12012,"Adicional De Periculosidade - CLT","Comunicado DDP/G-05, de 31/01/1994 => DOE: 01/02/1994","Avaliar",null,"Somente para Vigiliantes e Guardas"]
[12013,"Adicional De Periculosidade - Inativo","Comunicado DDP/G-05, de 31/01/1994 => DOE: 01/02/1994","Acatar"]
[12014,"Adicional De Periculosidade  - Extra Vinculo","Comunicado DDP/G-05, de 31/01/1994 => DOE: 01/02/1994","Avaliar",null,"Verificar se verba compõe a base prividenciária"]
[12015,"Adicional Local De Exercício Carreira Policial / Delegado/PM","Comunicado DDP/G-05, de 31/01/1994 => DOE: 01/02/1994","Não Acatar"]
[12016,"Adicional Local De Exercício Agente De Segurança Penitenciária","Comunicado DDP/G-05, de 31/01/1994 => DOE: 01/02/1994","Não Acatar"]
[12017,"Adicional De Transporte – Quadro Do Magistério","Comunicado DDP/G-05, de 31/01/1994 => DOE: 01/02/1994","Não Acatar"]
[12018,"Adicional De Transporte – Supervisor De Ensino (Mandado De Segurança)","Comunicado DDP/G-05, de 31/01/1994 => DOE: 01/02/1994","Não Acatar"]
[12019,"Adicional De Transporte – Agente Fiscal De Rendas","Comunicado DDP/G-05, de 31/01/1994 => DOE: 01/02/1994","Não Acatar"]
[12020,"Auxílio De Transporte","Comunicado DDP/G-05, de 31/01/1994 => DOE: 01/02/1994","Não Acatar"]
[12021,"Adicional De Transferência - CLT","Comunicado DDP/G-05, de 31/01/1994 => DOE: 01/02/1994","Não Acatar"]
[12022,"Ajuda De Custo Alimentação - Carreira Policial","Comunicado DDP/G-05, de 31/01/1994 => DOE: 01/02/1994","Não Acatar"]
[12023,"Adicional Local De Exercício - Docente","Comunicado DDP/G-05, de 31/01/1994 => DOE: 01/02/1994","Não Acatar"]
[12024,"Adicional Local De Exercício – Especialista Da Educação/ Quadro De Apoio Escolar","Comunicado DDP/G-05, de 31/01/1994 => DOE: 01/02/1994","Não Acatar"]
[12025,"Adicional De Insalubridade  Piso salarial     ","Comunicado DDP/G-15, de 30/09/2016 => DOE: 01/10/2016","Avaliar",null,"Verificar se verba compõe a base prividenciária"]
[12026,"Adicional De Insalubridade-CLT (Quatro Salários Mínimos)     ","Comunicado DDP/G-15, de 30/09/2016 => DOE: 01/10/2016","Acatar"]
[12027,"Adicional De Insalubridade-CLT (Nove Salários Mínimos)      ","Comunicado DDP/G-15, de 30/09/2016 => DOE: 01/10/2016","Acatar"]
[12028,"Adicional De Insalubridade-CLT (Seis Salários Mínimos)      ","Comunicado DDP/G-15, de 30/09/2016 => DOE: 01/10/2016","Acatar"]
[12029,"Bolsa De Estudos                   ","Comunicado DDP/G-15, de 30/09/2016 => DOE: 01/10/2016","Não Acatar"]
[12030,"Adicional Local De Exercício - Substituição Docente","Comunicado DDP/G-05, de 31/01/1994 => DOE: 01/02/1994","Não Acatar"]
[12031,"Adicional Local De Exercício – 1ª A 4ª Série","Comunicado DDP/G-05, de 31/01/1994 => DOE: 01/02/1994","Não Acatar"]
[12032,"Adicional Local De Exercício – 5ª A 8ª Série","Comunicado DDP/G-05, de 31/01/1994 => DOE: 01/02/1994","Não Acatar"]
[12033,"Adicional Local De Exercício - Ensino Médio","Comunicado DDP/G-05, de 31/01/1994 => DOE: 01/02/1994","Não Acatar"]
[12034,"Adicional Local De Exercício - Coordenador/Vice Diretor","Comunicado DDP/G-05, de 31/01/1994 => DOE: 01/02/1994","Não Acatar"]
[12035,"Adicional Local De Exercício – Substituição Docente – 1ª A 4ª Série","Comunicado DDP/G-05, de 31/01/1994 => DOE: 01/02/1994","Não Acatar"]
[12036,"Adicional Local De Exercício – Substituição Docente – 5ª A 8ª Série","Comunicado DDP/G-05, de 31/01/1994 => DOE: 01/02/1994","Não Acatar"]
[12037,"Adicional Local De Exercício – Substituição Docente - Ensino Médio","Comunicado DDP/G-05, de 31/01/1994 => DOE: 01/02/1994","Não Acatar"]
[12038,"Adicional Local De Exercício – Substituição Docente - Estagiário","Comunicado DDP/G-05, de 31/01/1994 => DOE: 01/02/1994","Não Acatar"]
[12039,"Adicional Local De Exercício","Comunicado DDP/G-05, de 31/01/1994 => DOE: 01/02/1994","Não Acatar"]
[12040,"Adicional Local De Exercício - Aulas De Reposição 1ª A 4ª Série","Comunicado DDP/G-05, de 31/01/1994 => DOE: 01/02/1994","Não Acatar"]
[12041,"Adicional Local De Exercício – Aulas De Reposição 5ª A 8ª Série","Comunicado DDP/G-05, de 31/01/1994 => DOE: 01/02/1994","Não Acatar"]
[12042,"Adicional Local De Exercício – Aulas De Reposição Ensino Médio","Comunicado DDP/G-05, de 31/01/1994 => DOE: 01/02/1994","Não Acatar"]
[12043,"Adicional Local De Exercício - Aulas De Reforço/Recuperação – 1ª A 4ª Série","Comunicado DDP/G-05, de 31/01/1994 => DOE: 01/02/1994","Não Acatar"]
[12044,"Adicional Local De Exercício - Aulas De Reforço/Recuperação – 5ª A 8ª Série","Comunicado DDP/G-05, de 31/01/1994 => DOE: 01/02/1994","Não Acatar"]
[12045,"Adicional Local De Exercício – Aulas De Reforço/Recuperação – Ensino Médio","Comunicado DDP/G-05, de 31/01/1994 => DOE: 01/02/1994","Não Acatar"]
[12046,"Adicional Local De Exercício – Substituição Vice Diretor De Escola","Comunicado DDP/G-05, de 31/01/1994 => DOE: 01/02/1994","Não Acatar"]
[12047,"Adicional Local De Exercício / PM - Nível I","Comunicado DDP/G-05, de 31/01/1994 => DOE: 01/02/1994","Não Acatar"]
[12048,"Adicional Local De Exercício / PM - Nível II","Comunicado DDP/G-05, de 31/01/1994 => DOE: 01/02/1994","Não Acatar"]
[12049,"Adicional Local De  Exercício / PM - Nível III","Comunicado DDP/G-05, de 31/01/1994 => DOE: 01/02/1994","Não Acatar"]
[12050,"Adicional Local De Exercício / PM - Nível IV","Comunicado DDP/G-05, de 31/01/1994 => DOE: 01/02/1994","Não Acatar"]
[12051,"Adicional Operacional De Localidade - AOL","Comunicado DDP/G-05, de 31/01/1994 => DOE: 01/02/1994","Não Acatar"]
[12052,"Adicional  Operacional Local  - Polícia Militar I","Comunicado DDP/G-05, de 31/01/1994 => DOE: 01/02/1994","Não Acatar"]
[12053,"Adicional Operacional Local - Polícia Militar II","Comunicado DDP/G-05, de 31/01/1994 => DOE: 01/02/1994","Não Acatar"]
[12054,"Adicional Operacional Local - Polícia Militar III","Comunicado DDP/G-05, de 31/01/1994 => DOE: 01/02/1994","Não Acatar"]
[12055,"Adicional Operacional Local - Polícia Militar IV","Comunicado DDP/G-05, de 31/01/1994 => DOE: 01/02/1994","Não Acatar"]
[12056,"Adicional Operacional Local Aluno Oficial","Comunicado DDP/G-05, de 31/01/1994 => DOE: 01/02/1994","Não Acatar"]
[12057,"Adicional Operacional Penitenciário","Comunicado DDP/G-05, de 31/01/1994 => DOE: 01/02/1994","Não Acatar"]
[12058,"Adicional Local De Exercício - Quadro De Apoio Escolar","Comunicado DDP/G-05, de 31/01/1994 => DOE: 01/02/1994","Não Acatar"]
[12059,"Adicional Local De Exercício - Aulas De Substituição 1ª A 4ª Série","Comunicado DDP/G-05, de 31/01/1994 => DOE: 01/02/1994","Não Acatar"]
[12060,"Adicional Local De Exercício - Aulas De Substituição 5ª A 8ª Série","Comunicado DDP/G-05, de 02/02/1995 => DOE: 03/02/1995","Não Acatar"]
[12061,"Adicional Local De Exercício - Aulas De Substituição Ensino Médio","Comunicado DDP/G-05, de 02/02/1995 => DOE: 03/02/1995","Não Acatar"]
[12062,"Adicional Local De Exercício – Professor De Educação Básica I                        ","Comunicado DDP/G-15, de 30/09/2016 => DOE: 01/10/2016","Não Acatar"]
[12063,"Adicional Local De Exercício - Professor II                 ","Comunicado DDP/G-15, de 30/09/2016 => DOE: 01/10/2016","Não Acatar"]
[12064,"Adicional Local De Exercício - Professor De Educação Básica II                       ","Comunicado DDP/G-15, de 30/09/2016 => DOE: 01/10/2016","Não Acatar"]
[12065,"Adicional Local De Exercício - Professor Coordenador            ","Comunicado DDP/G-15, de 30/09/2016 => DOE: 01/10/2016","Não Acatar"]
[12066,"Adicional Local De Exercício - Vice Diretor De Escola       ","Comunicado DDP/G-15, de 30/09/2016 => DOE: 01/10/2016","Não Acatar"]
[12067,"Adicional Local De Exercício - Municipalização              ","Comunicado DDP/G-15, de 30/09/2016 => DOE: 01/10/2016","Não Acatar"]
[12068,"Adicional Local De Exercício – Substituição Docente - Professor De Educação Básica I                 ","Comunicado DDP/G-15, de 30/09/2016 => DOE: 01/10/2016","Não Acatar"]
[12069,"Adicional Local De Exercício - Substituição Docente – Professor II","Comunicado DDP/G-15, de 30/09/2016 => DOE: 01/10/2016","Não Acatar"]
[12070,"Adicional Local De Exercício – Substituição Docente - Professor De Educação Básica II               ","Comunicado DDP/G-15, de 30/09/2016 => DOE: 01/10/2016","Não Acatar"]
[12071,"Adicional Local De Exercício LC 1065/08 – Polícia Militar","Comunicado DDPE/G-04, de 22/06/2012 => DOE: 27/06/2012","Não Acatar"]
[12072,"Adicional Local De Exercício – Agente De Segurança Penitenciária Inativo – Artigo 4 LC 1109/2010","Comunicado DDPE/G-04, de 22/06/2012 => DOE: 27/06/2012","Acatar"]
[12073,"Adicional Local De Exercício – Carreira Policial – Inativo – Artigo 4 LC 1114/2010","Comunicado DDPE/G-04, de 22/06/2012 => DOE: 27/06/2012","Acatar"]
[12074,"Adicional Local De Exercício – Aposentadoria Por Invalidez - Artigo 2 LC 1117/2010","Comunicado DDPE/G-04, de 22/06/2012 => DOE: 27/06/2012","Acatar"]
[12075,"Adicional Local De Exercício – LC 1114/2010 – I Polícia Militar ","Comunicado DDPE/G-04, de 22/06/2012 => DOE: 27/06/2012","Não Acatar"]
[12076,"Adicional Local De Exercício – LC 1114/2010 – Ii Polícia Militar","Comunicado DDPE/G-04, de 22/06/2012 => DOE: 27/06/2012","Não Acatar"]
[12077,"Adicional Local De Exercício – LC 1117/2010 – I Polícia Militar","Comunicado DDPE/G-04, de 22/06/2012 => DOE: 27/06/2012","Não Acatar"]
[12078,"Adicional Local De Exercício – LC 1117/2010 – Ii Polícia Militar","Comunicado DDPE/G-04, de 22/06/2012 => DOE: 27/06/2012","Não Acatar"]
[12079,"Ajuda De Custo Alimentação Plantão Superior A 12 Horas","Comunicado DDPE/G-04, de 22/06/2012 => DOE: 27/06/2012","Não Acatar"]
[12080,"Ajuda De Custo Alimentação Plantão Inferior A 12 Horas","Comunicado DDP/G-003, de 27/10/2014 => DOE: 29/10/2014","Não Acatar"]
[12081,"Adicional Insalubridade Grau Mínimo LC 1179/2012","Comunicado DDP/G-003, de 27/10/2014 => DOE: 29/10/2014","Acatar"]
[12082,"Adicional Insalubridade Grau Médio LC 1179/2012","Comunicado DDP/G-003, de 27/10/2014 => DOE: 29/10/2014","Acatar"]
[12083,"Adicional Insalubridade Grau Máximo LC 1179/2012","Comunicado DDP/G-003, de 27/10/2014 => DOE: 29/10/2014","Acatar"]
[12084,"Adicional Local De Exercício I LC 1045/2008 - PM","Comunicado DDP/G-003, de 27/10/2014 => DOE: 29/10/2014","Não Acatar"]
[12085,"Adicional Local De Exercício Ii LC 1045/2008 - PM","Comunicado DDP/G-003, de 27/10/2014 => DOE: 29/10/2014","Não Acatar"]
[12086,"Auxílio Educação - Pós Graduação – SPPREV","Comunicado DDP/G-003, de 27/10/2014 => DOE: 29/10/2014","Não Acatar"]
[12087,"Adicional Local De Exercício - LC 1.097/2009 - Incorporado - SPPREV","Comunicado DDP/G-003, de 27/10/2014 => DOE: 29/10/2014","Acatar"]
[12088,"Adicional Local De Exercício - Incorporado - Suporte Pedagógico - SPPREV","Comunicado DDP/G-003, de 27/10/2014 => DOE: 29/10/2014","Acatar"]
[12089,"Adicional Local De Exercício - Incorporado - Carga Suplementar/Carga Horária - SPPREV","Comunicado DDP/G-003, de 27/10/2014 => DOE: 29/10/2014","Acatar"]
[12090,"Dejem - Diária Especial Por Jornada Extraordinária De Trabalho Policial Militar - PM","Comunicado DDP/G-003, de 27/10/2014 => DOE: 29/10/2014","Não Acatar"]
[12091,"Adicional De Insalubridade Técnico De Radiologia - (2 Salários Mínimos)","Comunicado DDP/G-003, de 27/10/2014 => DOE: 29/10/2014","Avaliar",null,"Verificar se verba compõe a base prividenciária"]
[12092,"Adicional Local De Exercício Médico - LC 1.239/2014 ","Comunicado DDP/G-003, de 27/10/2014 => DOE: 29/10/2014","Avaliar","LC 1.239/2014 ","Verificar se verba compõe a base prividenciária"]
[12093,"Diária Especial Por Jornada Extraordinária De Trabalho Policial Militar--Termo Cooperação – Poder Judiciário","Comunicado DDP/G-14, de 28/09/2016 => DOE: 29/09/2016","Não Acatar"]
[12094,"Diária Especial Por Jornada Extraordinária De Trabalho Policial Militar - Convênio Fundação Casa","Comunicado DDP/G-14, de 28/09/2016 => DOE: 29/09/2016","Não Acatar"]
[12100,"Adic. Complexidade Gestão - ACG",null,"Não Acatar",null,"SEM OBSERVAÇÕES "]
[12116,"Ale - Adesão - Lc",null,"Não Acatar"]
[13001,"Correção Monetária                 ","Comunicado DDP/G-15, de 30/09/2016 => DOE: 01/10/2016","Não Acatar"]
[13002,"Correção Monetária - Decreto Nº 50.947/2006","Comunicado DDP/G-07, de 11/02/1998 => DOE: 12/02/1998","Não Acatar"]
[13003,"Correção Monetária Sem Incidência Da Contribuição Previdenciária","Comunicado DDP/G-07, de 11/02/1998 => DOE: 12/02/1998","Não Acatar"]
[13004,"Correção Monetária Desconto","Comunicado DDP/G-07, de 11/02/1998 => DOE: 12/02/1998","Não Acatar"]
[13005,"Correção Monetária – 13º Salário","Comunicado DDPE/G-04, de 22/06/2012 => DOE: 27/06/2012","Não Acatar"]
[13006,"Correção Monetária – Participação Por Resultados","Comunicado DDP/G-003, de 27/10/2014 => DOE: 29/10/2014","Não Acatar"]
[13007,"Correção Monetária - Não Tributável","Comunicado DDP/G-14, de 28/09/2016 => DOE: 29/09/2016","Não Acatar"]
[14001,"Serviço Extraordinário – EFP","Comunicado DDP/G-07, de 11/02/1998 => DOE: 12/02/1998","Não Acatar"]
[14002,"Serviço Extraordinário – CLT","Comunicado DDP/G-07, de 11/02/1998 => DOE: 12/02/1998","Não Acatar"]
[14003,"Serviço Extraordinário Não Servidor – EFCJ","Comunicado DDP/G-07, de 11/02/1998 => DOE: 12/02/1998","Não Acatar"]
[14004,"Substituição Eventual Administrativa","Comunicado DDP/G-07, de 11/02/1998 => DOE: 12/02/1998","Não Acatar"]
[14005,"Substituição Administrativa – EFCJ","Comunicado DDP/G-07, de 11/02/1998 => DOE: 12/02/1998","Não Acatar"]
[14006,"Substituição Eventual – Agente Fiscal De Rendas - Função Interna","Comunicado DDP/G-07, de 11/02/1998 => DOE: 12/02/1998","Não Acatar"]
[14007,"Substituição Gratificação De Representação","Comunicado DDP/G-07, de 11/02/1998 => DOE: 12/02/1998","Não Acatar"]
[14008,"Substituição Pró-Labore - Delegado De Polícia","Comunicado DDP/G-07, de 11/02/1998 => DOE: 12/02/1998","Não Acatar"]
[14009,"Substituição Pró-Labore – Carreira Policial","Comunicado DDP/G-07, de 11/02/1998 => DOE: 12/02/1998","Não Acatar"]
[14010,"Substituição Pró-Labore – Agente De Segurança Penitenciária","Comunicado DDP/G-07, de 11/02/1998 => DOE: 12/02/1998","Não Acatar"]
[14011,"Substituição Pró-Labore – Técnico De Apoio À Arrecadação Tributária / Julgador Tributário","Comunicado DDP/G-07, de 11/02/1998 => DOE: 12/02/1998","Não Acatar"]
[14012,"Substituição Pró-Labore – Agente Fiscal De Rendas","Comunicado DDP/G-07, de 11/02/1998 => DOE: 12/02/1998","Não Acatar"]
[14013,"Substituição Pró-Labore – Pesquisador Científico","Comunicado DDP/G-07, de 11/02/1998 => DOE: 12/02/1998","Não Acatar"]
[14014,"Substituição Pró-Labore – Assistente À Pesquisa Científica E Tecnológica","Comunicado DDP/G-43, de 04/11/1998 => DOE: 06/11/1998","Não Acatar"]
[14015,"Substituição Pró-Labore - Apoio À Pesquisa Científica E Tecnológica","Comunicado DDP/G-43, de 04/11/1998 => DOE: 06/11/1998","Não Acatar"]
[14016,"Substituição Pró-Labore - Apoio Agropecuário","Comunicado DDP/G-43, de 04/11/1998 => DOE: 06/11/1998","Não Acatar"]
[14017,"Substituição Pró-Labore – Assistente Agropecuário","Comunicado DDP/G-05, de 09/02/2004 => DOE: 11/02/2004 ","Não Acatar"]
[14018,"Substituição Pró-Labore – Procurador Do Estado","Comunicado DDP/G-05, de 09/02/2004 => DOE: 11/02/2004 ","Não Acatar"]
[14019,"Substituição Pró-Labore - Engenheiro","Comunicado DDP/G-05, de 09/02/2004 => DOE: 11/02/2004 ","Não Acatar"]
[14020,"Substituição Pró-Labore - Dirigente Assessoria Técnica","Comunicado DDP/G-05, de 09/02/2004 => DOE: 11/02/2004 ","Não Acatar"]
[14021,"Substituição Pró-Labore – Técnico Desportivo","Comunicado DDP/G-05, de 09/02/2004 => DOE: 11/02/2004 ","Não Acatar"]
[14022,"Substituição Pró-Labore – Artigo 11 – LC 674/92","Comunicado DDP/G-05, de 09/02/2004 => DOE: 11/02/2004 ","Não Acatar"]
[14023,"Substituição Pró-Labore – LC 556/88 - Médico","Comunicado DDP/G-05, de 09/02/2004 => DOE: 11/02/2004 ","Não Acatar"]
[14024,"Substituição Pró-Labore – LC 556/88 – Médico Sanitarista","Comunicado DDP/G-05, de 09/02/2004 => DOE: 11/02/2004 ","Não Acatar"]
[14025,"Substituição Pró-Labore – LC 556/88 – Cirurgião Dentista","Comunicado DDP/G-05, de 09/02/2004 => DOE: 11/02/2004 ","Não Acatar"]
[14026,"Honorário Academia De Polícia – Professor I","Comunicado DDP/G-05, de 09/02/2004 => DOE: 11/02/2004 ","Não Acatar"]
[14027,"Honorário Academia De Polícia -  Professor II","Comunicado DDP/G-05, de 09/02/2004 => DOE: 11/02/2004 ","Não Acatar"]
[14028,"Aulas Escola Fazendária – Nível Médico","Comunicado DDP/G-05, de 09/02/2004 => DOE: 11/02/2004 ","Avaliar",null,"Verificar se verba compõe a base prividenciária"]
[14029,"Aulas Escola Fazendária – Nível Superior","Comunicado DDP/G-05, de 09/02/2004 => DOE: 11/02/2004 ","Avaliar",null,"Verificar se verba compõe a base prividenciária"]
[14030,"Quebra De Caixa","Comunicado DDP/G-05, de 09/02/2004 => DOE: 11/02/2004 ","Não Acatar"]
[14031,"Serviço Extraordinário –Horas Fixas-CLT","Comunicado DDP/G-15, de 30/09/2016 => DOE: 01/10/2016","Não Acatar"]
[14032,"Serviço Extraordinário -100%-CLT  ","Comunicado DDP/G-15, de 30/09/2016 => DOE: 01/10/2016","Não Acatar"]
[14033,"Descanso Semanal Remunerado        ","Comunicado DDP/G-15, de 30/09/2016 => DOE: 01/10/2016","Não Acatar"]
[14034,"Ajuda Para Estudos                   ","Comunicado DDP/G-15, de 30/09/2016 => DOE: 01/10/2016","Não Acatar"]
[14035,"Média Férias Serviço Extraordinário","Comunicado DDP/G-15, de 30/09/2016 => DOE: 01/10/2016","Não Acatar"]
[14036,"Serviço Extraordinário -Média-Afastamento   ","Comunicado DDP/G-15, de 30/09/2016 => DOE: 01/10/2016","Não Acatar"]
[14037,"Serviço Extraordinário -Média-Licença Maternidade","Comunicado DDP/G-15, de 30/09/2016 => DOE: 01/10/2016","Não Acatar"]
[14038,"Serviço Extraordinário-100%- Decreto 45695/65","Comunicado DDP/G-15, de 30/09/2016 => DOE: 01/10/2016","Não Acatar"]
[14039,"Serviço Extraordinário Indenização-Enunciado 291/TST","Comunicado DDP/G-15, de 30/09/2016 => DOE: 01/10/2016","Não Acatar"]
[14040,"Retribuição De Função Ensino Polícia Militar-I-4,5%     ","Comunicado DDP/G-15, de 30/09/2016 => DOE: 01/10/2016","Não Acatar"]
[14041,"Retribuição De Função Ensino Polícia Militar -II-3,5%    ","Comunicado DDP/G-15, de 30/09/2016 => DOE: 01/10/2016","Não Acatar"]
[14042,"Retribuição De Função Ensino Polícia Militar -III-2,5%   ","Comunicado DDP/G-15, de 30/09/2016 => DOE: 01/10/2016","Não Acatar"]
[14043,"Retribuição De Função Ensino Polícia Militar -IV-2,0%   ","Comunicado DDP/G-15, de 30/09/2016 => DOE: 01/10/2016","Não Acatar"]
[14044,"Retribuição De Função Ensino Polícia Militar -V-1,0%     ","Comunicado DDP/G-15, de 30/09/2016 => DOE: 01/10/2016","Não Acatar"]
[14045,"Substituição Pró-Labore - LC 731/93","Comunicado DDP/G-05, de 09/02/2004 => DOE: 11/02/2004 ","Não Acatar"]
[14046,"Honorários  De Academia Penitenciária – Professor I","Comunicado DDP/G-05, de 09/02/2004 => DOE: 11/02/2004 ","Não Acatar"]
[14047,"Honorários De Academia Penitenciaria – Professor Ii","Comunicado DDP/G-05, de 09/02/2004 => DOE: 11/02/2004 ","Não Acatar"]
[14048,"Retribuição Banca Examinadora PM-I","Comunicado DDP/G-05, de 09/02/2004 => DOE: 11/02/2004 ","Não Acatar"]
[14049,"Retribuição Banca Examinadora PM-II","Comunicado DDP/G-05, de 09/02/2004 => DOE: 11/02/2004 ","Não Acatar"]
[14050,"Retribuição Banca Examinadora PM-III","Comunicado DDP/G-05, de 09/02/2004 => DOE: 11/02/2004 ","Não Acatar"]
[14051,"Retribuição Banca Examinadora PM-IV","Comunicado DDP/G-05, de 09/02/2004 => DOE: 11/02/2004 ","Não Acatar"]
[14052,"Retribuição Banca Examinadora PM-V","Comunicado DDP/G-05, de 09/02/2004 => DOE: 11/02/2004 ","Não Acatar"]
[14053,"Honorários – Secretaria Da Saúde - Professor I","Comunicado DDP/G-05, de 09/02/2004 => DOE: 11/02/2004 ","Não Acatar"]
[14054,"Honorários - Secretaria Da Saúde – Professor II","Comunicado DDP/G-05, de 09/02/2004 => DOE: 11/02/2004 ","Não Acatar"]
[14055,"Substituição Pró-Labore – Pesquisador Científico - LC 821/96","Comunicado DDP/G-05, de 09/02/2004 => DOE: 11/02/2004 ","Não Acatar"]
[14056,"Honorários – Secretaria Da Cultura – Nível Médio","Comunicado DDP/G-05, de 09/02/2004 => DOE: 11/02/2004 ","Não Acatar"]
[14057,"Honorários – Secretaria Da Cultura – Nível Superior","Comunicado DDP/G-05, de 09/02/2004 => DOE: 11/02/2004 ","Não Acatar"]
[14058,"Serviço Extraordinário Sobre Adicional Noturno","Comunicado DDP/G-05, de 09/02/2004 => DOE: 11/02/2004 ","Não Acatar"]
[14059,"Média De Hora Extra Para Férias       ","Comunicado DDP/G-15, de 30/09/2016 => DOE: 01/10/2016","Não Acatar"]
[14060,"Média de Gratificações Para Ferias    ","Comunicado DDP/G-15, de 30/09/2016 => DOE: 01/10/2016","Não Acatar"]
[14061,"Honorários – Perícias Médicas – Decreto 49.260/2004","Comunicado DDP/G-05, de 09/02/2004 => DOE: 11/02/2004 ","Não Acatar"]
[14062,"Honorários De Avaliações E Investigação De Paternidade – Decreto 49.260/2004","Comunicado DDP/G-05, de 09/02/2004 => DOE: 11/02/2004 ","Não Acatar"]
[14063,"Honorários – Fundo Social De Solidariedade Do Estado De São Paulo – Decreto 44.961/2000","Comunicado DDP/G-05, de 09/02/2004 => DOE: 11/02/2004 ","Não Acatar"]
[14064,"Substituição Pró-Labore De Agente De Escolta E Vigilância Penitenciária","Comunicado DDP/G-05, de 09/02/2004 => DOE: 11/02/2004 ","Não Acatar"]
[14065,"Substituição Eventual - Delegado De Polícia","Comunicado DDP/G-05, de 09/02/2004 => DOE: 11/02/2004 ","Não Acatar"]
[14066,"Honorário Perícia Investigação Paternidade/Decreto 49260/04 ","Comunicado DDP/G-15, de 30/09/2016 => DOE: 01/10/2016","Não Acatar"]
[14067,"Honorário – Médico – Decreto 49.260/04","Comunicado DDP/G-05, de 09/02/2004 => DOE: 11/02/2004 ","Não Acatar"]
[14068,"Gratificação De Magistério Lei Complementar 988/2006","Comunicado DDP/G-08, de 11/04/2000 => DOE: 13/04/2000","Avaliar","Lei  Complementar 988/2006","Verificar se verba compõe a base prividenciária"]
[14069,"Substituição Eventual De Gratificação Pelo Exercício De Atividade Em Condições Especiais E Dificuldade","Comunicado DDPE/G-04, de 22/06/2012 => DOE: 27/06/2012","Não Acatar"]
[14070,"Substituição Eventual Administrativa - Valor","Comunicado DDP/G-15, de 30/09/2016 => DOE: 01/10/2016","Não Acatar"]
[14071,"Substituição Pró-labore                   ","Comunicado DDP/G-15, de 30/09/2016 => DOE: 01/10/2016","Não Acatar"]
[14072,"Substituição- Gratificação Representação-Valor  ","Comunicado DDP/G-15, de 30/09/2016 => DOE: 01/10/2016","Não Acatar"]
[14073,"Substituição Pró-Labore Artigo 30 Da LC 1157/2011","Comunicado DDPE/G-04, de 22/06/2012 => DOE: 27/06/2012","Não Acatar"]
[14074,"Substituição Pró-Labore Especialista Ambiental LC 996/06","Comunicado DDP/G-003, de 27/10/2014 => DOE: 29/10/2014","Não Acatar"]
[14075,"Substituição Pró Labore Artigo 27 Da LC 1157/11","Comunicado DDP/G-003, de 27/10/2014 => DOE: 29/10/2014","Não Acatar"]
[14076,"Substituição Pró-Labore Gerente LC 1144/2011","Comunicado DDP/G-003, de 27/10/2014 => DOE: 29/10/2014","Não Acatar"]
[14077,"Substituição Pró-Labore LC 1193/2013","Comunicado DDP/G-003, de 27/10/2014 => DOE: 29/10/2014","Não Acatar"]
[14078,"Horas Em Regime De Sobreaviso - Arsesp","Comunicado DDP/G-003, de 27/10/2014 => DOE: 29/10/2014","Não Acatar"]
[14079,"Dejep-Diária Especial Por Jornada Extraordinária De Trabalho Penitenciaria","Comunicado DDP/G-003, de 27/10/2014 => DOE: 29/10/2014","Não Acatar"]
[14080,"Substituição Eventual- Abono Por Satisfação Do Usuário (ASU)-Supervisor","Comunicado DDP/G-003, de 27/10/2014 => DOE: 29/10/2014","Não Acatar"]
[14081,"Substituição Eventual-Abono Por Satisfação Do Usuário (ASU)-Supervisor Geral","Comunicado DDP/G-003, de 27/10/2014 => DOE: 29/10/2014","Não Acatar"]
[14082,"Substituição Eventual- Abono Por Satisfação Do Usuário (ASU)-Atendente","Comunicado DDP/G-003, de 27/10/2014 => DOE: 29/10/2014","Não Acatar"]
[14083,"Diária Especial Por Jornada Extraordinária De Trabalho Policial Civil - Delegado De Policia – Lei Complementar 1280/16","Comunicado DDP/G-14, de 28/09/2016 => DOE: 29/09/2016","Não Acatar"]
[14084,"Diária Especial Por Jornada Extraordinária De Trabalho Policial Civil - Carreira Policial – Lei Complementar 1280/16","Comunicado DDP/G-14, de 28/09/2016 => DOE: 29/09/2016","Não Acatar"]
[14085,"Descanso Semanal Remunerado Sobre Serviço Extraordinário - CLT","Comunicado DDP/G-14, de 28/09/2016 => DOE: 29/09/2016","Não Acatar"]
[14086,"Diária Especial Por Jornada Extraordinária De Trabalho Policial Militar – Polícia Militar","Comunicado DDP/G-14, de 28/09/2016 => DOE: 29/09/2016","Não Acatar"]
[14087,"Diária Especial Por Jornada Extraordinária De Trabalho Policial Militar-Termo Cooperação – Poder Judiciário","Comunicado DDP/G-14, de 28/09/2016 => DOE: 29/09/2016","Não Acatar"]
[14088,"Diária Especial Por Jornada Extraordinária De Trabalho Policial Militar -Convênio Fundação Casa","Comunicado DDP/G-14, de 28/09/2016 => DOE: 29/09/2016","Não Acatar"]
[14089,"Descanso Semanal Remunerado Sobre Adicional Noturno - CLT ","Comunicado DDP/G-14, de 28/09/2016 => DOE: 29/09/2016","Não Acatar"]
[14090,"Descanso Semanal Remunerado Sobre Serviço Extraordinário - Horas Fixas -CLT ","Comunicado DDP/G-14, de 28/09/2016 => DOE: 29/09/2016","Não Acatar"]
[15001,"Abono Rendimento – Pis / Pasep","Comunicado DDP/G-08, de 11/04/2000 => DOE: 13/04/2000","Não Acatar"]
[15002,"Abono 92","Comunicado DDP/G-08, de 11/04/2000 => DOE: 13/04/2000","Não Acatar"]
[15003,"Abono Complementar","Comunicado DDP/G-08, de 11/04/2000 => DOE: 13/04/2000","Avaliar",null,"Verificar se verba compõe a base prividenciária"]
[15004,"Abono 08/93","Comunicado DDP/G-08, de 11/04/2000 => DOE: 13/04/2000","Não Acatar"]
[15005,"Abono Dez/93","Comunicado DDP/G-12, de 24/05/2001 => DOE: 26/05/2001","Não Acatar"]
[15006,"Abono Quadro Do Magistério/94","Comunicado DDP/G-07, de 31/01/2002 => DOE: 02/02/2002","Não Acatar"]
[15007,"Complementação De Pensão - Revolução/32","Comunicado DDP/G-07, de 31/01/2002 => DOE: 02/02/2002","Avaliar",null,"Verificar se verba compõe a base prividenciária"]
[15008,"Abono Fardamento – Polícia Militar","Comunicado DDP/G-07, de 31/01/2002 => DOE: 02/02/2002","Não Acatar"]
[15009,"Abono De Transferência – Polícia Militar","Comunicado DDP/G-22, de 15/08/2002 => DOE: 17/08/2002","Avaliar",null,"Verificar se verba compõe a base prividenciária"]
[15010,"Abono Complementar Carreira Policial - LC 901/2001","Comunicado DDP/G-30, de 27/08/2003 => DOE: 02/09/2003","Não Acatar"]
[15011,"Abono Complementar Carreira Policial – Inativo - LC 901/2001","Comunicado DDP/G-30, de 27/08/2003 => DOE: 02/09/2003","Não Acatar"]
[15012,"Abono Complementar Agente De Segurança Penitenciária - LC 901/2001","Comunicado DDP/G-05, de 09/02/2004 => DOE: 11/02/2004 ","Não Acatar"]
[15013,"Abono Complementar Agente De Segurança Penitenciária - Inativo - LC 901/2001","Comunicado DDP/G-05, de 09/02/2004 => DOE: 11/02/2004 ","Não Acatar"]
[15014,"Abono Por Satisfação Do Usuário - Atendimento/Orientação /Apoio","Comunicado DDP/G-05, de 09/02/2004 => DOE: 11/02/2004 ","Não Acatar"]
[15015,"Abono Anual – Lei 10.851/2001","Comunicado DDP/G-05, de 09/02/2004 => DOE: 11/02/2004 ","Avaliar","Lei  10.851/2001","Verificar se verba compõe a base prividenciária"]
[15016,"Abono Por Satisfação Ao Usuário - Substituição","Comunicado DDP/G-05, de 09/02/2004 => DOE: 11/02/2004 ","Não Acatar"]
[15017,"Abono De Permanência - Emenda Constitucional 41/2003","Comunicado DDP/G-05, de 09/02/2004 => DOE: 11/02/2004 ","Não Acatar"]
[15018,"Abono De Permanência - Férias","Comunicado DDP/G-05, de 09/02/2004 => DOE: 11/02/2004 ","Não Acatar"]
[15019,"Abono De Permanência - Antecipação 13. Salário","Comunicado DDP/G-05, de 09/02/2004 => DOE: 11/02/2004 ","Não Acatar"]
[15020,"Abono Permanência – Instituto de Pagamentos Especiais de São Paulo          ","Comunicado DDP/G-15, de 30/09/2016 => DOE: 01/10/2016","Não Acatar"]
[15021,"Abono Permanência – Instituto de Pagamentos Especiais de São Paulo Férias     ","Comunicado DDP/G-15, de 30/09/2016 => DOE: 01/10/2016","Não Acatar"]
[15022,"Abono Permanência – Instituto de Pagamentos Especiais de São Paulo/Antecipação 13º Salário","Comunicado DDP/G-15, de 30/09/2016 => DOE: 01/10/2016","Não Acatar"]
[15023,"Abono Permanência –Caixa Beneficente da Polícia Militar             ","Comunicado DDP/G-15, de 30/09/2016 => DOE: 01/10/2016","Não Acatar"]
[15024,"Abono De Permanência - 5%","Comunicado DDP/G-05, de 09/02/2004 => DOE: 11/02/2004 ","Não Acatar"]
[15025,"Abono De Permanência - 6%","Comunicado DDP/G-05, de 09/02/2004 => DOE: 11/02/2004 ","Não Acatar"]
[15026,"Abono De Permanência Sobre 1/3 De Férias - 5%","Comunicado DDP/G-12, de 06/05/2004 => DOE: 11/05/2004","Não Acatar"]
[15027,"Abono De Permanência Sobre 1/3 De Férias - 6%","Comunicado DDPE/G-13, de 07/04/2005 => DOE: 09/04/2005","Não Acatar"]
[15028,"Abono De Permanência Sobre 13º Salário - 5%","Comunicado DDPE/G-13, de 07/04/2005 => DOE: 09/04/2005","Não Acatar"]
[15029,"Abono De Permanência Sobre 13º Salário - 6% ","Comunicado DDPE/G-13, de 07/04/2005 => DOE: 09/04/2005","Não Acatar"]
[15030,"Abono De Permanência - Antecipação 13º Salário - 5%","Comunicado DDPE/G-13, de 07/04/2005 => DOE: 09/04/2005","Não Acatar"]
[15031,"Abono De Permanência - Antecipação 13º Salário - 6%","Comunicado DDPE/G-13, de 07/04/2005 => DOE: 09/04/2005","Não Acatar"]
[15032,"Abono Por Satisfação Do Usuário – Supervisão","Comunicado DDPE/G-13, de 07/04/2005 => DOE: 09/04/2005","Não Acatar"]
[15033,"Abono Por Satisfação Do Usuário Supervisão Geral","Comunicado DDPE/G-13, de 07/04/2005 => DOE: 09/04/2005","Não Acatar"]
[15034,"Abono De Permanência 11%","Comunicado DDPE/G-13, de 07/04/2005 => DOE: 09/04/2005","Não Acatar"]
[15035,"Abono Permanência Sobre 1/3 Férias-11% ","Comunicado DDP/G-15, de 30/09/2016 => DOE: 01/10/2016","Não Acatar"]
[15036,"Abono De Permanência Sobre  13º Salário - 11%","Comunicado DDPE/G-13, de 07/04/2005 => DOE: 09/04/2005","Não Acatar"]
[15037,"Abono De Permanência Antecipação 13º Salário - 11%","Comunicado DDPE/G-13, de 07/04/2005 => DOE: 09/04/2005","Não Acatar"]
[15038,"Abono De Permanência 11% - Rendimentos Recebidos Acumuladamente","Comunicado DDPE/G-04, de 22/06/2012 => DOE: 27/06/2012","Não Acatar"]
[15039,"Abono De Permanência 11% - 13º Salário - Rendimentos Recebidos Acumuladamente","Comunicado DDPE/G-04, de 22/06/2012 => DOE: 27/06/2012","Não Acatar"]
[15040,"Antecipação Prêmio De Desempenho Individual","Comunicado DDPE/G-04, de 22/06/2012 => DOE: 27/06/2012","Não Acatar"]
[15041,"Abono Permanência – Participação Por Resultados","Comunicado DDP/G-003, de 27/10/2014 => DOE: 29/10/2014","Não Acatar"]
[15042,"Abono Permanência 11% - LC 1249/14 - PM","Comunicado DDP/G-003, de 27/10/2014 => DOE: 29/10/2014","Não Acatar"]
[15043,"Abono Permanência Sobre 13º Salário LC 1249/14 - PM","Comunicado DDP/G-003, de 27/10/2014 => DOE: 29/10/2014","Não Acatar"]
[15044,"Abono Permanência Antecipação Sobre 13º Salário LC 1249/14 - PM","Comunicado DDP/G-003, de 27/10/2014 => DOE: 29/10/2014","Não Acatar"]
[15808,"Abono Complementar Docentes",null,"Não Acatar"]
[16001,"Licença Prêmio","Comunicado DDPE/G-15, de 04/07/2006 => DOE: 29/07/2006 ","Não Acatar"]
[16002,"Férias - Despacho Do Governador","Comunicado DDPE/G-13, de 14/05/2007 => DOE: 15/05/2007","Não Acatar"]
[16003,"Licença Prêmio - EFCJ","Comunicado DDPE/G-13, de 14/05/2007 => DOE: 15/05/2007","Avaliar",null,"Verificar se verba compõe a base prividenciária"]
[16004,"Licença Prêmio – Decreto 25013 E 25353/86","Comunicado DDPE/G-13, de 14/05/2007 => DOE: 15/05/2007","Não Acatar"]
[16005,"Férias 1/3 – EFP – Decreto 29439/88","Comunicado DDPE/G-13, de 14/05/2007 => DOE: 15/05/2007","Não Acatar"]
[16006,"Férias 1/3 Docente – Decreto 29439/88","Comunicado DDPE/G-05, de 03/04/2008 => DOE: 04/04/2008","Não Acatar"]
[16007,"Férias 1/3 – EFP – Área - Radiologia","Comunicado DDP/G-05, de 31/01/1994 => DOE: 01/02/1994","Não Acatar"]
[16008,"Férias 1/3 – CLT – Técnico De Radiologia","Comunicado DDP/G-05, de 31/01/1994 => DOE: 01/02/1994","Não Acatar"]
[16009,"Antecipação Salário - CLT","Comunicado DDP/G-05, de 31/01/1994 => DOE: 01/02/1994","Não Acatar"]
[16010,"Abono Férias - CLT","Comunicado DDP/G-05, de 31/01/1994 => DOE: 01/02/1994","Não Acatar"]
[16011,"Férias 1/3 – CLT – Decreto 29439/88","Comunicado DDP/G-05, de 31/01/1994 => DOE: 01/02/1994","Não Acatar"]
[16012,"Férias 1/3 – Abono – CLT – Decreto 29439/88","Comunicado DDP/G-05, de 31/01/1994 => DOE: 01/02/1994","Não Acatar"]
[16013,"Indenizações De Férias - CLT","Comunicado DDP/G-05, de 02/02/1995 => DOE: 03/02/1995","Não Acatar"]
[16014,"Férias Em Dobro - CLT","Comunicado DDP/G-08, de 11/04/2000 => DOE: 13/04/2000","Não Acatar"]
[16015,"Férias Em Dobro - EFCJ","Comunicado DDP/G-08, de 11/04/2000 => DOE: 13/04/2000","Não Acatar"]
[16016,"Férias Proporcionais - LC 444/85 - Docente","Comunicado DDP/G-08, de 11/04/2000 => DOE: 13/04/2000","Não Acatar"]
[16017,"Férias – Decreto 25013 E 25353/86","Comunicado DDP/G-08, de 11/04/2000 => DOE: 13/04/2000","Não Acatar"]
[16018,"Indenização De Férias - EFP","Comunicado DDP/G-08, de 11/04/2000 => DOE: 13/04/2000","Não Acatar"]
[16019,"Licença Prêmio - Decreto 39540/94","Comunicado DDP/G-08, de 11/04/2000 => DOE: 13/04/2000","Avaliar","decreto  39540/94","Verificar se verba compõe a base prividenciária"]
[16020,"Férias - Decreto 39540/94","Comunicado DDP/G-08, de 11/04/2000 => DOE: 13/04/2000","Não Acatar"]
[16021,"Complemento Proventos - Lei 5451/86       ","Comunicado DDP/G-15, de 30/09/2016 => DOE: 01/10/2016","Acatar"]
[16022,"Indenização - LC 794/95","Comunicado DDP/G-08, de 11/04/2000 => DOE: 13/04/2000","Acatar"]
[16023,"Licença Prêmio - LC 794/95","Comunicado DDP/G-08, de 11/04/2000 => DOE: 13/04/2000","Não Acatar"]
[16024,"Férias - LC 794/95","Comunicado DDP/G-08, de 11/04/2000 => DOE: 13/04/2000","Não Acatar"]
[16025,"Férias 1/3 - Prêmio De Valorização","Comunicado DDP/G-05, de 31/01/1994 => DOE: 01/02/1994","Não Acatar"]
[16026,"Prêmio De Valorização – Licença Prêmio – LC 809/96","Comunicado DDP/G-05, de 31/01/1994 => DOE: 01/02/1994","Não Acatar"]
[16027,"Indenização - LC 811/96","Comunicado DDP/G-05, de 31/01/1994 => DOE: 01/02/1994","Não Acatar"]
[16028,"Licença Prêmio - LC 811/96","Comunicado DDP/G-05, de 31/01/1994 => DOE: 01/02/1994","Não Acatar"]
[16029,"Férias - LC 811/96","Comunicado DDP/G-05, de 09/02/2004 => DOE: 11/02/2004 ","Não Acatar"]
[16030,"Décimo Terceiro Salário - LC 811/96","Comunicado DDP/G-05, de 09/02/2004 => DOE: 11/02/2004 ","Não Acatar"]
[16031,"Acréscimo 25% - LC 812/96","Comunicado DDP/G-05, de 09/02/2004 => DOE: 11/02/2004 ","Não Acatar"]
[16032,"Acréscimo 15% - LC 812/96","Comunicado DDP/G-12, de 06/05/2004 => DOE: 11/05/2004","Não Acatar"]
[16033,"Indenização - LC 845/98","Comunicado DDPE/G-13, de 07/04/2005 => DOE: 09/04/2005","Não Acatar"]
[16034,"Férias - LC 845/98","Comunicado DDPE/G-13, de 07/04/2005 => DOE: 09/04/2005","Não Acatar"]
[16035,"Décimo Terceiro Salário - LC 845/98","Comunicado DDPE/G-15, de 04/07/2006 => DOE: 29/07/2006 ","Não Acatar"]
[16036,"Acréscimo 25% - LC 845/98","Comunicado DDPE/G-05, de 03/04/2008 => DOE: 04/04/2008","Não Acatar"]
[16037,"Acréscimo 15% - LC 845/98","Comunicado DDP/G-05, de 31/01/1994 => DOE: 01/02/1994","Não Acatar"]
[16038,"Férias – Despacho Do Governador De 23/02/2000","Comunicado DDP/G-05, de 31/01/1994 => DOE: 01/02/1994","Não Acatar"]
[16039,"Férias 1/3 – Despacho Do Governador - 23/02/2000","Comunicado DDP/G-04, de 23/01/1997 => DOE: 24/01/1997","Não Acatar"]
[16040,"Férias - Decreto 25.013/86      ","Comunicado DDP/G-15, de 30/09/2016 => DOE: 01/10/2016","Não Acatar"]
[16041,"Férias - Decreto 25.353/86      ","Comunicado DDP/G-15, de 30/09/2016 => DOE: 01/10/2016","Não Acatar"]
[16042,"Licença Prêmio - Decreto Número 25.353/86 ","Comunicado DDP/G-15, de 30/09/2016 => DOE: 01/10/2016","Não Acatar"]
[16043,"Licença Prêmio - Lei Complementar Nº 857/1999","Comunicado DDP/G-07, de 31/01/2002 => DOE: 02/02/2002","Não Acatar"]
[16044,"Licença Prêmio - Lei Complementar Nº 1015/2007","Comunicado DDPE/G-13, de 07/04/2005 => DOE: 09/04/2005","Não Acatar"]
[16045,"Licença Prêmio – Agente De Segurança Penitenciária / Agente De Escolta E Vigilância Penitenciária","Comunicado DDPE/G-04, de 22/06/2012 => DOE: 27/06/2012","Não Acatar"]
[16046,"Indenização Licença Prêmio –Decreto 25013/86","Comunicado DDP/G-15, de 30/09/2016 => DOE: 01/10/2016","Não Acatar"]
[16047,"Indenização Licença Prêmio –Decreto 25353/86","Comunicado DDP/G-15, de 30/09/2016 => DOE: 01/10/2016","Não Acatar"]
[16048,"Indenização Licença Prêmio –Servidor Exonerado Cargo Comissão","Comunicado DDP/G-15, de 30/09/2016 => DOE: 01/10/2016","Não Acatar"]
[16049,"Indenização Férias – Decreto 25013/86 ","Comunicado DDP/G-15, de 30/09/2016 => DOE: 01/10/2016","Não Acatar"]
[16050,"Indenização Férias - Decreto 25353/86 ","Comunicado DDP/G-15, de 30/09/2016 => DOE: 01/10/2016","Não Acatar"]
[16051,"Indenização Férias Decreto 25353/86-Servidor Outras Entidades","Comunicado DDP/G-15, de 30/09/2016 => DOE: 01/10/2016","Não Acatar"]
[16052,"Licença Prêmio – Decreto 52031/07 Sem Incidência De Imposto De Renda – Polícia Militar – Ação Judicial","Comunicado DDPE/G-04, de 22/06/2012 => DOE: 27/06/2012","Avaliar","decreto  52031/07 Sem Incidência De Imposto De Renda – Polícia Militar – Ação Judicial","Verificar se verba compõe a base prividenciária"]
[16053,"Licença Prêmio LC 1048/2008","Comunicado DDPE/G-04, de 22/06/2012 => DOE: 27/06/2012","Não Acatar"]
[16054,"Licença Prêmio – Agente Fiscal De Renda – LC 1059/2008","Comunicado DDPE/G-04, de 22/06/2012 => DOE: 27/06/2012","Não Acatar"]
[16055,"Licença Prêmio – LC 1079/2008","Comunicado DDPE/G-04, de 22/06/2012 => DOE: 27/06/2012","Não Acatar"]
[16056,"Licença Prêmio – LC 1080/2008","Comunicado DDPE/G-04, de 22/06/2012 => DOE: 27/06/2012","Não Acatar"]
[16057,"Férias – LC 1093/2009","Comunicado DDPE/G-04, de 22/06/2012 => DOE: 27/06/2012","Não Acatar"]
[16058,"Indenização – LC 1093/2009","Comunicado DDPE/G-04, de 22/06/2012 => DOE: 27/06/2012","Não Acatar"]
[16059,"Licença Prêmio – LC 1122/2010","Comunicado DDPE/G-04, de 22/06/2012 => DOE: 27/06/2012","Não Acatar"]
[16060,"Licença Prêmio – Artigo 2 – LC 1113/2010","Comunicado DDPE/G-04, de 22/06/2012 => DOE: 27/06/2012","Não Acatar"]
[16061,"Indenização – Licença Gestante","Comunicado DDPE/G-04, de 22/06/2012 => DOE: 27/06/2012","Não Acatar"]
[16062,"Licença Prêmio – LC 1157/2011","Comunicado DDPE/G-04, de 22/06/2012 => DOE: 27/06/2012","Não Acatar"]
[16063,"Licença Prêmio – Artigo 14 LC 1121/2010 ","Comunicado DDPE/G-04, de 22/06/2012 => DOE: 27/06/2012","Avaliar","LC 1121/2010 ","Art.14 -§ 3º - A indenização somente será devida nas situações em que a aposentadoria ou falecimento ocorram a partir do primeiro período de avaliação para fins de Bonificação de Resultados - BR, nos termos desta lei complementar"]
[16064,"Licença Prêmio LC 1173/2012","Comunicado DDP/G-003, de 27/10/2014 => DOE: 29/10/2014","Não Acatar"]
[16065,"Licença Prêmio-LC 1181/2012 ","Comunicado DDP/G-003, de 27/10/2014 => DOE: 29/10/2014","Avaliar","LC 1181/2012  (LEI COMPLEMENTAR Nº 1.181, DE 06 DE JULHO DE 2012)","Verificar se verba compõe a base prividenciária"]
[16066,"Férias 1/3 – Prêmio De Produtividade Médica LC 1193/2013 ","Comunicado DDP/G-003, de 27/10/2014 => DOE: 29/10/2014","Não Acatar"]
[16067,"Férias 1/3 - Prêmio De Produtividade Médica LC 1193/2013 - CLT","Comunicado DDP/G-003, de 27/10/2014 => DOE: 29/10/2014","Não Acatar"]
[16068,"Antecipação - Férias CLT - Prêmio De Produtividade Médica LC 1193/2013 ","Comunicado DDP/G-003, de 27/10/2014 => DOE: 29/10/2014","Não Acatar"]
[16069,"Abono Férias - CLT - Prêmio De Produtividade Médica LC 1193/2013 ","Comunicado DDP/G-003, de 27/10/2014 => DOE: 29/10/2014","Não Acatar"]
[16070,"Férias 1/3 - Abono CLT - Prêmio De Produtividade Médica LC 1193/2013 ","Comunicado DDP/G-003, de 27/10/2014 => DOE: 29/10/2014","Não Acatar"]
[16071,"Férias 1/3 - Prêmio De Incentivo A Produtividade - LC 1211/2013","Comunicado DDP/G-003, de 27/10/2014 => DOE: 29/10/2014","Não Acatar"]
[16072,"Abono Férias - Prêmio De Incentivo A Produtividade - LC 1211/2013","Comunicado DDP/G-003, de 27/10/2014 => DOE: 29/10/2014","Não Acatar"]
[16073,"Férias 1/3 - Abono – Prêmio De Incentivo A Produtividade - LC 1211/2013","Comunicado DDP/G-003, de 27/10/2014 => DOE: 29/10/2014","Não Acatar"]
[16074,"Férias 1/3 - Pensão Indenizatória – Ação Judicial","Comunicado DDP/G-14, de 28/09/2016 => DOE: 29/09/2016","Não Acatar"]
[17001,"Salário Família - EFP","Comunicado DDPE/G-13, de 14/05/2007 => DOE: 15/05/2007","Não Acatar"]
[17002,"Salário Família - CLT","Comunicado DDPE/G-13, de 14/05/2007 => DOE: 15/05/2007","Não Acatar"]
[17003,"Salário Família – EFP – Pensão Alimentícia","Comunicado DDPE/G-13, de 14/05/2007 => DOE: 15/05/2007","Não Acatar"]
[17004,"Salário Família – CLT – Pensão Alimentícia","Comunicado DDP/G-05, de 31/01/1994 => DOE: 01/02/1994","Não Acatar"]
[17005,"Salário Esposa","Comunicado DDP/G-05, de 31/01/1994 => DOE: 01/02/1994","Não Acatar"]
[17006,"Salário Esposa - Pensão Alimentícia","Comunicado DDP/G-05, de 31/01/1994 => DOE: 01/02/1994","Avaliar",null,"Verificar se verba compõe a base prividenciária"]
[17007,"Auxílio Natalidade - CLT","Comunicado DDP/G-05, de 31/01/1994 => DOE: 01/02/1994","Não Acatar"]
[17008,"Auxilio Creche                     ","Comunicado DDP/G-15, de 30/09/2016 => DOE: 01/10/2016","Não Acatar"]
[18001,"Pensão Lei 1890/78 - Extra-Vínculo","Comunicado DDP/G-07, de 11/02/1998 => DOE: 12/02/1998","Não Acatar"]
[18002,"Pensão Lei 1890/78","Comunicado DDP/G-07, de 11/02/1998 => DOE: 12/02/1998","Acatar"]
[18003,"Pensão Rev. 32 Art. 57 - DCT - CE - EV","Comunicado DDP/G-07, de 11/02/1998 => DOE: 12/02/1998","Avaliar",null,"Verificar se verba compõe a base prividenciária"]
[18004,"Pensão  Rev. 32 Art. 57 - DCT - CE ","Comunicado DDP/G-07, de 11/02/1998 => DOE: 12/02/1998","Avaliar",null,"Verificar se verba compõe a base prividenciária"]
[18005,"Pensão Parlamentar","Comunicado DDP/G-07, de 31/01/2002 => DOE: 02/02/2002","Avaliar",null,"Verificar se verba compõe a base prividenciária"]
[18006,"Pensão Parlamentar - Beneficiário","Comunicado DDP/G-07, de 31/01/2002 => DOE: 02/02/2002","Avaliar",null,"Verificar se verba compõe a base prividenciária"]
[18007,"Pensão Parlamentar - Ajuda De Custo","Comunicado DDP/G-12, de 06/05/2004 => DOE: 11/05/2004","Avaliar",null,"Verificar se verba compõe a base prividenciária"]
[18008,"Pensão Judicial","Comunicado DDP/G-12, de 06/05/2004 => DOE: 11/05/2004","Avaliar",null,"Verificar se verba compõe a base prividenciária"]
[18009,"Pensão Administrativa","Comunicado DDPE/G-15, de 04/07/2006 => DOE: 29/07/2006 ","Avaliar",null,"Verificar se verba compõe a base prividenciária"]
[18010,"Dependentes Pensão Revolução 32 – Artigo 57 – Disposições Transitórias – Constituição Estadual","Comunicado DDPE/G-15, de 04/07/2006 => DOE: 29/07/2006 ","Avaliar",null,"Verificar se verba compõe a base prividenciária"]
[18011,"Pensão Parlamentar - Seção Extraordinária","Comunicado DDPE/G-15, de 04/07/2006 => DOE: 29/07/2006 ","Não Acatar"]
[18012,"Complementação De Pensão - Acidente De Trabalho","Comunicado DDPE/G-15, de 04/07/2006 => DOE: 29/07/2006 ","Avaliar",null,"Verificar se verba compõe a base prividenciária"]
[18013,"Pensão Parlamentar-Subsidio Variável ","Comunicado DDP/G-15, de 30/09/2016 => DOE: 01/10/2016","Não Acatar"]
[18014,"Pensão – Salário Mínimo Referência / CBPM","Comunicado DDPE/G-15, de 04/07/2006 => DOE: 29/07/2006 ","Avaliar",null,"Verificar se verba compõe a base prividenciária"]
[18015,"14. Salário - Pensão Indenizatória - Ação Judicial","Comunicado DDPE/G-15, de 04/07/2006 => DOE: 29/07/2006 ","Não Acatar"]
[18016,"Férias 1/3 - Pensão Indenizatória - Ação Judicial","Comunicado DDP/G-08, de 11/04/2000 => DOE: 13/04/2000","Não Acatar"]
[18017,"Pensão – Beneficiário De Servidor Falecido   ","Comunicado DDP/G-15, de 30/09/2016 => DOE: 01/10/2016","Avaliar",null,"Verificar se verba compõe a base prividenciária"]
[18018,"Auxílio Reclusão ","Comunicado DDPE/G-04, de 22/06/2012 => DOE: 27/06/2012","Não Acatar"]
[18019,"Pensão Judicial - Assistência Material - Ação Judicial ","Comunicado DDP/G-003, de 27/10/2014 => DOE: 29/10/2014","Não Acatar"]
[19001,"Salário Base -Vasp","Comunicado DDP/G-05, de 31/01/1994 => DOE: 01/02/1994","Avaliar",null,"Verificar se verba compõe a base prividenciária"]
[19002,"Salário Garantia - Vasp","Comunicado DDP/G-05, de 31/01/1994 => DOE: 01/02/1994","Avaliar",null,"Verificar se verba compõe a base prividenciária"]
[19003,"Anuênio - Vasp","Comunicado DDP/G-05, de 31/01/1994 => DOE: 01/02/1994","Avaliar",null,"Verificar se verba compõe a base prividenciária"]
[19004,"Adicional Senioridade – Comandante- 4,00 - Vasp","Comunicado DDP/G-05, de 31/01/1994 => DOE: 01/02/1994","Avaliar",null,"Verificar se verba compõe a base prividenciária"]
[19005,"Adicional Senioridade – Comandante - 6,00 - Vasp","Comunicado DDP/G-05, de 31/01/1994 => DOE: 01/02/1994","Avaliar",null,"Verificar se verba compõe a base prividenciária"]
[19006,"Senioridade – Tripulante - Vasp","Comunicado DDP/G-05, de 31/01/1994 => DOE: 01/02/1994","Avaliar",null,"Verificar se verba compõe a base prividenciária"]
[19007,"25 Horas Garantidas - Vasp","Comunicado DDP/G-05, de 31/01/1994 => DOE: 01/02/1994","Avaliar",null,"Verificar se verba compõe a base prividenciária"]
[19008,"60 Horas Garantidas - Vasp","Comunicado DDP/G-05, de 31/01/1994 => DOE: 01/02/1994","Avaliar",null,"Verificar se verba compõe a base prividenciária"]
[19009,"85 Horas Garantidas - Vasp","Comunicado DDP/G-05, de 31/01/1994 => DOE: 01/02/1994","Avaliar",null,"Verificar se verba compõe a base prividenciária"]
[19010,"90 Horas Garantidas - Vasp","Comunicado DDP/G-05, de 31/01/1994 => DOE: 01/02/1994","Avaliar",null,"Verificar se verba compõe a base prividenciária"]
[19011,"Adicional De Transferência - Complementação Aposentadoria/Pensão","Comunicado DDP/G-05, de 31/01/1994 => DOE: 01/02/1994","Acatar"]
[19012,"Comissão - Vasp","Comunicado DDP/G-05, de 31/01/1994 => DOE: 01/02/1994","Não Acatar"]
[19013,"Gratificação De Equipamento - Comandante - Vasp","Comunicado DDP/G-05, de 31/01/1994 => DOE: 01/02/1994","Avaliar",null,"Verificar se verba compõe a base prividenciária"]
[19014,"Gratificação De Função - Vasp","Comunicado DDP/G-05, de 31/01/1994 => DOE: 01/02/1994","Avaliar",null,"Verificar se verba compõe a base prividenciária"]
[19015,"Gratificação De Função Esp/Adm/Tec - Vasp","Comunicado DDP/G-05, de 31/01/1994 => DOE: 01/02/1994","Avaliar",null,"Verificar se verba compõe a base prividenciária"]
[19016,"Gratificação De Assistência Da Gerência – Comandante - Vasp","Comunicado DDP/G-07, de 05/02/1997 => DOE: 14/02/1997","Avaliar",null,"Verificar se verba compõe a base prividenciária"]
[19017,"Gratificação Instrução /Tec.Trip.Com.- Tripulante - Vasp","Comunicado DDP/G-07, de 05/02/1997 => DOE: 14/02/1997","Avaliar",null,"Verificar se verba compõe a base prividenciária"]
[19018,"Gratificação De Assistente De Equipamento – Comandante - Vasp","Comunicado DDP/G-08, de 11/04/2000 => DOE: 13/04/2000","Avaliar",null,"Verificar se verba compõe a base prividenciária"]
[19019,"Gratificação Chefe De Divisão – Tripulante - Vasp","Comunicado DDP/G-12, de 24/05/2001 => DOE: 26/05/2001","Avaliar",null,"Verificar se verba compõe a base prividenciária"]
[19020,"Gratificação Chefe De Equipamento – Comandante - Vasp","Comunicado DDP/G-12, de 24/05/2001 => DOE: 26/05/2001","Avaliar",null,"Verificar se verba compõe a base prividenciária"]
[19021,"Gratificação Chefe De Instrução – Comandante - Vasp","Comunicado DDP/G-12, de 24/05/2001 => DOE: 26/05/2001","Avaliar",null,"Verificar se verba compõe a base prividenciária"]
[19022,"Gratificação Chefe Tripulante Técnico Rio – Comandante - Vasp","Comunicado DDP/G-12, de 24/05/2001 => DOE: 26/05/2001","Avaliar",null,"Verificar se verba compõe a base prividenciária"]
[19023,"Gratificação Comissário Chefe –Tripulante - Vasp","Comunicado DDP/G-22, de 15/08/2002 => DOE: 17/08/2002","Avaliar",null,"Verificar se verba compõe a base prividenciária"]
[19024,"Gratificação Coordenador – Cipaer – Comandante - Vasp","Comunicado DDP/G-22, de 15/08/2002 => DOE: 17/08/2002","Avaliar",null,"Verificar se verba compõe a base prividenciária"]
[19025,"Gratificação Idioma Inglês –Tripulante - Vasp","Comunicado DDP/G-22, de 15/08/2002 => DOE: 17/08/2002","Não Acatar"]
[19026,"Gratificação De Função Administrativa - Vasp","Comunicado DDP/G-30, de 27/08/2003 => DOE: 02/09/2003","Avaliar",null,"Verificar se verba compõe a base prividenciária"]
[19027,"Gratificação Gerente Operações – Comandante - Vasp","Comunicado DDP/G-30, de 27/08/2003 => DOE: 02/09/2003","Avaliar",null,"Verificar se verba compõe a base prividenciária"]
[19028,"Gratificação Insp.Trip.Com.- Tripulante - Vasp","Comunicado DDP/G-30, de 27/08/2003 => DOE: 02/09/2003","Avaliar",null,"Verificar se verba compõe a base prividenciária"]
[19029,"Gratificação Instrutor Base – Comandante - Vasp","Comunicado DDP/G-05, de 09/02/2004 => DOE: 11/02/2004 ","Avaliar",null,"Verificar se verba compõe a base prividenciária"]
[19030,"Gratificação Instrutor De Linha – Comandante - Vasp","Comunicado DDP/G-05, de 09/02/2004 => DOE: 11/02/2004 ","Avaliar",null,"Verificar se verba compõe a base prividenciária"]
[19031,"Gratificação Outros Idiomas –Tripulante - Vasp","Comunicado DDP/G-05, de 09/02/2004 => DOE: 11/02/2004 ","Não Acatar"]
[19032,"Gratificação Superintendente – Comandante - Vasp","Comunicado DDP/G-05, de 09/02/2004 => DOE: 11/02/2004 ","Avaliar",null,"Verificar se verba compõe a base prividenciária"]
[19033,"Gratificação Supervisão (Instrutor De Vôo / Escala) –Tripulante - Vasp","Comunicado DDP/G-12, de 06/05/2004 => DOE: 11/05/2004","Avaliar",null,"Verificar se verba compõe a base prividenciária"]
[19034,"Gratificação – Tripulante - Vasp","Comunicado DDP/G-12, de 06/05/2004 => DOE: 11/05/2004","Avaliar",null,"Verificar se verba compõe a base prividenciária"]
[19035,"Gratificação - Vasp","Comunicado DDP/G-12, de 06/05/2004 => DOE: 11/05/2004","Avaliar",null,"Verificar se verba compõe a base prividenciária"]
[19036,"Adicional Noturno Complementação Aposentadoria/Pensão","Comunicado DDP/G-12, de 06/05/2004 => DOE: 11/05/2004","Acatar"]
[19037,"Média De Instrução - Vasp","Comunicado DDP/G-12, de 06/05/2004 => DOE: 11/05/2004","Avaliar",null,"Verificar se verba compõe a base prividenciária"]
[19038,"Plano De Incentivo - Vasp","Comunicado DDP/G-12, de 06/05/2004 => DOE: 11/05/2004","Avaliar",null,"Verificar se verba compõe a base prividenciária"]
[19039,"Média Variável – Comandante - Vasp","Comunicado DDP/G-12, de 06/05/2004 => DOE: 11/05/2004","Não Acatar"]
[19040,"Média Variável – Tripulante - Vasp","Comunicado DDP/G-12, de 06/05/2004 => DOE: 11/05/2004","Não Acatar"]
[19041,"Ajuda De Custo Título De Representação - Vasp","Comunicado DDP/G-12, de 06/05/2004 => DOE: 11/05/2004","Não Acatar"]
[19042,"Periculosidade – Complementação De Aposentadoria / Pensão","Comunicado DDP/G-12, de 06/05/2004 => DOE: 11/05/2004","Acatar"]
[19043,"Quinquênio / Adicional Por Tempo De Serviço – Complementação De Aposentadoria/ Pensão","Comunicado DDP/G-12, de 06/05/2004 => DOE: 11/05/2004","Acatar"]
[19044,"Comissão Função – Complementação Aposentadoria/Pensão","Comunicado DDPE/G-05, de 03/04/2008 => DOE: 04/04/2008","Acatar"]
[19045,"Abono – Complementação De Aposentadoria / Pensão - Badesp","Comunicado DDPE/G-05, de 03/04/2008 => DOE: 04/04/2008","Acatar"]
[19046,"Complementação De Pensão - Administrativa","Comunicado DDPE/G-05, de 03/04/2008 => DOE: 04/04/2008","Avaliar",null,"Verificar se verba compõe a base prividenciária"]
[19047,"Complementação De Aposentadoria - Administrativa","Comunicado DDPE/G-05, de 03/04/2008 => DOE: 04/04/2008","Acatar"]
[19048,"Anuênio – Complementação De Aposentadoria / Pensão","Comunicado DDPE/G-05, de 03/04/2008 => DOE: 04/04/2008","Acatar"]
[19049,"Serviço Extraordinário Média – Complementação De Aposentadoria / Pensão","Comunicado DDPE/G-05, de 03/04/2008 => DOE: 04/04/2008","Acatar"]
[19050,"Complementação De Aposentadoria Efcj - Lei 6469/89","Comunicado DDPE/G-05, de 03/04/2008 => DOE: 04/04/2008","Acatar"]
[19051,"Complementação De Pensão - Efcj","Comunicado DDPE/G-05, de 03/04/2008 => DOE: 04/04/2008","Avaliar",null,"Verificar se verba compõe a base prividenciária"]
[19053,"Salário Base Complementação De Aposentadoria / Pensão","Comunicado DDP/G-05, de 31/01/1994 => DOE: 01/02/1994","Acatar"]
[19054,"Complementação De Pensão Tutela EFCJ","Comunicado DDP/G-05, de 31/01/1994 => DOE: 01/02/1994","Não Acatar"]
[19055,"Insalubridade - Complementação De Aposentadoria / Pensão","Comunicado DDP/G-05, de 31/01/1994 => DOE: 01/02/1994","Acatar"]
[19056,"Complementação De Aposentadoria Judicial","Comunicado DDP/G-05, de 31/01/1994 => DOE: 01/02/1994","Acatar"]
[19057,"Complementação De Pensão – Secretaria Da Segurança","Comunicado DDP/G-05, de 31/01/1994 => DOE: 01/02/1994","Avaliar",null,"Verificar se verba compõe a base prividenciária"]
[19058,"Complementação De Pensão – Ação Judicial","Comunicado DDP/G-05, de 31/01/1994 => DOE: 01/02/1994","Avaliar",null,"Verificar se verba compõe a base prividenciária"]
[19059,"Desconto De Pensão - Ação Judicial - Vasp","Comunicado DDP/G-05, de 31/01/1994 => DOE: 01/02/1994","Avaliar",null,"Verificar se verba compõe a base prividenciária"]
[19060,"Adicional Por Tempo De Serviço – Complementação De Aposentadoria / Pensão –Banespa/Badesp","Comunicado DDP/G-05, de 31/01/1994 => DOE: 01/02/1994","Acatar"]
[19061,"Comissão De Função 60% - Complementação De Aposentadoria / Pensão","Comunicado DDP/G-05, de 31/01/1994 => DOE: 01/02/1994","Acatar"]
[19062,"Gratificação Semestral – Complementação De Aposentadoria / Pensão","Comunicado DDP/G-24, de 06/05/1996 => DOE: 09/05/1996","Não Acatar"]
[19063,"Gratificação Incentivo – Complementação De Aposentadoria / Pensão","Comunicado DDP/G-24, de 06/05/1996 => DOE: 09/05/1996","Acatar"]
[19064,"Comissão Função Ii – Complementação De Aposentadoria / Pensão","Comunicado DDP/G-22, de 15/08/2002 => DOE: 17/08/2002","Acatar"]
[19065,"Prêmio De Permanência – Complementação De Aposentadoria / Pensão","Comunicado DDP/G-22, de 15/08/2002 => DOE: 17/08/2002","Acatar"]
[19066,"Gratificação De Função – Complementação De Aposentadoria / Pensão","Comunicado DDPE/G-15, de 04/07/2006 => DOE: 29/07/2006 ","Acatar"]
[19067,"Diferença De Vencimentos – Complementação De Aposentadoria / Pensão","Comunicado DDP/G-12, de 24/05/2001 => DOE: 26/05/2001","Acatar"]
[19068,"Vantagem Pessoal – Complementação De Aposentadoria / Pensão","Comunicado DDP/G-05, de 31/01/1994 => DOE: 01/02/1994","Acatar"]
[19069,"Gratificação Científica Tecnológica – Complementação De Aposentadoria / Pensão","Comunicado DDP/G-05, de 31/01/1994 => DOE: 01/02/1994","Acatar"]
[19070,"Adicional De Titulação – Complementação De Aposentadoria / Pensão","Comunicado DDP/G-05, de 31/01/1994 => DOE: 01/02/1994","Acatar"]
[19071,"Participação Lucros/Resultados-Viação Aérea De São Paulo","Comunicado DDP/G-15, de 30/09/2016 => DOE: 01/10/2016","Não Acatar"]
[19072,"Plantões Técnicos – Complementação De Aposentadoria / Pensão","Comunicado DDP/G-05, de 31/01/1994 => DOE: 01/02/1994","Acatar"]
[19073,"Abono Diversos - Fepasa","Comunicado DDP/G-05, de 31/01/1994 => DOE: 01/02/1994","Não Acatar"]
[19074,"Abono Extraordinário - Fepasa","Comunicado DDP/G-05, de 31/01/1994 => DOE: 01/02/1994","Não Acatar"]
[19075,"Vantagem Para Decisão Judicial (Reajuste) - Fepasa","Comunicado DDP/G-05, de 31/01/1994 => DOE: 01/02/1994","Não Acatar"]
[19076,"Vantagem Para Decisão Judicial (Sem Reajuste) - Fepasa","Comunicado DDP/G-24, de 06/05/1996 => DOE: 09/05/1996","Não Acatar"]
[19077,"Adicional Noturno - Fepasa","Comunicado DDP/G-24, de 06/05/1996 => DOE: 09/05/1996","Não Acatar"]
[19078,"Diferença Salarial Gratificação Assiduidade - Fepasa","Comunicado DDP/G-24, de 06/05/1996 => DOE: 09/05/1996","Não Acatar"]
[19079,"Vantagem Estatutária - Fepasa","Comunicado DDP/G-05, de 31/01/1994 => DOE: 01/02/1994","Não Acatar"]
[19080,"Prêmio De Aposentadoria - Fepasa","Comunicado DDP/G-05, de 31/01/1994 => DOE: 01/02/1994","Não Acatar"]
[19081,"Retribuição Extraordinária  33% - Fepasa","Comunicado DDP/G-05, de 31/01/1994 => DOE: 01/02/1994","Não Acatar"]
[19082,"Valor Locativo Até 31/12/51 - Fepasa","Comunicado DDP/G-05, de 31/01/1994 => DOE: 01/02/1994","Não Acatar"]
[19083,"Valor Locativo Apos 01/01/52 - Fepasa","Comunicado DDP/G-05, de 31/01/1994 => DOE: 01/02/1994","Não Acatar"]
[19084,"Nível Universitário 40% - Fepasa","Comunicado DDP/G-05, de 31/01/1994 => DOE: 01/02/1994","Não Acatar"]
[19085,"Regime Especial De Trabalho Ferroviário 140%- Fepasa","Comunicado DDP/G-05, de 31/01/1994 => DOE: 01/02/1994","Não Acatar"]
[19086,"Gratificação De Vendas - Vasp","Comunicado DDP/G-05, de 31/01/1994 => DOE: 01/02/1994","Não Acatar"]
[19087,"Gratificação De Função – Complementação De Aposentadoria/Pensão - Ceagesp","Comunicado DDP/G-05, de 31/01/1994 => DOE: 01/02/1994","Acatar"]
[19088,"Abono Salarial Único – Complementação De Aposentadoria/Pensão","Comunicado DDP/G-05, de 31/01/1994 => DOE: 01/02/1994","Acatar"]
[19089,"Gratificação De Função Incorporada – Complementação De Aposentadoria / Pensão","Comunicado DDP/G-05, de 31/01/1994 => DOE: 01/02/1994","Acatar"]
[19090,"Gratificação De Função - Delta – Ação Judicial - Fepasa","Comunicado DDP/G-05, de 31/01/1994 => DOE: 01/02/1994","Não Acatar"]
[19091,"Gratificação De Função – Ação Judicial - Ceagesp","Comunicado DDP/G-05, de 31/01/1994 => DOE: 01/02/1994","Avaliar",null,"Verificar se verba compõe a base prividenciária"]
[19092,"Gratificação De Função Nível I - Cesp/Cteep","Comunicado DDP/G-05, de 31/01/1994 => DOE: 01/02/1994","Avaliar",null,"Verificar se verba compõe a base prividenciária"]
[19093,"Gratificação De Função Nível II - Cesp/Cteep","Comunicado DDP/G-05, de 31/01/1994 => DOE: 01/02/1994","Avaliar",null,"Verificar se verba compõe a base prividenciária"]
[19094,"Gratificação De Função Nível III - Cesp/ Cteep","Comunicado DDP/G-05, de 31/01/1994 => DOE: 01/02/1994","Avaliar",null,"Verificar se verba compõe a base prividenciária"]
[19095,"Gratificação De Função Comgas - Cesp/Cteep","Comunicado DDP/G-05, de 31/01/1994 => DOE: 01/02/1994","Avaliar",null,"Verificar se verba compõe a base prividenciária"]
[19096,"Gratificação De Função Eletropaulo - Cesp/Cteep","Comunicado DDP/G-05, de 31/01/1994 => DOE: 01/02/1994","Avaliar",null,"Verificar se verba compõe a base prividenciária"]
[19097,"Gratificação De Função Telesp - Cesp/ Cteep","Comunicado DDP/G-05, de 31/01/1994 => DOE: 01/02/1994","Avaliar",null,"Verificar se verba compõe a base prividenciária"]
[19098,"Gratificação De Função Metrô - Cesp/ Cteep","Comunicado DDP/G-05, de 31/01/1994 => DOE: 01/02/1994","Avaliar",null,"Verificar se verba compõe a base prividenciária"]
[19099,"Gratificação De Função Eletrobrás - Cesp/Cteep","Comunicado DDP/G-05, de 31/01/1994 => DOE: 01/02/1994","Avaliar",null,"Verificar se verba compõe a base prividenciária"]
[19100,"Gratificação De Função Média Nível I - Cesp/Cteep","Comunicado DDP/G-05, de 02/02/1995 => DOE: 03/02/1995","Avaliar",null,"Verificar se verba compõe a base prividenciária"]
[19101,"Gratificação De Função Média Nível Ii - Cesp/Cteep","Comunicado DDP/G-05, de 02/02/1995 => DOE: 03/02/1995","Avaliar",null,"Verificar se verba compõe a base prividenciária"]
[19102,"Gratificação De Função Média Nível Iii - Cesp/Cteep","Comunicado DDP/G-05, de 02/02/1995 => DOE: 03/02/1995","Avaliar",null,"Verificar se verba compõe a base prividenciária"]
[19103,"Gratificação De Função Cpos - Cesp/Cteep","Comunicado DDP/G-05, de 02/02/1995 => DOE: 03/02/1995","Avaliar",null,"Verificar se verba compõe a base prividenciária"]
[19104,"Gratificação De Função Itaipu - Cesp/Cteep","Comunicado DDP/G-01, de 05/01/1996 => DOE: 09/01/1996","Avaliar",null,"Verificar se verba compõe a base prividenciária"]
[19105,"Incorporação Ação Judicial - Cesp/Cteep","Comunicado DDP/G-01, de 05/01/1996 => DOE: 09/01/1996","Acatar"]
[19106,"Incorporação Ação Trabalhista - Cesp/Cteep","Comunicado DDP/G-01, de 05/01/1996 => DOE: 09/01/1996","Acatar"]
[19107,"Adicional De Turno Reduzida Jornada - Cesp/Cteep","Comunicado DDP/G-07, de 11/02/1998 => DOE: 12/02/1998","Avaliar",null,"Verificar se verba compõe a base prividenciária"]
[19108,"Adicional De Turno - Cesp/Cteep","Comunicado DDP/G-07, de 11/02/1998 => DOE: 12/02/1998","Avaliar",null,"Verificar se verba compõe a base prividenciária"]
[19109,"Função Assessoria - Cesp/Cteep","Comunicado DDP/G-07, de 11/02/1998 => DOE: 12/02/1998","Avaliar",null,"Verificar se verba compõe a base prividenciária"]
[19110,"Ajuda De Custo - Cesp/Cteep","Comunicado DDP/G-07, de 11/02/1998 => DOE: 12/02/1998","Não Acatar"]
[19111,"Sobre Aviso - Cesp/Cteep","Comunicado DDP/G-07, de 11/02/1998 => DOE: 12/02/1998","Avaliar",null,"Verificar se verba compõe a base prividenciária"]
[19112,"Incorporação Horas In Itinere - Cesp/Cteep","Comunicado DDP/G-07, de 11/02/1998 => DOE: 12/02/1998","Acatar"]
[19113,"Habitação - Cesp/Cteep","Comunicado DDP/G-07, de 11/02/1998 => DOE: 12/02/1998","Avaliar",null,"Verificar se verba compõe a base prividenciária"]
[19114,"Habitação (Salário Mínimo) - Cesp/Cteep","Comunicado DDP/G-07, de 11/02/1998 => DOE: 12/02/1998","Avaliar",null,"Verificar se verba compõe a base prividenciária"]
[19115,"Habitação Incorporada - Cesp/Cteep","Comunicado DDP/G-07, de 11/02/1998 => DOE: 12/02/1998","Acatar"]
[19116,"Pagamento Suplementar - Cesp/Cteep","Comunicado DDP/G-43, de 04/11/1998 => DOE: 06/11/1998","Avaliar",null,"Verificar se verba compõe a base prividenciária"]
[19117,"Horas Vôo - Cesp/Cteep","Comunicado DDP/G-43, de 04/11/1998 => DOE: 06/11/1998","Avaliar",null,"Verificar se verba compõe a base prividenciária"]
[19118,"Horas Itiner/In Natura - Ação Judicial - Cesp/Cteep","Comunicado DDP/G-33, de 31/08/2000 => DOE: 02/09/2000","Avaliar",null,"Verificar se verba compõe a base prividenciária"]
[19119,"Incorporação Acordo De Trabalho - Cesp/Cteep","Comunicado DDP/G-33, de 31/08/2000 => DOE: 02/09/2000","Acatar"]
[19120,"Gratificação De Função Incorporada - Decisão Judicial - Cesp/Cteep","Comunicado DDP/G-43, de 04/11/1998 => DOE: 06/11/1998","Acatar"]
[19121,"Incorporação De Ação Judicial (Salário Base + Anuênio) - Cesp/Cteep","Comunicado DDP/G-08, de 11/04/2000 => DOE: 13/04/2000","Acatar"]
[19122,"Incorporação In Natura - Cesp/Cteep","Comunicado DDP/G-33, de 31/08/2000 => DOE: 02/09/2000","Acatar"]
[19123,"Incorporação - Cesp/Cteep","Comunicado DDP/G-33, de 31/08/2000 => DOE: 02/09/2000","Acatar"]
[19124,"Transporte - Cesp/Cteep","Comunicado DDP/G-12, de 24/05/2001 => DOE: 26/05/2001","Não Acatar"]
[19125,"Adicional Incorporada Ação Judicial - Cesp/Cteep","Comunicado DDP/G-12, de 24/05/2001 => DOE: 26/05/2001","Acatar"]
[19126,"Horas Em Regime Sobreaviso – Ação Judicial - Cetesb","Comunicado DDP/G-07, de 31/01/2002 => DOE: 02/02/2002","Não Acatar"]
[19127,"Gratificação Mensal De Férias – Ação Judicial - Fepasa","Comunicado DDP/G-07, de 31/01/2002 => DOE: 02/02/2002","Não Acatar"]
[19128,"Reajuste Salário Base – Ação Judicial - Fepasa","Comunicado DDP/G-07, de 31/01/2002 => DOE: 02/02/2002","Não Acatar"]
[19129,"20 Horas De Prontidão – Ação Judicial - Fepasa","Comunicado DDP/G-07, de 31/01/2002 => DOE: 02/02/2002","Não Acatar"]
[19130,"Horas Extras – Média – Complementação De Aposentadoria / Pensão – Ação Judicial","Comunicado DDP/G-07, de 31/01/2002 => DOE: 02/02/2002","Acatar"]
[19131,"Adicional Noturno – Média – Complementação De Aposentadoria / Pensão – Ação Judicial","Comunicado DDP/G-07, de 31/01/2002 => DOE: 02/02/2002","Acatar"]
[19132,"Adicional De Insalubridade – Média – Complementação De Aposentadoria / Pensão Ação Judicial","Comunicado DDP/G-07, de 31/01/2002 => DOE: 02/02/2002","Acatar"]
[19133,"Pagamento Suplementar Complementação De Aposentadoria /Pensão – Ação Judicial","Comunicado DDP/G-30, de 27/08/2003 => DOE: 02/09/2003","Acatar"]
[19134,"Gratificação Gerente De Base - Vasp","Comunicado DDP/G-30, de 27/08/2003 => DOE: 02/09/2003","Avaliar",null,"Verificar se verba compõe a base prividenciária"]
[19135,"Gratificação Dirigente Sindical - Banespa","Comunicado DDP/G-12, de 06/05/2004 => DOE: 11/05/2004","Avaliar",null,"Verificar se verba compõe a base prividenciária"]
[19136,"Adicional De Periculosidade – Média – Complementar De Aposentadoria / Pensão –  Ação Judicial","Comunicado DDPE/G-13, de 07/04/2005 => DOE: 09/04/2005","Acatar"]
[19137,"Comissão Situação Temporária - Banespa","Comunicado DDPE/G-13, de 14/05/2007 => DOE: 15/05/2007","Não Acatar"]
[19138,"Abono Banespa - Mandado De Segurança Coletivo Proc 3536-0","Comunicado DDPE/G-15, de 04/07/2006 => DOE: 29/07/2006 ","Avaliar",null,"Verificar se verba compõe a base prividenciária"]
[19139,"Horas Variáveis - Vasp - Ação Judicial","Comunicado DDPE/G-15, de 04/07/2006 => DOE: 29/07/2006 ","Não Acatar"]
[19140,"Salário Alimentação - Cesp/Cteep","Comunicado DDPE/G-15, de 04/07/2006 => DOE: 29/07/2006 ","Não Acatar"]
[19141,"Gratificação De Função Cesp I - Cesp/Cteep","Comunicado DDPE/G-05 de 03/04/2008 => DOE: 04/04/2008 ","Avaliar",null,"Verificar se verba compõe a base prividenciária"]
[19142,"Gratificação De Função Cpfl - Cesp/Cteep","Comunicado DDPE/G-17, de 28/07/2006 => DOE: 29/07/2006","Avaliar",null,"Verificar se verba compõe a base prividenciária"]
[19143,"Gratificação De Função Ii Cpfl - Cesp/Cteep","Comunicado DDPE/G-13, de 14/05/2007 => DOE: 15/05/2007","Avaliar",null,"Verificar se verba compõe a base prividenciária"]
[19144,"Gratificação De Função Seccional Cpfl - Cesp/Cteep","Comunicado DDPE/G-13, de 14/05/2007 => DOE: 15/05/2007","Avaliar",null,"Verificar se verba compõe a base prividenciária"]
[19145,"Gratificação De Função Nível I - Incorporada - Cesp/ Cteep","Comunicado DDPE/G-05, de 03/04/2008 => DOE: 04/04/2008","Acatar"]
[19146,"Gratificação De Função Nível Ii - Incorporada - Cesp/Cteep","Comunicado DDPE/G-05, de 03/04/2008 => DOE: 04/04/2008","Acatar"]
[19147,"Gratificação De Função Nível Iii - Incorporada - Cesp/Cteep","Comunicado DDPE/G-05, de 03/04/2008 => DOE: 04/04/2008","Acatar"]
[19148,"Gratificação De Função Cpfl - Incorporada - Cesp/Cteep","Comunicado DDP/G-05, de 31/01/1994 => DOE: 01/02/1994","Acatar"]
[19149,"Gratificação De Função Eletropaulo - Incorporada - Cesp/Cteep","Comunicado DDP/G-05, de 31/01/1994 => DOE: 01/02/1994","Acatar"]
[19150,"Adicional Noturno Variável – Banco Nossa Caixa","Comunicado DDP/G-15, de 30/09/2016 => DOE: 01/10/2016","Não Acatar"]
[19151,"Gratificação Nível Universitário - Banco Nossa Caixa ","Comunicado DDP/G-15, de 30/09/2016 => DOE: 01/10/2016","Avaliar",null,"Verificar se verba compõe a base prividenciária"]
[19152,"Complemento De Pagamento - Banco Nossa Caixa ","Comunicado DDP/G-15, de 30/09/2016 => DOE: 01/10/2016","Avaliar",null,"Verificar se verba compõe a base prividenciária"]
[19153,"Diferença Salário Sentença Judicial II - Banco Nossa Caixa ","Comunicado DDP/G-15, de 30/09/2016 => DOE: 01/10/2016","Avaliar",null,"Verificar se verba compõe a base prividenciária"]
[19154,"Adicional Noturno Integrado - Banco Nossa Caixa ","Comunicado DDP/G-15, de 30/09/2016 => DOE: 01/10/2016","Não Acatar"]
[19155,"Hora Extra Com Adicional - Banco Nossa Caixa     ","Comunicado DDP/G-15, de 30/09/2016 => DOE: 01/10/2016","Não Acatar"]
[19156,"Adicional Especial - Banco Nossa Caixa          ","Comunicado DDP/G-15, de 30/09/2016 => DOE: 01/10/2016","Avaliar",null,"Verificar se verba compõe a base prividenciária"]
[19157,"Hora Extra Integrada - Banco Nossa Caixa         ","Comunicado DDP/G-15, de 30/09/2016 => DOE: 01/10/2016","Não Acatar"]
[19158,"Gratificação De Compensador - Banco Nossa Caixa","Comunicado DDP/G-15, de 30/09/2016 => DOE: 01/10/2016","Avaliar",null,"Verificar se verba compõe a base prividenciária"]
[19159,"Quebra De Caixa - Banco Nossa Caixa              ","Comunicado DDP/G-15, de 30/09/2016 => DOE: 01/10/2016","Não Acatar"]
[19160,"Gratificação De Cargo - Banco Nossa Caixa        ","Comunicado DDP/G-15, de 30/09/2016 => DOE: 01/10/2016","Avaliar",null,"Verificar se verba compõe a base prividenciária"]
[19161,"Comissão Função Determinação Judicial - Banco Nossa Caixa","Comunicado DDP/G-15, de 30/09/2016 => DOE: 01/10/2016","Não Acatar"]
[19162,"Comissão Função Engenheiro - Banco Nossa Caixa","Comunicado DDP/G-15, de 30/09/2016 => DOE: 01/10/2016","Não Acatar"]
[19163,"Hora Extra Determinação Judicial - Banco Nossa Caixa ","Comunicado DDP/G-15, de 30/09/2016 => DOE: 01/10/2016","Não Acatar"]
[19164,"Diferença Salário Sentença Judicial - Banco Nossa Caixa     ","Comunicado DDP/G-15, de 30/09/2016 => DOE: 01/10/2016","Avaliar",null,"Verificar se verba compõe a base prividenciária"]
[19165,"Gratificação De Caixa - Banco Nossa Caixa        ","Comunicado DDP/G-15, de 30/09/2016 => DOE: 01/10/2016","Avaliar",null,"Verificar se verba compõe a base prividenciária"]
[19166,"Hora Extra Sentença Judicial - Banco Nossa Caixa   ","Comunicado DDP/G-15, de 30/09/2016 => DOE: 01/10/2016","Não Acatar"]
[19167,"Adicional Especial Sentença Judicial- Banco Nossa Caixa    ","Comunicado DDP/G-15, de 30/09/2016 => DOE: 01/10/2016","Avaliar",null,"Verificar se verba compõe a base prividenciária"]
[19168,"Comissão Complementar Normal - Banco Nossa Caixa ","Comunicado DDP/G-15, de 30/09/2016 => DOE: 01/10/2016","Não Acatar"]
[19169,"Gratificação Representação Gabinete - Banco Nossa Caixa","Comunicado DDP/G-15, de 30/09/2016 => DOE: 01/10/2016","Avaliar",null,"Verificar se verba compõe a base prividenciária"]
[19170,"Hora Extra Eventual - Banco Nossa Caixa          ","Comunicado DDP/G-15, de 30/09/2016 => DOE: 01/10/2016","Não Acatar"]
[19171,"Valor Ação Judicial (Economus)- Banco Nossa Caixa     ","Comunicado DDP/G-15, de 30/09/2016 => DOE: 01/10/2016","Não Acatar"]
[19172,"Gratificação Especial - Banco Nossa Caixa       ","Comunicado DDP/G-15, de 30/09/2016 => DOE: 01/10/2016","Avaliar",null,"Verificar se verba compõe a base prividenciária"]
[19174,"Diferença De Gratificação - Banco Nossa Caixa","Comunicado DDP/G-15, de 30/09/2016 => DOE: 01/10/2016","Avaliar",null,"Verificar se verba compõe a base prividenciária"]
[19175,"Gratificação Semestral Quebra Caixa - Banco Nossa Caixa","Comunicado DDP/G-15, de 30/09/2016 => DOE: 01/10/2016","Não Acatar"]
[19176,"Gratificação Dirigente Sindical - Banco Nossa Caixa","Comunicado DDP/G-15, de 30/09/2016 => DOE: 01/10/2016","Avaliar",null,"Verificar se verba compõe a base prividenciária"]
[19177,"Substituição De Cargo - Banco Nossa Caixa        ","Comunicado DDP/G-15, de 30/09/2016 => DOE: 01/10/2016","Não Acatar"]
[19178,"Diferença Sentença Judicial III - Banco Nossa Caixa       ","Comunicado DDP/G-15, de 30/09/2016 => DOE: 01/10/2016","Avaliar",null,"Verificar se verba compõe a base prividenciária"]
[19179,"Anuênio - Banco Nossa Caixa                      ","Comunicado DDP/G-15, de 30/09/2016 => DOE: 01/10/2016","Acatar"]
[19180,"Valor Do Benefício - Banco Nossa Caixa           ","Comunicado DDP/G-15, de 30/09/2016 => DOE: 01/10/2016","Avaliar",null,"Verificar se verba compõe a base prividenciária"]
[19181,"Anuênio Sentença judicial - Banco Nossa Caixa     ","Comunicado DDP/G-15, de 30/09/2016 => DOE: 01/10/2016","Avaliar",null,"Verificar se verba compõe a base prividenciária"]
[19182,"Adicional De Periculosidade - Complementação De Aposentadoria/Pensão - Ação Judicial","Comunicado DDP/G-05, de 31/01/1994 => DOE: 01/02/1994","Acatar"]
[19183,"Salário “In Natura” – Refeição – Cteep – Ação Judicial","Comunicado DDP/G-05, de 31/01/1994 => DOE: 01/02/1994","Não Acatar"]
[19184,"Adicional De Periculosidade – Horas “In Itinere” – Cteep – Ação Judicial","Comunicado DDP/G-05, de 31/01/1994 => DOE: 01/02/1994","Avaliar",null,"Verificar se verba compõe a base prividenciária"]
[19185,"Reajuste Sobre Salário Base/Anuênio/Quinquênio/ Valor Locativo – Ação Judicial – Fepasa","Comunicado DDP/G-05, de 31/01/1994 => DOE: 01/02/1994","Não Acatar"]
[19186,"Gratificação De Desempenho De Atividade De Ciências E Tecnologia – Ipen","Comunicado DDP/G-05, de 31/01/1994 => DOE: 01/02/1994","Avaliar",null,"Verificar se verba compõe a base prividenciária"]
[19187,"Vantagem Pecuniária Individual – Ipen","Comunicado DDP/G-05, de 31/01/1994 => DOE: 01/02/1994","Avaliar",null,"Verificar se verba compõe a base prividenciária"]
[19188,"Gratificação De Função – Gerencial – Sabesp","Comunicado DDP/G-05, de 31/01/1994 => DOE: 01/02/1994","Avaliar",null,"Verificar se verba compõe a base prividenciária"]
[19189,"Comissão De Função – Sabesp","Comunicado DDP/G-05, de 31/01/1994 => DOE: 01/02/1994","Não Acatar"]
[19190,"Comissão Escala Regional – Sabesp","Comunicado DDP/G-05, de 31/01/1994 => DOE: 01/02/1994","Não Acatar"]
[19191,"Exercício Cargo De Confiança Externa – Gratificação De Função –Sabesp","Comunicado DDP/G-05, de 31/01/1994 => DOE: 01/02/1994","Avaliar",null,"Verificar se verba compõe a base prividenciária"]
[19192,"Comissão – Sabesp","Comunicado DDP/G-05, de 31/01/1994 => DOE: 01/02/1994","Não Acatar"]
[19193,"Reajuste Cptm – Percentual Sobre Salário Base – Ação Judicial","Comunicado DDP/G-05, de 09/02/2004 => DOE: 11/02/2004 ","Avaliar",null,"Verificar se verba compõe a base prividenciária"]
[19194,"Adicional Por Tempo De Serviço Sobre Adicional De Periculosidade – Ação Judicial","Comunicado DDPE/G-13, de 07/04/2005 => DOE: 09/04/2005","Avaliar",null,"Verificar se verba compõe a base prividenciária"]
[19195,"Hora Extra Sobre Salário Base, Adicional Por Tempo De Serviço, Adicional Por Tempo De Serviço Incorporado - Ação Judicial","Comunicado DDPE/G-17, de 28/07/2006 => DOE: 29/07/2006","Acatar"]
[19196,"Gratificação Horas Vôo - Vasp - Ação Judicial","Comunicado DDPE/G-13, de 14/05/2007 => DOE: 15/05/2007","Não Acatar"]
[19197,"Salário Habitação Sobre Integrais Cesp - Ação Judicial","Comunicado DDPE/G-05, de 03/04/2008 => DOE: 04/04/2008","Avaliar",null,"Verificar se verba compõe a base prividenciária"]
[19198,"Piso Salarial Fepasa - 2,5 Salários Mínimos - Ação Judicial","Comunicado DDP/G-05, de 31/01/1994 => DOE: 01/02/1994","Não Acatar"]
[19199,"Adicional De Transferência - Banco Nossa Caixa","Comunicado DDP/G-05, de 31/01/1994 => DOE: 01/02/1994","Avaliar",null,"Verificar se verba compõe a base prividenciária"]
[19200,"Anuênio Determinação Judicial - Banco Nossa Caixa","Comunicado DDP/G-05, de 31/01/1994 => DOE: 01/02/1994","Acatar"]
[19201,"Incorporação Percentual Salário Base - Reclamação Trabalhista - Cteep - Ação Judicial","Comunicado DDP/G-05, de 31/01/1994 => DOE: 01/02/1994","Acatar"]
[19202,"Urv – Lei 8880/94 – Fepasa – Ação Judicial","Comunicado DDPE/G-04, de 22/06/2012 => DOE: 27/06/2012","Não Acatar"]
[19203,"Reajuste Salarial 26,05% - Urp – Fev/89 – Cetesb - Ação Judicial","Comunicado DDPE/G-04, de 22/06/2012 => DOE: 27/06/2012","Acatar"]
[19204,"Gratificação De Função-Comgas-Valor- Companhia Energética De São Paulo/ Companhia De Transmissão De Energia Elétrica Paulista","Comunicado DDP/G-15, de 30/09/2016 => DOE: 01/10/2016","Avaliar",null,"Verificar se verba compõe a base prividenciária"]
[19205,"Gratificação Função-Percentual-Complementação Aposentadoria/Pensão ","Comunicado DDP/G-15, de 30/09/2016 => DOE: 01/10/2016","Acatar"]
[19206,"Periculosidade Percentual – Complementação De Aposentadoria / Pensão","Comunicado DDPE/G-04, de 22/06/2012 => DOE: 27/06/2012","Acatar"]
[19207,"Adicional De Periculosidade- Ação Judicial- Valor-Complementação Aposentadoria/Pensão","Comunicado DDP/G-15, de 30/09/2016 => DOE: 01/10/2016","Acatar"]
[19208,"Anuênio-Valor-Complementação Aposentadoria/Pensão ","Comunicado DDP/G-15, de 30/09/2016 => DOE: 01/10/2016","Acatar"]
[19209,"Quinquênio/Adicional Tempo De Serviços-Valor- Complementação Aposentadoria/Pensão","Comunicado DDP/G-15, de 30/09/2016 => DOE: 01/10/2016","Acatar"]
[19210,"Adicional Transferência Percentual- Complementação Aposentadoria/Pensão","Comunicado DDP/G-15, de 30/09/2016 => DOE: 01/10/2016","Acatar"]
[19211,"Serviço Extraordinário - Média-Percentual Complementação Aposentadoria/Pensão","Comunicado DDP/G-15, de 30/09/2016 => DOE: 01/10/2016","Acatar"]
[19212,"Serviço Extraordinário - Média-Quantidade Complementação Aposentadoria/Pensão","Comunicado DDP/G-15, de 30/09/2016 => DOE: 01/10/2016","Acatar"]
[19213,"Salário Base Gerado Complementação Aposentadoria/Pensão","Comunicado DDP/G-15, de 30/09/2016 => DOE: 01/10/2016","Acatar"]
[19214,"Quinquênio/Adicional Tempo De Serviço - Quantidade- Complementação Aposentadoria/Pensão","Comunicado DDP/G-15, de 30/09/2016 => DOE: 01/10/2016","Acatar"]
[19215,"Gratificação Função Incorporado –Percentual- Complementação Aposentadoria/Pensão","Comunicado DDP/G-15, de 30/09/2016 => DOE: 01/10/2016","Acatar"]
[19216,"Ajuda de custo - Percentual –Companhia Energética De São Paulo/ Companhia De Transmissão De Energia Elétrica Paulista","Comunicado DDP/G-15, de 30/09/2016 => DOE: 01/10/2016","Não Acatar"]
[19217,"Incorporação - Valor - Companhia Energética De São Paulo/ Companhia De Transmissão De Energia Elétrica Paulista","Comunicado DDP/G-15, de 30/09/2016 => DOE: 01/10/2016","Acatar"]
[19218,"Insalubridade-valor- Complementação Aposentadoria/Pensão","Comunicado DDP/G-15, de 30/09/2016 => DOE: 01/10/2016","Acatar"]
[19219,"Adicional De Produtividade 4% - Vasp - Ação Judicial","Comunicado DDPE/G-04, de 22/06/2012 => DOE: 27/06/2012","Avaliar",null,"Verificar se verba compõe a base prividenciária"]
[19220,"Quinquênio / Adicional Por Tempo De Serviço – Cptm - Ação Judicial","Comunicado DDPE/G-04, de 22/06/2012 => DOE: 27/06/2012","Avaliar",null,"Verificar se verba compõe a base prividenciária"]
[19221,"Anuênio Cptm - Ação Judicial","Comunicado DDPE/G-04, de 22/06/2012 => DOE: 27/06/2012","Avaliar",null,"Verificar se verba compõe a base prividenciária"]
[19222,"Gratificação De Cargo – Plano Cargo Salário/2000 – Bnc","Comunicado DDPE/G-04, de 22/06/2012 => DOE: 27/06/2012","Não Acatar"]
[19223,"Adicional Repouso Remunerado - Ação Judicial","Comunicado DDPE/G-04, de 22/06/2012 => DOE: 27/06/2012","Avaliar",null,"Verificar se verba compõe a base prividenciária"]
[19224,"Função Acessória Valor Fixo - Ação Judicial","Comunicado DDPE/G-04, de 22/06/2012 => DOE: 27/06/2012","Avaliar",null,"Verificar se verba compõe a base prividenciária"]
[19225,"Reajuste Cptm – Percentual Fixo - Ação Judicial","Comunicado DDPE/G-04, de 22/06/2012 => DOE: 27/06/2012","Avaliar",null,"Verificar se verba compõe a base prividenciária"]
[19226,"Sexta Parte Sobre Vencimentos Integrais – Complementação De Aposentadoria / Pensão - Ação Judicial","Comunicado DDPE/G-04, de 22/06/2012 => DOE: 27/06/2012","Acatar"]
[19227,"Dissídios Coletivos – Específicos Fepasa – Ação Judicial","Comunicado DDPE/G-04, de 22/06/2012 => DOE: 27/06/2012","Não Acatar"]
[19228,"Percentual Fixo – Fepasa / Inss – Ação Judicial","Comunicado DDPE/G-04, de 22/06/2012 => DOE: 27/06/2012","Não Acatar"]
[19229,"Reajuste Salarial Fixo (17,22%) Cdhu – Ação Judicial","Comunicado DDPE/G-04, de 22/06/2012 => DOE: 27/06/2012","Avaliar",null,"Verificar se verba compõe a base prividenciária"]
[19230,"Quinquênio Sobre Piso Salarial – Fepasa – Ação Judicial","Comunicado DDPE/G-04, de 22/06/2012 => DOE: 27/06/2012","Não Acatar"]
[19231,"Quinquênio – Complementação De Aposentadoria/Pensão – Ação Judicial","Comunicado DDPE/G-04, de 22/06/2012 => DOE: 27/06/2012","Acatar"]
[19232,"Auxilio Alimentação – Cesp/Cteep – Ação Judicial","Comunicado DDPE/G-04, de 22/06/2012 => DOE: 27/06/2012","Não Acatar"]
[19233,"Sexta Parte – Complementação De Aposentadoria/Pensão – Ação Judicial","Comunicado DDPE/G-04, de 22/06/2012 => DOE: 27/06/2012","Acatar"]
[19234,"Incorporação Do Aumento 18,52% - Cesp/Cteep – Ação Judicial","Comunicado DDPE/G-04, de 22/06/2012 => DOE: 27/06/2012","Acatar"]
[19235,"Reajuste 64,19%/1998 A 2001 – Fepasa – Ação Judicial","Comunicado DDPE/G-04, de 22/06/2012 => DOE: 27/06/2012","Não Acatar"]
[19236,"Diferença 2,5 Salário Mínimo – Ação Judicial","Comunicado DDPE/G-04, de 22/06/2012 => DOE: 27/06/2012","Avaliar",null,"Verificar se verba compõe a base prividenciária"]
[19237,"Percentual Sobre Classe Imediatamente Superior – Ação Judicial","Comunicado DDPE/G-04, de 22/06/2012 => DOE: 27/06/2012","Não Acatar"]
[19238,"Gratificação Por Atividade De Suporte Administrativo – Complementação De Aposentadoria/Pensão – Ação Judicial","Comunicado DDPE/G-04, de 22/06/2012 => DOE: 27/06/2012","Acatar"]
[19239,"Reajuste Inss – Percentual Sobre Salário Base E Adicional Tempo De Serviço – Ação Judicial","Comunicado DDPE/G-04, de 22/06/2012 => DOE: 27/06/2012","Avaliar",null,"Verificar se verba compõe a base prividenciária"]
[19240,"Quinquênio / Adicional Tempo De Serviço – Inss – Ação Judicial ","Comunicado DDPE/G-04, de 22/06/2012 => DOE: 27/06/2012","Acatar"]
[19241,"Percentual Sobre Proventos / Banespa – Ação Judicial","Comunicado DDPE/G-04, de 22/06/2012 => DOE: 27/06/2012","Não Acatar"]
[19242,"Percentual Adicional Noturno / Banespa – Ação Judicial","Comunicado DDPE/G-04, de 22/06/2012 => DOE: 27/06/2012","Não Acatar"]
[19243,"Percentual Horas Extras / Banespa – Ação Judicial","Comunicado DDPE/G-04, de 22/06/2012 => DOE: 27/06/2012","Não Acatar"]
[19244,"Sexta Parte Complementação De Aposentadoria / Pensão – Prodesp","Comunicado DDPE/G-04, de 22/06/2012 => DOE: 27/06/2012","Acatar"]
[19245,"Gratificação Mensal De Férias – Ação Judicial","Comunicado DDPE/G-04, de 22/06/2012 => DOE: 27/06/2012","Não Acatar"]
[19246,"Quinquênio Sobre Percentual Fixo – Fepasa/Cptm Até 2004 – Ação Judicial","Comunicado DDPE/G-04, de 22/06/2012 => DOE: 27/06/2012","Não Acatar"]
[19247,"Anuênio Sobre Percentual Fixo – Fepasa/Cptm Até 2004 – Ação Judicial","Comunicado DDPE/G-04, de 22/06/2012 => DOE: 27/06/2012","Não Acatar"]
[19248,"Quinquênio Sobre Dissidio Coletivo 2002 – Fepasa – Ação Judicial","Comunicado DDPE/G-04, de 22/06/2012 => DOE: 27/06/2012","Não Acatar"]
[19249,"Anuênio Sobre Dissidio Coletivo 2002 – Fepasa – Ação Judicial","Comunicado DDPE/G-04, de 22/06/2012 => DOE: 27/06/2012","Não Acatar"]
[19250,"Quinquênio Sobre Percentual Fixo – Fepasa/Inss – Ação Judicial","Comunicado DDPE/G-04, de 22/06/2012 => DOE: 27/06/2012","Não Acatar"]
[19251,"Anuênio Sobre Percentual Fixo – Fepasa/Inss – Ação Judicial","Comunicado DDPE/G-04, de 22/06/2012 => DOE: 27/06/2012","Não Acatar"]
[19252,"Quinquênio Sobre Diferença 2,5 Salários Mínimos – Ação Judicial","Comunicado DDPE/G-04, de 22/06/2012 => DOE: 27/06/2012","Avaliar",null,"Verificar se verba compõe a base prividenciária"]
[19253,"Anuênio Sobre Diferença 2,5 Salários Mínimos – Ação Judicial","Comunicado DDPE/G-04, de 22/06/2012 => DOE: 27/06/2012","Avaliar",null,"Verificar se verba compõe a base prividenciária"]
[19254,"Quinquênio Sobre Percentual - Classe Imediatamente Superior – Ação Judicial","Comunicado DDPE/G-04, de 22/06/2012 => DOE: 27/06/2012","Avaliar",null,"Verificar se verba compõe a base prividenciária"]
[19255,"Anuênio Sobre Percentual – Classe Imediatamente Superior – Ação Judicial","Comunicado DDPE/G-04, de 22/06/2012 => DOE: 27/06/2012","Avaliar",null,"Verificar se verba compõe a base prividenciária"]
[19256,"Percentual Sobre Valor Cptm - Ação Judicial","Comunicado DDP/G-003, de 27/10/2014 => DOE: 29/10/2014","Não Acatar"]
[19257,"Percentual Fixo – Fepasa / Inpc – Ação Judicial","Comunicado DDP/G-003, de 27/10/2014 => DOE: 29/10/2014","Não Acatar"]
[19258,"Quinquênio Sobre Percentual Fixo - Fepasa X Inpc - Ação Judicial","Comunicado DDP/G-003, de 27/10/2014 => DOE: 29/10/2014","Não Acatar"]
[19259,"Anuênio Sobre Percentual Fixo - Fepasa/Inpc - Ação Judicial","Comunicado DDP/G-003, de 27/10/2014 => DOE: 29/10/2014","Não Acatar"]
[19260,"Sexta Parte Sobre O Piso Salarial Fepasa 2,5 Salários Mínimos - Ação Judicial","Comunicado DDP/G-003, de 27/10/2014 => DOE: 29/10/2014","Não Acatar"]
[19261,"Adicional Transferência - Complementação De Aposentadoria/Pensão - Ação Judicial","Comunicado DDP/G-003, de 27/10/2014 => DOE: 29/10/2014","Acatar"]
[19262,"Percentual Sobre Excedente Teto Inss – Complementação De Aposentadoria/Pensão-Ação Judicial","Comunicado DDP/G-003, de 27/10/2014 => DOE: 29/10/2014","Acatar"]
[19263,"Sexta Parte Sobre Vencimentos Integrais – Ação Judicial","Comunicado DDP/G-003, de 27/10/2014 => DOE: 29/10/2014","Avaliar",null,"Verificar se verba compõe a base prividenciária"]
[19264,"Gratificação De Função Sobre O Salario Base","Comunicado DDP/G-003, de 27/10/2014 => DOE: 29/10/2014","Avaliar",null,"Verificar se verba compõe a base prividenciária"]
[19265,"Anuênio Sobre Gratificação Função Delta-Fepasa-Ação Judicial","Comunicado DDP/G-003, de 27/10/2014 => DOE: 29/10/2014","Não Acatar"]
[19266,"Gratificação De Caixa - Banespa - Ação Judicial","Comunicado DDP/G-003, de 27/10/2014 => DOE: 29/10/2014","Avaliar",null,"Verificar se verba compõe a base prividenciária"]
[19267,"Piso Salarial Fepasa - 2,5 Salários Mínimos - Ação Judicial","Comunicado DDP/G-003, de 27/10/2014 => DOE: 29/10/2014","Não Acatar"]
[19268,"Coeficiente Judicial X Salário Mínimo Atual","Comunicado DDP/G-003, de 27/10/2014 => DOE: 29/10/2014","Não Acatar"]
[19269,"Deságio - Acordo Coletivo De Trabalho De 2005","Comunicado DDP/G-003, de 27/10/2014 => DOE: 29/10/2014","Não Acatar"]
[19270,"Percentual Sobre Excedente Teto Inss / Banesp","Comunicado DDP/G-003, de 27/10/2014 => DOE: 29/10/2014","Não Acatar"]
[19271,"Gratificação Função Base Anuenio Cesp-Ação Judicial","Comunicado DDP/G-003, de 27/10/2014 => DOE: 29/10/2014","Avaliar",null,"Verificar se verba compõe a base prividenciária"]
[19272,"Gratificação Função Delta Sobre Equiparação Cptm","Comunicado DDP/G-003, de 27/10/2014 => DOE: 29/10/2014","Avaliar",null,"Verificar se verba compõe a base prividenciária"]
[19273,"Quinquênio Sobre Integrais Proventos ","Comunicado DDP/G-14, de 28/09/2016 => DOE: 29/09/2016","Avaliar",null,"Verificar se verba compõe a base prividenciária"]
[19274,"Hora Extra Média Complementação De Aposentadoria Ferrovia Paulista S.A.-Companhia Paulista de Trens Metropolitanos","Comunicado DDP/G-14, de 28/09/2016 => DOE: 29/09/2016","Acatar"]
[19275,"Anuênio Sobre Vantagem Pessoal Decisão Judicial","Comunicado DDP/G-14, de 28/09/2016 => DOE: 29/09/2016","Avaliar",null,"Verificar se verba compõe a base prividenciária"]
[19276,"Reajuste Prodesp Sobre Salário Base E Anuênio – Ação Judicial","Comunicado DDP/G-14, de 28/09/2016 => DOE: 29/09/2016","Avaliar",null,"Verificar se verba compõe a base prividenciária"]
[19277,"Diferença Salarial Sentença Judicial IV - BNC","Comunicado DDP/G-14, de 28/09/2016 => DOE: 29/09/2016","Avaliar",null,"Verificar se verba compõe a base prividenciária"]
[20001,"Aviso Prévio-CLT                   ","Comunicado DDP/G-15, de 30/09/2016 => DOE: 01/10/2016","Não Acatar"]
[20002,"Indenização CLT-Lei 6708/79/Artigo 479 CLT","Comunicado DDP/G-15, de 30/09/2016 => DOE: 01/10/2016","Acatar"]
[20003,"Fundo De Garantia Do Tempo De Serviço-Mês Rescisão                  ","Comunicado DDP/G-15, de 30/09/2016 => DOE: 01/10/2016","Não Acatar"]
[20004,"Fundo De Garantia Do Tempo De Serviço -13ºSalário-Rescisão           ","Comunicado DDP/G-15, de 30/09/2016 => DOE: 01/10/2016","Não Acatar"]
[20005,"Multa Rescisão De contrato         ","Comunicado DDP/G-15, de 30/09/2016 => DOE: 01/10/2016","Não Acatar"]
[20006,"Fundo De Garantia Do Tempo De Serviço -Multa Contratual-40%          ","Comunicado DDP/G-15, de 30/09/2016 => DOE: 01/10/2016","Não Acatar"]
[20007,"Indenização Adicional MP/434-Artigo 29","Comunicado DDP/G-15, de 30/09/2016 => DOE: 01/10/2016","Avaliar","Medida Provisoria 434/94","Verificar se verba compõe a base prividenciária"]
[20008,"Saldo Salário - Rescisão           ","Comunicado DDP/G-15, de 30/09/2016 => DOE: 01/10/2016","Não Acatar"]
[20009,"Férias - Rescisão                  ","Comunicado DDP/G-15, de 30/09/2016 => DOE: 01/10/2016","Não Acatar"]
[20010,"Férias Em Dobro - Rescisão       ","Comunicado DDP/G-15, de 30/09/2016 => DOE: 01/10/2016","Não Acatar"]
[20011,"1/3 Salário Sobre Férias- Rescisão","Comunicado DDP/G-15, de 30/09/2016 => DOE: 01/10/2016","Não Acatar"]
[20012,"Reposição - Rescisão","Comunicado DDP/G-15, de 30/09/2016 => DOE: 01/10/2016","Não Acatar"]
[20018,"13º Salário – Indenização – Rescisão ","Comunicado DDPE/G-04, de 22/06/2012 => DOE: 27/06/2012","Não Acatar"]
[20019,"Férias Vencidas – Rescisão Contrato ","Comunicado DDPE/G-04, de 22/06/2012 => DOE: 27/06/2012","Não Acatar"]
[20020,"Férias Proporcionais - Rescisão","Comunicado DDP/G-15, de 30/09/2016 => DOE: 01/10/2016","Não Acatar"]
[20021,"Média Adicional Noturno - Rescisão","Comunicado DDP/G-15, de 30/09/2016 => DOE: 01/10/2016","Não Acatar"]
[20022,"Média Insalubridade/Periculosidade- Rescisão","Comunicado DDP/G-15, de 30/09/2016 => DOE: 01/10/2016","Não Acatar"]
[20023,"Adiantamentos- Rescisão De Contrato ","Comunicado DDP/G-15, de 30/09/2016 => DOE: 01/10/2016","Não Acatar"]
[20024,"1/12 Avos De Férias Sobre Aviso ","Comunicado DDPE/G-04, de 22/06/2012 => DOE: 27/06/2012","Não Acatar"]
[20025,"1/12 Avos De 13º Salário Sobre Aviso ","Comunicado DDPE/G-04, de 22/06/2012 => DOE: 27/06/2012","Não Acatar"]
[20026,"Indenização Do Artigo 479 CLT- Contrato De Experiência","Comunicado DDP/G-003, de 27/10/2014 => DOE: 29/10/2014","Não Acatar"]
[20027,"Indenização Do Artigo 480 CLT-Contrato De Experiência","Comunicado DDP/G-14, de 28/09/2016 => DOE: 29/09/2016","Não Acatar"]
[21001,"Redução Artigo 16 Lei 6995/90","Comunicado DDP/G-07, de 05/02/1997 => DOE: 14/02/1997","Avaliar","Lei  6995/90","Artigo 16 - O limite máximo de retribuição global mensal a que se refere o inciso XII do artigo 115 da Constituição Estadual, aplicável aos servidores de que tratam os artigos 124, \"caput\",  e 138 da mesma Constituição, fica fixado em Cr$ 323 524,25 (trezentos e vinte e três mil, quinhentos e vinte e quatro cruzeiros e vinte e cinco centavos)                                                                                                                       Parágrafo único - Se a aplicação desta lei, acarretar retribuição global mensal superior ao limite fixado neste artigo, restringir - se -á o reajuste à importância que faltar para atingir esse limite.                                                                                                                                   Artigo 17 - Considera - se retribuição global mensal, a que se refere o artigo anterior, a somatória de todos os valores percebidos pelo servidor, em caráter permanente, tais como o vencimento, a remuneração, o salário, as gratificações, incorporadas ou não, e as demais vantagens pecuniárias, não eventuais, asseguradas pela legislação, excetuados apenas o salário - família, o salário - esposa, o adicional de insalubridade, o adicional noturno, o adicional por tempo de serviço e a sexta - parte                                                                               Parágrafo único - O adicional por tempo de serviço e a sexta - parte serão calculados de forma simples e direta, conforme dispõem as legislações que regem a matéria e não serão computados nem acumulados para fins de concessão de acréscimos ulteriores sob o mesmo título e idêntico fundamento."]
[21002,"Redutor 13º Salário Artigo 16 – Lei 6995/90","Comunicado DDP/G-07, de 05/02/1997 => DOE: 14/02/1997","Não Acatar"]
[21003,"Redutor LC 731/93","Comunicado DDP/G-07, de 05/02/1997 => DOE: 14/02/1997","Avaliar","LC 731/93","Verificar se verba compõe a base prividenciária"]
[21004,"Redutor Artigo 10 – LC 724/93","Comunicado DDP/G-07, de 05/02/1997 => DOE: 14/02/1997","Avaliar","LC 724/93","Verificar se verba compõe a base prividenciária"]
[21005,"Redutor Salarial - Emenda Constitucional 41/2003","Comunicado DDP/G-07, de 05/02/1997 => DOE: 14/02/1997","Avaliar",null,"Verificar se verba compõe a base prividenciária"]
[21006,"Redutor - Emenda Constitucional 41 - Rendimento Cumulativo","Comunicado DDP/G-07, de 05/02/1997 => DOE: 14/02/1997","Avaliar",null,"Verificar se verba compõe a base prividenciária"]
[21007,"Redutor Salarial Emenda Constitucional 41/2003 - Mandado De Segurança","Comunicado DDP/G-07, de 05/02/1997 => DOE: 14/02/1997","Avaliar",null,"Verificar se verba compõe a base prividenciária"]
[21008,"Aplicação E.C 41/2003 - Teto - Mandado De Segurança","Comunicado DDP/G-07, de 05/02/1997 => DOE: 14/02/1997","Avaliar","EMENDA CONSTITUCIONAL Nº 41, DE 19 DE DEZEMBRO DE 2003","Verificar se verba compõe a base prividenciária"]
[21009,"Redutor 13º Salário – Emenda Constitucional 41/2003","Comunicado DDP/G-08, de 11/04/2000 => DOE: 13/04/2000","Não Acatar"]
[21010,"Redutor 13º Salário – Emenda Constitucional 41 – Cumulativo","Comunicado DDP/G-07, de 31/01/2002 => DOE: 02/02/2002","Não Acatar"]
[21011,"Redução § 7 Do Artigo 40 Constituição Federal / Emenda 41 - Ação Judicial","Comunicado DDPE/G-13, de 07/04/2005 => DOE: 09/04/2005","Avaliar",null,"Verificar se verba compõe a base prividenciária"]
[21012,"Redutor – Agente Fiscal De Rendas – Emenda Constitucional 41/03 –Ação Judicial  ","Comunicado DDP/G-15, de 30/09/2016 => DOE: 01/10/2016","Avaliar",null,"Verificar se verba compõe a base prividenciária"]
[21013,"Redutor- Emenda Constitucional 41/03 –Viação Aérea De São Paulo - Ação Judicial   ","Comunicado DDP/G-15, de 30/09/2016 => DOE: 01/10/2016","Avaliar",null,"Verificar se verba compõe a base prividenciária"]
[21014,"Redutor- Emenda Constitucional 41/03- Sobre Vantagem Pessoal- Ação Judicial","Comunicado DDP/G-15, de 30/09/2016 => DOE: 01/10/2016","Avaliar",null,"Verificar se verba compõe a base prividenciária"]
[21016,"LC 1012/2007 Artigo 144 E 201 – Constituição Federal ","Comunicado DDPE/G-04, de 22/06/2012 => DOE: 27/06/2012","Avaliar","LC 1012/2007 Artigo 144 E 201 – Constituição Federal "," Lei Compl. nº 1012, de 5 de julho de 2007- Pensão por morte , avaliar caso a caso "]
[21017,"Redutor- Emenda Constitucional 41/03 –Banco De Desenvolvimento Do Estado De São Paulo- Ação Judicial ","Comunicado DDP/G-15, de 30/09/2016 => DOE: 01/10/2016","Avaliar",null,"Verificar se verba compõe a base prividenciária"]
[21018,"Redutor Salarial-Pin               ","Comunicado DDP/G-15, de 30/09/2016 => DOE: 01/10/2016","Avaliar",null,"Verificar se verba compõe a base prividenciária"]
[22001,"Pensão Alimentícia","Comunicado DDPE/G-13, de 14/05/2007 => DOE: 15/05/2007","Não Acatar"]
[22002,"Pensão Alimentícia beneficiária","Comunicado DDP/G-05, de 31/01/1994 => DOE: 01/02/1994","Acatar"]
[22003,"Pensão Alimentícia– 13º Salário - Antecipação","Comunicado DDP/G-05, de 31/01/1994 => DOE: 01/02/1994","Não Acatar"]
[22004,"Pensão Alimentícia- 13º Salário","Comunicado DDP/G-05, de 31/01/1994 => DOE: 01/02/1994","Não Acatar"]
[22005,"Pensão Alimentícia– 13º Salário – Antecipação – Beneficiária","Comunicado DDP/G-05, de 31/01/1994 => DOE: 01/02/1994","Não Acatar"]
[22006,"Pensão Alimentícia– 13º Salário – Beneficiária","Comunicado DDP/G-22, de 15/08/2002 => DOE: 17/08/2002","Não Acatar"]
[22007,"Pensão Alimentícia 13º Salário Antecipação- CLT","Comunicado DDP/G-14, de 28/09/2016 => DOE: 29/09/2016","Acatar"]
[22008,"Pensão Alimentícia - Rendimentos Recebidos Acumuladamente","Comunicado DDP/G-15, de 30/09/2016 => DOE: 01/10/2016","Avaliar",null,"Verificar se verba compõe a base prividenciária"]
[22009,"Espólio Férias / Licença Prêmio - PA - L","Comunicado DDP/G-05, de 03/07/2020 => DOE: 04/07/2020","Não Acatar"]
[22010,"Espólio Férias / Licença Prêmio - PA - M","Comunicado DDP/G-05, de 03/07/2020 => DOE: 04/07/2020","Não Acatar"]
[22011,"Espólio Férias / Licença Prêmio - PA - N","Comunicado DDP/G-05, de 03/07/2020 => DOE: 04/07/2020","Não Acatar"]
[22012,"Espólio Férias / Licença Prêmio - PA - O","Comunicado DDP/G-05, de 03/07/2020 => DOE: 04/07/2020","Não Acatar"]
[22013,"Espólio Férias / Licença Prêmio - PA - P","Comunicado DDP/G-05, de 03/07/2020 => DOE: 04/07/2020","Não Acatar"]
[22014,"Espólio Férias / Licença Prêmio - PA - Q","Comunicado DDP/G-05, de 03/07/2020 => DOE: 04/07/2020","Não Acatar"]
[22015,"Espólio Férias / Licença Prêmio - PA - R","Comunicado DDP/G-05, de 03/07/2020 => DOE: 04/07/2020","Não Acatar"]
[22016,"Espólio Férias / Licença Prêmio - PA - S","Comunicado DDP/G-05, de 03/07/2020 => DOE: 04/07/2020","Não Acatar"]
[23001,"13º Salário – EFP","Comunicado DDP/G-22, de 15/08/2002 => DOE: 17/08/2002","Não Acatar"]
[23002,"13º Salário – CLT","Comunicado DDP/G-22, de 15/08/2002 => DOE: 17/08/2002","Não Acatar"]
[23003,"13º Salário – Adiantamento – CLT","Comunicado DDP/G-22, de 15/08/2002 => DOE: 17/08/2002","Não Acatar"]
[23004,"13º Salário – Rescisão Contrato - CLT","Comunicado DDP/G-22, de 15/08/2002 => DOE: 17/08/2002","Não Acatar"]
[23005,"13º Salário – Complementação De Pensão / Aposentadoria","Comunicado DDP/G-22, de 15/08/2002 => DOE: 17/08/2002","Não Acatar"]
[23006,"13º Salário – Dispensa / Exoneração / Falecimento","Comunicado DDP/G-22, de 15/08/2002 => DOE: 17/08/2002","Não Acatar"]
[23007,"13º Salário - Antecipação – LC 817/96","Comunicado DDP/G-05, de 31/01/1994 => DOE: 01/02/1994","Não Acatar"]
[23008,"13º Salário - Pensão Judicial","Comunicado DDP/G-05, de 31/01/1994 => DOE: 01/02/1994","Não Acatar"]
[23009,"13º Salário – Prêmio De Incentivo À Qualidade","Comunicado DDP/G-05, de 31/01/1994 => DOE: 01/02/1994","Não Acatar"]
[23010,"13º Salário – Prêmio De Incentivo À Qualidade - Antecipação","Comunicado DDP/G-05, de 31/01/1994 => DOE: 01/02/1994","Não Acatar"]
[23011,"13º Salário – Prêmio De Incentivo À Qualidade -  Adiantamento - CLT","Comunicado DDP/G-05, de 31/01/1994 => DOE: 01/02/1994","Não Acatar"]
[23012,"13º Salário Do Estado / CBPM","Comunicado DDP/G-07, de 31/01/2002 => DOE: 02/02/2002","Não Acatar"]
[23013,"13º Salário – Prêmio De Incentivo À Produtividade E Qualidade","Comunicado DDP/G-22, de 15/08/2002 => DOE: 17/08/2002","Não Acatar"]
[23014,"13º Salário – Prêmio De Incentivo À Produtividade E Qualidade - Antecipação","Comunicado DDP/G-22, de 15/08/2002 => DOE: 17/08/2002","Não Acatar"]
[23015,"13º Salário – Prêmio De Incentivo À Produtividade E Qualidade - Adiantamento  CLT","Comunicado DDP/G-22, de 15/08/2002 => DOE: 17/08/2002","Não Acatar"]
[23016,"13º Salário - Salário Maternidade","Comunicado DDP/G-05, de 09/02/2004 => DOE: 11/02/2004 ","Não Acatar"]
[23017,"13º Salário - Abono Por Satisfação Do Usuário","Comunicado DDPE/G-13, de 14/05/2007 => DOE: 15/05/2007","Não Acatar"]
[23018,"13º Salário - Abono Por Satisfação Do Usuário - Antecipação","Comunicado DDPE/G-13, de 14/05/2007 => DOE: 15/05/2007","Não Acatar"]
[23019,"13º Salário - Abono Por Satisfação Do Usuário - Adiantamento C.L.T.","Comunicado DDPE/G-13, de 14/05/2007 => DOE: 15/05/2007","Não Acatar"]
[23020,"13º Salário – Rendimentos Recebidos Acumuladamente","Comunicado DDPE/G-04, de 22/06/2012 => DOE: 27/06/2012","Não Acatar"]
[23021,"13º Salário - Adiantamento CLT - Prêmio De Produtividade Médica LC 1193/2013 ","Comunicado DDP/G-003, de 27/10/2014 => DOE: 29/10/2014","Não Acatar"]
[23022,"13º Salário - CLT - Prêmio De Produtividade Médica LC 1193/2013 ","Comunicado DDP/G-003, de 27/10/2014 => DOE: 29/10/2014","Não Acatar"]
[23023,"13º Salário - Prêmio De Produtividade Médica LC 1193/2013 ","Comunicado DDP/G-003, de 27/10/2014 => DOE: 29/10/2014","Não Acatar"]
[23024,"13º Salário - Prêmio De Produtividade Médica LC 1193/2013 - Antecipação","Comunicado DDP/G-003, de 27/10/2014 => DOE: 29/10/2014","Não Acatar"]
[23025,"13º Salário Adiantamento - Premio De Produtividade Médica - LC 1193/2013 - RRA","Comunicado DDP/G-003, de 27/10/2014 => DOE: 29/10/2014","Não Acatar"]
[23026,"13º Salário - Prêmio De Incentivo A Produtividade - LC 1211/2013","Comunicado DDP/G-003, de 27/10/2014 => DOE: 29/10/2014","Não Acatar"]
[23027,"13º Salário Adiantamento CLT - Prêmio De Incentivo A Produtividade -1211/13","Comunicado DDP/G-003, de 27/10/2014 => DOE: 29/10/2014","Não Acatar"]
[23028,"Saldo De Benefício – 13º Salário ","Comunicado DDP/G-14, de 28/09/2016 => DOE: 29/09/2016","Não Acatar"]
[23029,"14º Salario - Pensão Indenizatória – Ação Judicial","Comunicado DDP/G-14, de 28/09/2016 => DOE: 29/09/2016","Não Acatar"]
[25001,"Auxílio Funeral","Comunicado DDP/G-07, de 11/02/1998 => DOE: 12/02/1998","Não Acatar"]
[26001,"Plantão De Chefia                  ","Comunicado DDP/G-15, de 30/09/2016 => DOE: 01/10/2016","Não Acatar"]
[26002,"Plantão Eventual                   ","Comunicado DDP/G-15, de 30/09/2016 => DOE: 01/10/2016","Não Acatar"]
[26003,"Plantão - Aeroporto                ","Comunicado DDP/G-15, de 30/09/2016 => DOE: 01/10/2016","Não Acatar"]
[26004,"Plantão Técnico Diurno-6 Horas-Segunda/Sexta","Comunicado DDP/G-15, de 30/09/2016 => DOE: 01/10/2016","Não Acatar"]
[26005,"Plantão Técnico Diurno-12 Horas-Sábado/Domingo/Feriado","Comunicado DDP/G-15, de 30/09/2016 => DOE: 01/10/2016","Não Acatar"]
[26006,"Plantão Técnico Noturno-6 Horas-Segunda/Sexta","Comunicado DDP/G-15, de 30/09/2016 => DOE: 01/10/2016","Não Acatar"]
[26007,"Plantão Técnico Noturno-12 Horas-Segunda/Sexta ","Comunicado DDP/G-15, de 30/09/2016 => DOE: 01/10/2016","Não Acatar"]
[26008,"Plantão Técnico Noturno-12 Horas-Sábado/Domingo/Feriado","Comunicado DDP/G-15, de 30/09/2016 => DOE: 01/10/2016","Não Acatar"]
[26009,"Plantão Médico Diurno -12 Horas-Segunda/Sexta","Comunicado DDP/G-15, de 30/09/2016 => DOE: 01/10/2016","Não Acatar"]
[26010,"Plantão Médico Diurno -12 Horas-Sábado/Domingo/Feriado ","Comunicado DDP/G-15, de 30/09/2016 => DOE: 01/10/2016","Não Acatar"]
[26011,"Plantão Médico Noturno-12 Horas-Segunda/Sexta","Comunicado DDP/G-15, de 30/09/2016 => DOE: 01/10/2016","Não Acatar"]
[26012,"Plantão Médico Noturno-12h-Sábado/Domingo/Feriado","Comunicado DDP/G-15, de 30/09/2016 => DOE: 01/10/2016","Não Acatar"]
[26013,"Plantão Médico - Sisplan             ","Comunicado DDP/G-15, de 30/09/2016 => DOE: 01/10/2016","Não Acatar"]
[26014,"Plantão Médico - Pronto Socorro      ","Comunicado DDP/G-15, de 30/09/2016 => DOE: 01/10/2016","Não Acatar"]
[26015,"Plantão Médico - Chefia              ","Comunicado DDP/G-15, de 30/09/2016 => DOE: 01/10/2016","Não Acatar"]
[26016,"Plantão Administrativo Diurno-6 Horas-Segunda/Sexta","Comunicado DDP/G-15, de 30/09/2016 => DOE: 01/10/2016","Não Acatar"]
[26017,"Plantão Administrativo Diurno-12 Horas-Sábado/Domingo/Feriado ","Comunicado DDP/G-15, de 30/09/2016 => DOE: 01/10/2016","Não Acatar"]
[26018,"Plantão Administrativo Noturno-12 Horas-Segunda/Sexta ","Comunicado DDP/G-15, de 30/09/2016 => DOE: 01/10/2016","Não Acatar"]
[26019,"Plantão Administrativo Noturno-12 Horas-Sábado/Domingo/Feriado","Comunicado DDP/G-15, de 30/09/2016 => DOE: 01/10/2016","Não Acatar"]
[26020,"Plantão Operacional Diurno-6 Horas-Segunda/Sexta     ","Comunicado DDP/G-15, de 30/09/2016 => DOE: 01/10/2016","Não Acatar"]
[26021,"Plantão Operacional Diurno-12 Horas-Segunda/Sexta","Comunicado DDP/G-15, de 30/09/2016 => DOE: 01/10/2016","Não Acatar"]
[26022,"Plantão Operacional Diurno-6 Horas-Sábado/Domingo/Feriado.  ","Comunicado DDP/G-15, de 30/09/2016 => DOE: 01/10/2016","Não Acatar"]
[26023,"Plantão Operacional Diurno-12 Horas-Sábado/Domingo/Feriado ","Comunicado DDP/G-15, de 30/09/2016 => DOE: 01/10/2016","Não Acatar"]
[26024,"Plantão Operacional Noturno-6 Horas-Segunda/Sexta","Comunicado DDP/G-15, de 30/09/2016 => DOE: 01/10/2016","Não Acatar"]
[26025,"Plantão Operacional Noturno-12 Horas-Segunda/Sexta ","Comunicado DDP/G-15, de 30/09/2016 => DOE: 01/10/2016","Não Acatar"]
[26026,"Plantão Operacional Noturno-6 Horas-Sábado/Domingo/Feriado","Comunicado DDP/G-15, de 30/09/2016 => DOE: 01/10/2016","Não Acatar"]
[26027,"Plantão Operacional Noturno-12 Horas-Sábado/Domingo/Feriado ","Comunicado DDP/G-15, de 30/09/2016 => DOE: 01/10/2016","Não Acatar"]
[26028,"Média Plantões                     ","Comunicado DDP/G-15, de 30/09/2016 => DOE: 01/10/2016","Não Acatar"]
[26029,"Plantão Média - Afastamento        ","Comunicado DDP/G-15, de 30/09/2016 => DOE: 01/10/2016","Não Acatar"]
[26030,"Plantão Média-Licença Maternidade      ","Comunicado DDP/G-15, de 30/09/2016 => DOE: 01/10/2016","Não Acatar"]
[26031,"Indenização De Plantões            ","Comunicado DDP/G-15, de 30/09/2016 => DOE: 01/10/2016","Não Acatar"]
[26032,"Plantão - Médico/Cirurgião Dentista -  LC 839/97","Comunicado DDP/G-07, de 11/02/1998 => DOE: 12/02/1998","Não Acatar"]
[26033,"Plantão - Médico Sanitarista -  LC 839/97","Comunicado DDP/G-07, de 11/02/1998 => DOE: 12/02/1998","Não Acatar"]
[26034,"Plantão À Distância – Médico/Cirurgião Dentista - LC 839/97","Comunicado DDP/G-07, de 11/02/1998 => DOE: 12/02/1998","Não Acatar"]
[26035,"Plantão À Distância – Médico Sanitarista - LC 839/97","Comunicado DDP/G-07, de 31/01/2002 => DOE: 02/02/2002","Não Acatar"]
[26036,"Média Férias - Plantão Médico / Cirurgião Dentista","Comunicado DDP/G-07, de 31/01/2002 => DOE: 02/02/2002","Não Acatar"]
[26037,"Média Férias – Plantão a Distancia – Médico / Cirurgião Dentista","Comunicado DDP/G-12, de 06/05/2004 => DOE: 11/05/2004","Não Acatar"]
[26038,"Média - Salário Maternidade - Plantão Médico/Cirurgião Dentista","Comunicado DDP/G-12, de 06/05/2004 => DOE: 11/05/2004","Não Acatar"]
[26039,"Média - Salário Maternidade - Plantão À Distância Médico/Cirurgião Dentista ","Comunicado DDPE/G-15, de 04/07/2006 => DOE: 29/07/2006 ","Não Acatar"]
[26040,"Plantão Enfermeiro/Fisioterapeuta/Farmacêutico - Lei Complementar 987/2006","Comunicado DDPE/G-15, de 04/07/2006 => DOE: 29/07/2006 ","Não Acatar"]
[26041,"Plantão Auxiliar De Enfermagem - Lei Complementar 987/2006","Comunicado DDPE/G-15, de 04/07/2006 => DOE: 29/07/2006 ","Não Acatar"]
[26042,"Média Férias Plantão Enfermeiro/Fisioterapeuta/Farmacêutico","Comunicado DDPE/G-15, de 04/07/2006 => DOE: 29/07/2006 ","Não Acatar"]
[26043,"Média Férias Plantão Auxiliar De Enfermagem","Comunicado DDPE/G-15, de 04/07/2006 => DOE: 29/07/2006 ","Não Acatar"]
[26044,"Média Salário Maternidade Plantões Enfermeiro/Fisioterapeuta","Comunicado DDPE/G-15, de 04/07/2006 => DOE: 29/07/2006 ","Não Acatar"]
[26045,"Média Salário Maternidade Plantão Auxiliar De Enfermagem","Comunicado DDPE/G-15, de 04/07/2006 => DOE: 29/07/2006 ","Não Acatar"]
[26046,"Plantão Técnico De Enfermagem – LC 1157/11","Comunicado DDPE/G-04, de 22/06/2012 => DOE: 27/06/2012","Não Acatar"]
[26047,"Plantão Área A - LC 1176/2012","Comunicado DDP/G-003, de 27/10/2014 => DOE: 29/10/2014","Não Acatar"]
[26048,"Plantão Área B - LC 1176/2012","Comunicado DDP/G-003, de 27/10/2014 => DOE: 29/10/2014","Não Acatar"]
[26049,"Plantão Área C - LC 1176/2012","Comunicado DDP/G-003, de 27/10/2014 => DOE: 29/10/2014","Não Acatar"]
[26050,"Plantão Em Estado Disponibilidade - LC 1176/2012","Comunicado DDP/G-003, de 27/10/2014 => DOE: 29/10/2014","Não Acatar"]
[26051,"Plantão Enfermeiro - LC 1176/2012","Comunicado DDP/G-003, de 27/10/2014 => DOE: 29/10/2014","Não Acatar"]
[26052,"Plantão Ag. Técnico Assis. Saúde - LC 1176/2012","Comunicado DDP/G-003, de 27/10/2014 => DOE: 29/10/2014","Não Acatar"]
[26053,"Plantão Auxiliar De Enfermagem - Lei Complementar 1176/2012","Comunicado DDP/G-003, de 27/10/2014 => DOE: 29/10/2014","Não Acatar"]
[26054,"Média Férias - Técnico De Enfermagem ","Comunicado DDP/G-003, de 27/10/2014 => DOE: 29/10/2014","Não Acatar"]
[26055,"Média Férias - Agente Técnico De Assistência A Saúde ","Comunicado DDP/G-003, de 27/10/2014 => DOE: 29/10/2014","Não Acatar"]
[26056,"Média Licença Maternidade - Agente Técnico De Assistência A Saúde","Comunicado DDP/G-003, de 27/10/2014 => DOE: 29/10/2014","Não Acatar"]
[26057,"Média Licença Maternidade - Técnico De Enfermagem","Comunicado DDP/G-003, de 27/10/2014 => DOE: 29/10/2014","Não Acatar"]
[26058,"Plantão Servidor - Disponibilidade/Exoneração ","Comunicado DDP/G-03, de 14/06/2018 => DOE: 15/06/2018","Não Acatar"]
[26059,"Antecipação Média Férias - Plantão Área Saúde","Comunicado DDP/G-03, de 14/06/2018 => DOE: 15/06/2018","Não Acatar"]
[26060,"Média Férias - Plantão Área Saúde","Comunicado DDP/G-03, de 14/06/2018 => DOE: 15/06/2018","Não Acatar"]
[27001,"Pecúlio – Lei Federal 8213/91","Comunicado DDP/G-08, de 11/04/2000 => DOE: 13/04/2000","Avaliar","Lei  Federal 8213/91","PREVIDENCIÁRIO. PECÚLIO. ART. 81, II, DA LEI Nº 8.213/91, REVOGADO PELA LEI Nº 8.870/94. DIREITO ADQUIRIDO. PRESCRIÇÃO. PREVIDENCIÁRIO. PECÚLIO. ART. 81, II, DA LEI Nº 8.213/91, REVOGADO PELA LEI Nº 8.870/94. DIREITO ADQUIRIDO. PRESCRIÇÃO.\n1. Em se tratando de pecúlio, benefício de prestação única, somente ocorre a prescrição em cinco anos contados da data do afastamento definitivo do segurado da atividade laborativa, nos termos dos arts. 81, II, da Lei nº 8.213/91 e 24, parágrafo único, da Lei nº 8.870.\n2. O pecúlio é devido ao aposentado por idade ou tempo de serviço que voltar a exercer atividade abrangida pelo Regime Geral da Previdência Social, quando dela se afastar até a edição da Lei nº 8.870/94."]
[27002,"Pagamento Serviço Período Indenizatório","Comunicado DDP/G-05, de 31/01/1994 => DOE: 01/02/1994","Não Acatar"]
[28001,"Repasse                            ","Comunicado DDP/G-15, de 30/09/2016 => DOE: 01/10/2016","Não Acatar"]
[28002,"Repasse – 13º Salário              ","Comunicado DDP/G-15, de 30/09/2016 => DOE: 01/10/2016","Não Acatar"]
[28003,"Repasse – 13º Salário - Antecipação","Comunicado DDP/G-15, de 30/09/2016 => DOE: 01/10/2016","Não Acatar"]
[29001,"Horas Extras 100% - Carga Horária 150 - Ação Judicial ","Comunicado DDP/G-03, de 14/06/2018 => DOE: 15/06/2018","Não Acatar"]
[29002,"Gratificação Representação / Corregedoria - Ação Judicial","Comunicado DDP/G-03, de 14/06/2018 => DOE: 15/06/2018","Avaliar",null,"Verificar se verba compõe a base prividenciária"]
[29003,"Reajuste 15% - Ação Judicial ","Comunicado DDP/G-03, de 14/06/2018 => DOE: 15/06/2018","Acatar"]
[29004,"Adicional Por Tempo De Serviço Sobre Gratificação Atendimento Ao Público - GDAP Não Incorporada - Ação Judicial","Comunicado DDP/G-03, de 14/06/2018 => DOE: 15/06/2018","Acatar"]
[29005,"Sexta Parte Sobre Gratificação Desempenho Apoio Assistência Médica Ao Servidor Público - GDAMSPE - Ação Judicial","Comunicado DDP/G-03, de 14/06/2018 => DOE: 15/06/2018","Avaliar",null,"Verificar se verba compõe a base prividenciária"]
[29006,"Adicional Por Tempo De Serviço Sobre 50% Do PDI - Prêmio De Desempenho Individual - Ação Judicial","Comunicado DDP/G-03, de 14/06/2018 => DOE: 15/06/2018","Avaliar",null,"Verificar se verba compõe a base prividenciária"]
[29007,"Diferença - Abono Complementar -Integral - Ação Judicial","Comunicado DDP/G-03, de 14/06/2018 => DOE: 15/06/2018","Avaliar",null,"Verificar se verba compõe a base prividenciária"]
[29008,"Adicional Tempo Serviço Do Pro Labore Integral Gerente De Organização Escolar LC 1.144/2011- Ação Judicial","Comunicado DDP/G-05, de 03/07/2020 => DOE: 04/07/2020","Não Acatar"]
[29009,"Sexta Parte Do Pro Labore Integral Gerente De Organização Escolar LC 1.144/2011 - Ação Judicial","Comunicado DDP/G-05, de 03/07/2020 => DOE: 04/07/2020","Não Acatar"]
[29010,"Adicional Tempo De Serviço Sobre Vencimentos Integrais Excluindo Adicional Insalubridade E Periculosidade - Resolução CC.138/12 - Ação Judicial","Comunicado DDP/G-05, de 03/07/2020 => DOE: 04/07/2020","Avaliar",null,"Verificar se verba compõe a base prividenciária"]
[29011,"Sexta-Parte Sobre Integrais Exceto Quinquênio E Gratificação Pelo Desempenho E Apoio A Assistência Médica Ao Servidor Público - GDAMSPE - Ação Judicial","Comunicado DDP/G-05, de 03/07/2020 => DOE: 04/07/2020","Avaliar",null,"Verificar se verba compõe a base prividenciária"]
[29012,"Incorporação GAEV - Gratificação De Atividade De Escolta/Vigilância Sobre Salário Base - Ação Judicial","Comunicado DDP/G-05, de 03/07/2020 => DOE: 04/07/2020","Acatar"]
[29013,"Sexta Parte Sobre Gratificação de Preceptoria - Ação Judicial","Comunicado DDP/G-05, de 03/07/2020 => DOE: 04/07/2020","Avaliar",null,"Verificar se verba compõe a base prividenciária"]
[29014,"Adicional Sobre 50% PIPQ – Prêmio de Incentivo à Produtividade e Qualidade - Ação Judicial","Comunicado DDP/G-05, de 03/07/2020 => DOE: 04/07/2020","Avaliar",null,"Verificar se verba compõe a base prividenciária"]
[29015,"Sexta-Parte Sobre Integrais - Exceto PDI - Resolução CC 138/12 - Ação Judicial","Comunicado DDP/G-05, de 03/07/2020 => DOE: 04/07/2020","Avaliar",null,"Verificar se verba compõe a base prividenciária"]
[29016,"Sexta Sobre Base/Complemento/Pro-Labore – Ação Judicial","Comunicado DDP/G-05, de 03/07/2020 => DOE: 04/07/2020","Não Acatar"]
[29017,"Gratificação Atividade Administrativa Saúde –GAAS - Ação Judicial","Comunicado DDP/G-05, de 03/07/2020 => DOE: 04/07/2020","Avaliar",null,"Verificar se verba compõe a base prividenciária"]
[29018,"Diferença Salarial Engenheiro Lei 4950/66 – Ação Judicial","Comunicado DDP/G-05, de 03/07/2020 => DOE: 04/07/2020","Avaliar","Lei  4950/66 – Ação Judicial","Verificar se verba compõe a base prividenciária"]
[29019,"Adicional Tempo Serviço Sobre Gratificação Atividade Julgamento - GRAJ - Ação Judicial","Comunicado DDP/G-05, de 03/07/2020 => DOE: 04/07/2020","Avaliar",null,"Verificar se verba compõe a base prividenciária"]
[29020,"Verba Honorária - Ação Judicial","Comunicado DDP/G-05, de 03/07/2020 => DOE: 04/07/2020","Não Acatar"]
[29021,"Sexta-Parte Sobre Vencimentos Integrais Exceto PIP/ATS E Adicional De Insalubridade - Ação Judicial","Comunicado DDP/G-05, de 03/07/2020 => DOE: 04/07/2020","Avaliar",null,"Verificar se verba compõe a base prividenciária"]
[29022,"Sexta Parte Sobre Salário Base - Ação Judicial","Comunicado DDP/G-05, de 03/07/2020 => DOE: 04/07/2020","Avaliar",null,"Verificar se verba compõe a base prividenciária"]
[29023,"Adicional Noturno Após 5 horas Exceto Gratificações E Adicionais - Ação Judicial","Comunicado DDP/G-05, de 03/07/2020 => DOE: 04/07/2020","Não Acatar"]
[29024,"Abono 25% - Artigo 45 - Lei 8.213/91 – Ação Judicial","Comunicado DDP/G-05, de 03/07/2020 => DOE: 04/07/2020","Avaliar","Lei  8.213/91 – Ação Judicial","Verificar se verba compõe a base prividenciária"]
[29025,"Sexta Parte Sobre Vencimentos Integrais Exceto PDI, ATS E Periculosidade - Ação Judicial","Comunicado DDP/G-05, de 03/07/2020 => DOE: 04/07/2020","Avaliar",null,"Verificar se verba compõe a base prividenciária"]
[29026,"Salário Complemento - Diferença Salarial - LC 1168/12 - Ação Judicial","Comunicado DDP/G-05, de 03/07/2020 => DOE: 04/07/2020","Avaliar","LC 1168/12 - Ação Judicial","Verificar se verba compõe a base prividenciária"]
[29027,"Adicional Tempo Serviço Sobre Gratificação Pro-Labore Quebra De Caixa - Ação Judicial","Comunicado DDP/G-05, de 03/07/2020 => DOE: 04/07/2020","Não Acatar"]
[29028,"URV Sobre Base Com Incidência Em ATS – Adicional Tempo De Serviço – Ação Judicial","Comunicado DDP/G-05, de 03/07/2020 => DOE: 04/07/2020","Avaliar",null,"Verificar se verba compõe a base prividenciária"]
[29029,"Adicional Tempo Serviço Sobre Vencimentos Integrais Exceto PDI, Periculosidade E Insalubridade - Ação Judicial","Comunicado DDP/G-05, de 03/07/2020 => DOE: 04/07/2020","Avaliar",null,"Verificar se verba compõe a base prividenciária"]
[29030,"Adicional Noturno Após 5 Horas Exceto Gratificações Suprimidas/GEAH- Ação Judicial","Comunicado DDP/G-05, de 03/07/2020 => DOE: 04/07/2020","Não Acatar"]
[29031,"Adicional Noturno Após 5 Horas Exceto Sexta-Parte e Insalubridade - Ação Judicial","Comunicado DDP/G-05, de 03/07/2020 => DOE: 04/07/2020","Não Acatar"]
[29032,"Adicional Noturno Após 5 Horas Exceto Gratificações Suprimidas E ATS -Adicional Tempo De Serviço - Ação Judicial","Comunicado DDP/G-05, de 03/07/2020 => DOE: 04/07/2020","Não Acatar"]
[29033,"Adicional Noturno Após 5 Horas Exceto Sexta Parte, Insalubridade E ATS – Adicional Tempo De Serviço – Ação Judicial","Comunicado DDP/G-05, de 03/07/2020 => DOE: 04/07/2020","Não Acatar"]
[29034,"Sexta Parte Sobre GAT - Gratificação Acúmulo de Titularidade – Ação Judicial","Comunicado DDP/G-05, de 03/07/2020 => DOE: 04/07/2020","Avaliar",null,"Verificar se verba compõe a base prividenciária"]
[29035,"Diferença Vencimentos - Salário Profissional - 2 Salários Mínimos - Ação Judicial","Comunicado DDP/G-05, de 03/07/2020 => DOE: 04/07/2020","Avaliar",null,"Verificar se verba compõe a base prividenciária"]
[29036,"Diferença Vice/Professor Coordenador - Artigo 133 - Ação Judicial","Comunicado DDP/G-05, de 03/07/2020 => DOE: 04/07/2020","Avaliar",null,"O servidor, com mais de cinco anos de efetivo exercício, que tenha exercido ou venha a exercer cargo ou função que lhe proporcione remuneração superior à do cargo de que seja titular, ou função para a qual foi admitido, incorporará um décimo dessa diferença, por ano, até o limite de dez décimos."]
[29037,"URV Sobre Integrais Exceto PDI E Insalubridade - Ação Judicial","Comunicado DDP/G-05, de 03/07/2020 => DOE: 04/07/2020","Avaliar",null,"Verificar se verba compõe a base prividenciária"]
[29038,"URV Sobre Vencimentos Integrais Com Reflexos Em ATS – Adicional Tempo De Serviço E Sexta Parte - Ação Judicial","Comunicado DDP/G-05, de 03/07/2020 => DOE: 04/07/2020","Avaliar",null,"Verificar se verba compõe a base prividenciária"]
[29039,"Adicional Tempo De Serviço Sobre Integrais Exceto Executiva E GDAMSPE – Ação Judicial","Comunicado DDP/G-05, de 03/07/2020 => DOE: 04/07/2020","Avaliar",null,"Verificar se verba compõe a base prividenciária"]
[29040,"Descanso Semanal Remunerado Sobre Sexta-Parte - Ação Judicial","Comunicado DDP/G-05, de 03/07/2020 => DOE: 04/07/2020","Não Acatar"]
[29041,"Sexta-Parte Sobre Base, Adicional Por Tempo De Serviço E Insalubridade – Ação Judicial","Comunicado DDP/G-05, de 03/07/2020 => DOE: 04/07/2020","Avaliar",null,"Verificar se verba compõe a base prividenciária"]
[29042,"Adicional Noturno Após 5 Horas Exceto Gratificação Executiva – Ação Judicial","Comunicado DDP/G-05, de 03/07/2020 => DOE: 04/07/2020","Não Acatar"]
[29043,"Adicional De Insalubridade Sobre Plantões - Ação Judicial","Comunicado DDP/G-05, de 03/07/2020 => DOE: 04/07/2020","Não Acatar"]
[29044,"Percentual ADPJ – Adicional Por Direção Da Atividade De Polícia Judiciária - Sobre Adicional Vencimentos Integrais / Sexta-Parte Da Insalubridade - Ação Judicial","Comunicado DDP/G-05, de 03/07/2020 => DOE: 04/07/2020","Não Acatar"]
[29045,"Adicional Tempo De Serviço Sobre Vantagem Lei De Guerra - Ação Judicial","Comunicado DDP/G-05, de 03/07/2020 => DOE: 04/07/2020","Avaliar","Lei  De Guerra - Ação Judicial","Verificar se verba compõe a base prividenciária"]
[29046,"Adicional Tempo De Serviço Sobre Gratificação Executiva E PDI - Ação Judicial","Comunicado DDP/G-05, de 03/07/2020 => DOE: 04/07/2020","Avaliar",null,"Verificar se verba compõe a base prividenciária"]
[29047,"Sexta-Parte Sobre Vencimentos Integrais Exceto Gratificação Executiva Sem Reflexo- Ação Judicial","Comunicado DDP/G-05, de 03/07/2020 => DOE: 04/07/2020","Avaliar",null,"Verificar se verba compõe a base prividenciária"]
[29048,"Adicional Tempo De Serviço Sobre Executiva, Piso, GDAP Incorporada, PDI, Artigo 133 - Ação Judicial","Comunicado DDP/G-05, de 03/07/2020 => DOE: 04/07/2020","Acatar"]
[29049,"PDI - Incorporado - Ação Judicial","Comunicado DDP/G-05, de 03/07/2020 => DOE: 04/07/2020","Acatar"]
[29050,"Gratificação Desenvolvimento Atividade Poupatempo - GDAP - Sem Reflexos - Ação Judicial","Comunicado DDP/G-05, de 03/07/2020 => DOE: 04/07/2020","Avaliar",null,"Verificar se verba compõe a base prividenciária"]
[29051,"Recálculo De Adicional Por Tempo De Serviço Sobre Executiva, Extra e GASS - Ação Judicial","Comunicado DDP/G-05, de 03/07/2020 => DOE: 04/07/2020","Avaliar",null,"Verificar se verba compõe a base prividenciária"]
[29052,"Adicional de Insalubridade – Ação Judicial","Comunicado DDP/G-05, de 03/07/2020 => DOE: 04/07/2020","Acatar"]
[29053,"Adicional Noturno Após 5 Horas Sobre Base E Insalubridade - Ação Judicial","Comunicado DDP/G-05, de 03/07/2020 => DOE: 04/07/2020","Não Acatar"]
[29054,"Sexta-Parte Vantagem Pessoal 1193/2013 - Inciso XV - Artigo 37 - CF/88 -Ação Judicial","Comunicado DDP/G-05, de 03/07/2020 => DOE: 04/07/2020","Acatar"]
[29055,"Sexta-Parte De Diferença PINxPPM - LC 1.239/2014 - Ação Judicial","Comunicado DDP/G-05, de 03/07/2020 => DOE: 04/07/2020","Avaliar","LC 1.239/2014 - Ação Judicial","Verificar se verba compõe a base prividenciária"]
[29056,"Quinquênio Sobre Equiparação Cargo-PQCxDOCENTE USP - Ação Judicial","Comunicado DDP/G-05, de 03/07/2020 => DOE: 04/07/2020","Avaliar",null,"Verificar se verba compõe a base prividenciária"]
[29057,"Sexta-Parte Sobre Diferença de Vencimentos Art.133 Chefe Posto Fiscal - Ação Judicial","Comunicado DDP/G-05, de 03/07/2020 => DOE: 04/07/2020","Avaliar",null,"O servidor, com mais de cinco anos de efetivo exercício, que tenha exercido ou venha a exercer cargo ou função que lhe proporcione remuneração superior à do cargo de que seja titular, ou função para a qual foi admitido, incorporará um décimo dessa diferença, por ano, até o limite de dez décimos."]
[29058,"Sexta-Parte Sobre Vantagem Pessoal - LC 1193/2013 - Ação Judicial","Comunicado DDP/G-05, de 03/07/2020 => DOE: 04/07/2020","Avaliar","LC 1193/2013 - Ação Judicial","Verificar se verba compõe a base prividenciária"]
[29059,"URV Sobre Salário Base, Adicional Por Tempo Serviço E Sexta-Parte - Ação Judicial","Comunicado DDP/G-05, de 03/07/2020 => DOE: 04/07/2020","Avaliar",null,"Verificar se verba compõe a base prividenciária"]
[29060,"Adicional Tempo De Serviço Sobre Extra, Geral, GASS E Executiva - Ação Judicial","Comunicado DDP/G-05, de 03/07/2020 => DOE: 04/07/2020","Avaliar",null,"Verificar se verba compõe a base prividenciária"]
[29061,"Adicional Tempo De Serviço Sobre Extra, Geral, GASS, Executiva E GEA - Ação Judicial","Comunicado DDP/G-05, de 03/07/2020 => DOE: 04/07/2020","Avaliar",null,"Verificar se verba compõe a base prividenciária"]
[29062,"Incorporação GESS - Ação Judicial","Comunicado DDP/G-05, de 03/07/2020 => DOE: 04/07/2020","Acatar"]
[29063,"Adicional De Desempenho À Saúde - Ação Judicial","Comunicado DDP/G-05, de 03/07/2020 => DOE: 04/07/2020","Avaliar",null,"Verificar se verba compõe a base prividenciária"]
[29064,"Adicional Noturno Após As 5H exceto ATS E Sexta-parte - Ação Judicial","Comunicado DDP/G-05, de 03/07/2020 => DOE: 04/07/2020","Não Acatar"]
[29065,"Gratificação De Municipalização - Ação Judicial","Comunicado DDP/G-05, de 03/07/2020 => DOE: 04/07/2020","Avaliar",null,"Verificar se verba compõe a base prividenciária"]
[29066,"Adicional Sobre Equiparação Cargo PQC x Docente USP - Ação Judicial","Comunicado DDP/G-05, de 03/07/2020 => DOE: 04/07/2020","Avaliar",null,"Verificar se verba compõe a base prividenciária"]
[29067,"Sexta-Parte Sobre Equiparação Cargo PQC x Docente USP - Ação Judicial","Comunicado DDP/G-05, de 03/07/2020 => DOE: 04/07/2020","Avaliar",null,"Verificar se verba compõe a base prividenciária"]
[29068,"PIN 50% - Diretor Técnico De Saúde I - Ação Judicial","Comunicado DDP/G-05, de 03/07/2020 => DOE: 04/07/2020","Avaliar",null,"Verificar se verba compõe a base prividenciária"]
[29069,"Adicional Tempo Serviço Sobre Plantões - Ação Judicial","Comunicado DDP/G-05, de 03/07/2020 => DOE: 04/07/2020","Não Acatar"]
[29070,"Adicional De Sobreaviso 1/3 Vencimentos Integrais - Ação Judicial","Comunicado DDP/G-05, de 03/07/2020 => DOE: 04/07/2020","Não Acatar"]
[29071,"GGE – Gratificação Gestão Educacional Incorporada – Ação Judicial","Comunicado DDP/G-05, de 03/07/2020 => DOE: 04/07/2020","Acatar"]
[29072,"Adicional Sobre GGE – Gratificação Gestão Educacional – Incorporada – Ação Judicial","Comunicado DDP/G-05, de 03/07/2020 => DOE: 04/07/2020","Acatar"]
[29073,"Sexta-Parte Sobre 75% Do PIQ - Ação Judicial","Comunicado DDP/G-05, de 03/07/2020 => DOE: 04/07/2020","Avaliar",null,"Verificar se verba compõe a base prividenciária"]
[29074,"Sexta-Parte Sobre GDAP – Gratificação Atendimento Ao Público - Não Incorporada - Ação Judicial","Comunicado DDP/G-05, de 03/07/2020 => DOE: 04/07/2020","Acatar"]
[29075,"GDPI – Gratificação Dedicação Plena Integral  - Ação Judicial","Comunicado DDP/G-05, de 03/07/2020 => DOE: 04/07/2020","Avaliar",null,"Verificar se verba compõe a base prividenciária"]
[29076,"Sexta-Parte Sobre 50% PPM – Prêmio Produtividade Médica – Ação Judicial","Comunicado DDP/G-05, de 03/07/2020 => DOE: 04/07/2020","Avaliar",null,"Verificar se verba compõe a base prividenciária"]
[29174,"Ats Sobre Piso Salarial Docente-Aj",null,"Acatar"]
[69001,"Prêmio Incentivo                   ","Comunicado DDP/G-15, de 30/09/2016 => DOE: 01/10/2016","Avaliar",null,"Verificar se verba compõe a base prividenciária"]
[69002,"1/3 Férias Sobre Prêmio Incentivo        ","Comunicado DDP/G-15, de 30/09/2016 => DOE: 01/10/2016","Não Acatar"]
[69003,"13º Salário Sobre Prêmio Incentivo ","Comunicado DDP/G-15, de 30/09/2016 => DOE: 01/10/2016","Não Acatar"]
[69004,"Prêmio Incentivo Especial          ","Comunicado DDP/G-15, de 30/09/2016 => DOE: 01/10/2016","Avaliar",null,"Verificar se verba compõe a base prividenciária"]
[69005,"Prêmio Incentivo Sexta Parte Ação Judicial","Comunicado DDP/G-15, de 30/09/2016 => DOE: 01/10/2016","Avaliar",null,"Verificar se verba compõe a base prividenciária"]
[69006,"Prêmio Incentivo Ação Judicial     ","Comunicado DDP/G-15, de 30/09/2016 => DOE: 01/10/2016","Avaliar",null,"Verificar se verba compõe a base prividenciária"]
[69007,"Prêmio Incentivo Ação Judicial Inativos","Comunicado DDP/G-15, de 30/09/2016 => DOE: 01/10/2016","Acatar"]
[69008,"Prêmio Incentivo – Adicional Tempo De Serviço             ","Comunicado DDP/G-15, de 30/09/2016 => DOE: 01/10/2016","Avaliar",null,"Verificar se verba compõe a base prividenciária"]
[69009,"Prêmio Incentivo – Adicional De Insalubridade- Ação Judicial","Comunicado DDP/G-15, de 30/09/2016 => DOE: 01/10/2016","Avaliar",null,"Verificar se verba compõe a base prividenciária"]
[69010,"PIN-Adicional Tempo De Serviço ","Comunicado DDP/G-15, de 30/09/2016 => DOE: 01/10/2016","Avaliar",null,"Verificar se verba compõe a base prividenciária"]
[69011,"Bônus-Metas Cumpridas-Contr.Progr. ","Comunicado DDP/G-15, de 30/09/2016 => DOE: 01/10/2016","Não Acatar"]
[69012,"Prêmio Incentivo Serviço Extraordinário Ação Judicial","Comunicado DDP/G-15, de 30/09/2016 => DOE: 01/10/2016","Não Acatar"]
[69013,"Prêmio Incentivo Adicional Noturno - Ação Judicial","Comunicado DDP/G-15, de 30/09/2016 => DOE: 01/10/2016","Não Acatar"]
[69014,"Prêmio Incentivo - Correção Monetária ","Comunicado DDP/G-15, de 30/09/2016 => DOE: 01/10/2016","Avaliar",null,"Verificar se verba compõe a base prividenciária"]
[69015,"Chefia/Encarregatura               ","Comunicado DDP/G-15, de 30/09/2016 => DOE: 01/10/2016","Não Acatar"]
[69016,"Prêmio Incentivo - Abono de Férias ","Comunicado DDP/G-15, de 30/09/2016 => DOE: 01/10/2016","Não Acatar"]
[69017,"Incorporação De Décimos Sobre Prêmio Incentivo","Comunicado DDP/G-15, de 30/09/2016 => DOE: 01/10/2016","Acatar"]
[69018,"Complemento Lei Complementar 1212/2013            ","Comunicado DDP/G-15, de 30/09/2016 => DOE: 01/10/2016","Avaliar","Lei  Complementar 1212/2013            ","Parágrafo único - Para os servidores integrantes das classes de que trata esta lei complementar, em exercício na Secretaria da Saúde, que optarem pela inclusão de seu cargo ou função-atividade em Jornada Comum de Trabalho, o cálculo da gratificação de que trata este artigo será feito com observância da proporcionalidade existente entre os valores fixados para a Jornada Completa de Trabalho.”;"]
[69019,"Produtividade Cirurgião Dentista","Comunicado DDP/G-15, de 30/09/2016 => DOE: 01/10/2016","Não Acatar"]
[69020,"Prêmio Incentivo Cirurgião Dentista","Comunicado DDP/G-15, de 30/09/2016 => DOE: 01/10/2016","Avaliar",null,"Verificar se verba compõe a base prividenciária"]
[69021,"Adicional De Desempenho Da Saúde ","Comunicado DDP/G-15, de 30/09/2016 => DOE: 01/10/2016","Não Acatar"]
[69022,"Projeto Análise De Estudo          ","Comunicado DDP/G-15, de 30/09/2016 => DOE: 01/10/2016","Não Acatar"]
[69023,"Prêmio Incentivo - Substituição  ","Comunicado DDP/G-15, de 30/09/2016 => DOE: 01/10/2016","Não Acatar"]
[69024,"Correção Monetária Sobre Prêmio Incentivo          ","Comunicado DDP/G-15, de 30/09/2016 => DOE: 01/10/2016","Não Acatar"]
[69025,"Adicional Noturno Sobre Prêmio Incentivo ","Comunicado DDP/G-15, de 30/09/2016 => DOE: 01/10/2016","Não Acatar"]
[69026,"Prêmio Incentivo - Antecipação 13º Salário       ","Comunicado DDP/G-15, de 30/09/2016 => DOE: 01/10/2016","Não Acatar"]
[69027,"50%-Quinquênio-Ação Judicial Sobre Prêmio Incentivo     ","Comunicado DDP/G-15, de 30/09/2016 => DOE: 01/10/2016","Avaliar",null,"Verificar se verba compõe a base prividenciária"]
[69028,"50%-Sexta Parte-Ação Judicial Sobre Prêmio Incentivo","Comunicado DDP/G-15, de 30/09/2016 => DOE: 01/10/2016","Avaliar",null,"Verificar se verba compõe a base prividenciária"]
[69029,"Prêmio Incentivo - Rescisão     ","Comunicado DDP/G-15, de 30/09/2016 => DOE: 01/10/2016","Não Acatar"]
[69030,"Complemento Lei Complementar 1212/2013-Ação Judicial - Prêmio Incentivo","Comunicado DDP/G-15, de 30/09/2016 => DOE: 01/10/2016","Avaliar","Lei  Complementar 1212/2013-Ação Judicial - Prêmio Incentivo","Parágrafo único - Para os servidores integrantes das classes de que trata esta lei complementar, em exercício na Secretaria da Saúde, que optarem pela inclusão de seu cargo ou função-atividade em Jornada Comum de Trabalho, o cálculo da gratificação de que trata este artigo será feito com observância da proporcionalidade existente entre os valores fixados para a Jornada Completa de Trabalho.”;"]
[69031,"Prêmio Incentivo - Auditor           ","Comunicado DDP/G-15, de 30/09/2016 => DOE: 01/10/2016","Não Acatar"]
[69032,"Prêmio Incentivo Artigo Atenção Básica","Comunicado DDP/G-15, de 30/09/2016 => DOE: 01/10/2016","Não Acatar"]
[69033,"Prêmio Incentivo Artigo Humanização ","Comunicado DDP/G-15, de 30/09/2016 => DOE: 01/10/2016","Não Acatar"]
[69034,"Prêmio Incentivo Artigo Saúde mulher","Comunicado DDP/G-15, de 30/09/2016 => DOE: 01/10/2016","Não Acatar"]
[69035,"Prêmio Incentivo - Portaria 82/2016","Comunicado DDP/G-15, de 30/09/2016 => DOE: 01/10/2016","Avaliar",null,"Verificar se verba compõe a base prividenciária"]
[69036,"Licença Prêmio Em Pecúnia Sobre Pin - Prêmio De Incentivo -CJ 1669/2016  ","Comunicado DDP/G-03, de 14/06/2018 => DOE: 15/06/2018","Não Acatar"]
[69037,"50% Pin - Prêmio De Incentivo - 13º Salário","Comunicado DDP/G-03, de 14/06/2018 => DOE: 15/06/2018","Não Acatar"]
[69038,"50% Pin- Antecipação -13º Salário","Comunicado DDP/G-03, de 14/06/2018 => DOE: 15/06/2018","Não Acatar"]
[69039,"50% Pin Sobre Férias","Comunicado DDP/G-03, de 14/06/2018 => DOE: 15/06/2018","Não Acatar"]
[69040,"Adicional Desempenho Saúde - Ação Judicial","Comunicado DDP/G-03, de 14/06/2018 => DOE: 15/06/2018","Avaliar",null,"Verificar se verba compõe a base prividenciária"]
[69041,"Adicional Por Tempo De Serviço Sobre LC 1212/2013 - Ação Judicial","Comunicado DDP/G-03, de 14/06/2018 => DOE: 15/06/2018","Avaliar","LC 1212/2013 - Ação Judicial","Parágrafo único - Para os servidores integrantes das classes de que trata esta lei complementar, em exercício na Secretaria da Saúde, que optarem pela inclusão de seu cargo ou função-atividade em Jornada Comum de Trabalho, o cálculo da gratificação de que trata este artigo será feito com observância da proporcionalidade existente entre os valores fixados para a Jornada Completa de Trabalho.”;"]
[69042,"Adicional Por Tempo De Serviço Sobre Ads - Adicional Desempenho Saúde - Ação Judicial","Comunicado DDP/G-03, de 14/06/2018 => DOE: 15/06/2018","Avaliar",null,"Verificar se verba compõe a base prividenciária"]
[69043,"Sexta Parte Sobre LC 1212/2013 - Ação Judicial","Comunicado DDP/G-03, de 14/06/2018 => DOE: 15/06/2018","Avaliar","LC 1212/2013 - Ação Judicial","Parágrafo único - Para os servidores integrantes das classes de que trata esta lei complementar, em exercício na Secretaria da Saúde, que optarem pela inclusão de seu cargo ou função-atividade em Jornada Comum de Trabalho, o cálculo da gratificação de que trata este artigo será feito com observância da proporcionalidade existente entre os valores fixados para a Jornada Completa de Trabalho.”;"]
[69044,"Sexta Parte Sobre Ads - Atividade Desempenho Saúde - Ação Judicial ","Comunicado DDP/G-03, de 14/06/2018 => DOE: 15/06/2018","Avaliar",null,"Verificar se verba compõe a base prividenciária"]
[69045,"13º Salário Sobre LC 1212/2013 E Ads - Adicional Desempenho Saúde - Ação Judicial","Comunicado DDP/G-03, de 14/06/2018 => DOE: 15/06/2018","Avaliar","LC 1212/2013 E Ads - Adicional Desempenho Saúde - Ação Judicial","Verificar se verba compõe a base prividenciária"]
[69046,"Férias Sobre LC E Ads - Adicional Desempenho Saúde - Ação Judicial","Comunicado DDP/G-03, de 14/06/2018 => DOE: 15/06/2018","Não Acatar"]
[69047,"Antecipação 13º Salário Sobre LC 1212/2013 E Ads - Adicional Desempenho Saúde - Ação Judicial","Comunicado DDP/G-03, de 14/06/2018 => DOE: 15/06/2018","Não Acatar"]
[69048,"50 % De Férias Sobre LC 1.212/2013 – Ação Judicial","Comunicado DDP/G-05, de 03/07/2020 => DOE: 04/07/2020","Avaliar","LC 1.212/2013 – Ação Judicial","Parágrafo único - Para os servidores integrantes das classes de que trata esta lei complementar, em exercício na Secretaria da Saúde, que optarem pela inclusão de seu cargo ou função-atividade em Jornada Comum de Trabalho, o cálculo da gratificação de que trata este artigo será feito com observância da proporcionalidade existente entre os valores fixados para a Jornada Completa de Trabalho.”;"]
[69049,"Férias Sobre Adicional Desempenho Saúde – Ação Judicial","Comunicado DDP/G-05, de 03/07/2020 => DOE: 04/07/2020","Não Acatar"]
[69050,"50% Do 13º Salário Sobre LC 1.212/2013 - Ação Judicial","Comunicado DDP/G-05, de 03/07/2020 => DOE: 04/07/2020","Não Acatar"]
[69051,"13º Salário Sobre Adicional Desempenho Saúde - Ação Judicial","Comunicado DDP/G-05, de 03/07/2020 => DOE: 04/07/2020","Não Acatar"]
[69052,"50% 13º Salário Sobre Adicional Desempenho Saúde - Ação Judicial","Comunicado DDP/G-05, de 03/07/2020 => DOE: 04/07/2020","Não Acatar"]
[69053,"50% Férias Sobre Adicional Desempenho Saúde - Ação Judicial","Comunicado DDP/G-05, de 03/07/2020 => DOE: 04/07/2020","Não Acatar"]
[69054,"GTN – Gratificação Trabalho Noturno Sobre Pin E LC 1.212/2013 - Ação Judicial","Comunicado DDP/G-05, de 03/07/2020 => DOE: 04/07/2020","Avaliar","LC 1.212/2013 - Ação Judicial","Parágrafo único - Para os servidores integrantes das classes de que trata esta lei complementar, em exercício na Secretaria da Saúde, que optarem pela inclusão de seu cargo ou função-atividade em Jornada Comum de Trabalho, o cálculo da gratificação de que trata este artigo será feito com observância da proporcionalidade existente entre os valores fixados para a Jornada Completa de Trabalho.”;"]
[69055,"ADS – Atividade Desempenho Saúde  - Inativo - Ação Judicial","Comunicado DDP/G-05, de 03/07/2020 => DOE: 04/07/2020","Acatar"]
[69056,"Descanso Semanal Remunerado De Horas Extras Sobre Prêmio De Incentivo - Ação Judicial","Comunicado DDP/G-05, de 03/07/2020 => DOE: 04/07/2020","Não Acatar"]
[69057,"Descanso Semanal Remunerado De Horas Noturnas Sobre Prêmio De Incentivo - Ação Judicial","Comunicado DDP/G-05, de 03/07/2020 => DOE: 04/07/2020","Não Acatar"]
[69058,"GTN – Gratificação Trabalho Noturno Sobre LC 1.212/2013 E 50% Sobre PIN - Ação Judicial","Comunicado DDP/G-05, de 03/07/2020 => DOE: 04/07/2020","Avaliar","LC 1.212/2013 E 50% Sobre PIN - Ação Judicial","Parágrafo único - Para os servidores integrantes das classes de que trata esta lei complementar, em exercício na Secretaria da Saúde, que optarem pela inclusão de seu cargo ou função-atividade em Jornada Comum de Trabalho, o cálculo da gratificação de que trata este artigo será feito com observância da proporcionalidade existente entre os valores fixados para a Jornada Completa de Trabalho.”;"]
[" ","Reposição Artigo 16 Lei Nº 6995/1990 - Corrigido - Ação Judicial","Comunicado DDPE/G-15, de 04/07/2006 => DOE: 29/07/2006 ","Avaliar","Lei  Nº 6995/1990 - Corrigido - Ação Judicial","Verificar se verba compõe a base prividenciária"]
["008537","Adicional Por Tempo De Serviço Sobre Gratificação Trabalho Noturno - Ação Judicial","Comunicado DDP/G-03, de 14/06/2018 => DOE: 15/06/2018","Não Acatar"]
["008538","Sexta Parte Sobre Gratificação Desempenho De Atividades No Poupatempo - Gdap - Ação Judicial","Comunicado DDP/G-03, de 14/06/2018 => DOE: 15/06/2018","Avaliar",null,"Verificar se verba compõe a base prividenciária"]
["008539","Sexta Parte Sobre Salário Base, Gratificação Executiva, Adicional De Insalubridade, Gratificação De Preceptoria, Premio De Produtividade Médica - Ppm - Ação Judicial ","Comunicado DDP/G-03, de 14/06/2018 => DOE: 15/06/2018","Avaliar",null,"Verificar se verba compõe a base prividenciária"]
["008540","Adicional Por Tempo De Serviço Sobre Artigo 133 - Diferença De Quotas  - Ação Judicial","Comunicado DDP/G-03, de 14/06/2018 => DOE: 15/06/2018","Avaliar",null,"O servidor, com mais de cinco anos de efetivo exercício, que tenha exercido ou venha a exercer cargo ou função que lhe proporcione remuneração superior à do cargo de que seja titular, ou função para a qual foi admitido, incorporará um décimo dessa diferença, por ano, até o limite de dez décimos."]
["008541","Adicional Por Tempo De Serviço Sobre Artigo 133 - Diferença De Vencimentos Posto Fiscal - Ação Judicial ","Comunicado DDP/G-03, de 14/06/2018 => DOE: 15/06/2018","Avaliar",null,"O servidor, com mais de cinco anos de efetivo exercício, que tenha exercido ou venha a exercer cargo ou função que lhe proporcione remuneração superior à do cargo de que seja titular, ou função para a qual foi admitido, incorporará um décimo dessa diferença, por ano, até o limite de dez décimos."]
["008542","Diferença Salário Base Em URV - Ação Judicial","Comunicado DDP/G-03, de 14/06/2018 => DOE: 15/06/2018","Avaliar",null,"Verificar se verba compõe a base prividenciária"]
["008543","Sexta Parte Sobre Gratificação Trabalho Noturno - Ação Judicial","Comunicado DDP/G-03, de 14/06/2018 => DOE: 15/06/2018","Não Acatar"]
["008546","Adicional Por Tempo De Serviço Sobre Gratificação Executiva, Artigo 133, Adicional De Insalubridade E Prêmio Desempenho Individual - Pdi - Ação Judicial ","Comunicado DDP/G-03, de 14/06/2018 => DOE: 15/06/2018","Avaliar",null,"O servidor, com mais de cinco anos de efetivo exercício, que tenha exercido ou venha a exercer cargo ou função que lhe proporcione remuneração superior à do cargo de que seja titular, ou função para a qual foi admitido, incorporará um décimo dessa diferença, por ano, até o limite de dez décimos."]
["008547","Licença Prêmio - Ação Judicial","Comunicado DDP/G-03, de 14/06/2018 => DOE: 15/06/2018","Avaliar",null,"Verificar se verba compõe a base prividenciária"]
["008548","Sexta Parte Sobre Salário Base, Gratificação Especial De Atividade - GEA, E Gratificação Executiva - Ação Judicial ","Comunicado DDP/G-03, de 14/06/2018 => DOE: 15/06/2018","Avaliar",null,"Verificar se verba compõe a base prividenciária"]
["008549","Adicional De Insalubridade Sobre 2 Salários Mínimos Congelado - Ação Judicial","Comunicado DDP/G-03, de 14/06/2018 => DOE: 15/06/2018","Avaliar",null,"Verificar se verba compõe a base prividenciária"]
["008550","Diferença Salarial Sobre 2 Salários Mínimos Congelado Técnico Radiologia - Ação Judicial","Comunicado DDP/G-03, de 14/06/2018 => DOE: 15/06/2018","Avaliar",null,"Verificar se verba compõe a base prividenciária"]
["008551","Premio Produtividade Medica - Ppm - Ação Judicial","Comunicado DDP/G-03, de 14/06/2018 => DOE: 15/06/2018","Não Acatar"]
["008552","Adicional Por Tempo De Serviço Sobre Artigo 133 Anterior Emenda Constitucional 19/1998 - Ação Judicial ","Comunicado DDP/G-03, de 14/06/2018 => DOE: 15/06/2018","Avaliar",null,"O servidor, com mais de cinco anos de efetivo exercício, que tenha exercido ou venha a exercer cargo ou função que lhe proporcione remuneração superior à do cargo de que seja titular, ou função para a qual foi admitido, incorporará um décimo dessa diferença, por ano, até o limite de dez décimos."]
["008553","Horas Extras 50% - Carga Horária 120 - Ação Judicial","Comunicado DDP/G-03, de 14/06/2018 => DOE: 15/06/2018","Não Acatar"]
["008554","Horas Extras 100% - Carga Horária 120  - Ação Judicial","Comunicado DDP/G-03, de 14/06/2018 => DOE: 15/06/2018","Não Acatar"]
["008555","Horas Extras 50% - Carga Horária 100 - Ação Judicial","Comunicado DDP/G-03, de 14/06/2018 => DOE: 15/06/2018","Não Acatar"]
["008556","Sexta Parte Sobre Gratificação Dedicação Plena E Integral - Ação Judicial ","Comunicado DDP/G-03, de 14/06/2018 => DOE: 15/06/2018","Avaliar",null,"Verificar se verba compõe a base prividenciária"]
["008557","Horas Extras 50% - Carga Horária 150 - Ação Judicial","Comunicado DDP/G-03, de 14/06/2018 => DOE: 15/06/2018","Não Acatar"]
["008558","Adicional Por Tempo De Serviço Sobre 2 Salários Mínimos Sem Incidência Em Hora Extra, Adicional Noturno - Ação Judical","Comunicado DDP/G-03, de 14/06/2018 => DOE: 15/06/2018","Avaliar",null,"Verificar se verba compõe a base prividenciária"]
["008559","Adicional De Periculosidade Sobre Salário Base- Ação Judicial ","Comunicado DDP/G-03, de 14/06/2018 => DOE: 15/06/2018","Avaliar",null,"Verificar se verba compõe a base prividenciária"]
["008560","Horas Extras 100% - Carga Horária 100 - Ação Judicial","Comunicado DDP/G-03, de 14/06/2018 => DOE: 15/06/2018","Não Acatar"]
["008561","Salário Complemento Sobre 2 Salários Mínimos Sem Reflexo - Ação Judicial","Comunicado DDP/G-03, de 14/06/2018 => DOE: 15/06/2018","Avaliar",null,"Verificar se verba compõe a base prividenciária"]
["008562","Insalubridade Sobre 2 Salários Mínimos Sem Reflexo - Ação Judicial","Comunicado DDP/G-03, de 14/06/2018 => DOE: 15/06/2018","Avaliar",null,"Verificar se verba compõe a base prividenciária"]
["008563","Sexta Parte Sobre Gratificação Especial Atividade Prioritária E Estratégica - GEAPE - Ação Judicial","Comunicado DDP/G-03, de 14/06/2018 => DOE: 15/06/2018","Avaliar",null,"Verificar se verba compõe a base prividenciária"]
["008564","Gratificação De Função Professor Coordenador E/Ou Vice Diretor De Escola - LC1018/07 - Inativos - Ação Judicial","Comunicado DDP/G-03, de 14/06/2018 => DOE: 15/06/2018","Não Acatar"]
["008565","Artigo 133 - Diferença Encarregado De Transportes - SABESP - Ação Judicial ","Comunicado DDP/G-03, de 14/06/2018 => DOE: 15/06/2018","Avaliar",null,"O servidor, com mais de cinco anos de efetivo exercício, que tenha exercido ou venha a exercer cargo ou função que lhe proporcione remuneração superior à do cargo de que seja titular, ou função para a qual foi admitido, incorporará um décimo dessa diferença, por ano, até o limite de dez décimos."]
["008566","Artigo 133 - Diferença Encarregado - Fiscal De Obras - SABESP - Ação Judicial","Comunicado DDP/G-03, de 14/06/2018 => DOE: 15/06/2018","Avaliar",null,"O servidor, com mais de cinco anos de efetivo exercício, que tenha exercido ou venha a exercer cargo ou função que lhe proporcione remuneração superior à do cargo de que seja titular, ou função para a qual foi admitido, incorporará um décimo dessa diferença, por ano, até o limite de dez décimos."]
["008567","Sexta Parte Sobre Gratificação Especial De Supervisor De Ensino - Ação Judicial ","Comunicado DDP/G-03, de 14/06/2018 => DOE: 15/06/2018","Avaliar",null,"Verificar se verba compõe a base prividenciária"]
["008568","URV sobre Carga Suplementar - Ação Judicial","Comunicado DDP/G-03, de 14/06/2018 => DOE: 15/06/2018","Avaliar",null,"Verificar se verba compõe a base prividenciária"]
["008569","Progressão Na Carreira - Ação Judicial ","Comunicado DDP/G-03, de 14/06/2018 => DOE: 15/06/2018","Avaliar",null,"Verificar se verba compõe a base prividenciária"]
["008570","Adicional Por Tempo De Serviço Sobre Gratificação Por Comando Em Unidade Prisional - Comp - Ação Judicial","Comunicado DDP/G-03, de 14/06/2018 => DOE: 15/06/2018","Avaliar",null,"Verificar se verba compõe a base prividenciária"]
["008571","Adicional Por Tempo De Serviço Sobre Gratificação Acúmulo Titularidade - GAT - Ação Judicial ","Comunicado DDP/G-03, de 14/06/2018 => DOE: 15/06/2018","Avaliar",null,"Verificar se verba compõe a base prividenciária"]
["008572","Adicional Por Tempo De Serviço Sobre Salário Complemento - Salário Mínimo- Ação Judicial ","Comunicado DDP/G-03, de 14/06/2018 => DOE: 15/06/2018","Avaliar",null,"Verificar se verba compõe a base prividenciária"]
["008573","Adicional Por Tempo De Serviço Sobre Piso Salarial Docente - Ação Judicial","Comunicado DDP/G-03, de 14/06/2018 => DOE: 15/06/2018","Avaliar",null,"Verificar se verba compõe a base prividenciária"]
["008574","Sexta Parte Sobre Piso Salarial Docente - Ação Judicial ","Comunicado DDP/G-03, de 14/06/2018 => DOE: 15/06/2018","Avaliar",null,"Verificar se verba compõe a base prividenciária"]
["008575","Pensão Vitalícia - % Remuneração - Ação Judicial","Comunicado DDP/G-03, de 14/06/2018 => DOE: 15/06/2018","Avaliar",null,"Verificar se verba compõe a base prividenciária"]
["008576","Sexta Parte Sobre Equiparação Cargo - Pesquisador Científico x Docente USP - Ação Judicial","Comunicado DDP/G-03, de 14/06/2018 => DOE: 15/06/2018","Avaliar",null,"Verificar se verba compõe a base prividenciária"]
["008577","Artigo 133 Diferença Vencimentos - PEB II - Ação Judicial","Comunicado DDP/G-03, de 14/06/2018 => DOE: 15/06/2018","Avaliar",null,"O servidor, com mais de cinco anos de efetivo exercício, que tenha exercido ou venha a exercer cargo ou função que lhe proporcione remuneração superior à do cargo de que seja titular, ou função para a qual foi admitido, incorporará um décimo dessa diferença, por ano, até o limite de dez décimos."]
["008578","Gratificação Pelo Desempenho De Atividades No Poupatempo - GDAP - Ação Judicial","Comunicado DDP/G-03, de 14/06/2018 => DOE: 15/06/2018","Avaliar",null,"Verificar se verba compõe a base prividenciária"]
["008579","Pro-Labore Artigo 19 - LC 1080/2008 - Ação Judicial","Comunicado DDP/G-03, de 14/06/2018 => DOE: 15/06/2018","Não Acatar"]
["008580","Reembolso De Auxílio Saúde - Fundação Do Desenvolvimento Administrativo - FUNDAP - Ação Judicial","Comunicado DDP/G-03, de 14/06/2018 => DOE: 15/06/2018","Não Acatar"]
["008581","Sexta Parte Sobre Vencimentos Integrais Exceto Gratificações Suprimidas - Ação Judicial","Comunicado DDP/G-03, de 14/06/2018 => DOE: 15/06/2018","Avaliar",null,"Verificar se verba compõe a base prividenciária"]
["008582","Horas Extras FAEPA - Ação Judicial","Comunicado DDP/G-03, de 14/06/2018 => DOE: 15/06/2018","Não Acatar"]
["008583","Sexta Parte Sobre Artigo 133- CE - Com Prêmio Incentivo à Qualidade - PIQ -Ação Judicial","Comunicado DDP/G-03, de 14/06/2018 => DOE: 15/06/2018","Avaliar",null,"O servidor, com mais de cinco anos de efetivo exercício, que tenha exercido ou venha a exercer cargo ou função que lhe proporcione remuneração superior à do cargo de que seja titular, ou função para a qual foi admitido, incorporará um décimo dessa diferença, por ano, até o limite de dez décimos."]
["008584","Adicional Por Tempo De Serviço Após EC 19/98 Sobre Vencimentos Integrais - Ação Judicial ","Comunicado DDP/G-03, de 14/06/2018 => DOE: 15/06/2018","Avaliar",null,"Verificar se verba compõe a base prividenciária"]
["008585","Sexta Parte Após EC 19/98 Sobre Vencimentos Integrais - Ação Judicial","Comunicado DDP/G-03, de 14/06/2018 => DOE: 15/06/2018","Avaliar",null,"Verificar se verba compõe a base prividenciária"]
["008586","Horas Extras 50% - Carga Horária 180 - Ação Judicial","Comunicado DDP/G-03, de 14/06/2018 => DOE: 15/06/2018","Não Acatar"]
["008587","Sexta Parte Sobre Vencimentos Integrais Exceto Gratificação Especial De Atividade - GEA - Ação Judicial ","Comunicado DDP/G-03, de 14/06/2018 => DOE: 15/06/2018","Avaliar",null,"Verificar se verba compõe a base prividenciária"]
["008588","Adicional Por Tempo De Serviço Sobre Prêmio De Incentivo Especial - PIE - Ação Judicial ","Comunicado DDP/G-03, de 14/06/2018 => DOE: 15/06/2018","Avaliar",null,"Verificar se verba compõe a base prividenciária"]
["008589","Sexta Parte Sobre Prêmio De Incentivo Especial - PIE - Ação Judicial","Comunicado DDP/G-03, de 14/06/2018 => DOE: 15/06/2018","Avaliar",null,"Verificar se verba compõe a base prividenciária"]
["008590","Adicional Por Tempo De Serviço Anterior EC 19/98 Sobre Pro Labore 10.168 - Ação Judicial","Comunicado DDP/G-03, de 14/06/2018 => DOE: 15/06/2018","Não Acatar"]
["008591","Adicional Por Tempo De Serviço Anterior EC 19/98 Sobre Vantagem Pessoal - Ação Judicial ","Comunicado DDP/G-03, de 14/06/2018 => DOE: 15/06/2018","Avaliar",null,"Verificar se verba compõe a base prividenciária"]
["008592","Sexta Parte Sobre Salário Base E Vantagem Pessoal - Ação Judicial","Comunicado DDP/G-03, de 14/06/2018 => DOE: 15/06/2018","Avaliar",null,"Verificar se verba compõe a base prividenciária"]
["008593","Artigo 133 - Diferença de Quotas - Ação Judicial","Comunicado DDP/G-03, de 14/06/2018 => DOE: 15/06/2018","Avaliar",null,"O servidor, com mais de cinco anos de efetivo exercício, que tenha exercido ou venha a exercer cargo ou função que lhe proporcione remuneração superior à do cargo de que seja titular, ou função para a qual foi admitido, incorporará um décimo dessa diferença, por ano, até o limite de dez décimos."]
["008594","Adicional Por Tempo De Serviço Sobre Diferença De Quotas - Ação Judicial","Comunicado DDP/G-03, de 14/06/2018 => DOE: 15/06/2018","Avaliar",null,"Verificar se verba compõe a base prividenciária"]
["008595","Sexta Parte Sobre Diferença De Quotas - Ação Judicial","Comunicado DDP/G-03, de 14/06/2018 => DOE: 15/06/2018","Avaliar",null,"Verificar se verba compõe a base prividenciária"]
["008596","Adicional Por Tempo De Serviço Sobre Abono Por Satisfação Do Usuário -  ASU - Ação Judicial","Comunicado DDP/G-03, de 14/06/2018 => DOE: 15/06/2018","Avaliar",null,"Verificar se verba compõe a base prividenciária"]
["008597","Sexta Parte Sobre Abono Por Satisfação Do Usuário - ASU - Ação Judicial ","Comunicado DDP/G-03, de 14/06/2018 => DOE: 15/06/2018","Avaliar",null,"Verificar se verba compõe a base prividenciária"]
["008598","Adicional Por Tempo De Serviço Sobre Gratificação Pelo Desempenho  E Apoio A Assistência Médica Ao Servidor Público - GDAMSPE - Ação Judicial","Comunicado DDP/G-03, de 14/06/2018 => DOE: 15/06/2018","Avaliar",null,"Verificar se verba compõe a base prividenciária"]
["008599","Gratificação Trabalho De Campo - Indenização - Ação Judicial","Comunicado DDP/G-03, de 14/06/2018 => DOE: 15/06/2018","Avaliar",null,"Verificar se verba compõe a base prividenciária"]
["012095","Adicional Local De Eercício - Ale - Quadro De Apoio Escolar - QAE - INATIVO ","Comunicado DDP/G-03, de 14/06/2018 => DOE: 15/06/2018","Acatar"]
["012096","Adicional Local De Exercício - Ale - Quadro Magistério - QM - INATIVO ","Comunicado DDP/G-03, de 14/06/2018 => DOE: 15/06/2018","Acatar"]
["012097","Auxílio Pecuniário - LC 1320/2018","Comunicado DDP/G-03, de 14/06/2018 => DOE: 15/06/2018","Não Acatar"]
["014091","DEJEM - Diária Especial Por Jornada Extraordinária De Trabalho Policial Militar - Câmara Municipal - SP","Comunicado DDP/G-03, de 14/06/2018 => DOE: 15/06/2018","Não Acatar"]
["014092","DEJEM - Diária Especial Por Jornada Extraordinária De Trabalho Policial Militar - Secretarias De Estado Do Meio Ambiente/Coordenadoria de Parques Urbanos- SMA/CPU","Comunicado DDP/G-03, de 14/06/2018 => DOE: 15/06/2018","Não Acatar"]
["014093","DEJEM - Diária Especial Por Jornada Extraordinária De Trabalho Policial Militar - Secretarias De Estado Do Meio Ambiente/ Coordenadoria De Fiscalização Ambiental  - SMA/CFA","Comunicado DDP/G-03, de 14/06/2018 => DOE: 15/06/2018","Não Acatar"]
["014094","Substituição Média Férias Artigo 29 - LC 1187/2012","Comunicado DDP/G-03, de 14/06/2018 => DOE: 15/06/2018","Não Acatar"]
["014095","Antecipação Média Férias Serviço Extraordinário","Comunicado DDP/G-03, de 14/06/2018 => DOE: 15/06/2018","Não Acatar"]
["014096","DEJEM – Diária Especial Jornada Extraordinária Trabalho PM  – CPTM","Comunicado DDP/G-05, de 03/07/2020 => DOE: 04/07/2020","Não Acatar"]
["015045","Abono Sindical CEPAM ","Comunicado DDP/G-03, de 14/06/2018 => DOE: 15/06/2018","Não Acatar"]
["015046","Antecipação de Vencimentos ","Comunicado DDP/G-03, de 14/06/2018 => DOE: 15/06/2018","Não Acatar"]
["015047","Abono Permanência Para CLT - Ação Judicial","Comunicado DDP/G-05, de 03/07/2020 => DOE: 04/07/2020","Não Acatar"]
["015048","Abono Permanência LC 1.249/14 - PM","Comunicado DDP/G-05, de 03/07/2020 => DOE: 04/07/2020","Não Acatar"]
["015049","Abono Permanência LC 1.249/14 - Sobre 13 Salário - PM","Comunicado DDP/G-05, de 03/07/2020 => DOE: 04/07/2020","Não Acatar"]
["015050","Abono Permanência LC 1.249/14 - Antecipação Sobre 13 Salário - PM","Comunicado DDP/G-05, de 03/07/2020 => DOE: 04/07/2020","Não Acatar"]
["015051","Abono Permanência LC 1.249/14 - PM - RRA","Comunicado DDP/G-05, de 03/07/2020 => DOE: 04/07/2020","Não Acatar"]
["015052","Abono Permanência LC 1.249/14 Sobre 13º Salário PM - RRA","Comunicado DDP/G-05, de 03/07/2020 => DOE: 04/07/2020","Não Acatar"]
["015053","Abono Permanência LC 1.249/14 - PM - Judicial","Comunicado DDP/G-05, de 03/07/2020 => DOE: 04/07/2020","Não Acatar"]
["015054","Abono Permanência LC 1.249/14 - Sobre 13 Salário - PM - Judicial","Comunicado DDP/G-05, de 03/07/2020 => DOE: 04/07/2020","Não Acatar"]
["015055","Abono Permanência LC 1.249/14 - Antecipação Sobre 13 Salário - PM - Judicial","Comunicado DDP/G-05, de 03/07/2020 => DOE: 04/07/2020","Não Acatar"]
["015056","Abono De Permanência","Comunicado DDP/G-05, de 03/07/2020 => DOE: 04/07/2020","Não Acatar"]
["015057","Abono De Permanência – 13 Salário","Comunicado DDP/G-05, de 03/07/2020 => DOE: 04/07/2020","Não Acatar"]
["015058","Abono De Permanência – Antecipação 13 Salário","Comunicado DDP/G-05, de 03/07/2020 => DOE: 04/07/2020","Não Acatar"]
["016075","Licença Prêmio - LC 1048/08 - Tributável","Comunicado DDP/G-03, de 14/06/2018 => DOE: 15/06/2018","Acatar"]
["016076","Férias - Não Usufruidas - Tributável","Comunicado DDP/G-03, de 14/06/2018 => DOE: 15/06/2018","Não Acatar"]
["016077","Antecipação Abono Férias - CLT","Comunicado DDP/G-03, de 14/06/2018 => DOE: 15/06/2018","Não Acatar"]
["016078","Antecipação Férias 1/3 - CLT -Decreto 29439/88","Comunicado DDP/G-03, de 14/06/2018 => DOE: 15/06/2018","Não Acatar"]
["016079","Antecipação Férias 1/3 - Abono - Decreto 29439/88","Comunicado DDP/G-03, de 14/06/2018 => DOE: 15/06/2018","Não Acatar"]
["018020","Auxílio Medicamento","Comunicado DDP/G-03, de 14/06/2018 => DOE: 15/06/2018","Não Acatar"]
["018021","Pensão Mensal Casem – Carteira Do Servidor Municipal - Ação Judicial","Comunicado DDP/G-05, de 03/07/2020 => DOE: 04/07/2020","Avaliar",null,"Verificar se verba compõe a base prividenciária"]
["018022","Benefício Carteira Economistas Aposentados - Ação Judicial","Comunicado DDP/G-05, de 03/07/2020 => DOE: 04/07/2020","Acatar"]
["018023","Benefício Carteira Economistas Pensão - Ação Judicial","Comunicado DDP/G-05, de 03/07/2020 => DOE: 04/07/2020","Avaliar",null,"Verificar se verba compõe a base prividenciária"]
["018024","Benefício Carteira Vereadores Aposentados - Ação Judicial","Comunicado DDP/G-05, de 03/07/2020 => DOE: 04/07/2020","Acatar"]
["018025","Benefício Carteira Vereadores Pensão - Ação Judicial","Comunicado DDP/G-05, de 03/07/2020 => DOE: 04/07/2020","Avaliar",null,"Verificar se verba compõe a base prividenciária"]
["018026","Benefício Carteira Das Serventias","Comunicado DDP/G-05, de 03/07/2020 => DOE: 04/07/2020","Não Acatar"]
["018027","Beneficio Carteira Das Serventias/Pensão","Comunicado DDP/G-05, de 03/07/2020 => DOE: 04/07/2020","Avaliar",null,"Verificar se verba compõe a base prividenciária"]
["018028","Pensão Indenizatória Decreto 64145/2019","Comunicado DDP/G-05, de 03/07/2020 => DOE: 04/07/2020","Avaliar","decreto  64145/2019 (DECRETO Nº 64.145, DE 14 DE MARÇO DE 2019)","Verificar se verba compõe a base prividenciária"]
["018029","Férias 1/3 - Decreto 64145/2019","Comunicado DDP/G-05, de 03/07/2020 => DOE: 04/07/2020","Não Acatar"]
["018030","13 Salário - Decreto 64145/2019","Comunicado DDP/G-05, de 03/07/2020 => DOE: 04/07/2020","Não Acatar"]
["018031","Pagamento Aposentados Carteira Serventias – Ação Judicial","Comunicado DDP/G-05, de 03/07/2020 => DOE: 04/07/2020","Acatar"]
["018032","Pagamento Pensão Carteira Serventias – Ação Judicial ","Comunicado DDP/G-05, de 03/07/2020 => DOE: 04/07/2020","Avaliar",null,"Verificar se verba compõe a base prividenciária"]
["018033","Benefício Carteira Dos Advogados","Comunicado DDP/G-05, de 03/07/2020 => DOE: 04/07/2020","Não Acatar"]
["018034","Benefício Carteira Dos Advogados/Pensão","Comunicado DDP/G-05, de 03/07/2020 => DOE: 04/07/2020","Avaliar",null,"Verificar se verba compõe a base prividenciária"]
["018035","Licença Saúde Carteira Serventias ","Comunicado DDP/G-05, de 03/07/2020 => DOE: 04/07/2020","Não Acatar"]
["018036","Ajuste De Recadastramento Serventias - Aposentados","Comunicado DDP/G-05, de 03/07/2020 => DOE: 04/07/2020","Acatar"]
["018037","Ajuste De Recadastramento Serventias Pensão","Comunicado DDP/G-05, de 03/07/2020 => DOE: 04/07/2020","Avaliar",null,"Verificar se verba compõe a base prividenciária"]
["018038","Ajuste Recadastramento Advogados Aposentados","Comunicado DDP/G-05, de 03/07/2020 => DOE: 04/07/2020","Acatar"]
["018039","Ajuste Recadastramento Advogados / Pensão","Comunicado DDP/G-05, de 03/07/2020 => DOE: 04/07/2020","Avaliar",null,"Verificar se verba compõe a base prividenciária"]
["018040","Restituição Saldo Conta – Carteira Dos Advogados","Comunicado DDP/G-05, de 03/07/2020 => DOE: 04/07/2020","Não Acatar"]
["019278","Reajuste Salarial FEPASA Sobre O Piso Salarial De 2,5 Salários Mínimos","Comunicado DDP/G-03, de 14/06/2018 => DOE: 15/06/2018","Não Acatar"]
["019279","Dissídio Coletivos Especificos FEPASA Sobre A Totalidade De Vencimentos - Ação Judicial","Comunicado DDP/G-03, de 14/06/2018 => DOE: 15/06/2018","Não Acatar"]
["019280","Adicional Por Tempo De Serviço Sobre Vencimentos Integrais Complemento - Ação Judicial","Comunicado DDP/G-03, de 14/06/2018 => DOE: 15/06/2018","Avaliar",null,"Verificar se verba compõe a base prividenciária"]
["019281","Gatilho Salarial - FEPASA/URP","Comunicado DDP/G-03, de 14/06/2018 => DOE: 15/06/2018","Não Acatar"]
["019282","Complemento - BANESPA","Comunicado DDP/G-03, de 14/06/2018 => DOE: 15/06/2018","Acatar"]
["019283","Comissão De Função Complemento - Banespa","Comunicado DDP/G-05, de 03/07/2020 => DOE: 04/07/2020","Não Acatar"]
["019284","Diferença Entre Função Extra Quadro Menos INSS Mais Anuênio – Ação Judicial","Comunicado DDP/G-05, de 03/07/2020 => DOE: 04/07/2020","Não Acatar"]
["019285","Reajuste Salário Base Com o IPC - Ação Judicial - FEPASA","Comunicado DDP/G-05, de 03/07/2020 => DOE: 04/07/2020","Não Acatar"]
["019286","Diferença Da Conversão URV - Ação Judicial - FEPASA","Comunicado DDP/G-05, de 03/07/2020 => DOE: 04/07/2020","Não Acatar"]
["019287","Dissídio Coletivo Sobre Totalidade  Dos Vencimentos FEPASA - Ação Judicial","Comunicado DDP/G-05, de 03/07/2020 => DOE: 04/07/2020","Não Acatar"]
["019288","Acordo Coletivo Trabalho CTEEP 2019/2021","Comunicado DDP/G-05, de 03/07/2020 => DOE: 04/07/2020","Não Acatar"]
["021019","Redutor 13º Salário - PIN - Prêmio De Incentivo - FUNDES","Comunicado DDP/G-03, de 14/06/2018 => DOE: 15/06/2018","Não Acatar"]
["021020","Redutor - Lei 14.653/2011 - RGPS","Comunicado DDP/G-05, de 03/07/2020 => DOE: 04/07/2020","Não Acatar"]
["023030","Antecipação 13 Salário Adiantamento - Decreto 29439/88","Comunicado DDP/G-03, de 14/06/2018 => DOE: 15/06/2018","Não Acatar"]
["023031","13 Salário Carteira Serventias ","Comunicado DDP/G-05, de 03/07/2020 => DOE: 04/07/2020","Não Acatar"]
["023032","13º Salário Casem – Carteira Das Serventias - IPESP","Comunicado DDP/G-05, de 03/07/2020 => DOE: 04/07/2020","Não Acatar"]
["023033","13º Salário Da Carteira Economista/Pensionista","Comunicado DDP/G-05, de 03/07/2020 => DOE: 04/07/2020","Não Acatar"]

{"sheet":"BASE DE CÁLCULO IRRF E PREV.","index":2,"n_rows":26,"n_cols":4,"rows_kept":26,"cut":false,"hidden":false,"merged":[[0,0,0,1],[7,0,7,3],[9,0,9,3],[19,0,19,3]]}
["Base de cálculo (em R$)",null,"Alíquota (%)","Parcela a deduzir (em R$)"]
["DE","ATÉ","%","DEDUÇÃO"]
[0,2259.1999999999998,0,0]
[2259.21,2826.65,7.4999999999999997E-2,169.44]
[2826.66,3751.05,0.15,381.44]
[3751.06,4664.68,0.22500000000000001,662.77]
[4664.6899999999996,100000,0.27500000000000002,896]
["Valor da Dedução por dependente 2024: R$ 189,59"]
["fonte:  https://www.gov.br/receitafederal/pt-br/assuntos/meu-imposto-de-renda/tabelas/2024"]
["Tabela de Contribuição do INSS / PREVIDÊNCIA ATUAL"]
["DE","ATÉ","ALÍQUOTA","CONTRIBUIÇÃO MÁXIMA"]
[0,1518,7.4999999999999997E-2,951.53]
[1518.01,2793.88,0.09]
[2793.89,4190.83,0.12]
[4190.84,8157.41,0.14000000000000001]
[]
["PERCENTUAL","VALOR"]
[{"$f":"IF('[1]Simulador de margem'!G4<='BASE DE CÁLCULO IRRF E PREV.'!B12,'BASE DE CÁLCULO IRRF E PREV.'!C12,IF('[1]Simulador de margem'!G4<='BASE DE CÁLCULO IRRF E PREV.'!B13,'BASE DE CÁLCULO IRRF E PREV.'!C13,IF('[1]Simulador de margem'!G4<='BASE DE CÁLCULO IRRF E PREV.'!B15,'BASE DE CÁLCULO IRRF E PREV.'!C15,'BASE DE CÁLCULO IRRF E PREV.'!C15)))","v":7.4999999999999997E-2},{"$f":"IF('[1]Simulador de margem'!G4*A18<'BASE DE CÁLCULO IRRF E PREV.'!D12,'[1]Simulador de margem'!G4*A18,'[1]Simulador de margem'!H129)","v":0}]
[]
["Tabela de Contribuição Previdenciária dos Aposentados e Pensionistas de SP"]
["DE","ATÉ","ALÍQUOTA","CONTRIBUIÇÃO MÁXIMA"]
[0,1518,0.11]
[1518.01,4022.46,0.12]
[{"$f":"B23+0.01","v":4022.4700000000003},8157.41,0.14000000000000001]
[{"$f":"B24+0.01","v":8157.42},100000,0.16]
["https://www.apatej.org.br/portaria-da-spprev-estabelece-aliquotas-de-contribuicao-previdenciaria-para-servidores/"]